Workbook

Sheet CALCULADORA
B1: Exclusión de responsabilidad | H1: Valor nominal negociado
H2: TIPS N13 A
H3: TIPS N14 A
H4: TIPS N15 A
H5: TIPS N16 A
H6: TIPS N17 A
B7: Calculadora Emisiones TIPS en Pesos | H7: TIPS N18 A 2034
H8: TIPS N19 A 2034
B9: Emisión | C9: TIPS N16 A | E9: Seleccionar la Emisión a Calcular | H9: TIPS N20 A 2034
H10: TIPS N21 A
B11: Características | H11: TIPS N22 A
B12: Identificación titulo (Nemotécnico) | C12: =+HLOOKUP(C9,Características!B1:L7,2,FALSE) -> INST10061227 | F12: 99.999 | H12: TIPS N23 A
B13: Fecha de Emisión | C13: =+HLOOKUP(C9,Características!B1:L7,4,FALSE) -> 2017-12-06
B14: Fecha de Vencimiento Contractual | C14: =+HLOOKUP(C9,Características!B1:L7,5,FALSE) -> 2027-12-06
B15: Fecha estimada para el pago del 100% del título | C15: =+VLOOKUP(0,Flujos!D2:J182,6,FALSE) -> 2025-05-06
B16: Tasa Facial Efectiva Anual | C16: =+HLOOKUP(C9,Características!B1:L7,6,FALSE) -> 0.0638
B17: Tasa Facial Nominal Anual | C17: =+ROUND(((1+C16)^(1/12)-1)*12,6) -> 0.062007
B18: Duración Macaulay | C18: =+SUMPRODUCT(Flujos!B2:B182,Flujos!H2:H182)/Flujos!H183/365 -> 0.3593973199
B19: Nominal Inicial (Nominal del título al momento de la emisión) | C19: =Flujos!L2 -> 4.788065106e+12
B22: Datos de Compra | D22: Fecha de Compra y Valor de Compra son datos opcionales deben incluirse solo para calcular la TIR de Tenencia
B23: Fecha de Compra | C23: 2024-03-07
B24: Valor de Compra (COP) | C24: 15000000000
B26: Datos de Venta
B27: Fecha de Venta | C27: 2024-08-01 | E27: Incluir los datos de las celdas grises
B28: Valor nominal a negociar (COP) | C28: 182801000000
B29: Tasa de negociación / tasa de valoración | C29: 0.109
B30: Precio Limpio (sin incluir intereses causados)
B31: Precio sucio (incluyendo intereses causados) | C31: 100.028
A32: =+Flujos!C183*100 -> 3.817847 | B32: Porcentaje del nominal inicial que falta por pagar del capital | C32: =+Flujos!C183*100/100 -> 0.03817847
B33: Valor de Giro (COP) | C33: =+Características!B32 -> 181632901610
B35: TIR de Tenencia en COP* | C35: =+'TIR de Tenencia'!K2 -> 1680186736640
B37: Oficina de Atención a Inversionistas al 601 618 3030 ext 257 - 239, o al correo asalcedo@titularizadora.com - josorio@titularizadora.com
C43: 1

Sheet Flujos
A1: Fecha | B1: Días 365 / Days 365 | C1: Amortización / Amortization | D1: Factor Saldo | E1: Factor Capital | F1: Factor Intereses | G1: Factor Total | H1: VPN | I1: Control | J1: Mes inicial | K1: Días iniciales | L1: Saldo / Balance | M1: Pago de Capital | N1: Pago de Intereses | O1: Pago Total
A2: =+CALCULADORA!C13 -> 2017-12-06 | B2: =IF(DIAS365(CALCULADORA!$C$27,A2)<0,0,DIAS365(CALCULADORA!$C$27,A2)) -> 0 | C2: 0 | D2: =+CALCULADORA!A32/Flujos!C183 -> 100 | E2: 0 | F2: 0 | G2: =F2+E2 -> 0 | H2: =IF($B2<0,0,G2/POWER(1+CALCULADORA!$C$29,Flujos!$B2/365)) -> 0 | I2: =+A2 -> 2017-12-06 | J2: 0 | K2: 0 | L2: =+Características!B18/Flujos!C183 -> 4.788065106e+12 | M2: 0 | N2: 0 | O2: =+N2+M2 -> 0
A3: =EDATE(A2,1) -> 2018-01-06 | B3: =IF(DIAS365(CALCULADORA!$C$27,A3)<0,0,DIAS365(CALCULADORA!$C$27,A3)) -> 0 | C3: =+HLOOKUP(CALCULADORA!$C$9,Tablas!B:B,Flujos!J3+1,FALSE) -> 0.02356776 | D3: =+ROUND(D2-E3,6) -> 97.643224 | E3: =ROUND(C3*$D$2,6) -> 2.356776 | F3: =ROUND(D2*ROUND(((1+CALCULADORA!$C$16)^(1/12)-1),6),6) -> 0.5167 | G3: =F3+E3 -> 2.873476 | H3: =IF($B3=0,0,G3/POWER(1+CALCULADORA!$C$29,Flujos!$B3/365)) -> 0 | I3: =+A3 -> 2018-01-06 | J3: 1 | K3: =+DIAS365($A$2,A3) -> 31 | L3: =+L2-M3 -> 4.675221137e+12 | M3: =+$L$2*C3 -> 1.128439693e+11 | N3: =+L2*$F$3% -> 2.47399324e+10 | O3: =+N3+M3 -> 1.375839017e+11
A4: =EDATE(A3,1) -> 2018-02-06 | B4: =IF(DIAS365(CALCULADORA!$C$27,A4)<0,0,DIAS365(CALCULADORA!$C$27,A4)) -> 0 | C4: =+HLOOKUP(CALCULADORA!$C$9,Tablas!B:B,Flujos!J4+1,FALSE) -> 0.02133346 | D4: =+ROUND(D3-E4,6) -> 95.509878 | E4: =ROUND(C4*$D$2,6) -> 2.133346 | F4: =ROUND(D3*ROUND(((1+CALCULADORA!$C$16)^(1/12)-1),6),6) -> 0.504523 | G4: =F4+E4 -> 2.637869 | H4: =IF($B4=0,0,G4/POWER(1+CALCULADORA!$C$29,Flujos!$B4/365)) -> 0 | I4: 2018-02-06 | J4: 2 | K4: =+DIAS365($A$2,A4) -> 62 | L4: =+L3-M4 -> 4.573075141e+12 | M4: =+$L$2*C4 -> 1.021459954e+11 | N4: =+L3*$F$3% -> 2.415686761e+10 | O4: =+N4+M4 -> 1.26302863e+11
A5: 2018-03-06 | B5: =IF(DIAS365(CALCULADORA!$C$27,A5)<0,0,DIAS365(CALCULADORA!$C$27,A5)) -> 0 | C5: =+HLOOKUP(CALCULADORA!$C$9,Tablas!B:B,Flujos!J5+1,FALSE) -> 0.02897295 | D5: =+ROUND(D4-E5,6) -> 92.612583 | E5: 2.897295 | F5: =ROUND(D4*ROUND(((1+CALCULADORA!$C$16)^(1/12)-1),6),6) -> 0.4935 | G5: 3.390795 | H5: =IF($B5=0,0,G5/POWER(1+CALCULADORA!$C$29,Flujos!$B5/365)) -> 0 | I5: 2018-03-06 | J5: 3 | K5: =+DIAS365($A$2,A5) -> 90 | L5: 4.43435077e+12 | M5: 1.387243709e+11 | N5: 2.362907925e+10 | O5: 1.623534502e+11
A6: 2018-04-06 | B6: =IF(DIAS365(CALCULADORA!$C$27,A6)<0,0,DIAS365(CALCULADORA!$C$27,A6)) -> 0 | C6: =+HLOOKUP(CALCULADORA!$C$9,Tablas!B:B,Flujos!J6+1,FALSE) -> 0.02223212 | D6: 90.389371 | E6: 2.223212 | F6: =ROUND(D5*ROUND(((1+CALCULADORA!$C$16)^(1/12)-1),6),6) -> 0.478529 | G6: 2.701741 | H6: =IF($B6=0,0,G6/POWER(1+CALCULADORA!$C$29,Flujos!$B6/365)) -> 0 | I6: 2018-04-06 | J6: 4 | K6: =+DIAS365($A$2,A6) -> 121 | L6: 4.327901932e+12 | M6: 1.06448838e+11 | N6: 2.291229043e+10 | O6: 1.293611284e+11
A7: 2018-05-06 | B7: =IF(DIAS365(CALCULADORA!$C$27,A7)<0,0,DIAS365(CALCULADORA!$C$27,A7)) -> 0 | C7: =+HLOOKUP(CALCULADORA!$C$9,Tablas!B:B,Flujos!J7+1,FALSE) -> 0.02047248 | D7: 88.342123 | E7: 2.047248 | F7: =ROUND(D6*ROUND(((1+CALCULADORA!$C$16)^(1/12)-1),6),6) -> 0.467042 | G7: 2.51429 | H7: =IF($B7=0,0,G7/POWER(1+CALCULADORA!$C$29,Flujos!$B7/365)) -> 0 | I7: 2018-05-06 | J7: 5 | K7: =+DIAS365($A$2,A7) -> 151 | L7: 4.229878365e+12 | M7: 9.802356712e+10 | N7: 2.236226928e+10 | O7: 1.203858364e+11
A8: 2018-06-06 | B8: =IF(DIAS365(CALCULADORA!$C$27,A8)<0,0,DIAS365(CALCULADORA!$C$27,A8)) -> 0 | C8: =+HLOOKUP(CALCULADORA!$C$9,Tablas!B:B,Flujos!J8+1,FALSE) -> 0.02060537 | D8: 86.281586 | E8: 2.060537 | F8: =ROUND(D7*ROUND(((1+CALCULADORA!$C$16)^(1/12)-1),6),6) -> 0.456464 | G8: 2.517001 | H8: =IF($B8=0,0,G8/POWER(1+CALCULADORA!$C$29,Flujos!$B8/365)) -> 0 | I8: 2018-06-06 | J8: 6 | K8: =+DIAS365($A$2,A8) -> 182 | L8: 4.131218512e+12 | M8: 9.865985309e+10 | N8: 2.185578151e+10 | O8: 1.205156346e+11
A9: 2018-07-06 | B9: =IF(DIAS365(CALCULADORA!$C$27,A9)<0,0,DIAS365(CALCULADORA!$C$27,A9)) -> 0 | C9: =+HLOOKUP(CALCULADORA!$C$9,Tablas!B:B,Flujos!J9+1,FALSE) -> 0.02115641 | D9: 84.165945 | E9: 2.115641 | F9: =ROUND(D8*ROUND(((1+CALCULADORA!$C$16)^(1/12)-1),6),6) -> 0.445817 | G9: 2.561458 | H9: =IF($B9=0,0,G9/POWER(1+CALCULADORA!$C$29,Flujos!$B9/365)) -> 0 | I9: 2018-07-06 | J9: 7 | K9: =+DIAS365($A$2,A9) -> 212 | L9: 4.029920244e+12 | M9: 1.012982685e+11 | N9: 2.134600605e+10 | O9: 1.226442745e+11
A10: 2018-08-06 | B10: =IF(DIAS365(CALCULADORA!$C$27,A10)<0,0,DIAS365(CALCULADORA!$C$27,A10)) -> 0 | C10: =+HLOOKUP(CALCULADORA!$C$9,Tablas!B:B,Flujos!J10+1,FALSE) -> 0.01838404 | D10: 82.327541 | E10: 1.838404 | F10: =ROUND(D9*ROUND(((1+CALCULADORA!$C$16)^(1/12)-1),6),6) -> 0.434885 | G10: 2.273289 | H10: =IF($B10=0,0,G10/POWER(1+CALCULADORA!$C$29,Flujos!$B10/365)) -> 0 | I10: 2018-08-06 | J10: 8 | K10: =+DIAS365($A$2,A10) -> 243 | L10: 3.941896263e+12 | M10: 8.802398043e+10 | N10: 2.08225979e+10 | O10: 1.088465783e+11
A11: 2018-09-06 | B11: =IF(DIAS365(CALCULADORA!$C$27,A11)<0,0,DIAS365(CALCULADORA!$C$27,A11)) -> 0 | C11: =+HLOOKUP(CALCULADORA!$C$9,Tablas!B:B,Flujos!J11+1,FALSE) -> 0.02119569 | D11: 80.207972 | E11: 2.119569 | F11: =ROUND(D10*ROUND(((1+CALCULADORA!$C$16)^(1/12)-1),6),6) -> 0.425386 | G11: 2.544955 | H11: =IF($B11=0,0,G11/POWER(1+CALCULADORA!$C$29,Flujos!$B11/365)) -> 0 | I11: 2018-09-06 | J11: 9 | K11: =+DIAS365($A$2,A11) -> 274 | L11: 3.840409919e+12 | M11: 1.014863437e+11 | N11: 2.036777799e+10 | O11: 1.218541217e+11
A12: 2018-10-06 | B12: =IF(DIAS365(CALCULADORA!$C$27,A12)<0,0,DIAS365(CALCULADORA!$C$27,A12)) -> 0 | C12: =+HLOOKUP(CALCULADORA!$C$9,Tablas!B:B,Flujos!J12+1,FALSE) -> 0.02337674 | D12: 77.870298 | E12: 2.337674 | F12: =ROUND(D11*ROUND(((1+CALCULADORA!$C$16)^(1/12)-1),6),6) -> 0.414435 | G12: 2.752109 | H12: =IF($B12=0,0,G12/POWER(1+CALCULADORA!$C$29,Flujos!$B12/365)) -> 0 | I12: 2018-10-06 | J12: 10 | K12: =+DIAS365($A$2,A12) -> 304 | L12: 3.728480566e+12 | M12: 1.119293531e+11 | N12: 1.984339805e+10 | O12: 1.317727511e+11
A13: 2018-11-06 | B13: =IF(DIAS365(CALCULADORA!$C$27,A13)<0,0,DIAS365(CALCULADORA!$C$27,A13)) -> 0 | C13: =+HLOOKUP(CALCULADORA!$C$9,Tablas!B:B,Flujos!J13+1,FALSE) -> 0.01376149 | D13: 76.494149 | E13: 1.376149 | F13: =ROUND(D12*ROUND(((1+CALCULADORA!$C$16)^(1/12)-1),6),6) -> 0.402356 | G13: 1.778505 | H13: =IF($B13=0,0,G13/POWER(1+CALCULADORA!$C$29,Flujos!$B13/365)) -> 0 | I13: 2018-11-06 | J13: 11 | K13: =+DIAS365($A$2,A13) -> 335 | L13: 3.662589656e+12 | M13: 6.589091007e+10 | N13: 1.926505909e+10 | O13: 8.515596916e+10
A14: 2018-12-06 | B14: =IF(DIAS365(CALCULADORA!$C$27,A14)<0,0,DIAS365(CALCULADORA!$C$27,A14)) -> 0 | C14: =+HLOOKUP(CALCULADORA!$C$9,Tablas!B:B,Flujos!J14+1,FALSE) -> 0.01698375 | D14: 74.795774 | E14: 1.698375 | F14: =ROUND(D13*ROUND(((1+CALCULADORA!$C$16)^(1/12)-1),6),6) -> 0.395245 | G14: 2.09362 | H14: =IF($B14=0,0,G14/POWER(1+CALCULADORA!$C$29,Flujos!$B14/365)) -> 0 | I14: 2018-12-06 | J14: 12 | K14: =+DIAS365($A$2,A14) -> 365 | L14: 3.581270356e+12 | M14: 8.131930074e+10 | N14: 1.892460075e+10 | O14: 1.002439015e+11
A15: 2019-01-06 | B15: =IF(DIAS365(CALCULADORA!$C$27,A15)<0,0,DIAS365(CALCULADORA!$C$27,A15)) -> 0 | C15: =+HLOOKUP(CALCULADORA!$C$9,Tablas!B:B,Flujos!J15+1,FALSE) -> 0.022644 | D15: 72.531374 | E15: 2.2644 | F15: =ROUND(D14*ROUND(((1+CALCULADORA!$C$16)^(1/12)-1),6),6) -> 0.38647 | G15: 2.65087 | H15: =IF($B15=0,0,G15/POWER(1+CALCULADORA!$C$29,Flujos!$B15/365)) -> 0 | I15: 2019-01-06 | J15: 13 | K15: =+DIAS365($A$2,A15) -> 396 | L15: 3.472849409e+12 | M15: 1.084209463e+11 | N15: 1.850442393e+10 | O15: 1.269253702e+11
A16: 2019-02-06 | B16: =IF(DIAS365(CALCULADORA!$C$27,A16)<0,0,DIAS365(CALCULADORA!$C$27,A16)) -> 0 | C16: =+HLOOKUP(CALCULADORA!$C$9,Tablas!B:B,Flujos!J16+1,FALSE) -> 0.01870053 | D16: 70.661321 | E16: 1.870053 | F16: =ROUND(D15*ROUND(((1+CALCULADORA!$C$16)^(1/12)-1),6),6) -> 0.37477 | G16: 2.244823 | H16: =IF($B16=0,0,G16/POWER(1+CALCULADORA!$C$29,Flujos!$B16/365)) -> 0 | I16: 2019-02-06 | J16: 14 | K16: =+DIAS365($A$2,A16) -> 427 | L16: 3.383310054e+12 | M16: 8.953935515e+10 | N16: 1.79442129e+10 | O16: 1.074835681e+11
A17: 2019-03-06 | B17: =IF(DIAS365(CALCULADORA!$C$27,A17)<0,0,DIAS365(CALCULADORA!$C$27,A17)) -> 0 | C17: =+HLOOKUP(CALCULADORA!$C$9,Tablas!B:B,Flujos!J17+1,FALSE) -> 0.02424875 | D17: 68.236446 | E17: 2.424875 | F17: =ROUND(D16*ROUND(((1+CALCULADORA!$C$16)^(1/12)-1),6),6) -> 0.365107 | G17: 2.789982 | H17: =IF($B17=0,0,G17/POWER(1+CALCULADORA!$C$29,Flujos!$B17/365)) -> 0 | I17: 2019-03-06 | J17: 15 | K17: =+DIAS365($A$2,A17) -> 455 | L17: 3.26720546e+12 | M17: 1.161045937e+11 | N17: 1.748156305e+10 | O17: 1.335861568e+11
A18: 2019-04-06 | B18: =IF(DIAS365(CALCULADORA!$C$27,A18)<0,0,DIAS365(CALCULADORA!$C$27,A18)) -> 0 | C18: =+HLOOKUP(CALCULADORA!$C$9,Tablas!B:B,Flujos!J18+1,FALSE) -> 0.01717284 | D18: 66.519162 | E18: 1.717284 | F18: =ROUND(D17*ROUND(((1+CALCULADORA!$C$16)^(1/12)-1),6),6) -> 0.352578 | G18: 2.069862 | H18: =IF($B18=0,0,G18/POWER(1+CALCULADORA!$C$29,Flujos!$B18/365)) -> 0 | I18: 2019-04-06 | J18: 16 | K18: =+DIAS365($A$2,A18) -> 486 | L18: 3.184980784e+12 | M18: 8.222467597e+10 | N18: 1.688165061e+10 | O18: 9.910632659e+10
A19: 2019-05-06 | B19: =IF(DIAS365(CALCULADORA!$C$27,A19)<0,0,DIAS365(CALCULADORA!$C$27,A19)) -> 0 | C19: =+HLOOKUP(CALCULADORA!$C$9,Tablas!B:B,Flujos!J19+1,FALSE) -> 0.01614614 | D19: 64.904548 | E19: 1.614614 | F19: =ROUND(D18*ROUND(((1+CALCULADORA!$C$16)^(1/12)-1),6),6) -> 0.343705 | G19: 1.958319 | H19: =IF($B19=0,0,G19/POWER(1+CALCULADORA!$C$29,Flujos!$B19/365)) -> 0 | I19: 2019-05-06 | J19: 17 | K19: =+DIAS365($A$2,A19) -> 516 | L19: 3.107672015e+12 | M19: 7.730876953e+10 | N19: 1.645679571e+10 | O19: 9.376556524e+10
A20: 2019-06-06 | B20: =IF(DIAS365(CALCULADORA!$C$27,A20)<0,0,DIAS365(CALCULADORA!$C$27,A20)) -> 0 | C20: =+HLOOKUP(CALCULADORA!$C$9,Tablas!B:B,Flujos!J20+1,FALSE) -> 0.01870624 | D20: 63.033924 | E20: 1.870624 | F20: =ROUND(D19*ROUND(((1+CALCULADORA!$C$16)^(1/12)-1),6),6) -> 0.335362 | G20: 2.205986 | H20: =IF($B20=0,0,G20/POWER(1+CALCULADORA!$C$29,Flujos!$B20/365)) -> 0 | I20: 2019-06-06 | J20: 18 | K20: =+DIAS365($A$2,A20) -> 547 | L20: 3.01810532e+12 | M20: 8.9566695e+10 | N20: 1.60573413e+10 | O20: 1.056240363e+11
A21: 2019-07-06 | B21: =IF(DIAS365(CALCULADORA!$C$27,A21)<0,0,DIAS365(CALCULADORA!$C$27,A21)) -> 0 | C21: =+HLOOKUP(CALCULADORA!$C$9,Tablas!B:B,Flujos!J21+1,FALSE) -> 0.0282862 | D21: 60.205304 | E21: 2.82862 | F21: =ROUND(D20*ROUND(((1+CALCULADORA!$C$16)^(1/12)-1),6),6) -> 0.325696 | G21: 3.154316 | H21: =IF($B21=0,0,G21/POWER(1+CALCULADORA!$C$29,Flujos!$B21/365)) -> 0 | I21: 2019-07-06 | J21: 19 | K21: =+DIAS365($A$2,A21) -> 577 | L21: 2.882669153e+12 | M21: 1.354361672e+11 | N21: 1.559455019e+10 | O21: 1.510307174e+11
A22: 2019-08-06 | B22: =IF(DIAS365(CALCULADORA!$C$27,A22)<0,0,DIAS365(CALCULADORA!$C$27,A22)) -> 0 | C22: =+HLOOKUP(CALCULADORA!$C$9,Tablas!B:B,Flujos!J22+1,FALSE) -> 0.01329859 | D22: =+ROUND(D21-E22,6) -> 58.875445 | E22: 1.329859 | F22: =ROUND(D21*ROUND(((1+CALCULADORA!$C$16)^(1/12)-1),6),6) -> 0.311081 | G22: 1.64094 | H22: =IF($B22=0,0,G22/POWER(1+CALCULADORA!$C$29,Flujos!$B22/365)) -> 0 | I22: 2019-08-06 | J22: 20 | K22: =+DIAS365($A$2,A22) -> 608 | L22: 2.818994638e+12 | M22: 6.367451474e+10 | N22: 1.489475151e+10 | O22: 7.856926625e+10
A23: 2019-09-06 | B23: =IF(DIAS365(CALCULADORA!$C$27,A23)<0,0,DIAS365(CALCULADORA!$C$27,A23)) -> 0 | C23: =+HLOOKUP(CALCULADORA!$C$9,Tablas!B:B,Flujos!J23+1,FALSE) -> 0.01814356 | D23: 57.061089 | E23: 1.814356 | F23: =ROUND(D22*ROUND(((1+CALCULADORA!$C$16)^(1/12)-1),6),6) -> 0.304209 | G23: 2.118565 | H23: =IF($B23=0,0,G23/POWER(1+CALCULADORA!$C$29,Flujos!$B23/365)) -> 0 | I23: 2019-09-06 | J23: 21 | K23: =+DIAS365($A$2,A23) -> 639 | L23: 2.732122091e+12 | M23: 8.687254653e+10 | N23: 1.456574529e+10 | O23: 1.014382918e+11
A24: 2019-10-06 | B24: =IF(DIAS365(CALCULADORA!$C$27,A24)<0,0,DIAS365(CALCULADORA!$C$27,A24)) -> 0 | C24: =+HLOOKUP(CALCULADORA!$C$9,Tablas!B:B,Flujos!J24+1,FALSE) -> 0.01595792 | D24: 55.465297 | E24: 1.595792 | F24: =ROUND(D23*ROUND(((1+CALCULADORA!$C$16)^(1/12)-1),6),6) -> 0.294835 | G24: 1.890627 | H24: =IF($B24=0,0,G24/POWER(1+CALCULADORA!$C$29,Flujos!$B24/365)) -> 0 | I24: 2019-10-06 | J24: 22 | K24: =+DIAS365($A$2,A24) -> 669 | L24: 2.655714531e+12 | M24: 7.640755991e+10 | N24: 1.411687485e+10 | O24: 9.052443476e+10
A25: 2019-11-06 | B25: =IF(DIAS365(CALCULADORA!$C$27,A25)<0,0,DIAS365(CALCULADORA!$C$27,A25)) -> 0 | C25: =+HLOOKUP(CALCULADORA!$C$9,Tablas!B:B,Flujos!J25+1,FALSE) -> 0.01681101 | D25: 53.784196 | E25: 1.681101 | F25: =ROUND(D24*ROUND(((1+CALCULADORA!$C$16)^(1/12)-1),6),6) -> 0.286589 | G25: 1.96769 | H25: =IF($B25=0,0,G25/POWER(1+CALCULADORA!$C$29,Flujos!$B25/365)) -> 0 | I25: 2019-11-06 | J25: 23 | K25: =+DIAS365($A$2,A25) -> 700 | L25: 2.575222321e+12 | M25: 8.049221037e+10 | N25: 1.372207698e+10 | O25: 9.421428736e+10
A26: 2019-12-06 | B26: =IF(DIAS365(CALCULADORA!$C$27,A26)<0,0,DIAS365(CALCULADORA!$C$27,A26)) -> 0 | C26: =+HLOOKUP(CALCULADORA!$C$9,Tablas!B:B,Flujos!J26+1,FALSE) -> 0.01544912 | D26: 52.239284 | E26: 1.544912 | F26: =ROUND(D25*ROUND(((1+CALCULADORA!$C$16)^(1/12)-1),6),6) -> 0.277903 | G26: 1.822815 | H26: =IF($B26=0,0,G26/POWER(1+CALCULADORA!$C$29,Flujos!$B26/365)) -> 0 | I26: 2019-12-06 | J26: 24 | K26: =+DIAS365($A$2,A26) -> 730 | L26: 2.501250929e+12 | M26: 7.397139239e+10 | N26: 1.330617373e+10 | O26: 8.727756612e+10
A27: 2020-01-06 | B27: =IF(DIAS365(CALCULADORA!$C$27,A27)<0,0,DIAS365(CALCULADORA!$C$27,A27)) -> 0 | C27: =+HLOOKUP(CALCULADORA!$C$9,Tablas!B:B,Flujos!J27+1,FALSE) -> 0.01386443 | D27: 50.852841 | E27: 1.386443 | F27: =ROUND(D26*ROUND(((1+CALCULADORA!$C$16)^(1/12)-1),6),6) -> 0.26992 | G27: 1.656363 | H27: =IF($B27=0,0,G27/POWER(1+CALCULADORA!$C$29,Flujos!$B27/365)) -> 0 | I27: 2020-01-06 | J27: 25 | K27: =+DIAS365($A$2,A27) -> 761 | L27: 2.434867135e+12 | M27: 6.638379349e+10 | N27: 1.292396355e+10 | O27: 7.930775704e+10
A28: 2020-02-06 | B28: =IF(DIAS365(CALCULADORA!$C$27,A28)<0,0,DIAS365(CALCULADORA!$C$27,A28)) -> 0 | C28: =+HLOOKUP(CALCULADORA!$C$9,Tablas!B:B,Flujos!J28+1,FALSE) -> 0.01572838 | D28: 49.280003 | E28: 1.572838 | F28: =ROUND(D27*ROUND(((1+CALCULADORA!$C$16)^(1/12)-1),6),6) -> 0.262757 | G28: 1.835595 | H28: =IF($B28=0,0,G28/POWER(1+CALCULADORA!$C$29,Flujos!$B28/365)) -> 0 | I28: 2020-02-06 | J28: 26 | K28: =+DIAS365($A$2,A28) -> 792 | L28: 2.359558628e+12 | M28: 7.530850745e+10 | N28: 1.258095849e+10 | O28: 8.788946594e+10
A29: 2020-03-06 | B29: =IF(DIAS365(CALCULADORA!$C$27,A29)<0,0,DIAS365(CALCULADORA!$C$27,A29)) -> 0 | C29: =+HLOOKUP(CALCULADORA!$C$9,Tablas!B:B,Flujos!J29+1,FALSE) -> 0.02086454 | D29: 47.193549 | E29: 2.086454 | F29: =ROUND(D28*ROUND(((1+CALCULADORA!$C$16)^(1/12)-1),6),6) -> 0.25463 | G29: 2.341084 | H29: =IF($B29=0,0,G29/POWER(1+CALCULADORA!$C$29,Flujos!$B29/365)) -> 0 | I29: 2020-03-06 | J29: 27 | K29: =+DIAS365($A$2,A29) -> 820 | L29: 2.259657852e+12 | M29: 9.990077592e+10 | N29: 1.219183943e+10 | O29: 1.120926154e+11
A30: 2020-04-06 | B30: =IF(DIAS365(CALCULADORA!$C$27,A30)<0,0,DIAS365(CALCULADORA!$C$27,A30)) -> 0 | C30: =+HLOOKUP(CALCULADORA!$C$9,Tablas!B:B,Flujos!J30+1,FALSE) -> 0.01103635 | D30: 46.089914 | E30: 1.103635 | F30: =ROUND(D29*ROUND(((1+CALCULADORA!$C$16)^(1/12)-1),6),6) -> 0.243849 | G30: 1.347484 | H30: =IF($B30=0,0,G30/POWER(1+CALCULADORA!$C$29,Flujos!$B30/365)) -> 0 | I30: 2020-04-06 | J30: 28 | K30: =+DIAS365($A$2,A30) -> 851 | L30: 2.20681509e+12 | M30: 5.284276233e+10 | N30: 1.167565212e+10 | O30: 6.451841445e+10
A31: 2020-05-06 | B31: =IF(DIAS365(CALCULADORA!$C$27,A31)<0,0,DIAS365(CALCULADORA!$C$27,A31)) -> 0 | C31: =+HLOOKUP(CALCULADORA!$C$9,Tablas!B:B,Flujos!J31+1,FALSE) -> 0.00328742 | D31: 45.761172 | E31: 0.328742 | F31: =ROUND(D30*ROUND(((1+CALCULADORA!$C$16)^(1/12)-1),6),6) -> 0.238147 | G31: 0.566889 | H31: =IF($B31=0,0,G31/POWER(1+CALCULADORA!$C$29,Flujos!$B31/365)) -> 0 | I31: 2020-05-06 | J31: 29 | K31: =+DIAS365($A$2,A31) -> 881 | L31: 2.191074709e+12 | M31: 1.574038099e+10 | N31: 1.140261357e+10 | O31: 2.714299456e+10
A32: 2020-06-06 | B32: =IF(DIAS365(CALCULADORA!$C$27,A32)<0,0,DIAS365(CALCULADORA!$C$27,A32)) -> 0 | C32: =+HLOOKUP(CALCULADORA!$C$9,Tablas!B:B,Flujos!J32+1,FALSE) -> 0.00335904 | D32: 45.425268 | E32: 0.335904 | F32: =ROUND(D31*ROUND(((1+CALCULADORA!$C$16)^(1/12)-1),6),6) -> 0.236448 | G32: 0.572352 | H32: =IF($B32=0,0,G32/POWER(1+CALCULADORA!$C$29,Flujos!$B32/365)) -> 0 | I32: 2020-06-06 | J32: 30 | K32: =+DIAS365($A$2,A32) -> 912 | L32: 2.174991406e+12 | M32: 1.608330221e+10 | N32: 1.132128302e+10 | O32: 2.740458523e+10
A33: 2020-07-06 | B33: =IF(DIAS365(CALCULADORA!$C$27,A33)<0,0,DIAS365(CALCULADORA!$C$27,A33)) -> 0 | C33: =+HLOOKUP(CALCULADORA!$C$9,Tablas!B:B,Flujos!J33+1,FALSE) -> 0.0047029 | D33: 44.954978 | E33: 0.47029 | F33: =ROUND(D32*ROUND(((1+CALCULADORA!$C$16)^(1/12)-1),6),6) -> 0.234712 | G33: 0.705002 | H33: =IF($B33=0,0,G33/POWER(1+CALCULADORA!$C$29,Flujos!$B33/365)) -> 0 | I33: 2020-07-06 | J33: 31 | K33: =+DIAS365($A$2,A33) -> 942 | L33: 2.152473615e+12 | M33: 2.251779139e+10 | N33: 1.12381806e+10 | O33: 3.375597198e+10
A34: 2020-08-06 | B34: =IF(DIAS365(CALCULADORA!$C$27,A34)<0,0,DIAS365(CALCULADORA!$C$27,A34)) -> 0 | C34: =+HLOOKUP(CALCULADORA!$C$9,Tablas!B:B,Flujos!J34+1,FALSE) -> 0.00592936 | D34: 44.362042 | E34: 0.592936 | F34: =ROUND(D33*ROUND(((1+CALCULADORA!$C$16)^(1/12)-1),6),6) -> 0.232282 | G34: 0.825218 | H34: =IF($B34=0,0,G34/POWER(1+CALCULADORA!$C$29,Flujos!$B34/365)) -> 0 | I34: 2020-08-06 | J34: 32 | K34: =+DIAS365($A$2,A34) -> 973 | L34: 2.124083453e+12 | M34: 2.839016172e+10 | N34: 1.112183117e+10 | O34: 3.951199288e+10
A35: =EDATE(A34,1) -> 2020-09-06 | B35: =IF(DIAS365(CALCULADORA!$C$27,A35)<0,0,DIAS365(CALCULADORA!$C$27,A35)) -> 0 | C35: =+HLOOKUP(CALCULADORA!$C$9,Tablas!B:B,Flujos!J35+1,FALSE) -> 0.00934888 | D35: 43.427154 | E35: 0.934888 | F35: =ROUND(D34*ROUND(((1+CALCULADORA!$C$16)^(1/12)-1),6),6) -> 0.229219 | G35: 1.164107 | H35: =IF($B35=0,0,G35/POWER(1+CALCULADORA!$C$29,Flujos!$B35/365)) -> 0 | I35: 2020-09-06 | J35: 33 | K35: =+DIAS365($A$2,A35) -> 1004 | L35: 2.079320407e+12 | M35: 4.476304611e+10 | N35: 1.09751392e+10 | O35: 5.573818531e+10
A36: 2020-10-06 | B36: =IF(DIAS365(CALCULADORA!$C$27,A36)<0,0,DIAS365(CALCULADORA!$C$27,A36)) -> 0 | C36: =+HLOOKUP(CALCULADORA!$C$9,Tablas!B:B,Flujos!J36+1,FALSE) -> 0.0094674 | D36: 42.480414 | E36: 0.94674 | F36: =ROUND(D35*ROUND(((1+CALCULADORA!$C$16)^(1/12)-1),6),6) -> 0.224388 | G36: 1.171128 | H36: =IF($B36=0,0,G36/POWER(1+CALCULADORA!$C$29,Flujos!$B36/365)) -> 0 | I36: 2020-10-06 | J36: 34 | K36: =+DIAS365($A$2,A36) -> 1034 | L36: 2.03398988e+12 | M36: 4.533052758e+10 | N36: 1.074384854e+10 | O36: 5.607437613e+10
A37: 2020-11-06 | B37: =IF(DIAS365(CALCULADORA!$C$27,A37)<0,0,DIAS365(CALCULADORA!$C$27,A37)) -> 0 | C37: =+HLOOKUP(CALCULADORA!$C$9,Tablas!B:B,Flujos!J37+1,FALSE) -> 0.01645422 | D37: 40.834992 | E37: 1.645422 | F37: =ROUND(D36*ROUND(((1+CALCULADORA!$C$16)^(1/12)-1),6),6) -> 0.219496 | G37: 1.864918 | H37: =IF($B37=0,0,G37/POWER(1+CALCULADORA!$C$29,Flujos!$B37/365)) -> 0 | I37: 2020-11-06 | J37: 35 | K37: =+DIAS365($A$2,A37) -> 1065 | L37: 1.955206003e+12 | M37: 7.878387663e+10 | N37: 1.050962571e+10 | O37: 8.929350233e+10
A38: 2020-12-06 | B38: =IF(DIAS365(CALCULADORA!$C$27,A38)<0,0,DIAS365(CALCULADORA!$C$27,A38)) -> 0 | C38: =+HLOOKUP(CALCULADORA!$C$9,Tablas!B:B,Flujos!J38+1,FALSE) -> 0.01360503 | D38: 39.474489 | E38: 1.360503 | F38: =ROUND(D37*ROUND(((1+CALCULADORA!$C$16)^(1/12)-1),6),6) -> 0.210994 | G38: 1.571497 | H38: =IF($B38=0,0,G38/POWER(1+CALCULADORA!$C$29,Flujos!$B38/365)) -> 0 | I38: 2020-12-06 | J38: 36 | K38: =+DIAS365($A$2,A38) -> 1095 | L38: 1.890064234e+12 | M38: 6.514176941e+10 | N38: 1.010254942e+10 | O38: 7.524431882e+10
A39: 2021-01-06 | B39: =IF(DIAS365(CALCULADORA!$C$27,A39)<0,0,DIAS365(CALCULADORA!$C$27,A39)) -> 0 | C39: =+HLOOKUP(CALCULADORA!$C$9,Tablas!B:B,Flujos!J39+1,FALSE) -> 0.01503896 | D39: 37.970593 | E39: 1.503896 | F39: =ROUND(D38*ROUND(((1+CALCULADORA!$C$16)^(1/12)-1),6),6) -> 0.203965 | G39: 1.707861 | H39: =IF($B39=0,0,G39/POWER(1+CALCULADORA!$C$29,Flujos!$B39/365)) -> 0 | I39: 2021-01-06 | J39: 37 | K39: =+DIAS365($A$2,A39) -> 1126 | L39: 1.818056714e+12 | M39: 7.20075196e+10 | N39: 9765961895 | O39: 8.17734815e+10
A40: 2021-02-06 | B40: =IF(DIAS365(CALCULADORA!$C$27,A40)<0,0,DIAS365(CALCULADORA!$C$27,A40)) -> 0 | C40: =+HLOOKUP(CALCULADORA!$C$9,Tablas!B:B,Flujos!J40+1,FALSE) -> 0.01366977 | D40: =+ROUND(D39-E40,6) -> 36.603616 | E40: =ROUND(C40*$D$2,6) -> 1.366977 | F40: =ROUND(D39*ROUND(((1+CALCULADORA!$C$16)^(1/12)-1),6),6) -> 0.196194 | G40: =F40+E40 -> 1.563171 | H40: =IF($B40=0,0,G40/POWER(1+CALCULADORA!$C$29,Flujos!$B40/365)) -> 0 | I40: =+A40 -> 2021-02-06 | J40: 38 | K40: =+DIAS365($A$2,A40) -> 1157 | L40: 1.752604965e+12 | M40: 6.545174874e+10 | N40: 9393899041 | O40: 7.484564778e+10
A41: 2021-03-06 | B41: =IF(DIAS365(CALCULADORA!$C$27,A41)<0,0,DIAS365(CALCULADORA!$C$27,A41)) -> 0 | C41: =+HLOOKUP(CALCULADORA!$C$9,Tablas!B:B,Flujos!J41+1,FALSE) -> 0.01395939 | D41: 35.207677 | E41: 1.395939 | F41: =ROUND(D40*ROUND(((1+CALCULADORA!$C$16)^(1/12)-1),6),6) -> 0.189131 | G41: 1.58507 | H41: =IF($B41=0,0,G41/POWER(1+CALCULADORA!$C$29,Flujos!$B41/365)) -> 0 | I41: 2021-03-06 | J41: 39 | K41: =+DIAS365($A$2,A41) -> 1185 | L41: 1.685766497e+12 | M41: 6.683846816e+10 | N41: 9055709855 | O41: 7.589417801e+10
A42: 2021-04-06 | B42: =IF(DIAS365(CALCULADORA!$C$27,A42)<0,0,DIAS365(CALCULADORA!$C$27,A42)) -> 0 | C42: =+HLOOKUP(CALCULADORA!$C$9,Tablas!B:B,Flujos!J42+1,FALSE) -> 0.01200633 | D42: 34.007044 | E42: 1.200633 | F42: =ROUND(D41*ROUND(((1+CALCULADORA!$C$16)^(1/12)-1),6),6) -> 0.181918 | G42: 1.382551 | H42: =IF($B42=0,0,G42/POWER(1+CALCULADORA!$C$29,Flujos!$B42/365)) -> 0 | I42: 2021-04-06 | J42: 40 | K42: =+DIAS365($A$2,A42) -> 1216 | L42: 1.628279407e+12 | M42: 5.748708972e+10 | N42: 8710355490 | O42: 6.619744521e+10
A43: 2021-05-06 | B43: =IF(DIAS365(CALCULADORA!$C$27,A43)<0,0,DIAS365(CALCULADORA!$C$27,A43)) -> 0 | C43: =+HLOOKUP(CALCULADORA!$C$9,Tablas!B:B,Flujos!J43+1,FALSE) -> 0.01270412 | D43: 32.736632 | E43: 1.270412 | F43: =ROUND(D42*ROUND(((1+CALCULADORA!$C$16)^(1/12)-1),6),6) -> 0.175714 | G43: 1.446126 | H43: =IF($B43=0,0,G43/POWER(1+CALCULADORA!$C$29,Flujos!$B43/365)) -> 0 | I43: 2021-05-06 | J43: 41 | K43: =+DIAS365($A$2,A43) -> 1246 | L43: 1.567451254e+12 | M43: 6.082815367e+10 | N43: 8413319697 | O43: 6.924147337e+10
A44: 2021-06-06 | B44: =IF(DIAS365(CALCULADORA!$C$27,A44)<0,0,DIAS365(CALCULADORA!$C$27,A44)) -> 0 | C44: =+HLOOKUP(CALCULADORA!$C$9,Tablas!B:B,Flujos!J44+1,FALSE) -> 0.01132464 | D44: 31.604168 | E44: 1.132464 | F44: =ROUND(D43*ROUND(((1+CALCULADORA!$C$16)^(1/12)-1),6),6) -> 0.16915 | G44: 1.301614 | H44: =IF($B44=0,0,G44/POWER(1+CALCULADORA!$C$29,Flujos!$B44/365)) -> 0 | I44: 2021-06-06 | J44: 42 | K44: =+DIAS365($A$2,A44) -> 1277 | L44: 1.51322814e+12 | M44: 5.422311362e+10 | N44: 8099020627 | O44: 6.232213425e+10
A45: 2021-07-06 | B45: =IF(DIAS365(CALCULADORA!$C$27,A45)<0,0,DIAS365(CALCULADORA!$C$27,A45)) -> 0 | C45: =+HLOOKUP(CALCULADORA!$C$9,Tablas!B:B,Flujos!J45+1,FALSE) -> 0.00969269 | D45: 30.634899 | E45: 0.969269 | F45: =ROUND(D44*ROUND(((1+CALCULADORA!$C$16)^(1/12)-1),6),6) -> 0.163299 | G45: 1.132568 | H45: =IF($B45=0,0,G45/POWER(1+CALCULADORA!$C$29,Flujos!$B45/365)) -> 0 | I45: 2021-07-06 | J45: 43 | K45: =+DIAS365($A$2,A45) -> 1307 | L45: 1.466818909e+12 | M45: 4.640923077e+10 | N45: 7818849799 | O45: 5.422808057e+10
A46: 2021-08-06 | B46: =IF(DIAS365(CALCULADORA!$C$27,A46)<0,0,DIAS365(CALCULADORA!$C$27,A46)) -> 0 | C46: =+HLOOKUP(CALCULADORA!$C$9,Tablas!B:B,Flujos!J46+1,FALSE) -> 0.01363761 | D46: 29.271138 | E46: 1.363761 | F46: =ROUND(D45*ROUND(((1+CALCULADORA!$C$16)^(1/12)-1),6),6) -> 0.158291 | G46: 1.522052 | H46: =IF($B46=0,0,G46/POWER(1+CALCULADORA!$C$29,Flujos!$B46/365)) -> 0 | I46: 2021-08-06 | J46: 44 | K46: =+DIAS365($A$2,A46) -> 1338 | L46: 1.401521145e+12 | M46: 6.529776457e+10 | N46: 7579053304 | O46: 7.287681787e+10
A47: 2021-09-06 | B47: =IF(DIAS365(CALCULADORA!$C$27,A47)<0,0,DIAS365(CALCULADORA!$C$27,A47)) -> 0 | C47: =+HLOOKUP(CALCULADORA!$C$9,Tablas!B:B,Flujos!J47+1,FALSE) -> 0.01135293 | D47: 28.135845 | E47: 1.135293 | F47: =ROUND(D46*ROUND(((1+CALCULADORA!$C$16)^(1/12)-1),6),6) -> 0.151244 | G47: 1.286537 | H47: =IF($B47=0,0,G47/POWER(1+CALCULADORA!$C$29,Flujos!$B47/365)) -> 0 | I47: 2021-09-06 | J47: 45 | K47: =+DIAS365($A$2,A47) -> 1369 | L47: 1.347162577e+12 | M47: 5.435856798e+10 | N47: 7241659754 | O47: 6.160022774e+10
A48: 2021-10-06 | B48: =IF(DIAS365(CALCULADORA!$C$27,A48)<0,0,DIAS365(CALCULADORA!$C$27,A48)) -> 0 | C48: =+HLOOKUP(CALCULADORA!$C$9,Tablas!B:B,Flujos!J48+1,FALSE) -> 0.01013605 | D48: 27.12224 | E48: 1.013605 | F48: =ROUND(D47*ROUND(((1+CALCULADORA!$C$16)^(1/12)-1),6),6) -> 0.145378 | G48: 1.158983 | H48: =IF($B48=0,0,G48/POWER(1+CALCULADORA!$C$29,Flujos!$B48/365)) -> 0 | I48: 2021-10-06 | J48: 46 | K48: =+DIAS365($A$2,A48) -> 1399 | L48: 1.298630509e+12 | M48: 4.853206732e+10 | N48: 6960789034 | O48: 5.549285635e+10
A49: 2021-11-06 | B49: =IF(DIAS365(CALCULADORA!$C$27,A49)<0,0,DIAS365(CALCULADORA!$C$27,A49)) -> 0 | C49: =+HLOOKUP(CALCULADORA!$C$9,Tablas!B:B,Flujos!J49+1,FALSE) -> 0.01023478 | D49: 26.098762 | E49: 1.023478 | F49: =ROUND(D48*ROUND(((1+CALCULADORA!$C$16)^(1/12)-1),6),6) -> 0.140141 | G49: 1.163619 | H49: =IF($B49=0,0,G49/POWER(1+CALCULADORA!$C$29,Flujos!$B49/365)) -> 0 | I49: 2021-11-06 | J49: 47 | K49: =+DIAS365($A$2,A49) -> 1430 | L49: 1.249625716e+12 | M49: 4.900479298e+10 | N49: 6710023842 | O49: 5.571481683e+10
A50: 2021-12-06 | B50: =IF(DIAS365(CALCULADORA!$C$27,A50)<0,0,DIAS365(CALCULADORA!$C$27,A50)) -> 0 | C50: =+HLOOKUP(CALCULADORA!$C$9,Tablas!B:B,Flujos!J50+1,FALSE) -> 0.0082423 | D50: 25.274532 | E50: 0.82423 | F50: =ROUND(D49*ROUND(((1+CALCULADORA!$C$16)^(1/12)-1),6),6) -> 0.134852 | G50: 0.959082 | H50: =IF($B50=0,0,G50/POWER(1+CALCULADORA!$C$29,Flujos!$B50/365)) -> 0 | I50: 2021-12-06 | J50: 48 | K50: =+DIAS365($A$2,A50) -> 1460 | L50: 1.210161047e+12 | M50: 3.946466902e+10 | N50: 6456816076 | O50: 4.59214851e+10
A51: 2022-01-06 | B51: =IF(DIAS365(CALCULADORA!$C$27,A51)<0,0,DIAS365(CALCULADORA!$C$27,A51)) -> 0 | C51: =+HLOOKUP(CALCULADORA!$C$9,Tablas!B:B,Flujos!J51+1,FALSE) -> 0.01079955 | D51: 24.194577 | E51: 1.079955 | F51: =ROUND(D50*ROUND(((1+CALCULADORA!$C$16)^(1/12)-1),6),6) -> 0.130594 | G51: 1.210549 | H51: =IF($B51=0,0,G51/POWER(1+CALCULADORA!$C$29,Flujos!$B51/365)) -> 0 | I51: 2022-01-06 | J51: 49 | K51: =+DIAS365($A$2,A51) -> 1491 | L51: 1.158452099e+12 | M51: 5.170894851e+10 | N51: 6252902132 | O51: 5.796185065e+10
A52: 2022-02-06 | B52: =IF(DIAS365(CALCULADORA!$C$27,A52)<0,0,DIAS365(CALCULADORA!$C$27,A52)) -> 0 | C52: =+HLOOKUP(CALCULADORA!$C$9,Tablas!B:B,Flujos!J52+1,FALSE) -> 0.01187544 | D52: 23.007033 | E52: 1.187544 | F52: =ROUND(D51*ROUND(((1+CALCULADORA!$C$16)^(1/12)-1),6),6) -> 0.125013 | G52: 1.312557 | H52: =IF($B52=0,0,G52/POWER(1+CALCULADORA!$C$29,Flujos!$B52/365)) -> 0 | I52: 2022-02-06 | J52: 50 | K52: =+DIAS365($A$2,A52) -> 1522 | L52: 1.101591719e+12 | M52: 5.686037988e+10 | N52: 5985721995 | O52: 6.284610187e+10
A53: 2022-03-06 | B53: =IF(DIAS365(CALCULADORA!$C$27,A53)<0,0,DIAS365(CALCULADORA!$C$27,A53)) -> 0 | C53: =+HLOOKUP(CALCULADORA!$C$9,Tablas!B:B,Flujos!J53+1,FALSE) -> 0.01019234 | D53: 21.987799 | E53: 1.019234 | F53: =ROUND(D52*ROUND(((1+CALCULADORA!$C$16)^(1/12)-1),6),6) -> 0.118877 | G53: 1.138111 | H53: =IF($B53=0,0,G53/POWER(1+CALCULADORA!$C$29,Flujos!$B53/365)) -> 0 | I53: 2022-03-06 | J53: 51 | K53: =+DIAS365($A$2,A53) -> 1550 | L53: 1.052790131e+12 | M53: 4.88015875e+10 | N53: 5691924412 | O53: 5.449351191e+10
A54: 2022-04-06 | B54: =IF(DIAS365(CALCULADORA!$C$27,A54)<0,0,DIAS365(CALCULADORA!$C$27,A54)) -> 0 | C54: =+HLOOKUP(CALCULADORA!$C$9,Tablas!B:B,Flujos!J54+1,FALSE) -> 0.01059437 | D54: 20.928362 | E54: 1.059437 | F54: =ROUND(D53*ROUND(((1+CALCULADORA!$C$16)^(1/12)-1),6),6) -> 0.113611 | G54: 1.173048 | H54: =IF($B54=0,0,G54/POWER(1+CALCULADORA!$C$29,Flujos!$B54/365)) -> 0 | I54: 2022-04-06 | J54: 52 | K54: =+DIAS365($A$2,A54) -> 1581 | L54: 1.002063598e+12 | M54: 5.072653331e+10 | N54: 5439766609 | O54: 5.616629992e+10
A55: 2022-05-06 | B55: =IF(DIAS365(CALCULADORA!$C$27,A55)<0,0,DIAS365(CALCULADORA!$C$27,A55)) -> 0 | C55: =+HLOOKUP(CALCULADORA!$C$9,Tablas!B:B,Flujos!J55+1,FALSE) -> 0.0111525 | D55: 19.813112 | E55: 1.11525 | F55: =ROUND(D54*ROUND(((1+CALCULADORA!$C$16)^(1/12)-1),6),6) -> 0.108137 | G55: 1.223387 | H55: =IF($B55=0,0,G55/POWER(1+CALCULADORA!$C$29,Flujos!$B55/365)) -> 0 | I55: 2022-05-06 | J55: 53 | K55: =+DIAS365($A$2,A55) -> 1611 | L55: 9.48664702e+11 | M55: 5.339889609e+10 | N55: 5177662612 | O55: 5.85765587e+10
A56: 2022-06-06 | B56: =IF(DIAS365(CALCULADORA!$C$27,A56)<0,0,DIAS365(CALCULADORA!$C$27,A56)) -> 0 | C56: =+HLOOKUP(CALCULADORA!$C$9,Tablas!B:B,Flujos!J56+1,FALSE) -> 0.00963262 | D56: 18.84985 | E56: 0.963262 | F56: =ROUND(D55*ROUND(((1+CALCULADORA!$C$16)^(1/12)-1),6),6) -> 0.102374 | G56: 1.065636 | H56: =IF($B56=0,0,G56/POWER(1+CALCULADORA!$C$29,Flujos!$B56/365)) -> 0 | I56: 2022-06-06 | J56: 54 | K56: =+DIAS365($A$2,A56) -> 1642 | L56: 9.025430903e+11 | M56: 4.61216117e+10 | N56: 4901750515 | O56: 5.102336221e+10
A57: 2022-07-06 | B57: =IF(DIAS365(CALCULADORA!$C$27,A57)<0,0,DIAS365(CALCULADORA!$C$27,A57)) -> 0 | C57: =+HLOOKUP(CALCULADORA!$C$9,Tablas!B:B,Flujos!J57+1,FALSE) -> 0.00611365 | D57: 18.238485 | E57: 0.611365 | F57: =ROUND(D56*ROUND(((1+CALCULADORA!$C$16)^(1/12)-1),6),6) -> 0.097397 | G57: 0.708762 | H57: =IF($B57=0,0,G57/POWER(1+CALCULADORA!$C$29,Flujos!$B57/365)) -> 0 | I57: 2022-07-06 | J57: 55 | K57: =+DIAS365($A$2,A57) -> 1672 | L57: 8.732705361e+11 | M57: 2.927255423e+10 | N57: 4663440148 | O57: 3.393599438e+10
A58: 2022-08-06 | B58: =IF(DIAS365(CALCULADORA!$C$27,A58)<0,0,DIAS365(CALCULADORA!$C$27,A58)) -> 0 | C58: =+HLOOKUP(CALCULADORA!$C$9,Tablas!B:B,Flujos!J58+1,FALSE) -> 0.00810022 | D58: 17.428463 | E58: 0.810022 | F58: =ROUND(D57*ROUND(((1+CALCULADORA!$C$16)^(1/12)-1),6),6) -> 0.094238 | G58: 0.90426 | H58: =IF($B58=0,0,G58/POWER(1+CALCULADORA!$C$29,Flujos!$B58/365)) -> 0 | I58: 2022-08-06 | J58: 56 | K58: =+DIAS365($A$2,A58) -> 1703 | L58: 8.344861554e+11 | M58: 3.878438073e+10 | N58: 4512188860 | O58: 4.329656959e+10
A59: 2022-09-06 | B59: =IF(DIAS365(CALCULADORA!$C$27,A59)<0,0,DIAS365(CALCULADORA!$C$27,A59)) -> 0 | C59: =+HLOOKUP(CALCULADORA!$C$9,Tablas!B:B,Flujos!J59+1,FALSE) -> 0.00639594 | D59: 16.788869 | E59: 0.639594 | F59: =ROUND(D58*ROUND(((1+CALCULADORA!$C$16)^(1/12)-1),6),6) -> 0.090053 | G59: 0.729647 | H59: =IF($B59=0,0,G59/POWER(1+CALCULADORA!$C$29,Flujos!$B59/365)) -> 0 | I59: 2022-09-06 | J59: 57 | K59: =+DIAS365($A$2,A59) -> 1734 | L59: 8.038619782e+11 | M59: 3.062417713e+10 | N59: 4311789965 | O59: 3.49359671e+10
A60: 2022-10-06 | B60: =IF(DIAS365(CALCULADORA!$C$27,A60)<0,0,DIAS365(CALCULADORA!$C$27,A60)) -> 0 | C60: =+HLOOKUP(CALCULADORA!$C$9,Tablas!B:B,Flujos!J60+1,FALSE) -> 0.0099169 | D60: 15.797179 | E60: 0.99169 | F60: =ROUND(D59*ROUND(((1+CALCULADORA!$C$16)^(1/12)-1),6),6) -> 0.086748 | G60: 1.078438 | H60: =IF($B60=0,0,G60/POWER(1+CALCULADORA!$C$29,Flujos!$B60/365)) -> 0 | I60: 2022-10-06 | J60: 58 | K60: =+DIAS365($A$2,A60) -> 1764 | L60: 7.563792154e+11 | M60: 4.748276285e+10 | N60: 4153554842 | O60: 5.163631769e+10
A61: 2022-11-06 | B61: =IF(DIAS365(CALCULADORA!$C$27,A61)<0,0,DIAS365(CALCULADORA!$C$27,A61)) -> 0 | C61: =+HLOOKUP(CALCULADORA!$C$9,Tablas!B:B,Flujos!J61+1,FALSE) -> 0.00934268 | D61: 14.862911 | E61: 0.934268 | F61: =ROUND(D60*ROUND(((1+CALCULADORA!$C$16)^(1/12)-1),6),6) -> 0.081624 | G61: 1.015892 | H61: =IF($B61=0,0,G61/POWER(1+CALCULADORA!$C$29,Flujos!$B61/365)) -> 0 | I61: 2022-11-06 | J61: 59 | K61: =+DIAS365($A$2,A61) -> 1795 | L61: 7.116458553e+11 | M61: 4.47333601e+10 | N61: 3908211406 | O61: 4.864157151e+10
A62: 2022-12-06 | B62: =IF(DIAS365(CALCULADORA!$C$27,A62)<0,0,DIAS365(CALCULADORA!$C$27,A62)) -> 0 | C62: =+HLOOKUP(CALCULADORA!$C$9,Tablas!B:B,Flujos!J62+1,FALSE) -> 0.0055879 | D62: 14.304121 | E62: 0.55879 | F62: =ROUND(D61*ROUND(((1+CALCULADORA!$C$16)^(1/12)-1),6),6) -> 0.076797 | G62: 0.635587 | H62: =IF($B62=0,0,G62/POWER(1+CALCULADORA!$C$29,Flujos!$B62/365)) -> 0 | I62: 2022-12-06 | J62: 60 | K62: =+DIAS365($A$2,A62) -> 1825 | L62: 6.848906263e+11 | M62: 2.6755229e+10 | N62: 3677074134 | O62: 3.043230314e+10
A63: 2023-01-06 | B63: =IF(DIAS365(CALCULADORA!$C$27,A63)<0,0,DIAS365(CALCULADORA!$C$27,A63)) -> 0 | C63: =+HLOOKUP(CALCULADORA!$C$9,Tablas!B:B,Flujos!J63+1,FALSE) -> 0.00736599 | D63: 13.567522 | E63: 0.736599 | F63: =ROUND(D62*ROUND(((1+CALCULADORA!$C$16)^(1/12)-1),6),6) -> 0.073909 | G63: 0.810508 | H63: =IF($B63=0,0,G63/POWER(1+CALCULADORA!$C$29,Flujos!$B63/365)) -> 0 | I63: 2023-01-06 | J63: 61 | K63: =+DIAS365($A$2,A63) -> 1856 | L63: 6.496217866e+11 | M63: 3.526883969e+10 | N63: 3538829866 | O63: 3.880766955e+10
A64: 2023-02-06 | B64: =IF(DIAS365(CALCULADORA!$C$27,A64)<0,0,DIAS365(CALCULADORA!$C$27,A64)) -> 0 | C64: =+HLOOKUP(CALCULADORA!$C$9,Tablas!B:B,Flujos!J64+1,FALSE) -> 0.00620802 | D64: 12.94672 | E64: 0.620802 | F64: =ROUND(D63*ROUND(((1+CALCULADORA!$C$16)^(1/12)-1),6),6) -> 0.070103 | G64: 0.690905 | H64: =IF($B64=0,0,G64/POWER(1+CALCULADORA!$C$29,Flujos!$B64/365)) -> 0 | I64: 2023-02-06 | J64: 62 | K64: =+DIAS365($A$2,A64) -> 1887 | L64: 6.198973827e+11 | M64: 2.972440394e+10 | N64: 3356595771 | O64: 3.308099971e+10
A65: 2023-03-06 | B65: =IF(DIAS365(CALCULADORA!$C$27,A65)<0,0,DIAS365(CALCULADORA!$C$27,A65)) -> 0 | C65: =+HLOOKUP(CALCULADORA!$C$9,Tablas!B:B,Flujos!J65+1,FALSE) -> 0.00603929 | D65: 12.342791 | E65: 0.603929 | F65: =ROUND(D64*ROUND(((1+CALCULADORA!$C$16)^(1/12)-1),6),6) -> 0.066896 | G65: 0.670825 | H65: =IF($B65=0,0,G65/POWER(1+CALCULADORA!$C$29,Flujos!$B65/365)) -> 0 | I65: 2023-03-06 | J65: 63 | K65: =+DIAS365($A$2,A65) -> 1915 | L65: 5.90980869e+11 | M65: 2.891651371e+10 | N65: 3203009776 | O65: 3.211952349e+10
A66: 2023-04-06 | B66: =IF(DIAS365(CALCULADORA!$C$27,A66)<0,0,DIAS365(CALCULADORA!$C$27,A66)) -> 0 | C66: =+HLOOKUP(CALCULADORA!$C$9,Tablas!B:B,Flujos!J66+1,FALSE) -> 0.00558452 | D66: 11.784339 | E66: 0.558452 | F66: =ROUND(D65*ROUND(((1+CALCULADORA!$C$16)^(1/12)-1),6),6) -> 0.063775 | G66: 0.622227 | H66: =IF($B66=0,0,G66/POWER(1+CALCULADORA!$C$29,Flujos!$B66/365)) -> 0 | I66: 2023-04-06 | J66: 64 | K66: =+DIAS365($A$2,A66) -> 1946 | L66: 5.642418236e+11 | M66: 2.673904534e+10 | N66: 3053598150 | O66: 2.979264349e+10
A67: =EDATE(A66,1) -> 2023-05-06 | B67: =IF(DIAS365(CALCULADORA!$C$27,A67)<0,0,DIAS365(CALCULADORA!$C$27,A67)) -> 0 | C67: =+HLOOKUP(CALCULADORA!$C$9,Tablas!B:B,Flujos!J67+1,FALSE) -> 0.00572911 | D67: 11.211428 | E67: 0.572911 | F67: =ROUND(D66*ROUND(((1+CALCULADORA!$C$16)^(1/12)-1),6),6) -> 0.06089 | G67: 0.633801 | H67: =IF($B67=0,0,G67/POWER(1+CALCULADORA!$C$29,Flujos!$B67/365)) -> 0 | I67: =+A67 -> 2023-05-06 | J67: 65 | K67: =+DIAS365($A$2,A67) -> 1976 | L67: 5.368104719e+11 | M67: 2.743135168e+10 | N67: 2915437503 | O67: 3.034678918e+10
A68: 2023-06-06 | B68: =IF(DIAS365(CALCULADORA!$C$27,A68)<0,0,DIAS365(CALCULADORA!$C$27,A68)) -> 0 | C68: =+HLOOKUP(CALCULADORA!$C$9,Tablas!B:B,Flujos!J68+1,FALSE) -> 0.0058543 | D68: =+ROUND(D67-E68,6) -> 10.625998 | E68: =ROUND(C68*$D$2,6) -> 0.58543 | F68: =ROUND(D67*ROUND(((1+CALCULADORA!$C$16)^(1/12)-1),6),6) -> 0.057929 | G68: =F68+E68 -> 0.643359 | H68: =IF($B68=0,0,G68/POWER(1+CALCULADORA!$C$29,Flujos!$B68/365)) -> 0 | I68: 2023-06-06 | J68: 66 | K68: =+DIAS365($A$2,A68) -> 2007 | L68: =+L67-M68 -> 5.087797024e+11 | M68: =+$L$2*C68 -> 2.803076955e+10 | N68: =+L67*$F$3% -> 2773699708 | O68: =+N68+M68 -> 3.080446926e+10
A69: 2023-07-06 | B69: =IF(DIAS365(CALCULADORA!$C$27,A69)<0,0,DIAS365(CALCULADORA!$C$27,A69)) -> 0 | C69: =+HLOOKUP(CALCULADORA!$C$9,Tablas!B:B,Flujos!J69+1,FALSE) -> 0.0058232 | D69: 10.043678 | E69: 0.58232 | F69: =ROUND(D68*ROUND(((1+CALCULADORA!$C$16)^(1/12)-1),6),6) -> 0.054905 | G69: 0.637225 | H69: =IF($B69=0,0,G69/POWER(1+CALCULADORA!$C$29,Flujos!$B69/365)) -> 0 | I69: 2023-07-06 | J69: 67 | K69: =+DIAS365($A$2,A69) -> 2037 | L69: 4.808978417e+11 | M69: 2.788186072e+10 | N69: 2628864722 | O69: 3.051072545e+10
A70: 2023-08-06 | B70: =IF(DIAS365(CALCULADORA!$C$27,A70)<0,0,DIAS365(CALCULADORA!$C$27,A70)) -> 0 | C70: =+HLOOKUP(CALCULADORA!$C$9,Tablas!B:B,Flujos!J70+1,FALSE) -> 0.00630288 | D70: 9.41339 | E70: 0.630288 | F70: =ROUND(D69*ROUND(((1+CALCULADORA!$C$16)^(1/12)-1),6),6) -> 0.051896 | G70: 0.682184 | H70: =IF($B70=0,0,G70/POWER(1+CALCULADORA!$C$29,Flujos!$B70/365)) -> 0 | I70: 2023-08-06 | J70: 68 | K70: =+DIAS365($A$2,A70) -> 2068 | L70: 4.507192419e+11 | M70: 3.017859979e+10 | N70: 2484799148 | O70: 3.266339894e+10
A71: 2023-09-06 | B71: =IF(DIAS365(CALCULADORA!$C$27,A71)<0,0,DIAS365(CALCULADORA!$C$27,A71)) -> 0 | C71: =+HLOOKUP(CALCULADORA!$C$9,Tablas!B:B,Flujos!J71+1,FALSE) -> 0.00466736 | D71: 8.946654 | E71: 0.466736 | F71: =ROUND(D70*ROUND(((1+CALCULADORA!$C$16)^(1/12)-1),6),6) -> 0.048639 | G71: 0.515375 | H71: =IF($B71=0,0,G71/POWER(1+CALCULADORA!$C$29,Flujos!$B71/365)) -> 0 | I71: 2023-09-06 | J71: 69 | K71: =+DIAS365($A$2,A71) -> 2099 | L71: 4.283716183e+11 | M71: 2.234762355e+10 | N71: 2328866323 | O71: 2.467648987e+10
A72: 2023-10-06 | B72: =IF(DIAS365(CALCULADORA!$C$27,A72)<0,0,DIAS365(CALCULADORA!$C$27,A72)) -> 0 | C72: =+HLOOKUP(CALCULADORA!$C$9,Tablas!B:B,Flujos!J72+1,FALSE) -> 0.00544469 | D72: 8.402185 | E72: 0.544469 | F72: =ROUND(D71*ROUND(((1+CALCULADORA!$C$16)^(1/12)-1),6),6) -> 0.046227 | G72: 0.590696 | H72: =IF($B72=0,0,G72/POWER(1+CALCULADORA!$C$29,Flujos!$B72/365)) -> 0 | I72: 2023-10-06 | J72: 70 | K72: =+DIAS365($A$2,A72) -> 2129 | L72: 4.023020881e+11 | M72: 2.60695302e+10 | N72: 2213396152 | O72: 2.828292635e+10
A73: 2023-11-06 | B73: =IF(DIAS365(CALCULADORA!$C$27,A73)<0,0,DIAS365(CALCULADORA!$C$27,A73)) -> 0 | C73: =+HLOOKUP(CALCULADORA!$C$9,Tablas!B:B,Flujos!J73+1,FALSE) -> 0.00553811 | D73: 7.848374 | E73: 0.553811 | F73: =ROUND(D72*ROUND(((1+CALCULADORA!$C$16)^(1/12)-1),6),6) -> 0.043414 | G73: 0.597225 | H73: =IF($B73=0,0,G73/POWER(1+CALCULADORA!$C$29,Flujos!$B73/365)) -> 0 | I73: 2023-11-06 | J73: 71 | K73: =+DIAS365($A$2,A73) -> 2160 | L73: 3.757852569e+11 | M73: 2.651683124e+10 | N73: 2078694889 | O73: 2.859552613e+10
A74: 2023-12-06 | B74: =IF(DIAS365(CALCULADORA!$C$27,A74)<0,0,DIAS365(CALCULADORA!$C$27,A74)) -> 0 | C74: =+HLOOKUP(CALCULADORA!$C$9,Tablas!B:B,Flujos!J74+1,FALSE) -> 0.00572962 | D74: 7.275412 | E74: 0.572962 | F74: =ROUND(D73*ROUND(((1+CALCULADORA!$C$16)^(1/12)-1),6),6) -> 0.040553 | G74: 0.613515 | H74: =IF($B74=0,0,G74/POWER(1+CALCULADORA!$C$29,Flujos!$B74/365)) -> 0 | I74: 2023-12-06 | J74: 72 | K74: =+DIAS365($A$2,A74) -> 2190 | L74: 3.483514633e+11 | M74: 2.743379359e+10 | N74: 1941682422 | O74: 2.937547601e+10
A75: 2024-01-06 | B75: =IF(DIAS365(CALCULADORA!$C$27,A75)<0,0,DIAS365(CALCULADORA!$C$27,A75)) -> 0 | C75: =+HLOOKUP(CALCULADORA!$C$9,Tablas!B:B,Flujos!J75+1,FALSE) -> 0.00462437 | D75: 6.812975 | E75: 0.462437 | F75: =ROUND(D74*ROUND(((1+CALCULADORA!$C$16)^(1/12)-1),6),6) -> 0.037592 | G75: 0.500029 | H75: =IF($B75=0,0,G75/POWER(1+CALCULADORA!$C$29,Flujos!$B75/365)) -> 0 | I75: 2024-01-06 | J75: 73 | K75: =+DIAS365($A$2,A75) -> 2221 | L75: 3.262096786e+11 | M75: 2.214178463e+10 | N75: 1799932011 | O75: 2.394171664e+10
A76: 2024-02-06 | B76: =IF(DIAS365(CALCULADORA!$C$27,A76)<0,0,DIAS365(CALCULADORA!$C$27,A76)) -> 0 | C76: =+HLOOKUP(CALCULADORA!$C$9,Tablas!B:B,Flujos!J76+1,FALSE) -> 0.00552078 | D76: 6.260897 | E76: 0.552078 | F76: =ROUND(D75*ROUND(((1+CALCULADORA!$C$16)^(1/12)-1),6),6) -> 0.035203 | G76: 0.587281 | H76: =IF($B76=0,0,G76/POWER(1+CALCULADORA!$C$29,Flujos!$B76/365)) -> 0 | I76: 2024-02-06 | J76: 74 | K76: =+DIAS365($A$2,A76) -> 2252 | L76: 2.997758246e+11 | M76: 2.643385407e+10 | N76: 1685525410 | O76: 2.811937948e+10
A77: 2024-03-06 | B77: =IF(DIAS365(CALCULADORA!$C$27,A77)<0,0,DIAS365(CALCULADORA!$C$27,A77)) -> 0 | C77: =+HLOOKUP(CALCULADORA!$C$9,Tablas!B:B,Flujos!J77+1,FALSE) -> 0.00538949 | D77: 5.721948 | E77: 0.538949 | F77: =ROUND(D76*ROUND(((1+CALCULADORA!$C$16)^(1/12)-1),6),6) -> 0.03235 | G77: 0.571299 | H77: =IF($B77=0,0,G77/POWER(1+CALCULADORA!$C$29,Flujos!$B77/365)) -> 0 | I77: 2024-03-06 | J77: 75 | K77: =+DIAS365($A$2,A77) -> 2280 | L77: 2.739705956e+11 | M77: 2.580522901e+10 | N77: 1548941686 | O77: 2.735417069e+10
A78: 2024-04-06 | B78: =IF(DIAS365(CALCULADORA!$C$27,A78)<0,0,DIAS365(CALCULADORA!$C$27,A78)) -> 0 | C78: =+HLOOKUP(CALCULADORA!$C$9,Tablas!B:B,Flujos!J78+1,FALSE) -> 0.00447927 | D78: 5.274021 | E78: 0.447927 | F78: =ROUND(D77*ROUND(((1+CALCULADORA!$C$16)^(1/12)-1),6),6) -> 0.029565 | G78: 0.477492 | H78: =IF($B78=0,0,G78/POWER(1+CALCULADORA!$C$29,Flujos!$B78/365)) -> 0 | I78: 2024-04-06 | J78: 76 | K78: =+DIAS365($A$2,A78) -> 2311 | L78: 2.525235592e+11 | M78: 2.144703639e+10 | N78: 1415606067 | O78: 2.286264245e+10
A79: 2024-05-06 | B79: =IF(DIAS365(CALCULADORA!$C$27,A79)<0,0,DIAS365(CALCULADORA!$C$27,A79)) -> 0 | C79: =+HLOOKUP(CALCULADORA!$C$9,Tablas!B:B,Flujos!J79+1,FALSE) -> 0.00543398 | D79: 4.730623 | E79: 0.543398 | F79: =ROUND(D78*ROUND(((1+CALCULADORA!$C$16)^(1/12)-1),6),6) -> 0.027251 | G79: 0.570649 | H79: =IF($B79=0,0,G79/POWER(1+CALCULADORA!$C$29,Flujos!$B79/365)) -> 0 | I79: 2024-05-06 | J79: 77 | K79: =+DIAS365($A$2,A79) -> 2341 | L79: 2.265053092e+11 | M79: 2.601825002e+10 | N79: 1304789230 | O79: 2.732303925e+10
A80: 2024-06-06 | B80: =IF(DIAS365(CALCULADORA!$C$27,A80)<0,0,DIAS365(CALCULADORA!$C$27,A80)) -> 0 | C80: =+HLOOKUP(CALCULADORA!$C$9,Tablas!B:B,Flujos!J80+1,FALSE) -> 0.00475194 | D80: 4.255429 | E80: 0.475194 | F80: =ROUND(D79*ROUND(((1+CALCULADORA!$C$16)^(1/12)-1),6),6) -> 0.024443 | G80: 0.499637 | H80: =IF($B80=0,0,G80/POWER(1+CALCULADORA!$C$29,Flujos!$B80/365)) -> 0 | I80: 2024-06-06 | J80: 78 | K80: =+DIAS365($A$2,A80) -> 2372 | L80: 2.037527111e+11 | M80: 2.27525981e+10 | N80: 1170352932 | O80: 2.392295103e+10
A81: 2024-07-06 | B81: =IF(DIAS365(CALCULADORA!$C$27,A81)<0,0,DIAS365(CALCULADORA!$C$27,A81)) -> 0 | C81: =+HLOOKUP(CALCULADORA!$C$9,Tablas!B:B,Flujos!J81+1,FALSE) -> 0.00437582 | D81: 3.817847 | E81: 0.437582 | F81: =ROUND(D80*ROUND(((1+CALCULADORA!$C$16)^(1/12)-1),6),6) -> 0.021988 | G81: 0.45957 | H81: =IF($B81=0,0,G81/POWER(1+CALCULADORA!$C$29,Flujos!$B81/365)) -> 0 | I81: 2024-07-06 | J81: 79 | K81: =+DIAS365($A$2,A81) -> 2402 | L81: 1.82801e+11 | M81: 2.095171105e+10 | N81: 1052790258 | O81: 2.200450131e+10
A82: 2024-08-06 | B82: =IF(DIAS365(CALCULADORA!$C$27,A82)<0,0,DIAS365(CALCULADORA!$C$27,A82)) -> 5 | C82: =+HLOOKUP(CALCULADORA!$C$9,Tablas!B:B,Flujos!J82+1,FALSE) -> 0.00396867 | D82: 3.42098 | E82: 0.396867 | F82: =ROUND(D81*ROUND(((1+CALCULADORA!$C$16)^(1/12)-1),6),6) -> 0.019727 | G82: 0.416594 | H82: =IF($B82=0,0,G82/POWER(1+CALCULADORA!$C$29,Flujos!$B82/365)) -> 0.4160040034 | I82: 2024-08-06 | J82: 80 | K82: =+DIAS365($A$2,A82) -> 2433 | L82: 1.637987497e+11 | M82: 1.900225034e+10 | N82: 944532767 | O82: 1.994678311e+10
A83: 2024-09-06 | B83: =IF(DIAS365(CALCULADORA!$C$27,A83)<0,0,DIAS365(CALCULADORA!$C$27,A83)) -> 36 | C83: =+HLOOKUP(CALCULADORA!$C$9,Tablas!B:B,Flujos!J83+1,FALSE) -> 0.00421589 | D83: 2.999391 | E83: 0.421589 | F83: =ROUND(D82*ROUND(((1+CALCULADORA!$C$16)^(1/12)-1),6),6) -> 0.017676 | G83: 0.439265 | H83: =IF($B83=0,0,G83/POWER(1+CALCULADORA!$C$29,Flujos!$B83/365)) -> 0.4348054671 | I83: 2024-09-06 | J83: 81 | K83: =+DIAS365($A$2,A83) -> 2464 | L83: 1.436127939e+11 | M83: 2.01859558e+10 | N83: 846348139.5 | O83: 2.103230394e+10
A84: 2024-10-06 | B84: =IF(DIAS365(CALCULADORA!$C$27,A84)<0,0,DIAS365(CALCULADORA!$C$27,A84)) -> 66 | C84: =+HLOOKUP(CALCULADORA!$C$9,Tablas!B:B,Flujos!J84+1,FALSE) -> 0.00412708 | D84: 2.586683 | E84: 0.412708 | F84: =ROUND(D83*ROUND(((1+CALCULADORA!$C$16)^(1/12)-1),6),6) -> 0.015498 | G84: 0.428206 | H84: =IF($B84=0,0,G84/POWER(1+CALCULADORA!$C$29,Flujos!$B84/365)) -> 0.420269758 | I84: 2024-10-06 | J84: 82 | K84: =+DIAS365($A$2,A84) -> 2494 | L84: 1.238520661e+11 | M84: 1.976072774e+10 | N84: 742047305.9 | O84: 2.050277504e+10
A85: 2024-11-06 | B85: =IF(DIAS365(CALCULADORA!$C$27,A85)<0,0,DIAS365(CALCULADORA!$C$27,A85)) -> 97 | C85: =+HLOOKUP(CALCULADORA!$C$9,Tablas!B:B,Flujos!J85+1,FALSE) -> 0.00409293 | D85: 2.17739 | E85: 0.409293 | F85: =ROUND(D84*ROUND(((1+CALCULADORA!$C$16)^(1/12)-1),6),6) -> 0.013365 | G85: 0.422658 | H85: =IF($B85=0,0,G85/POWER(1+CALCULADORA!$C$29,Flujos!$B85/365)) -> 0.4111955267 | I85: 2024-11-06 | J85: 83 | K85: =+DIAS365($A$2,A85) -> 2525 | L85: 1.042548508e+11 | M85: 1.959721531e+10 | N85: 639943625.6 | O85: 2.023715894e+10
A86: 2024-12-06 | B86: =IF(DIAS365(CALCULADORA!$C$27,A86)<0,0,DIAS365(CALCULADORA!$C$27,A86)) -> 127 | C86: =+HLOOKUP(CALCULADORA!$C$9,Tablas!B:B,Flujos!J86+1,FALSE) -> 0.00384081 | D86: 1.793309 | E86: 0.384081 | F86: =ROUND(D85*ROUND(((1+CALCULADORA!$C$16)^(1/12)-1),6),6) -> 0.011251 | G86: 0.395332 | H86: =IF($B86=0,0,G86/POWER(1+CALCULADORA!$C$29,Flujos!$B86/365)) -> 0.3813539539 | I86: 2024-12-06 | J86: 84 | K86: =+DIAS365($A$2,A86) -> 2555 | L86: 8.586480247e+10 | M86: 1.839004834e+10 | N86: 538684814.1 | O86: 1.892873315e+10
A87: 2025-01-06 | B87: =IF(DIAS365(CALCULADORA!$C$27,A87)<0,0,DIAS365(CALCULADORA!$C$27,A87)) -> 158 | C87: =+HLOOKUP(CALCULADORA!$C$9,Tablas!B:B,Flujos!J87+1,FALSE) -> 0.00400879 | D87: 1.39243 | E87: 0.400879 | F87: =ROUND(D86*ROUND(((1+CALCULADORA!$C$16)^(1/12)-1),6),6) -> 0.009266 | G87: 0.410145 | H87: =IF($B87=0,0,G87/POWER(1+CALCULADORA!$C$29,Flujos!$B87/365)) -> 0.39218195 | I87: 2025-01-06 | J87: 85 | K87: =+DIAS365($A$2,A87) -> 2586 | L87: 6.667045495e+10 | M87: 1.919434752e+10 | N87: 443663434.4 | O87: 1.963801095e+10
A88: 2025-02-06 | B88: =IF(DIAS365(CALCULADORA!$C$27,A88)<0,0,DIAS365(CALCULADORA!$C$27,A88)) -> 189 | C88: =+HLOOKUP(CALCULADORA!$C$9,Tablas!B:B,Flujos!J88+1,FALSE) -> 0.00395434 | D88: 0.996996 | E88: 0.395434 | F88: =ROUND(D87*ROUND(((1+CALCULADORA!$C$16)^(1/12)-1),6),6) -> 0.007195 | G88: 0.402629 | H88: =IF($B88=0,0,G88/POWER(1+CALCULADORA!$C$29,Flujos!$B88/365)) -> 0.3816270309 | I88: 2025-02-06 | J88: 86 | K88: =+DIAS365($A$2,A88) -> 2617 | L88: 4.773681758e+10 | M88: 1.893363737e+10 | N88: 344486240.7 | O88: 1.927812361e+10
A89: 2025-03-06 | B89: =IF(DIAS365(CALCULADORA!$C$27,A89)<0,0,DIAS365(CALCULADORA!$C$27,A89)) -> 217 | C89: =+HLOOKUP(CALCULADORA!$C$9,Tablas!B:B,Flujos!J89+1,FALSE) -> 0.00392319 | D89: 0.604677 | E89: 0.392319 | F89: =ROUND(D88*ROUND(((1+CALCULADORA!$C$16)^(1/12)-1),6),6) -> 0.005151 | G89: 0.39747 | H89: =IF($B89=0,0,G89/POWER(1+CALCULADORA!$C$29,Flujos!$B89/365)) -> 0.3737589727 | I89: 2025-03-06 | J89: 87 | K89: =+DIAS365($A$2,A89) -> 2645 | L89: 2.895232844e+10 | M89: 1.878448914e+10 | N89: 246656136.4 | O89: 1.903114528e+10
A90: 2025-04-06 | B90: =IF(DIAS365(CALCULADORA!$C$27,A90)<0,0,DIAS365(CALCULADORA!$C$27,A90)) -> 248 | C90: =+HLOOKUP(CALCULADORA!$C$9,Tablas!B:B,Flujos!J90+1,FALSE) -> 0.00383827 | D90: 0.22085 | E90: 0.383827 | F90: =ROUND(D89*ROUND(((1+CALCULADORA!$C$16)^(1/12)-1),6),6) -> 0.003124 | G90: 0.386951 | H90: =IF($B90=0,0,G90/POWER(1+CALCULADORA!$C$29,Flujos!$B90/365)) -> 0.3606842198 | I90: 2025-04-06 | J90: 88 | K90: =+DIAS365($A$2,A90) -> 2676 | L90: 1.057444179e+10 | M90: 1.837788665e+10 | N90: 149596681 | O90: 1.852748333e+10
A91: 2025-05-06 | B91: =IF(DIAS365(CALCULADORA!$C$27,A91)<0,0,DIAS365(CALCULADORA!$C$27,A91)) -> 278 | C91: =+HLOOKUP(CALCULADORA!$C$9,Tablas!B:B,Flujos!J91+1,FALSE) -> 0.0022085 | D91: 0 | E91: 0.22085 | F91: =ROUND(D90*ROUND(((1+CALCULADORA!$C$16)^(1/12)-1),6),6) -> 0.001141 | G91: 0.221991 | H91: =IF($B91=0,0,G91/POWER(1+CALCULADORA!$C$29,Flujos!$B91/365)) -> 0.205169846 | I91: 2025-05-06 | J91: 89 | K91: =+DIAS365($A$2,A91) -> 2706 | L91: -0.0008869171143 | M91: 1.057444179e+10 | N91: 54638140.71 | O91: 1.062907993e+10
A92: 2025-06-06 | B92: =IF(DIAS365(CALCULADORA!$C$27,A92)<0,0,DIAS365(CALCULADORA!$C$27,A92)) -> 309 | C92: =+HLOOKUP(CALCULADORA!$C$9,Tablas!B:B,Flujos!J92+1,FALSE) -> 0 | D92: 0 | E92: 0 | F92: =ROUND(D91*ROUND(((1+CALCULADORA!$C$16)^(1/12)-1),6),6) -> 0 | G92: 0 | H92: =IF($B92=0,0,G92/POWER(1+CALCULADORA!$C$29,Flujos!$B92/365)) -> 0 | I92: 2025-06-06 | J92: 90 | K92: =+DIAS365($A$2,A92) -> 2737 | L92: -0.0008869171143 | M92: 0 | N92: -4.582700729e-06 | O92: -4.582700729e-06
A93: 2025-07-06 | B93: =IF(DIAS365(CALCULADORA!$C$27,A93)<0,0,DIAS365(CALCULADORA!$C$27,A93)) -> 339 | C93: =+HLOOKUP(CALCULADORA!$C$9,Tablas!B:B,Flujos!J93+1,FALSE) -> 0 | D93: 0 | E93: 0 | F93: =ROUND(D92*ROUND(((1+CALCULADORA!$C$16)^(1/12)-1),6),6) -> 0 | G93: 0 | H93: =IF($B93=0,0,G93/POWER(1+CALCULADORA!$C$29,Flujos!$B93/365)) -> 0 | I93: 2025-07-06 | J93: 91 | K93: =+DIAS365($A$2,A93) -> 2767 | L93: -0.0008869171143 | M93: 0 | N93: -4.582700729e-06 | O93: -4.582700729e-06
A94: 2025-08-06 | B94: =IF(DIAS365(CALCULADORA!$C$27,A94)<0,0,DIAS365(CALCULADORA!$C$27,A94)) -> 370 | C94: =+HLOOKUP(CALCULADORA!$C$9,Tablas!B:B,Flujos!J94+1,FALSE) -> 0 | D94: 0 | E94: 0 | F94: =ROUND(D93*ROUND(((1+CALCULADORA!$C$16)^(1/12)-1),6),6) -> 0 | G94: 0 | H94: =IF($B94=0,0,G94/POWER(1+CALCULADORA!$C$29,Flujos!$B94/365)) -> 0 | I94: 2025-08-06 | J94: 92 | K94: =+DIAS365($A$2,A94) -> 2798 | L94: -0.0008869171143 | M94: 0 | N94: -4.582700729e-06 | O94: -4.582700729e-06
A95: 2025-09-06 | B95: =IF(DIAS365(CALCULADORA!$C$27,A95)<0,0,DIAS365(CALCULADORA!$C$27,A95)) -> 401 | C95: =+HLOOKUP(CALCULADORA!$C$9,Tablas!B:B,Flujos!J95+1,FALSE) -> 0 | D95: 0 | E95: 0 | F95: =ROUND(D94*ROUND(((1+CALCULADORA!$C$16)^(1/12)-1),6),6) -> 0 | G95: 0 | H95: =IF($B95=0,0,G95/POWER(1+CALCULADORA!$C$29,Flujos!$B95/365)) -> 0 | I95: 2025-09-06 | J95: 93 | K95: =+DIAS365($A$2,A95) -> 2829 | L95: -0.0008869171143 | M95: 0 | N95: -4.582700729e-06 | O95: -4.582700729e-06
A96: 2025-10-06 | B96: =IF(DIAS365(CALCULADORA!$C$27,A96)<0,0,DIAS365(CALCULADORA!$C$27,A96)) -> 431 | C96: =+HLOOKUP(CALCULADORA!$C$9,Tablas!B:B,Flujos!J96+1,FALSE) -> 0 | D96: 0 | E96: 0 | F96: =ROUND(D95*ROUND(((1+CALCULADORA!$C$16)^(1/12)-1),6),6) -> 0 | G96: 0 | H96: =IF($B96=0,0,G96/POWER(1+CALCULADORA!$C$29,Flujos!$B96/365)) -> 0 | I96: 2025-10-06 | J96: 94 | K96: =+DIAS365($A$2,A96) -> 2859 | L96: -0.0008869171143 | M96: 0 | N96: -4.582700729e-06 | O96: -4.582700729e-06
A97: 2025-11-06 | B97: =IF(DIAS365(CALCULADORA!$C$27,A97)<0,0,DIAS365(CALCULADORA!$C$27,A97)) -> 462 | C97: =+HLOOKUP(CALCULADORA!$C$9,Tablas!B:B,Flujos!J97+1,FALSE) -> 0 | D97: 0 | E97: 0 | F97: =ROUND(D96*ROUND(((1+CALCULADORA!$C$16)^(1/12)-1),6),6) -> 0 | G97: 0 | H97: =IF($B97=0,0,G97/POWER(1+CALCULADORA!$C$29,Flujos!$B97/365)) -> 0 | I97: 2025-11-06 | J97: 95 | K97: =+DIAS365($A$2,A97) -> 2890 | L97: -0.0008869171143 | M97: 0 | N97: -4.582700729e-06 | O97: -4.582700729e-06
A98: 2025-12-06 | B98: =IF(DIAS365(CALCULADORA!$C$27,A98)<0,0,DIAS365(CALCULADORA!$C$27,A98)) -> 492 | C98: =+HLOOKUP(CALCULADORA!$C$9,Tablas!B:B,Flujos!J98+1,FALSE) -> 0 | D98: 0 | E98: 0 | F98: =ROUND(D97*ROUND(((1+CALCULADORA!$C$16)^(1/12)-1),6),6) -> 0 | G98: 0 | H98: =IF($B98=0,0,G98/POWER(1+CALCULADORA!$C$29,Flujos!$B98/365)) -> 0 | I98: 2025-12-06 | J98: 96 | K98: =+DIAS365($A$2,A98) -> 2920 | L98: -0.0008869171143 | M98: 0 | N98: -4.582700729e-06 | O98: -4.582700729e-06
A99: =EDATE(A98,1) -> 2026-01-06 | B99: =IF(DIAS365(CALCULADORA!$C$27,A99)<0,0,DIAS365(CALCULADORA!$C$27,A99)) -> 523 | C99: =+HLOOKUP(CALCULADORA!$C$9,Tablas!B:B,Flujos!J99+1,FALSE) -> 0 | D99: 0 | E99: 0 | F99: =ROUND(D98*ROUND(((1+CALCULADORA!$C$16)^(1/12)-1),6),6) -> 0 | G99: 0 | H99: =IF($B99=0,0,G99/POWER(1+CALCULADORA!$C$29,Flujos!$B99/365)) -> 0 | I99: 2026-01-06 | J99: 97 | K99: =+DIAS365($A$2,A99) -> 2951 | L99: -0.0008869171143 | M99: 0 | N99: -4.582700729e-06 | O99: -4.582700729e-06
A100: 2026-02-06 | B100: =IF(DIAS365(CALCULADORA!$C$27,A100)<0,0,DIAS365(CALCULADORA!$C$27,A100)) -> 554 | C100: =+HLOOKUP(CALCULADORA!$C$9,Tablas!B:B,Flujos!J100+1,FALSE) -> 0 | D100: 0 | E100: 0 | F100: =ROUND(D99*ROUND(((1+CALCULADORA!$C$16)^(1/12)-1),6),6) -> 0 | G100: 0 | H100: =IF($B100=0,0,G100/POWER(1+CALCULADORA!$C$29,Flujos!$B100/365)) -> 0 | I100: 2026-02-06 | J100: 98 | K100: =+DIAS365($A$2,A100) -> 2982 | L100: -0.0008869171143 | M100: 0 | N100: -4.582700729e-06 | O100: -4.582700729e-06
A101: 2026-03-06 | B101: =IF(DIAS365(CALCULADORA!$C$27,A101)<0,0,DIAS365(CALCULADORA!$C$27,A101)) -> 582 | C101: =+HLOOKUP(CALCULADORA!$C$9,Tablas!B:B,Flujos!J101+1,FALSE) -> 0 | D101: 0 | E101: 0 | F101: =ROUND(D100*ROUND(((1+CALCULADORA!$C$16)^(1/12)-1),6),6) -> 0 | G101: 0 | H101: =IF($B101=0,0,G101/POWER(1+CALCULADORA!$C$29,Flujos!$B101/365)) -> 0 | I101: 2026-03-06 | J101: 99 | K101: =+DIAS365($A$2,A101) -> 3010 | L101: -0.0008869171143 | M101: 0 | N101: -4.582700729e-06 | O101: -4.582700729e-06
A102: 2026-04-06 | B102: =IF(DIAS365(CALCULADORA!$C$27,A102)<0,0,DIAS365(CALCULADORA!$C$27,A102)) -> 613 | C102: =+HLOOKUP(CALCULADORA!$C$9,Tablas!B:B,Flujos!J102+1,FALSE) -> 0 | D102: 0 | E102: 0 | F102: =ROUND(D101*ROUND(((1+CALCULADORA!$C$16)^(1/12)-1),6),6) -> 0 | G102: 0 | H102: =IF($B102=0,0,G102/POWER(1+CALCULADORA!$C$29,Flujos!$B102/365)) -> 0 | I102: 2026-04-06 | J102: 100 | K102: =+DIAS365($A$2,A102) -> 3041 | L102: -0.0008869171143 | M102: 0 | N102: -4.582700729e-06 | O102: -4.582700729e-06
A103: 2026-05-06 | B103: =IF(DIAS365(CALCULADORA!$C$27,A103)<0,0,DIAS365(CALCULADORA!$C$27,A103)) -> 643 | C103: =+HLOOKUP(CALCULADORA!$C$9,Tablas!B:B,Flujos!J103+1,FALSE) -> 0 | D103: 0 | E103: 0 | F103: =ROUND(D102*ROUND(((1+CALCULADORA!$C$16)^(1/12)-1),6),6) -> 0 | G103: 0 | H103: =IF($B103=0,0,G103/POWER(1+CALCULADORA!$C$29,Flujos!$B103/365)) -> 0 | I103: 2026-05-06 | J103: 101 | K103: =+DIAS365($A$2,A103) -> 3071 | L103: -0.0008869171143 | M103: 0 | N103: -4.582700729e-06 | O103: -4.582700729e-06
A104: 2026-06-06 | B104: =IF(DIAS365(CALCULADORA!$C$27,A104)<0,0,DIAS365(CALCULADORA!$C$27,A104)) -> 674 | C104: =+HLOOKUP(CALCULADORA!$C$9,Tablas!B:B,Flujos!J104+1,FALSE) -> 0 | D104: 0 | E104: 0 | F104: =ROUND(D103*ROUND(((1+CALCULADORA!$C$16)^(1/12)-1),6),6) -> 0 | G104: 0 | H104: =IF($B104=0,0,G104/POWER(1+CALCULADORA!$C$29,Flujos!$B104/365)) -> 0 | I104: 2026-06-06 | J104: 102 | K104: =+DIAS365($A$2,A104) -> 3102 | L104: -0.0008869171143 | M104: 0 | N104: -4.582700729e-06 | O104: -4.582700729e-06
A105: 2026-07-06 | B105: =IF(DIAS365(CALCULADORA!$C$27,A105)<0,0,DIAS365(CALCULADORA!$C$27,A105)) -> 704 | C105: =+HLOOKUP(CALCULADORA!$C$9,Tablas!B:B,Flujos!J105+1,FALSE) -> 0 | D105: 0 | E105: 0 | F105: =ROUND(D104*ROUND(((1+CALCULADORA!$C$16)^(1/12)-1),6),6) -> 0 | G105: 0 | H105: =IF($B105=0,0,G105/POWER(1+CALCULADORA!$C$29,Flujos!$B105/365)) -> 0 | I105: 2026-07-06 | J105: 103 | K105: =+DIAS365($A$2,A105) -> 3132 | L105: -0.0008869171143 | M105: 0 | N105: -4.582700729e-06 | O105: -4.582700729e-06
A106: 2026-08-06 | B106: =IF(DIAS365(CALCULADORA!$C$27,A106)<0,0,DIAS365(CALCULADORA!$C$27,A106)) -> 735 | C106: =+HLOOKUP(CALCULADORA!$C$9,Tablas!B:B,Flujos!J106+1,FALSE) -> 0 | D106: 0 | E106: 0 | F106: =ROUND(D105*ROUND(((1+CALCULADORA!$C$16)^(1/12)-1),6),6) -> 0 | G106: 0 | H106: =IF($B106=0,0,G106/POWER(1+CALCULADORA!$C$29,Flujos!$B106/365)) -> 0 | I106: 2026-08-06 | J106: 104 | K106: =+DIAS365($A$2,A106) -> 3163 | L106: -0.0008869171143 | M106: 0 | N106: -4.582700729e-06 | O106: -4.582700729e-06
A107: 2026-09-06 | B107: =IF(DIAS365(CALCULADORA!$C$27,A107)<0,0,DIAS365(CALCULADORA!$C$27,A107)) -> 766 | C107: =+HLOOKUP(CALCULADORA!$C$9,Tablas!B:B,Flujos!J107+1,FALSE) -> 0 | D107: 0 | E107: 0 | F107: =ROUND(D106*ROUND(((1+CALCULADORA!$C$16)^(1/12)-1),6),6) -> 0 | G107: 0 | H107: =IF($B107=0,0,G107/POWER(1+CALCULADORA!$C$29,Flujos!$B107/365)) -> 0 | I107: 2026-09-06 | J107: 105 | K107: =+DIAS365($A$2,A107) -> 3194 | L107: -0.0008869171143 | M107: 0 | N107: -4.582700729e-06 | O107: -4.582700729e-06
A108: 2026-10-06 | B108: =IF(DIAS365(CALCULADORA!$C$27,A108)<0,0,DIAS365(CALCULADORA!$C$27,A108)) -> 796 | C108: =+HLOOKUP(CALCULADORA!$C$9,Tablas!B:B,Flujos!J108+1,FALSE) -> 0 | D108: 0 | E108: 0 | F108: =ROUND(D107*ROUND(((1+CALCULADORA!$C$16)^(1/12)-1),6),6) -> 0 | G108: 0 | H108: =IF($B108=0,0,G108/POWER(1+CALCULADORA!$C$29,Flujos!$B108/365)) -> 0 | I108: 2026-10-06 | J108: 106 | K108: =+DIAS365($A$2,A108) -> 3224 | L108: -0.0008869171143 | M108: 0 | N108: -4.582700729e-06 | O108: -4.582700729e-06
A109: 2026-11-06 | B109: =IF(DIAS365(CALCULADORA!$C$27,A109)<0,0,DIAS365(CALCULADORA!$C$27,A109)) -> 827 | C109: =+HLOOKUP(CALCULADORA!$C$9,Tablas!B:B,Flujos!J109+1,FALSE) -> 0 | D109: 0 | E109: 0 | F109: =ROUND(D108*ROUND(((1+CALCULADORA!$C$16)^(1/12)-1),6),6) -> 0 | G109: 0 | H109: =IF($B109=0,0,G109/POWER(1+CALCULADORA!$C$29,Flujos!$B109/365)) -> 0 | I109: 2026-11-06 | J109: 107 | K109: =+DIAS365($A$2,A109) -> 3255 | L109: -0.0008869171143 | M109: 0 | N109: -4.582700729e-06 | O109: -4.582700729e-06
A110: 2026-12-06 | B110: =IF(DIAS365(CALCULADORA!$C$27,A110)<0,0,DIAS365(CALCULADORA!$C$27,A110)) -> 857 | C110: =+HLOOKUP(CALCULADORA!$C$9,Tablas!B:B,Flujos!J110+1,FALSE) -> 0 | D110: 0 | E110: 0 | F110: =ROUND(D109*ROUND(((1+CALCULADORA!$C$16)^(1/12)-1),6),6) -> 0 | G110: 0 | H110: =IF($B110=0,0,G110/POWER(1+CALCULADORA!$C$29,Flujos!$B110/365)) -> 0 | I110: 2026-12-06 | J110: 108 | K110: =+DIAS365($A$2,A110) -> 3285 | L110: -0.0008869171143 | M110: 0 | N110: -4.582700729e-06 | O110: -4.582700729e-06
A111: 2027-01-06 | B111: =IF(DIAS365(CALCULADORA!$C$27,A111)<0,0,DIAS365(CALCULADORA!$C$27,A111)) -> 888 | C111: =+HLOOKUP(CALCULADORA!$C$9,Tablas!B:B,Flujos!J111+1,FALSE) -> 0 | D111: 0 | E111: 0 | F111: =ROUND(D110*ROUND(((1+CALCULADORA!$C$16)^(1/12)-1),6),6) -> 0 | G111: 0 | H111: =IF($B111=0,0,G111/POWER(1+CALCULADORA!$C$29,Flujos!$B111/365)) -> 0 | I111: 2027-01-06 | J111: 109 | K111: =+DIAS365($A$2,A111) -> 3316 | L111: -0.0008869171143 | M111: 0 | N111: -4.582700729e-06 | O111: -4.582700729e-06
A112: 2027-02-06 | B112: =IF(DIAS365(CALCULADORA!$C$27,A112)<0,0,DIAS365(CALCULADORA!$C$27,A112)) -> 919 | C112: =+HLOOKUP(CALCULADORA!$C$9,Tablas!B:B,Flujos!J112+1,FALSE) -> 0 | D112: 0 | E112: 0 | F112: =ROUND(D111*ROUND(((1+CALCULADORA!$C$16)^(1/12)-1),6),6) -> 0 | G112: 0 | H112: =IF($B112=0,0,G112/POWER(1+CALCULADORA!$C$29,Flujos!$B112/365)) -> 0 | I112: 2027-02-06 | J112: 110 | K112: =+DIAS365($A$2,A112) -> 3347 | L112: -0.0008869171143 | M112: 0 | N112: -4.582700729e-06 | O112: -4.582700729e-06
A113: 2027-03-06 | B113: =IF(DIAS365(CALCULADORA!$C$27,A113)<0,0,DIAS365(CALCULADORA!$C$27,A113)) -> 947 | C113: =+HLOOKUP(CALCULADORA!$C$9,Tablas!B:B,Flujos!J113+1,FALSE) -> 0 | D113: 0 | E113: 0 | F113: =ROUND(D112*ROUND(((1+CALCULADORA!$C$16)^(1/12)-1),6),6) -> 0 | G113: 0 | H113: =IF($B113=0,0,G113/POWER(1+CALCULADORA!$C$29,Flujos!$B113/365)) -> 0 | I113: 2027-03-06 | J113: 111 | K113: =+DIAS365($A$2,A113) -> 3375 | L113: -0.0008869171143 | M113: 0 | N113: -4.582700729e-06 | O113: -4.582700729e-06
A114: 2027-04-06 | B114: =IF(DIAS365(CALCULADORA!$C$27,A114)<0,0,DIAS365(CALCULADORA!$C$27,A114)) -> 978 | C114: =+HLOOKUP(CALCULADORA!$C$9,Tablas!B:B,Flujos!J114+1,FALSE) -> 0 | D114: 0 | E114: 0 | F114: =ROUND(D113*ROUND(((1+CALCULADORA!$C$16)^(1/12)-1),6),6) -> 0 | G114: 0 | H114: =IF($B114=0,0,G114/POWER(1+CALCULADORA!$C$29,Flujos!$B114/365)) -> 0 | I114: 2027-04-06 | J114: 112 | K114: =+DIAS365($A$2,A114) -> 3406 | L114: -0.0008869171143 | M114: 0 | N114: -4.582700729e-06 | O114: -4.582700729e-06
A115: 2027-05-06 | B115: =IF(DIAS365(CALCULADORA!$C$27,A115)<0,0,DIAS365(CALCULADORA!$C$27,A115)) -> 1008 | C115: =+HLOOKUP(CALCULADORA!$C$9,Tablas!B:B,Flujos!J115+1,FALSE) -> 0 | D115: 0 | E115: 0 | F115: =ROUND(D114*ROUND(((1+CALCULADORA!$C$16)^(1/12)-1),6),6) -> 0 | G115: 0 | H115: =IF($B115=0,0,G115/POWER(1+CALCULADORA!$C$29,Flujos!$B115/365)) -> 0 | I115: 2027-05-06 | J115: 113 | K115: =+DIAS365($A$2,A115) -> 3436 | L115: -0.0008869171143 | M115: 0 | N115: -4.582700729e-06 | O115: -4.582700729e-06
A116: 2027-06-06 | B116: =IF(DIAS365(CALCULADORA!$C$27,A116)<0,0,DIAS365(CALCULADORA!$C$27,A116)) -> 1039 | C116: =+HLOOKUP(CALCULADORA!$C$9,Tablas!B:B,Flujos!J116+1,FALSE) -> 0 | D116: 0 | E116: 0 | F116: =ROUND(D115*ROUND(((1+CALCULADORA!$C$16)^(1/12)-1),6),6) -> 0 | G116: 0 | H116: =IF($B116=0,0,G116/POWER(1+CALCULADORA!$C$29,Flujos!$B116/365)) -> 0 | I116: 2027-06-06 | J116: 114 | K116: =+DIAS365($A$2,A116) -> 3467 | L116: -0.0008869171143 | M116: 0 | N116: -4.582700729e-06 | O116: -4.582700729e-06
A117: 2027-07-06 | B117: =IF(DIAS365(CALCULADORA!$C$27,A117)<0,0,DIAS365(CALCULADORA!$C$27,A117)) -> 1069 | C117: =+HLOOKUP(CALCULADORA!$C$9,Tablas!B:B,Flujos!J117+1,FALSE) -> 0 | D117: 0 | E117: 0 | F117: =ROUND(D116*ROUND(((1+CALCULADORA!$C$16)^(1/12)-1),6),6) -> 0 | G117: 0 | H117: =IF($B117=0,0,G117/POWER(1+CALCULADORA!$C$29,Flujos!$B117/365)) -> 0 | I117: 2027-07-06 | J117: 115 | K117: =+DIAS365($A$2,A117) -> 3497 | L117: -0.0008869171143 | M117: 0 | N117: -4.582700729e-06 | O117: -4.582700729e-06
A118: 2027-08-06 | B118: =IF(DIAS365(CALCULADORA!$C$27,A118)<0,0,DIAS365(CALCULADORA!$C$27,A118)) -> 1100 | C118: =+HLOOKUP(CALCULADORA!$C$9,Tablas!B:B,Flujos!J118+1,FALSE) -> 0 | D118: 0 | E118: 0 | F118: =ROUND(D117*ROUND(((1+CALCULADORA!$C$16)^(1/12)-1),6),6) -> 0 | G118: 0 | H118: =IF($B118=0,0,G118/POWER(1+CALCULADORA!$C$29,Flujos!$B118/365)) -> 0 | I118: 2027-08-06 | J118: 116 | K118: =+DIAS365($A$2,A118) -> 3528 | L118: -0.0008869171143 | M118: 0 | N118: -4.582700729e-06 | O118: -4.582700729e-06
A119: 2027-09-06 | B119: =IF(DIAS365(CALCULADORA!$C$27,A119)<0,0,DIAS365(CALCULADORA!$C$27,A119)) -> 1131 | C119: =+HLOOKUP(CALCULADORA!$C$9,Tablas!B:B,Flujos!J119+1,FALSE) -> 0 | D119: 0 | E119: 0 | F119: =ROUND(D118*ROUND(((1+CALCULADORA!$C$16)^(1/12)-1),6),6) -> 0 | G119: 0 | H119: =IF($B119=0,0,G119/POWER(1+CALCULADORA!$C$29,Flujos!$B119/365)) -> 0 | I119: =+A119 -> 2027-09-06 | J119: 117 | K119: =+DIAS365($A$2,A119) -> 3559 | L119: -0.0008869171143 | M119: 0 | N119: -4.582700729e-06 | O119: -4.582700729e-06
A120: 2027-10-06 | B120: =IF(DIAS365(CALCULADORA!$C$27,A120)<0,0,DIAS365(CALCULADORA!$C$27,A120)) -> 1161 | C120: =+HLOOKUP(CALCULADORA!$C$9,Tablas!B:B,Flujos!J120+1,FALSE) -> 0 | D120: 0 | E120: 0 | F120: =ROUND(D119*ROUND(((1+CALCULADORA!$C$16)^(1/12)-1),6),6) -> 0 | G120: 0 | H120: =IF($B120=0,0,G120/POWER(1+CALCULADORA!$C$29,Flujos!$B120/365)) -> 0 | I120: =+A120 -> 2027-10-06 | J120: 118 | K120: =+DIAS365($A$2,A120) -> 3589 | L120: -0.0008869171143 | M120: 0 | N120: -4.582700729e-06 | O120: -4.582700729e-06
A121: 2027-11-06 | B121: =IF(DIAS365(CALCULADORA!$C$27,A121)<0,0,DIAS365(CALCULADORA!$C$27,A121)) -> 1192 | C121: =+HLOOKUP(CALCULADORA!$C$9,Tablas!B:B,Flujos!J121+1,FALSE) -> 0 | D121: 0 | E121: 0 | F121: =ROUND(D120*ROUND(((1+CALCULADORA!$C$16)^(1/12)-1),6),6) -> 0 | G121: 0 | H121: =IF($B121=0,0,G121/POWER(1+CALCULADORA!$C$29,Flujos!$B121/365)) -> 0 | I121: 2027-11-06 | J121: 119 | K121: =+DIAS365($A$2,A121) -> 3620 | L121: -0.0008869171143 | M121: 0 | N121: -4.582700729e-06 | O121: -4.582700729e-06
A122: 2027-12-06 | B122: =IF(DIAS365(CALCULADORA!$C$27,A122)<0,0,DIAS365(CALCULADORA!$C$27,A122)) -> 1222 | C122: =+HLOOKUP(CALCULADORA!$C$9,Tablas!B:B,Flujos!J122+1,FALSE) -> 0 | D122: 0 | E122: 0 | F122: =ROUND(D121*ROUND(((1+CALCULADORA!$C$16)^(1/12)-1),6),6) -> 0 | G122: 0 | H122: =IF($B122=0,0,G122/POWER(1+CALCULADORA!$C$29,Flujos!$B122/365)) -> 0 | I122: 2027-12-06 | J122: 120 | K122: =+DIAS365($A$2,A122) -> 3650 | L122: -0.0008869171143 | M122: 0 | N122: -4.582700729e-06 | O122: -4.582700729e-06
A123: 2028-01-06 | B123: =IF(DIAS365(CALCULADORA!$C$27,A123)<0,0,DIAS365(CALCULADORA!$C$27,A123)) -> 1253 | C123: =+HLOOKUP(CALCULADORA!$C$9,Tablas!B:B,Flujos!J123+1,FALSE) -> 0 | D123: 0 | E123: 0 | F123: =ROUND(D122*ROUND(((1+CALCULADORA!$C$16)^(1/12)-1),6),6) -> 0 | G123: 0 | H123: =IF($B123=0,0,G123/POWER(1+CALCULADORA!$C$29,Flujos!$B123/365)) -> 0 | I123: 2028-01-06 | J123: 121 | K123: =+DIAS365($A$2,A123) -> 3681 | L123: -0.0008869171143 | M123: 0 | N123: -4.582700729e-06 | O123: -4.582700729e-06
A124: 2028-02-06 | B124: =IF(DIAS365(CALCULADORA!$C$27,A124)<0,0,DIAS365(CALCULADORA!$C$27,A124)) -> 1284 | C124: =+HLOOKUP(CALCULADORA!$C$9,Tablas!B:B,Flujos!J124+1,FALSE) -> 0 | D124: 0 | E124: 0 | F124: =ROUND(D123*ROUND(((1+CALCULADORA!$C$16)^(1/12)-1),6),6) -> 0 | G124: 0 | H124: =IF($B124=0,0,G124/POWER(1+CALCULADORA!$C$29,Flujos!$B124/365)) -> 0 | I124: 2028-02-06 | J124: 122 | K124: =+DIAS365($A$2,A124) -> 3712 | L124: -0.0008869171143 | M124: 0 | N124: -4.582700729e-06 | O124: -4.582700729e-06
A125: 2028-03-06 | B125: =IF(DIAS365(CALCULADORA!$C$27,A125)<0,0,DIAS365(CALCULADORA!$C$27,A125)) -> 1312 | C125: =+HLOOKUP(CALCULADORA!$C$9,Tablas!B:B,Flujos!J125+1,FALSE) -> 0 | D125: 0 | E125: 0 | F125: =ROUND(D124*ROUND(((1+CALCULADORA!$C$16)^(1/12)-1),6),6) -> 0 | G125: 0 | H125: =IF($B125=0,0,G125/POWER(1+CALCULADORA!$C$29,Flujos!$B125/365)) -> 0 | I125: 2028-03-06 | J125: 123 | K125: =+DIAS365($A$2,A125) -> 3740 | L125: -0.0008869171143 | M125: 0 | N125: -4.582700729e-06 | O125: -4.582700729e-06
A126: 2028-04-06 | B126: =IF(DIAS365(CALCULADORA!$C$27,A126)<0,0,DIAS365(CALCULADORA!$C$27,A126)) -> 1343 | C126: =+HLOOKUP(CALCULADORA!$C$9,Tablas!B:B,Flujos!J126+1,FALSE) -> 0 | D126: 0 | E126: 0 | F126: =ROUND(D125*ROUND(((1+CALCULADORA!$C$16)^(1/12)-1),6),6) -> 0 | G126: 0 | H126: =IF($B126=0,0,G126/POWER(1+CALCULADORA!$C$29,Flujos!$B126/365)) -> 0 | I126: 2028-04-06 | J126: 124 | K126: =+DIAS365($A$2,A126) -> 3771 | L126: -0.0008869171143 | M126: 0 | N126: -4.582700729e-06 | O126: -4.582700729e-06
A127: 2028-05-06 | B127: =IF(DIAS365(CALCULADORA!$C$27,A127)<0,0,DIAS365(CALCULADORA!$C$27,A127)) -> 1373 | C127: =+HLOOKUP(CALCULADORA!$C$9,Tablas!B:B,Flujos!J127+1,FALSE) -> 0 | D127: 0 | E127: 0 | F127: =ROUND(D126*ROUND(((1+CALCULADORA!$C$16)^(1/12)-1),6),6) -> 0 | G127: 0 | H127: =IF($B127=0,0,G127/POWER(1+CALCULADORA!$C$29,Flujos!$B127/365)) -> 0 | I127: 2028-05-06 | J127: 125 | K127: =+DIAS365($A$2,A127) -> 3801 | L127: -0.0008869171143 | M127: 0 | N127: -4.582700729e-06 | O127: -4.582700729e-06
A128: 2028-06-06 | B128: =IF(DIAS365(CALCULADORA!$C$27,A128)<0,0,DIAS365(CALCULADORA!$C$27,A128)) -> 1404 | C128: =+HLOOKUP(CALCULADORA!$C$9,Tablas!B:B,Flujos!J128+1,FALSE) -> 0 | D128: 0 | E128: 0 | F128: =ROUND(D127*ROUND(((1+CALCULADORA!$C$16)^(1/12)-1),6),6) -> 0 | G128: 0 | H128: =IF($B128=0,0,G128/POWER(1+CALCULADORA!$C$29,Flujos!$B128/365)) -> 0 | I128: 2028-06-06 | J128: 126 | K128: =+DIAS365($A$2,A128) -> 3832 | L128: -0.0008869171143 | M128: 0 | N128: -4.582700729e-06 | O128: -4.582700729e-06
A129: 2028-07-06 | B129: =IF(DIAS365(CALCULADORA!$C$27,A129)<0,0,DIAS365(CALCULADORA!$C$27,A129)) -> 1434 | C129: =+HLOOKUP(CALCULADORA!$C$9,Tablas!B:B,Flujos!J129+1,FALSE) -> 0 | D129: 0 | E129: 0 | F129: =ROUND(D128*ROUND(((1+CALCULADORA!$C$16)^(1/12)-1),6),6) -> 0 | G129: 0 | H129: =IF($B129=0,0,G129/POWER(1+CALCULADORA!$C$29,Flujos!$B129/365)) -> 0 | I129: 2028-07-06 | J129: 127 | K129: =+DIAS365($A$2,A129) -> 3862 | L129: -0.0008869171143 | M129: 0 | N129: -4.582700729e-06 | O129: -4.582700729e-06
A130: 2028-08-06 | B130: =IF(DIAS365(CALCULADORA!$C$27,A130)<0,0,DIAS365(CALCULADORA!$C$27,A130)) -> 1465 | C130: =+HLOOKUP(CALCULADORA!$C$9,Tablas!B:B,Flujos!J130+1,FALSE) -> 0 | D130: 0 | E130: 0 | F130: =ROUND(D129*ROUND(((1+CALCULADORA!$C$16)^(1/12)-1),6),6) -> 0 | G130: 0 | H130: =IF($B130=0,0,G130/POWER(1+CALCULADORA!$C$29,Flujos!$B130/365)) -> 0 | I130: 2028-08-06 | J130: 128 | K130: =+DIAS365($A$2,A130) -> 3893 | L130: -0.0008869171143 | M130: 0 | N130: -4.582700729e-06 | O130: -4.582700729e-06
A131: =EDATE(A130,1) -> 2028-09-06 | B131: =IF(DIAS365(CALCULADORA!$C$27,A131)<0,0,DIAS365(CALCULADORA!$C$27,A131)) -> 1496 | C131: =+HLOOKUP(CALCULADORA!$C$9,Tablas!B:B,Flujos!J131+1,FALSE) -> 0 | D131: 0 | E131: 0 | F131: =ROUND(D130*ROUND(((1+CALCULADORA!$C$16)^(1/12)-1),6),6) -> 0 | G131: 0 | H131: =IF($B131=0,0,G131/POWER(1+CALCULADORA!$C$29,Flujos!$B131/365)) -> 0 | I131: =+A131 -> 2028-09-06 | J131: 129 | K131: =+DIAS365($A$2,A131) -> 3924 | L131: -0.0008869171143 | M131: 0 | N131: -4.582700729e-06 | O131: -4.582700729e-06
A132: 2028-10-06 | B132: =IF(DIAS365(CALCULADORA!$C$27,A132)<0,0,DIAS365(CALCULADORA!$C$27,A132)) -> 1526 | C132: =+HLOOKUP(CALCULADORA!$C$9,Tablas!B:B,Flujos!J132+1,FALSE) -> 0 | D132: =+ROUND(D131-E132,6) -> 0 | E132: =ROUND(C132*$D$2,6) -> 0 | F132: =ROUND(D131*ROUND(((1+CALCULADORA!$C$16)^(1/12)-1),6),6) -> 0 | G132: =F132+E132 -> 0 | H132: =IF($B132=0,0,G132/POWER(1+CALCULADORA!$C$29,Flujos!$B132/365)) -> 0 | I132: 2028-10-06 | J132: 130 | K132: =+DIAS365($A$2,A132) -> 3954 | L132: =+L131-M132 -> -0.0008869171143 | M132: =+$L$2*C132 -> 0 | N132: =+L131*$F$3% -> -4.582700729e-06 | O132: =+N132+M132 -> -4.582700729e-06
A133: 2028-11-06 | B133: =IF(DIAS365(CALCULADORA!$C$27,A133)<0,0,DIAS365(CALCULADORA!$C$27,A133)) -> 1557 | C133: =+HLOOKUP(CALCULADORA!$C$9,Tablas!B:B,Flujos!J133+1,FALSE) -> 0 | D133: 0 | E133: 0 | F133: =ROUND(D132*ROUND(((1+CALCULADORA!$C$16)^(1/12)-1),6),6) -> 0 | G133: 0 | H133: =IF($B133=0,0,G133/POWER(1+CALCULADORA!$C$29,Flujos!$B133/365)) -> 0 | I133: 2028-11-06 | J133: 131 | K133: =+DIAS365($A$2,A133) -> 3985 | L133: -0.0008869171143 | M133: 0 | N133: -4.582700729e-06 | O133: -4.582700729e-06
A134: 2028-12-06 | B134: =IF(DIAS365(CALCULADORA!$C$27,A134)<0,0,DIAS365(CALCULADORA!$C$27,A134)) -> 1587 | C134: =+HLOOKUP(CALCULADORA!$C$9,Tablas!B:B,Flujos!J134+1,FALSE) -> 0 | D134: 0 | E134: 0 | F134: =ROUND(D133*ROUND(((1+CALCULADORA!$C$16)^(1/12)-1),6),6) -> 0 | G134: 0 | H134: =IF($B134=0,0,G134/POWER(1+CALCULADORA!$C$29,Flujos!$B134/365)) -> 0 | I134: 2028-12-06 | J134: 132 | K134: =+DIAS365($A$2,A134) -> 4015 | L134: -0.0008869171143 | M134: 0 | N134: -4.582700729e-06 | O134: -4.582700729e-06
A135: 2029-01-06 | B135: =IF(DIAS365(CALCULADORA!$C$27,A135)<0,0,DIAS365(CALCULADORA!$C$27,A135)) -> 1618 | C135: =+HLOOKUP(CALCULADORA!$C$9,Tablas!B:B,Flujos!J135+1,FALSE) -> 0 | D135: 0 | E135: 0 | F135: =ROUND(D134*ROUND(((1+CALCULADORA!$C$16)^(1/12)-1),6),6) -> 0 | G135: 0 | H135: =IF($B135=0,0,G135/POWER(1+CALCULADORA!$C$29,Flujos!$B135/365)) -> 0 | I135: 2029-01-06 | J135: 133 | K135: =+DIAS365($A$2,A135) -> 4046 | L135: -0.0008869171143 | M135: 0 | N135: -4.582700729e-06 | O135: -4.582700729e-06
A136: 2029-02-06 | B136: =IF(DIAS365(CALCULADORA!$C$27,A136)<0,0,DIAS365(CALCULADORA!$C$27,A136)) -> 1649 | C136: =+HLOOKUP(CALCULADORA!$C$9,Tablas!B:B,Flujos!J136+1,FALSE) -> 0 | D136: 0 | E136: 0 | F136: =ROUND(D135*ROUND(((1+CALCULADORA!$C$16)^(1/12)-1),6),6) -> 0 | G136: 0 | H136: =IF($B136=0,0,G136/POWER(1+CALCULADORA!$C$29,Flujos!$B136/365)) -> 0 | I136: 2029-02-06 | J136: 134 | K136: =+DIAS365($A$2,A136) -> 4077 | L136: -0.0008869171143 | M136: 0 | N136: -4.582700729e-06 | O136: -4.582700729e-06
A137: 2029-03-06 | B137: =IF(DIAS365(CALCULADORA!$C$27,A137)<0,0,DIAS365(CALCULADORA!$C$27,A137)) -> 1677 | C137: =+HLOOKUP(CALCULADORA!$C$9,Tablas!B:B,Flujos!J137+1,FALSE) -> 0 | D137: 0 | E137: 0 | F137: =ROUND(D136*ROUND(((1+CALCULADORA!$C$16)^(1/12)-1),6),6) -> 0 | G137: 0 | H137: =IF($B137=0,0,G137/POWER(1+CALCULADORA!$C$29,Flujos!$B137/365)) -> 0 | I137: 2029-03-06 | J137: 135 | K137: =+DIAS365($A$2,A137) -> 4105 | L137: -0.0008869171143 | M137: 0 | N137: -4.582700729e-06 | O137: -4.582700729e-06
A138: 2029-04-06 | B138: =IF(DIAS365(CALCULADORA!$C$27,A138)<0,0,DIAS365(CALCULADORA!$C$27,A138)) -> 1708 | C138: =+HLOOKUP(CALCULADORA!$C$9,Tablas!B:B,Flujos!J138+1,FALSE) -> 0 | D138: 0 | E138: 0 | F138: =ROUND(D137*ROUND(((1+CALCULADORA!$C$16)^(1/12)-1),6),6) -> 0 | G138: 0 | H138: =IF($B138=0,0,G138/POWER(1+CALCULADORA!$C$29,Flujos!$B138/365)) -> 0 | I138: 2029-04-06 | J138: 136 | K138: =+DIAS365($A$2,A138) -> 4136 | L138: -0.0008869171143 | M138: 0 | N138: -4.582700729e-06 | O138: -4.582700729e-06
A139: 2029-05-06 | B139: =IF(DIAS365(CALCULADORA!$C$27,A139)<0,0,DIAS365(CALCULADORA!$C$27,A139)) -> 1738 | C139: =+HLOOKUP(CALCULADORA!$C$9,Tablas!B:B,Flujos!J139+1,FALSE) -> 0 | D139: 0 | E139: 0 | F139: =ROUND(D138*ROUND(((1+CALCULADORA!$C$16)^(1/12)-1),6),6) -> 0 | G139: 0 | H139: =IF($B139=0,0,G139/POWER(1+CALCULADORA!$C$29,Flujos!$B139/365)) -> 0 | I139: 2029-05-06 | J139: 137 | K139: =+DIAS365($A$2,A139) -> 4166 | L139: -0.0008869171143 | M139: 0 | N139: -4.582700729e-06 | O139: -4.582700729e-06
A140: 2029-06-06 | B140: =IF(DIAS365(CALCULADORA!$C$27,A140)<0,0,DIAS365(CALCULADORA!$C$27,A140)) -> 1769 | C140: =+HLOOKUP(CALCULADORA!$C$9,Tablas!B:B,Flujos!J140+1,FALSE) -> 0 | D140: 0 | E140: 0 | F140: =ROUND(D139*ROUND(((1+CALCULADORA!$C$16)^(1/12)-1),6),6) -> 0 | G140: 0 | H140: =IF($B140=0,0,G140/POWER(1+CALCULADORA!$C$29,Flujos!$B140/365)) -> 0 | I140: 2029-06-06 | J140: 138 | K140: =+DIAS365($A$2,A140) -> 4197 | L140: -0.0008869171143 | M140: 0 | N140: -4.582700729e-06 | O140: -4.582700729e-06
A141: 2029-07-06 | B141: =IF(DIAS365(CALCULADORA!$C$27,A141)<0,0,DIAS365(CALCULADORA!$C$27,A141)) -> 1799 | C141: =+HLOOKUP(CALCULADORA!$C$9,Tablas!B:B,Flujos!J141+1,FALSE) -> 0 | D141: 0 | E141: 0 | F141: =ROUND(D140*ROUND(((1+CALCULADORA!$C$16)^(1/12)-1),6),6) -> 0 | G141: 0 | H141: =IF($B141=0,0,G141/POWER(1+CALCULADORA!$C$29,Flujos!$B141/365)) -> 0 | I141: 2029-07-06 | J141: 139 | K141: =+DIAS365($A$2,A141) -> 4227 | L141: -0.0008869171143 | M141: 0 | N141: -4.582700729e-06 | O141: -4.582700729e-06
A142: 2029-08-06 | B142: =IF(DIAS365(CALCULADORA!$C$27,A142)<0,0,DIAS365(CALCULADORA!$C$27,A142)) -> 1830 | C142: =+HLOOKUP(CALCULADORA!$C$9,Tablas!B:B,Flujos!J142+1,FALSE) -> 0 | D142: 0 | E142: 0 | F142: =ROUND(D141*ROUND(((1+CALCULADORA!$C$16)^(1/12)-1),6),6) -> 0 | G142: 0 | H142: =IF($B142=0,0,G142/POWER(1+CALCULADORA!$C$29,Flujos!$B142/365)) -> 0 | I142: 2029-08-06 | J142: 140 | K142: =+DIAS365($A$2,A142) -> 4258 | L142: -0.0008869171143 | M142: 0 | N142: -4.582700729e-06 | O142: -4.582700729e-06
A143: 2029-09-06 | B143: =IF(DIAS365(CALCULADORA!$C$27,A143)<0,0,DIAS365(CALCULADORA!$C$27,A143)) -> 1861 | C143: =+HLOOKUP(CALCULADORA!$C$9,Tablas!B:B,Flujos!J143+1,FALSE) -> 0 | D143: 0 | E143: 0 | F143: =ROUND(D142*ROUND(((1+CALCULADORA!$C$16)^(1/12)-1),6),6) -> 0 | G143: 0 | H143: =IF($B143=0,0,G143/POWER(1+CALCULADORA!$C$29,Flujos!$B143/365)) -> 0 | I143: 2029-09-06 | J143: 141 | K143: =+DIAS365($A$2,A143) -> 4289 | L143: -0.0008869171143 | M143: 0 | N143: -4.582700729e-06 | O143: -4.582700729e-06
A144: 2029-10-06 | B144: =IF(DIAS365(CALCULADORA!$C$27,A144)<0,0,DIAS365(CALCULADORA!$C$27,A144)) -> 1891 | C144: =+HLOOKUP(CALCULADORA!$C$9,Tablas!B:B,Flujos!J144+1,FALSE) -> 0 | D144: 0 | E144: 0 | F144: =ROUND(D143*ROUND(((1+CALCULADORA!$C$16)^(1/12)-1),6),6) -> 0 | G144: 0 | H144: =IF($B144=0,0,G144/POWER(1+CALCULADORA!$C$29,Flujos!$B144/365)) -> 0 | I144: 2029-10-06 | J144: 142 | K144: =+DIAS365($A$2,A144) -> 4319 | L144: -0.0008869171143 | M144: 0 | N144: -4.582700729e-06 | O144: -4.582700729e-06
A145: 2029-11-06 | B145: =IF(DIAS365(CALCULADORA!$C$27,A145)<0,0,DIAS365(CALCULADORA!$C$27,A145)) -> 1922 | C145: =+HLOOKUP(CALCULADORA!$C$9,Tablas!B:B,Flujos!J145+1,FALSE) -> 0 | D145: 0 | E145: 0 | F145: =ROUND(D144*ROUND(((1+CALCULADORA!$C$16)^(1/12)-1),6),6) -> 0 | G145: 0 | H145: =IF($B145=0,0,G145/POWER(1+CALCULADORA!$C$29,Flujos!$B145/365)) -> 0 | I145: 2029-11-06 | J145: 143 | K145: =+DIAS365($A$2,A145) -> 4350 | L145: -0.0008869171143 | M145: 0 | N145: -4.582700729e-06 | O145: -4.582700729e-06
A146: 2029-12-06 | B146: =IF(DIAS365(CALCULADORA!$C$27,A146)<0,0,DIAS365(CALCULADORA!$C$27,A146)) -> 1952 | C146: =+HLOOKUP(CALCULADORA!$C$9,Tablas!B:B,Flujos!J146+1,FALSE) -> 0 | D146: 0 | E146: 0 | F146: =ROUND(D145*ROUND(((1+CALCULADORA!$C$16)^(1/12)-1),6),6) -> 0 | G146: 0 | H146: =IF($B146=0,0,G146/POWER(1+CALCULADORA!$C$29,Flujos!$B146/365)) -> 0 | I146: 2029-12-06 | J146: 144 | K146: =+DIAS365($A$2,A146) -> 4380 | L146: -0.0008869171143 | M146: 0 | N146: -4.582700729e-06 | O146: -4.582700729e-06
A147: 2030-01-06 | B147: =IF(DIAS365(CALCULADORA!$C$27,A147)<0,0,DIAS365(CALCULADORA!$C$27,A147)) -> 1983 | C147: =+HLOOKUP(CALCULADORA!$C$9,Tablas!B:B,Flujos!J147+1,FALSE) -> 0 | D147: 0 | E147: 0 | F147: =ROUND(D146*ROUND(((1+CALCULADORA!$C$16)^(1/12)-1),6),6) -> 0 | G147: 0 | H147: =IF($B147=0,0,G147/POWER(1+CALCULADORA!$C$29,Flujos!$B147/365)) -> 0 | I147: 2030-01-06 | J147: 145 | K147: =+DIAS365($A$2,A147) -> 4411 | L147: -0.0008869171143 | M147: 0 | N147: -4.582700729e-06 | O147: -4.582700729e-06
A148: 2030-02-06 | B148: =IF(DIAS365(CALCULADORA!$C$27,A148)<0,0,DIAS365(CALCULADORA!$C$27,A148)) -> 2014 | C148: =+HLOOKUP(CALCULADORA!$C$9,Tablas!B:B,Flujos!J148+1,FALSE) -> 0 | D148: 0 | E148: 0 | F148: =ROUND(D147*ROUND(((1+CALCULADORA!$C$16)^(1/12)-1),6),6) -> 0 | G148: 0 | H148: =IF($B148=0,0,G148/POWER(1+CALCULADORA!$C$29,Flujos!$B148/365)) -> 0 | I148: 2030-02-06 | J148: 146 | K148: =+DIAS365($A$2,A148) -> 4442 | L148: -0.0008869171143 | M148: 0 | N148: -4.582700729e-06 | O148: -4.582700729e-06
A149: 2030-03-06 | B149: =IF(DIAS365(CALCULADORA!$C$27,A149)<0,0,DIAS365(CALCULADORA!$C$27,A149)) -> 2042 | C149: =+HLOOKUP(CALCULADORA!$C$9,Tablas!B:B,Flujos!J149+1,FALSE) -> 0 | D149: 0 | E149: 0 | F149: =ROUND(D148*ROUND(((1+CALCULADORA!$C$16)^(1/12)-1),6),6) -> 0 | G149: 0 | H149: =IF($B149=0,0,G149/POWER(1+CALCULADORA!$C$29,Flujos!$B149/365)) -> 0 | I149: 2030-03-06 | J149: 147 | K149: =+DIAS365($A$2,A149) -> 4470 | L149: -0.0008869171143 | M149: 0 | N149: -4.582700729e-06 | O149: -4.582700729e-06
A150: 2030-04-06 | B150: =IF(DIAS365(CALCULADORA!$C$27,A150)<0,0,DIAS365(CALCULADORA!$C$27,A150)) -> 2073 | C150: =+HLOOKUP(CALCULADORA!$C$9,Tablas!B:B,Flujos!J150+1,FALSE) -> 0 | D150: 0 | E150: 0 | F150: =ROUND(D149*ROUND(((1+CALCULADORA!$C$16)^(1/12)-1),6),6) -> 0 | G150: 0 | H150: =IF($B150=0,0,G150/POWER(1+CALCULADORA!$C$29,Flujos!$B150/365)) -> 0 | I150: 2030-04-06 | J150: 148 | K150: =+DIAS365($A$2,A150) -> 4501 | L150: -0.0008869171143 | M150: 0 | N150: -4.582700729e-06 | O150: -4.582700729e-06
A151: 2030-05-06 | B151: =IF(DIAS365(CALCULADORA!$C$27,A151)<0,0,DIAS365(CALCULADORA!$C$27,A151)) -> 2103 | C151: =+HLOOKUP(CALCULADORA!$C$9,Tablas!B:B,Flujos!J151+1,FALSE) -> 0 | D151: 0 | E151: 0 | F151: =ROUND(D150*ROUND(((1+CALCULADORA!$C$16)^(1/12)-1),6),6) -> 0 | G151: 0 | H151: =IF($B151=0,0,G151/POWER(1+CALCULADORA!$C$29,Flujos!$B151/365)) -> 0 | I151: 2030-05-06 | J151: 149 | K151: =+DIAS365($A$2,A151) -> 4531 | L151: -0.0008869171143 | M151: 0 | N151: -4.582700729e-06 | O151: -4.582700729e-06
A152: 2030-06-06 | B152: =IF(DIAS365(CALCULADORA!$C$27,A152)<0,0,DIAS365(CALCULADORA!$C$27,A152)) -> 2134 | C152: =+HLOOKUP(CALCULADORA!$C$9,Tablas!B:B,Flujos!J152+1,FALSE) -> 0 | D152: 0 | E152: 0 | F152: =ROUND(D151*ROUND(((1+CALCULADORA!$C$16)^(1/12)-1),6),6) -> 0 | G152: 0 | H152: =IF($B152=0,0,G152/POWER(1+CALCULADORA!$C$29,Flujos!$B152/365)) -> 0 | I152: 2030-06-06 | J152: 150 | K152: =+DIAS365($A$2,A152) -> 4562 | L152: -0.0008869171143 | M152: 0 | N152: -4.582700729e-06 | O152: -4.582700729e-06
A153: 2030-07-06 | B153: =IF(DIAS365(CALCULADORA!$C$27,A153)<0,0,DIAS365(CALCULADORA!$C$27,A153)) -> 2164 | C153: =+HLOOKUP(CALCULADORA!$C$9,Tablas!B:B,Flujos!J153+1,FALSE) -> 0 | D153: 0 | E153: 0 | F153: =ROUND(D152*ROUND(((1+CALCULADORA!$C$16)^(1/12)-1),6),6) -> 0 | G153: 0 | H153: =IF($B153=0,0,G153/POWER(1+CALCULADORA!$C$29,Flujos!$B153/365)) -> 0 | I153: 2030-07-06 | J153: 151 | K153: =+DIAS365($A$2,A153) -> 4592 | L153: -0.0008869171143 | M153: 0 | N153: -4.582700729e-06 | O153: -4.582700729e-06
A154: 2030-08-06 | B154: =IF(DIAS365(CALCULADORA!$C$27,A154)<0,0,DIAS365(CALCULADORA!$C$27,A154)) -> 2195 | C154: =+HLOOKUP(CALCULADORA!$C$9,Tablas!B:B,Flujos!J154+1,FALSE) -> 0 | D154: 0 | E154: 0 | F154: =ROUND(D153*ROUND(((1+CALCULADORA!$C$16)^(1/12)-1),6),6) -> 0 | G154: 0 | H154: =IF($B154=0,0,G154/POWER(1+CALCULADORA!$C$29,Flujos!$B154/365)) -> 0 | I154: 2030-08-06 | J154: 152 | K154: =+DIAS365($A$2,A154) -> 4623 | L154: -0.0008869171143 | M154: 0 | N154: -4.582700729e-06 | O154: -4.582700729e-06
A155: 2030-09-06 | B155: =IF(DIAS365(CALCULADORA!$C$27,A155)<0,0,DIAS365(CALCULADORA!$C$27,A155)) -> 2226 | C155: =+HLOOKUP(CALCULADORA!$C$9,Tablas!B:B,Flujos!J155+1,FALSE) -> 0 | D155: 0 | E155: 0 | F155: =ROUND(D154*ROUND(((1+CALCULADORA!$C$16)^(1/12)-1),6),6) -> 0 | G155: 0 | H155: =IF($B155=0,0,G155/POWER(1+CALCULADORA!$C$29,Flujos!$B155/365)) -> 0 | I155: 2030-09-06 | J155: 153 | K155: =+DIAS365($A$2,A155) -> 4654 | L155: -0.0008869171143 | M155: 0 | N155: -4.582700729e-06 | O155: -4.582700729e-06
A156: 2030-10-06 | B156: =IF(DIAS365(CALCULADORA!$C$27,A156)<0,0,DIAS365(CALCULADORA!$C$27,A156)) -> 2256 | C156: =+HLOOKUP(CALCULADORA!$C$9,Tablas!B:B,Flujos!J156+1,FALSE) -> 0 | D156: 0 | E156: 0 | F156: =ROUND(D155*ROUND(((1+CALCULADORA!$C$16)^(1/12)-1),6),6) -> 0 | G156: 0 | H156: =IF($B156=0,0,G156/POWER(1+CALCULADORA!$C$29,Flujos!$B156/365)) -> 0 | I156: 2030-10-06 | J156: 154 | K156: =+DIAS365($A$2,A156) -> 4684 | L156: -0.0008869171143 | M156: 0 | N156: -4.582700729e-06 | O156: -4.582700729e-06
A157: 2030-11-06 | B157: =IF(DIAS365(CALCULADORA!$C$27,A157)<0,0,DIAS365(CALCULADORA!$C$27,A157)) -> 2287 | C157: =+HLOOKUP(CALCULADORA!$C$9,Tablas!B:B,Flujos!J157+1,FALSE) -> 0 | D157: 0 | E157: 0 | F157: =ROUND(D156*ROUND(((1+CALCULADORA!$C$16)^(1/12)-1),6),6) -> 0 | G157: 0 | H157: =IF($B157=0,0,G157/POWER(1+CALCULADORA!$C$29,Flujos!$B157/365)) -> 0 | I157: 2030-11-06 | J157: 155 | K157: =+DIAS365($A$2,A157) -> 4715 | L157: -0.0008869171143 | M157: 0 | N157: -4.582700729e-06 | O157: -4.582700729e-06
A158: 2030-12-06 | B158: =IF(DIAS365(CALCULADORA!$C$27,A158)<0,0,DIAS365(CALCULADORA!$C$27,A158)) -> 2317 | C158: =+HLOOKUP(CALCULADORA!$C$9,Tablas!B:B,Flujos!J158+1,FALSE) -> 0 | D158: 0 | E158: 0 | F158: =ROUND(D157*ROUND(((1+CALCULADORA!$C$16)^(1/12)-1),6),6) -> 0 | G158: 0 | H158: =IF($B158=0,0,G158/POWER(1+CALCULADORA!$C$29,Flujos!$B158/365)) -> 0 | I158: 2030-12-06 | J158: 156 | K158: =+DIAS365($A$2,A158) -> 4745 | L158: -0.0008869171143 | M158: 0 | N158: -4.582700729e-06 | O158: -4.582700729e-06
A159: 2031-01-06 | B159: =IF(DIAS365(CALCULADORA!$C$27,A159)<0,0,DIAS365(CALCULADORA!$C$27,A159)) -> 2348 | C159: =+HLOOKUP(CALCULADORA!$C$9,Tablas!B:B,Flujos!J159+1,FALSE) -> 0 | D159: 0 | E159: 0 | F159: =ROUND(D158*ROUND(((1+CALCULADORA!$C$16)^(1/12)-1),6),6) -> 0 | G159: 0 | H159: =IF($B159=0,0,G159/POWER(1+CALCULADORA!$C$29,Flujos!$B159/365)) -> 0 | I159: 2031-01-06 | J159: 157 | K159: =+DIAS365($A$2,A159) -> 4776 | L159: -0.0008869171143 | M159: 0 | N159: -4.582700729e-06 | O159: -4.582700729e-06
A160: 2031-02-06 | B160: =IF(DIAS365(CALCULADORA!$C$27,A160)<0,0,DIAS365(CALCULADORA!$C$27,A160)) -> 2379 | C160: =+HLOOKUP(CALCULADORA!$C$9,Tablas!B:B,Flujos!J160+1,FALSE) -> 0 | D160: 0 | E160: 0 | F160: =ROUND(D159*ROUND(((1+CALCULADORA!$C$16)^(1/12)-1),6),6) -> 0 | G160: 0 | H160: =IF($B160=0,0,G160/POWER(1+CALCULADORA!$C$29,Flujos!$B160/365)) -> 0 | I160: 2031-02-06 | J160: 158 | K160: =+DIAS365($A$2,A160) -> 4807 | L160: -0.0008869171143 | M160: 0 | N160: -4.582700729e-06 | O160: -4.582700729e-06
A161: 2031-03-06 | B161: =IF(DIAS365(CALCULADORA!$C$27,A161)<0,0,DIAS365(CALCULADORA!$C$27,A161)) -> 2407 | C161: =+HLOOKUP(CALCULADORA!$C$9,Tablas!B:B,Flujos!J161+1,FALSE) -> 0 | D161: 0 | E161: 0 | F161: =ROUND(D160*ROUND(((1+CALCULADORA!$C$16)^(1/12)-1),6),6) -> 0 | G161: 0 | H161: =IF($B161=0,0,G161/POWER(1+CALCULADORA!$C$29,Flujos!$B161/365)) -> 0 | I161: 2031-03-06 | J161: 159 | K161: =+DIAS365($A$2,A161) -> 4835 | L161: -0.0008869171143 | M161: 0 | N161: -4.582700729e-06 | O161: -4.582700729e-06
A162: 2031-04-06 | B162: =IF(DIAS365(CALCULADORA!$C$27,A162)<0,0,DIAS365(CALCULADORA!$C$27,A162)) -> 2438 | C162: =+HLOOKUP(CALCULADORA!$C$9,Tablas!B:B,Flujos!J162+1,FALSE) -> 0 | D162: 0 | E162: 0 | F162: =ROUND(D161*ROUND(((1+CALCULADORA!$C$16)^(1/12)-1),6),6) -> 0 | G162: 0 | H162: =IF($B162=0,0,G162/POWER(1+CALCULADORA!$C$29,Flujos!$B162/365)) -> 0 | I162: 2031-04-06 | J162: 160 | K162: =+DIAS365($A$2,A162) -> 4866 | L162: -0.0008869171143 | M162: 0 | N162: -4.582700729e-06 | O162: -4.582700729e-06
A163: =EDATE(A162,1) -> 2031-05-06 | B163: =IF(DIAS365(CALCULADORA!$C$27,A163)<0,0,DIAS365(CALCULADORA!$C$27,A163)) -> 2468 | C163: =+HLOOKUP(CALCULADORA!$C$9,Tablas!B:B,Flujos!J163+1,FALSE) -> 0 | D163: 0 | E163: 0 | F163: =ROUND(D162*ROUND(((1+CALCULADORA!$C$16)^(1/12)-1),6),6) -> 0 | G163: 0 | H163: =IF($B163=0,0,G163/POWER(1+CALCULADORA!$C$29,Flujos!$B163/365)) -> 0 | I163: 2031-05-06 | J163: 161 | K163: =+DIAS365($A$2,A163) -> 4896 | L163: -0.0008869171143 | M163: 0 | N163: -4.582700729e-06 | O163: -4.582700729e-06
A164: 2031-06-06 | B164: =IF(DIAS365(CALCULADORA!$C$27,A164)<0,0,DIAS365(CALCULADORA!$C$27,A164)) -> 2499 | C164: =+HLOOKUP(CALCULADORA!$C$9,Tablas!B:B,Flujos!J164+1,FALSE) -> 0 | D164: 0 | E164: 0 | F164: =ROUND(D163*ROUND(((1+CALCULADORA!$C$16)^(1/12)-1),6),6) -> 0 | G164: 0 | H164: =IF($B164=0,0,G164/POWER(1+CALCULADORA!$C$29,Flujos!$B164/365)) -> 0 | I164: 2031-06-06 | J164: 162 | K164: =+DIAS365($A$2,A164) -> 4927 | L164: -0.0008869171143 | M164: 0 | N164: -4.582700729e-06 | O164: -4.582700729e-06
A165: 2031-07-06 | B165: =IF(DIAS365(CALCULADORA!$C$27,A165)<0,0,DIAS365(CALCULADORA!$C$27,A165)) -> 2529 | C165: =+HLOOKUP(CALCULADORA!$C$9,Tablas!B:B,Flujos!J165+1,FALSE) -> 0 | D165: 0 | E165: 0 | F165: =ROUND(D164*ROUND(((1+CALCULADORA!$C$16)^(1/12)-1),6),6) -> 0 | G165: 0 | H165: =IF($B165=0,0,G165/POWER(1+CALCULADORA!$C$29,Flujos!$B165/365)) -> 0 | I165: 2031-07-06 | J165: 163 | K165: =+DIAS365($A$2,A165) -> 4957 | L165: -0.0008869171143 | M165: 0 | N165: -4.582700729e-06 | O165: -4.582700729e-06
A166: 2031-08-06 | B166: =IF(DIAS365(CALCULADORA!$C$27,A166)<0,0,DIAS365(CALCULADORA!$C$27,A166)) -> 2560 | C166: =+HLOOKUP(CALCULADORA!$C$9,Tablas!B:B,Flujos!J166+1,FALSE) -> 0 | D166: 0 | E166: 0 | F166: =ROUND(D165*ROUND(((1+CALCULADORA!$C$16)^(1/12)-1),6),6) -> 0 | G166: 0 | H166: =IF($B166=0,0,G166/POWER(1+CALCULADORA!$C$29,Flujos!$B166/365)) -> 0 | I166: 2031-08-06 | J166: 164 | K166: =+DIAS365($A$2,A166) -> 4988 | L166: -0.0008869171143 | M166: 0 | N166: -4.582700729e-06 | O166: -4.582700729e-06
A167: 2031-09-06 | B167: =IF(DIAS365(CALCULADORA!$C$27,A167)<0,0,DIAS365(CALCULADORA!$C$27,A167)) -> 2591 | C167: =+HLOOKUP(CALCULADORA!$C$9,Tablas!B:B,Flujos!J167+1,FALSE) -> 0 | D167: 0 | E167: 0 | F167: =ROUND(D166*ROUND(((1+CALCULADORA!$C$16)^(1/12)-1),6),6) -> 0 | G167: 0 | H167: =IF($B167=0,0,G167/POWER(1+CALCULADORA!$C$29,Flujos!$B167/365)) -> 0 | I167: 2031-09-06 | J167: 165 | K167: =+DIAS365($A$2,A167) -> 5019 | L167: -0.0008869171143 | M167: 0 | N167: -4.582700729e-06 | O167: -4.582700729e-06
A168: 2031-10-06 | B168: =IF(DIAS365(CALCULADORA!$C$27,A168)<0,0,DIAS365(CALCULADORA!$C$27,A168)) -> 2621 | C168: =+HLOOKUP(CALCULADORA!$C$9,Tablas!B:B,Flujos!J168+1,FALSE) -> 0 | D168: 0 | E168: 0 | F168: =ROUND(D167*ROUND(((1+CALCULADORA!$C$16)^(1/12)-1),6),6) -> 0 | G168: 0 | H168: =IF($B168=0,0,G168/POWER(1+CALCULADORA!$C$29,Flujos!$B168/365)) -> 0 | I168: 2031-10-06 | J168: 166 | K168: =+DIAS365($A$2,A168) -> 5049 | L168: -0.0008869171143 | M168: 0 | N168: -4.582700729e-06 | O168: -4.582700729e-06
A169: 2031-11-06 | B169: =IF(DIAS365(CALCULADORA!$C$27,A169)<0,0,DIAS365(CALCULADORA!$C$27,A169)) -> 2652 | C169: =+HLOOKUP(CALCULADORA!$C$9,Tablas!B:B,Flujos!J169+1,FALSE) -> 0 | D169: 0 | E169: 0 | F169: =ROUND(D168*ROUND(((1+CALCULADORA!$C$16)^(1/12)-1),6),6) -> 0 | G169: 0 | H169: =IF($B169=0,0,G169/POWER(1+CALCULADORA!$C$29,Flujos!$B169/365)) -> 0 | I169: 2031-11-06 | J169: 167 | K169: =+DIAS365($A$2,A169) -> 5080 | L169: -0.0008869171143 | M169: 0 | N169: -4.582700729e-06 | O169: -4.582700729e-06
A170: 2031-12-06 | B170: =IF(DIAS365(CALCULADORA!$C$27,A170)<0,0,DIAS365(CALCULADORA!$C$27,A170)) -> 2682 | C170: =+HLOOKUP(CALCULADORA!$C$9,Tablas!B:B,Flujos!J170+1,FALSE) -> 0 | D170: 0 | E170: 0 | F170: =ROUND(D169*ROUND(((1+CALCULADORA!$C$16)^(1/12)-1),6),6) -> 0 | G170: 0 | H170: =IF($B170=0,0,G170/POWER(1+CALCULADORA!$C$29,Flujos!$B170/365)) -> 0 | I170: 2031-12-06 | J170: 168 | K170: =+DIAS365($A$2,A170) -> 5110 | L170: -0.0008869171143 | M170: 0 | N170: -4.582700729e-06 | O170: -4.582700729e-06
A171: 2032-01-06 | B171: =IF(DIAS365(CALCULADORA!$C$27,A171)<0,0,DIAS365(CALCULADORA!$C$27,A171)) -> 2713 | C171: =+HLOOKUP(CALCULADORA!$C$9,Tablas!B:B,Flujos!J171+1,FALSE) -> 0 | D171: 0 | E171: 0 | F171: =ROUND(D170*ROUND(((1+CALCULADORA!$C$16)^(1/12)-1),6),6) -> 0 | G171: 0 | H171: =IF($B171=0,0,G171/POWER(1+CALCULADORA!$C$29,Flujos!$B171/365)) -> 0 | I171: 2032-01-06 | J171: 169 | K171: =+DIAS365($A$2,A171) -> 5141 | L171: -0.0008869171143 | M171: 0 | N171: -4.582700729e-06 | O171: -4.582700729e-06
A172: 2032-02-06 | B172: =IF(DIAS365(CALCULADORA!$C$27,A172)<0,0,DIAS365(CALCULADORA!$C$27,A172)) -> 2744 | C172: =+HLOOKUP(CALCULADORA!$C$9,Tablas!B:B,Flujos!J172+1,FALSE) -> 0 | D172: 0 | E172: 0 | F172: =ROUND(D171*ROUND(((1+CALCULADORA!$C$16)^(1/12)-1),6),6) -> 0 | G172: 0 | H172: =IF($B172=0,0,G172/POWER(1+CALCULADORA!$C$29,Flujos!$B172/365)) -> 0 | I172: 2032-02-06 | J172: 170 | K172: =+DIAS365($A$2,A172) -> 5172 | L172: -0.0008869171143 | M172: 0 | N172: -4.582700729e-06 | O172: -4.582700729e-06
A173: 2032-03-06 | B173: =IF(DIAS365(CALCULADORA!$C$27,A173)<0,0,DIAS365(CALCULADORA!$C$27,A173)) -> 2772 | C173: =+HLOOKUP(CALCULADORA!$C$9,Tablas!B:B,Flujos!J173+1,FALSE) -> 0 | D173: 0 | E173: 0 | F173: =ROUND(D172*ROUND(((1+CALCULADORA!$C$16)^(1/12)-1),6),6) -> 0 | G173: 0 | H173: =IF($B173=0,0,G173/POWER(1+CALCULADORA!$C$29,Flujos!$B173/365)) -> 0 | I173: 2032-03-06 | J173: 171 | K173: =+DIAS365($A$2,A173) -> 5200 | L173: -0.0008869171143 | M173: 0 | N173: -4.582700729e-06 | O173: -4.582700729e-06
A174: 2032-04-06 | B174: =IF(DIAS365(CALCULADORA!$C$27,A174)<0,0,DIAS365(CALCULADORA!$C$27,A174)) -> 2803 | C174: =+HLOOKUP(CALCULADORA!$C$9,Tablas!B:B,Flujos!J174+1,FALSE) -> 0 | D174: 0 | E174: 0 | F174: =ROUND(D173*ROUND(((1+CALCULADORA!$C$16)^(1/12)-1),6),6) -> 0 | G174: 0 | H174: =IF($B174=0,0,G174/POWER(1+CALCULADORA!$C$29,Flujos!$B174/365)) -> 0 | I174: 2032-04-06 | J174: 172 | K174: =+DIAS365($A$2,A174) -> 5231 | L174: -0.0008869171143 | M174: 0 | N174: -4.582700729e-06 | O174: -4.582700729e-06
A175: 2032-05-06 | B175: =IF(DIAS365(CALCULADORA!$C$27,A175)<0,0,DIAS365(CALCULADORA!$C$27,A175)) -> 2833 | C175: =+HLOOKUP(CALCULADORA!$C$9,Tablas!B:B,Flujos!J175+1,FALSE) -> 0 | D175: 0 | E175: 0 | F175: =ROUND(D174*ROUND(((1+CALCULADORA!$C$16)^(1/12)-1),6),6) -> 0 | G175: 0 | H175: =IF($B175=0,0,G175/POWER(1+CALCULADORA!$C$29,Flujos!$B175/365)) -> 0 | I175: 2032-05-06 | J175: 173 | K175: =+DIAS365($A$2,A175) -> 5261 | L175: -0.0008869171143 | M175: 0 | N175: -4.582700729e-06 | O175: -4.582700729e-06
A176: 2032-06-06 | B176: =IF(DIAS365(CALCULADORA!$C$27,A176)<0,0,DIAS365(CALCULADORA!$C$27,A176)) -> 2864 | C176: =+HLOOKUP(CALCULADORA!$C$9,Tablas!B:B,Flujos!J176+1,FALSE) -> 0 | D176: 0 | E176: 0 | F176: =ROUND(D175*ROUND(((1+CALCULADORA!$C$16)^(1/12)-1),6),6) -> 0 | G176: 0 | H176: =IF($B176=0,0,G176/POWER(1+CALCULADORA!$C$29,Flujos!$B176/365)) -> 0 | I176: 2032-06-06 | J176: 174 | K176: =+DIAS365($A$2,A176) -> 5292 | L176: -0.0008869171143 | M176: 0 | N176: -4.582700729e-06 | O176: -4.582700729e-06
A177: 2032-07-06 | B177: =IF(DIAS365(CALCULADORA!$C$27,A177)<0,0,DIAS365(CALCULADORA!$C$27,A177)) -> 2894 | C177: =+HLOOKUP(CALCULADORA!$C$9,Tablas!B:B,Flujos!J177+1,FALSE) -> 0 | D177: 0 | E177: 0 | F177: =ROUND(D176*ROUND(((1+CALCULADORA!$C$16)^(1/12)-1),6),6) -> 0 | G177: 0 | H177: =IF($B177=0,0,G177/POWER(1+CALCULADORA!$C$29,Flujos!$B177/365)) -> 0 | I177: 2032-07-06 | J177: 175 | K177: =+DIAS365($A$2,A177) -> 5322 | L177: -0.0008869171143 | M177: 0 | N177: -4.582700729e-06 | O177: -4.582700729e-06
A178: 2032-08-06 | B178: =IF(DIAS365(CALCULADORA!$C$27,A178)<0,0,DIAS365(CALCULADORA!$C$27,A178)) -> 2925 | C178: =+HLOOKUP(CALCULADORA!$C$9,Tablas!B:B,Flujos!J178+1,FALSE) -> 0 | D178: 0 | E178: 0 | F178: =ROUND(D177*ROUND(((1+CALCULADORA!$C$16)^(1/12)-1),6),6) -> 0 | G178: 0 | H178: =IF($B178=0,0,G178/POWER(1+CALCULADORA!$C$29,Flujos!$B178/365)) -> 0 | I178: 2032-08-06 | J178: 176 | K178: =+DIAS365($A$2,A178) -> 5353 | L178: -0.0008869171143 | M178: 0 | N178: -4.582700729e-06 | O178: -4.582700729e-06
A179: 2032-09-06 | B179: =IF(DIAS365(CALCULADORA!$C$27,A179)<0,0,DIAS365(CALCULADORA!$C$27,A179)) -> 2956 | C179: =+HLOOKUP(CALCULADORA!$C$9,Tablas!B:B,Flujos!J179+1,FALSE) -> 0 | D179: 0 | E179: 0 | F179: =ROUND(D178*ROUND(((1+CALCULADORA!$C$16)^(1/12)-1),6),6) -> 0 | G179: 0 | H179: =IF($B179=0,0,G179/POWER(1+CALCULADORA!$C$29,Flujos!$B179/365)) -> 0 | I179: 2032-09-06 | J179: 177 | K179: =+DIAS365($A$2,A179) -> 5384 | L179: -0.0008869171143 | M179: 0 | N179: -4.582700729e-06 | O179: -4.582700729e-06
A180: 2032-10-06 | B180: =IF(DIAS365(CALCULADORA!$C$27,A180)<0,0,DIAS365(CALCULADORA!$C$27,A180)) -> 2986 | C180: =+HLOOKUP(CALCULADORA!$C$9,Tablas!B:B,Flujos!J180+1,FALSE) -> 0 | D180: 0 | E180: 0 | F180: =ROUND(D179*ROUND(((1+CALCULADORA!$C$16)^(1/12)-1),6),6) -> 0 | G180: 0 | H180: =IF($B180=0,0,G180/POWER(1+CALCULADORA!$C$29,Flujos!$B180/365)) -> 0 | I180: 2032-10-06 | J180: 178 | K180: =+DIAS365($A$2,A180) -> 5414 | L180: -0.0008869171143 | M180: 0 | N180: -4.582700729e-06 | O180: -4.582700729e-06
A181: 2032-11-06 | B181: =IF(DIAS365(CALCULADORA!$C$27,A181)<0,0,DIAS365(CALCULADORA!$C$27,A181)) -> 3017 | C181: =+HLOOKUP(CALCULADORA!$C$9,Tablas!B:B,Flujos!J181+1,FALSE) -> 0 | D181: 0 | E181: 0 | F181: =ROUND(D180*ROUND(((1+CALCULADORA!$C$16)^(1/12)-1),6),6) -> 0 | G181: 0 | H181: =IF($B181=0,0,G181/POWER(1+CALCULADORA!$C$29,Flujos!$B181/365)) -> 0 | I181: 2032-11-06 | J181: 179 | K181: =+DIAS365($A$2,A181) -> 5445 | L181: -0.0008869171143 | M181: 0 | N181: -4.582700729e-06 | O181: -4.582700729e-06
A182: 2032-12-06 | B182: =IF(DIAS365(CALCULADORA!$C$27,A182)<0,0,DIAS365(CALCULADORA!$C$27,A182)) -> 3047 | C182: =+HLOOKUP(CALCULADORA!$C$9,Tablas!B:B,Flujos!J182+1,FALSE) -> 0 | D182: 0 | E182: 0 | F182: =ROUND(D181*ROUND(((1+CALCULADORA!$C$16)^(1/12)-1),6),6) -> 0 | G182: 0 | H182: =IF($B182=0,0,G182/POWER(1+CALCULADORA!$C$29,Flujos!$B182/365)) -> 0 | I182: 2032-12-06 | J182: 180 | K182: =+DIAS365($A$2,A182) -> 5475 | L182: -0.0008869171143 | M182: 0 | N182: -4.582700729e-06 | O182: -4.582700729e-06
C183: =+SUMIF(B2:B182,">0",C2:C182) -> 0.03817847 | E183: =SUM(E2:E182) -> 100 | F183: =SUM(F2:F182) -> 16.475691 | G183: =SUM(G2:G182) -> 116.475691 | H183: =SUM(H2:H182) -> 3.777050728 | L183: Totales | M183: =SUM(M2:M182) -> 4.788065106e+12 | N183: =SUM(N2:N182) -> 7.888667606e+11 | O183: 5.576931866e+12

Sheet Características (hidden)
A1: Serie | B1: TIPS N13 A | C1: TIPS N14 A | D1: TIPS N15 A | E1: TIPS N16 A | F1: TIPS N17 A | G1: TIPS N18 A 2034 | H1: TIPS N19 A 2034 | I1: TIPS N20 A 2034 | J1: TIPS N21 A | K1: TIPS N22 A | L1: TIPS N23 A
A2: Nemo MEC | B2: INST10011226 | C2: INST10080327 | D2: INST10270627 | E2: INST10061227 | F2: INST10150328 | G2: INST15040434 | H2: INST15230534 | I2: INST15041034 | J2: INST13240634 | K2: INST070339A | L2: INST15180739
A3: ISIN
A4: Emisión | B4: 2016-12-01 | C4: 2017-03-08 | D4: 2017-06-27 | E4: 2017-12-06 | F4: 2018-03-15 | G4: 2021-02-04 | H4: 2021-07-23 | I4: 2021-04-04 | J4: 2021-06-24 | K4: 2024-03-07 | L4: 2024-07-18
A5: Vencimiento contractual | B5: 2026-12-01 | C5: 2027-03-08 | D5: 2042-03-08 | E5: 2027-12-06 | F5: 2033-03-15 | G5: 2034-04-04 | H5: 2034-05-23 | I5: 2034-10-04 | J5: 2034-06-24 | K5: 2039-03-07 | L5: 2039-07-18
A6: Cupón EA | B6: 0.0837 | C6: 0.0775 | D6: 0.069 | E6: 0.0638 | F6: 0.0657 | G6: 0.0683 | H6: 0.0689 | I6: 0.0604 | J6: 0.0606 | K6: 0.109 | L6: 0.1165
A7: Moneda | B7: COP | C7: COP | D7: COP | E7: COP | F7: COP | G7: COP | H7: COP | I7: COP | J7: COP | K7: COP | L7: COP
A9: Cálculo de tasa y precio sucio a partir del limpio
A10: Fecha de liquidación | B10: =+CALCULADORA!C27 -> 2024-08-01
A11: Fecha último pago cupón | B11: =+VLOOKUP(B10,Flujos!$A$2:$A$182,1) -> 2024-07-06
A12: Valor Par | B12: =+VLOOKUP(B11,Flujos!$A$2:$D$182,4) -> 3.817847
A13: Próximo pago de interés | B13: =+VLOOKUP(EDATE(B10,1),Flujos!$A$2:$F$182,6) -> 0.019727
A14: Días corridos | B14: =+DAYS360(B11,B10,TRUE) -> 25
A15: Días entre flujos | B15: 30
A16: Cupón corrido | B16: =ROUND(B13/B12*B14/B15*100,4) -> 0.4306
A17: Precio limpio | B17: =+TRUNC(Flujos!H183/VLOOKUP(CALCULADORA!C27,Flujos!A:D,4)*100,3) -> 98.931
A18: Nominal | B18: =+CALCULADORA!C28 -> 182801000000
A19: Moneda | B19: 1
A20: Contravalor | B20: =ROUND(B18*B19*(B17+B16)/100,0) -> 181633998416
A21: Precio unitario | B21: =TRUNC(B20/B18,5) -> 0.99361
A22: Precio sucio MEC | B22: =TRUNC(B21/B19*100,3) -> 99.361
A23: Precio sucio modelo | B23: =+B22 -> 99.361
A24: Diferencia | B24: =+B22-B23 -> 0
A25: Tasa de descuento equivalente | B25: =TRUNC(CALCULADORA!C29,5) -> 0.109
A27: Cálculo de precio limpio y sucio a partir de tasa
A28: Tasa de descuento | B28: =TRUNC(CALCULADORA!C29,5) -> 0.109
A29: Precio sucio modelo | B29: =+B23 -> 99.361
A30: Moneda | B30: =+CALCULADORA!$C$43 -> 1
A31: Nominal | B31: =+CALCULADORA!C28 -> 182801000000
A32: Contravalor | B32: =+ROUND(B29/100*B31*B30,0) -> 181632901610
A33: Valor Par | B33: =+VLOOKUP(B11,Flujos!$A$2:$D$182,4) -> 3.817847
A34: Próximo pago de interés | B34: =+VLOOKUP(EDATE(B10,1),Flujos!$A$2:$F$182,6) -> 0.019727
A35: Días corridos | B35: =+DAYS360(B11,B10,TRUE) -> 25
A36: Días entre flujos | B36: 30
A37: Precio unitario | B37: =TRUNC(B32/(B30*B31),5) -> 0.99361
A38: Cupón corrido | B38: =ROUND(B34/B33*B35/B36,6)*100 -> 0.4306
A39: Precio limpio | B39: =ROUND((B37-(B38/100))*100,3) -> 98.93

Sheet TIR de Tenencia (hidden)
A1: =+Flujos!A1 -> Fecha | B1: =+Flujos!L1 -> Saldo / Balance | C1: =+Flujos!M1 -> Pago de Capital | D1: =+Flujos!N1 -> Pago de Intereses | E1: =+Flujos!O1 -> Pago Total | F1: =+CALCULADORA!C27 -> 2024-08-01 | G1: Fecha | H1: Flujo | I1: Fecha | J1: Flujo 1 | K1: TIR | L1: =+DAY(A2) -> 6 | M1: =+MONTH(G2) -> 3 | N1: =+YEAR(G2) -> 2024 | P1: =MATCH(MAX('TIR de Tenencia'!I:I),'TIR de Tenencia'!I:I,0) -> 7
A2: =+Flujos!A2 -> 2017-12-06 | B2: =+Flujos!L2 -> 4.788065106e+12 | C2: =+Flujos!M2 -> 0 | D2: =+Flujos!N2 -> 0 | E2: =+Flujos!O2 -> 0 | G2: =+CALCULADORA!C23 -> 2024-03-07 | H2: =-CALCULADORA!C24 -> -15000000000 | I2: =+G2 -> 2024-03-07 | J2: =+H2 -> -15000000000 | K2: =+XIRR(J2:J7,I2:I7) -> 1680186736640 | L2: =+L1 -> 6 | M2: =+IF(M1=12,1,M1+1) -> 4 | N2: =+IF(M2=1,N1+1,N1) -> 2024 | P2: 1 | Q2: Enero
A3: =+Flujos!A3 -> 2018-01-06 | B3: =+Flujos!L3 -> 4.675221137e+12 | C3: =+Flujos!M3 -> 1.128439693e+11 | D3: =+Flujos!N3 -> 2.47399324e+10 | E3: =+Flujos!O3 -> 1.375839017e+11 | G3: =+DATE(N2,M2,L2) -> 2024-04-06 | H3: =IF(G3<CALCULADORA!$C$23,0,IF(CALCULADORA!$C$27>'TIR de Tenencia'!G3,E3,CALCULADORA!$C$33)) -> 1.375839017e+11 | I3: =+IF(H3=H2," ",G3) -> 2024-04-06 | J3: =+IF(H3=H2," ",H3) -> 1.375839017e+11 | L3: =+L2 -> 6 | M3: =+IF(M2=12,1,M2+1) -> 5 | N3: =+IF(M3=1,N2+1,N2) -> 2024 | P3: 2 | Q3: Febrero
A4: =+Flujos!A4 -> 2018-02-06 | B4: =+Flujos!L4 -> 4.573075141e+12 | C4: =+Flujos!M4 -> 1.021459954e+11 | D4: =+Flujos!N4 -> 2.415686761e+10 | E4: =+Flujos!O4 -> 1.26302863e+11 | G4: =+DATE(N3,M3,L3) -> 2024-05-06 | H4: =IF(G4<CALCULADORA!$C$23,0,IF(CALCULADORA!$C$27>'TIR de Tenencia'!G4,E4,CALCULADORA!$C$33)) -> 1.26302863e+11 | I4: =+IF(H4=H3," ",G4) -> 2024-05-06 | J4: =+IF(H4=H3," ",H4) -> 1.26302863e+11 | L4: 6 | M4: 6 | N4: 2024 | P4: 3 | Q4: Marzo
A5: =+Flujos!A5 -> 2018-03-06 | B5: =+Flujos!L5 -> 4.43435077e+12 | C5: =+Flujos!M5 -> 1.387243709e+11 | D5: =+Flujos!N5 -> 2.362907925e+10 | E5: =+Flujos!O5 -> 1.623534502e+11 | G5: 2024-06-06 | H5: =IF(G5<CALCULADORA!$C$23,0,IF(CALCULADORA!$C$27>'TIR de Tenencia'!G5,E5,CALCULADORA!$C$33)) -> 1.623534502e+11 | I5: =+IF(H5=H4," ",G5) -> 2024-06-06 | J5: =+IF(H5=H4," ",H5) -> 1.623534502e+11 | L5: 6 | M5: 7 | N5: 2024 | P5: 4 | Q5: Abril
A6: =+Flujos!A6 -> 2018-04-06 | B6: =+Flujos!L6 -> 4.327901932e+12 | C6: =+Flujos!M6 -> 1.06448838e+11 | D6: =+Flujos!N6 -> 2.291229043e+10 | E6: =+Flujos!O6 -> 1.293611284e+11 | G6: 2024-07-06 | H6: =IF(G6<CALCULADORA!$C$23,0,IF(CALCULADORA!$C$27>'TIR de Tenencia'!G6,E6,CALCULADORA!$C$33)) -> 1.293611284e+11 | I6: 2024-07-06 | J6: 1.293611284e+11 | L6: 6 | M6: 8 | N6: 2024 | P6: 5 | Q6: Mayo
A7: =+Flujos!A7 -> 2018-05-06 | B7: =+Flujos!L7 -> 4.229878365e+12 | C7: =+Flujos!M7 -> 9.802356712e+10 | D7: =+Flujos!N7 -> 2.236226928e+10 | E7: =+Flujos!O7 -> 1.203858364e+11 | G7: 2024-08-06 | H7: =IF(G7<CALCULADORA!$C$23,0,IF(CALCULADORA!$C$27>'TIR de Tenencia'!G7,E7,CALCULADORA!$C$33)) -> 181632901610 | I7: 2024-08-06 | J7: 181632901610 | L7: 6 | M7: 9 | N7: 2024 | P7: 6 | Q7: Junio
A8: =+Flujos!A8 -> 2018-06-06 | B8: =+Flujos!L8 -> 4.131218512e+12 | C8: =+Flujos!M8 -> 9.865985309e+10 | D8: =+Flujos!N8 -> 2.185578151e+10 | E8: =+Flujos!O8 -> 1.205156346e+11 | G8: 2024-09-06 | H8: =IF(G8<CALCULADORA!$C$23,0,IF(CALCULADORA!$C$27>'TIR de Tenencia'!G8,E8,CALCULADORA!$C$33)) -> 181632901610 | L8: 6 | M8: 10 | N8: 2024 | P8: 7 | Q8: Julio
A9: =+Flujos!A9 -> 2018-07-06 | B9: =+Flujos!L9 -> 4.029920244e+12 | C9: =+Flujos!M9 -> 1.012982685e+11 | D9: =+Flujos!N9 -> 2.134600605e+10 | E9: =+Flujos!O9 -> 1.226442745e+11 | G9: 2024-10-06 | H9: =IF(G9<CALCULADORA!$C$23,0,IF(CALCULADORA!$C$27>'TIR de Tenencia'!G9,E9,CALCULADORA!$C$33)) -> 181632901610 | L9: 6 | M9: 11 | N9: 2024 | P9: 8 | Q9: Agosto
A10: =+Flujos!A10 -> 2018-08-06 | B10: =+Flujos!L10 -> 3.941896263e+12 | C10: =+Flujos!M10 -> 8.802398043e+10 | D10: =+Flujos!N10 -> 2.08225979e+10 | E10: =+Flujos!O10 -> 1.088465783e+11 | G10: 2024-11-06 | H10: =IF(G10<CALCULADORA!$C$23,0,IF(CALCULADORA!$C$27>'TIR de Tenencia'!G10,E10,CALCULADORA!$C$33)) -> 181632901610 | L10: 6 | M10: 12 | N10: 2024 | P10: 9 | Q10: Septiembre
A11: =+Flujos!A11 -> 2018-09-06 | B11: =+Flujos!L11 -> 3.840409919e+12 | C11: =+Flujos!M11 -> 1.014863437e+11 | D11: =+Flujos!N11 -> 2.036777799e+10 | E11: =+Flujos!O11 -> 1.218541217e+11 | G11: 2024-12-06 | H11: =IF(G11<CALCULADORA!$C$23,0,IF(CALCULADORA!$C$27>'TIR de Tenencia'!G11,E11,CALCULADORA!$C$33)) -> 181632901610 | L11: 6 | M11: =+IF(M10=12,1,M10+1) -> 1 | N11: 2025 | P11: 10 | Q11: Octubre
A12: =+Flujos!A12 -> 2018-10-06 | B12: =+Flujos!L12 -> 3.728480566e+12 | C12: =+Flujos!M12 -> 1.119293531e+11 | D12: =+Flujos!N12 -> 1.984339805e+10 | E12: =+Flujos!O12 -> 1.317727511e+11 | G12: 2025-01-06 | H12: =IF(G12<CALCULADORA!$C$23,0,IF(CALCULADORA!$C$27>'TIR de Tenencia'!G12,E12,CALCULADORA!$C$33)) -> 181632901610 | L12: 6 | M12: 2 | N12: 2025 | P12: 11 | Q12: Noviembre
A13: =+Flujos!A13 -> 2018-11-06 | B13: =+Flujos!L13 -> 3.662589656e+12 | C13: =+Flujos!M13 -> 6.589091007e+10 | D13: =+Flujos!N13 -> 1.926505909e+10 | E13: =+Flujos!O13 -> 8.515596916e+10 | G13: 2025-02-06 | H13: =IF(G13<CALCULADORA!$C$23,0,IF(CALCULADORA!$C$27>'TIR de Tenencia'!G13,E13,CALCULADORA!$C$33)) -> 181632901610 | L13: 6 | M13: 3 | N13: 2025 | P13: 12 | Q13: Diciembre
A14: =+Flujos!A14 -> 2018-12-06 | B14: =+Flujos!L14 -> 3.581270356e+12 | C14: =+Flujos!M14 -> 8.131930074e+10 | D14: =+Flujos!N14 -> 1.892460075e+10 | E14: =+Flujos!O14 -> 1.002439015e+11 | G14: 2025-03-06 | H14: =IF(G14<CALCULADORA!$C$23,0,IF(CALCULADORA!$C$27>'TIR de Tenencia'!G14,E14,CALCULADORA!$C$33)) -> 181632901610 | L14: 6 | M14: 4 | N14: 2025
A15: =+Flujos!A15 -> 2019-01-06 | B15: =+Flujos!L15 -> 3.472849409e+12 | C15: =+Flujos!M15 -> 1.084209463e+11 | D15: =+Flujos!N15 -> 1.850442393e+10 | E15: =+Flujos!O15 -> 1.269253702e+11 | G15: 2025-04-06 | H15: =IF(G15<CALCULADORA!$C$23,0,IF(CALCULADORA!$C$27>'TIR de Tenencia'!G15,E15,CALCULADORA!$C$33)) -> 181632901610 | L15: 6 | M15: =+IF(M14=12,1,M14+1) -> 5 | N15: 2025
A16: =+Flujos!A16 -> 2019-02-06 | B16: =+Flujos!L16 -> 3.383310054e+12 | C16: =+Flujos!M16 -> 8.953935515e+10 | D16: =+Flujos!N16 -> 1.79442129e+10 | E16: =+Flujos!O16 -> 1.074835681e+11 | G16: 2025-05-06 | H16: =IF(G16<CALCULADORA!$C$23,0,IF(CALCULADORA!$C$27>'TIR de Tenencia'!G16,E16,CALCULADORA!$C$33)) -> 181632901610 | L16: 6 | M16: 6 | N16: 2025
A17: =+Flujos!A17 -> 2019-03-06 | B17: =+Flujos!L17 -> 3.26720546e+12 | C17: =+Flujos!M17 -> 1.161045937e+11 | D17: =+Flujos!N17 -> 1.748156305e+10 | E17: =+Flujos!O17 -> 1.335861568e+11 | G17: 2025-06-06 | H17: =IF(G17<CALCULADORA!$C$23,0,IF(CALCULADORA!$C$27>'TIR de Tenencia'!G17,E17,CALCULADORA!$C$33)) -> 181632901610 | I17: =+IF(H17=H16," ",G17) ->  | L17: 6 | M17: 7 | N17: 2025
A18: =+Flujos!A18 -> 2019-04-06 | B18: =+Flujos!L18 -> 3.184980784e+12 | C18: =+Flujos!M18 -> 8.222467597e+10 | D18: =+Flujos!N18 -> 1.688165061e+10 | E18: =+Flujos!O18 -> 9.910632659e+10 | G18: 2025-07-06 | H18: =IF(G18<CALCULADORA!$C$23,0,IF(CALCULADORA!$C$27>'TIR de Tenencia'!G18,E18,CALCULADORA!$C$33)) -> 181632901610 | L18: 6 | M18: 8 | N18: 2025
A19: =+Flujos!A19 -> 2019-05-06 | B19: =+Flujos!L19 -> 3.107672015e+12 | C19: =+Flujos!M19 -> 7.730876953e+10 | D19: =+Flujos!N19 -> 1.645679571e+10 | E19: =+Flujos!O19 -> 9.376556524e+10 | G19: 2025-08-06 | H19: =IF(G19<CALCULADORA!$C$23,0,IF(CALCULADORA!$C$27>'TIR de Tenencia'!G19,E19,CALCULADORA!$C$33)) -> 181632901610 | L19: 6 | M19: 9 | N19: 2025
A20: =+Flujos!A20 -> 2019-06-06 | B20: =+Flujos!L20 -> 3.01810532e+12 | C20: =+Flujos!M20 -> 8.9566695e+10 | D20: =+Flujos!N20 -> 1.60573413e+10 | E20: =+Flujos!O20 -> 1.056240363e+11 | G20: 2025-09-06 | H20: =IF(G20<CALCULADORA!$C$23,0,IF(CALCULADORA!$C$27>'TIR de Tenencia'!G20,E20,CALCULADORA!$C$33)) -> 181632901610 | L20: 6 | M20: =+IF(M19=12,1,M19+1) -> 10 | N20: 2025
A21: =+Flujos!A21 -> 2019-07-06 | B21: =+Flujos!L21 -> 2.882669153e+12 | C21: =+Flujos!M21 -> 1.354361672e+11 | D21: =+Flujos!N21 -> 1.559455019e+10 | E21: =+Flujos!O21 -> 1.510307174e+11 | G21: 2025-10-06 | H21: =IF(G21<CALCULADORA!$C$23,0,IF(CALCULADORA!$C$27>'TIR de Tenencia'!G21,E21,CALCULADORA!$C$33)) -> 181632901610 | L21: 6 | M21: 11 | N21: 2025
A22: =+Flujos!A22 -> 2019-08-06 | B22: =+Flujos!L22 -> 2.818994638e+12 | C22: =+Flujos!M22 -> 6.367451474e+10 | D22: =+Flujos!N22 -> 1.489475151e+10 | E22: =+Flujos!O22 -> 7.856926625e+10 | G22: 2025-11-06 | H22: =IF(G22<CALCULADORA!$C$23,0,IF(CALCULADORA!$C$27>'TIR de Tenencia'!G22,E22,CALCULADORA!$C$33)) -> 181632901610 | L22: 6 | M22: 12 | N22: 2025
A23: =+Flujos!A23 -> 2019-09-06 | B23: =+Flujos!L23 -> 2.732122091e+12 | C23: =+Flujos!M23 -> 8.687254653e+10 | D23: =+Flujos!N23 -> 1.456574529e+10 | E23: =+Flujos!O23 -> 1.014382918e+11 | G23: 2025-12-06 | H23: =IF(G23<CALCULADORA!$C$23,0,IF(CALCULADORA!$C$27>'TIR de Tenencia'!G23,E23,CALCULADORA!$C$33)) -> 181632901610 | L23: 6 | M23: 1 | N23: 2026
A24: =+Flujos!A24 -> 2019-10-06 | B24: =+Flujos!L24 -> 2.655714531e+12 | C24: =+Flujos!M24 -> 7.640755991e+10 | D24: =+Flujos!N24 -> 1.411687485e+10 | E24: =+Flujos!O24 -> 9.052443476e+10 | G24: 2026-01-06 | H24: =IF(G24<CALCULADORA!$C$23,0,IF(CALCULADORA!$C$27>'TIR de Tenencia'!G24,E24,CALCULADORA!$C$33)) -> 181632901610 | L24: 6 | M24: 2 | N24: 2026
A25: =+Flujos!A25 -> 2019-11-06 | B25: =+Flujos!L25 -> 2.575222321e+12 | C25: =+Flujos!M25 -> 8.049221037e+10 | D25: =+Flujos!N25 -> 1.372207698e+10 | E25: =+Flujos!O25 -> 9.421428736e+10 | G25: 2026-02-06 | H25: =IF(G25<CALCULADORA!$C$23,0,IF(CALCULADORA!$C$27>'TIR de Tenencia'!G25,E25,CALCULADORA!$C$33)) -> 181632901610 | L25: 6 | M25: 3 | N25: 2026
A26: =+Flujos!A26 -> 2019-12-06 | B26: =+Flujos!L26 -> 2.501250929e+12 | C26: =+Flujos!M26 -> 7.397139239e+10 | D26: =+Flujos!N26 -> 1.330617373e+10 | E26: =+Flujos!O26 -> 8.727756612e+10 | G26: 2026-03-06 | H26: =IF(G26<CALCULADORA!$C$23,0,IF(CALCULADORA!$C$27>'TIR de Tenencia'!G26,E26,CALCULADORA!$C$33)) -> 181632901610 | J26: =+IF(H26=H25," ",H26) ->  | L26: 6 | M26: 4 | N26: 2026
A27: =+Flujos!A27 -> 2020-01-06 | B27: =+Flujos!L27 -> 2.434867135e+12 | C27: =+Flujos!M27 -> 6.638379349e+10 | D27: =+Flujos!N27 -> 1.292396355e+10 | E27: =+Flujos!O27 -> 7.930775704e+10 | G27: 2026-04-06 | H27: =IF(G27<CALCULADORA!$C$23,0,IF(CALCULADORA!$C$27>'TIR de Tenencia'!G27,E27,CALCULADORA!$C$33)) -> 181632901610 | L27: 6 | M27: 5 | N27: 2026
A28: =+Flujos!A28 -> 2020-02-06 | B28: =+Flujos!L28 -> 2.359558628e+12 | C28: =+Flujos!M28 -> 7.530850745e+10 | D28: =+Flujos!N28 -> 1.258095849e+10 | E28: =+Flujos!O28 -> 8.788946594e+10 | G28: 2026-05-06 | H28: =IF(G28<CALCULADORA!$C$23,0,IF(CALCULADORA!$C$27>'TIR de Tenencia'!G28,E28,CALCULADORA!$C$33)) -> 181632901610 | L28: 6 | M28: 6 | N28: 2026
A29: =+Flujos!A29 -> 2020-03-06 | B29: =+Flujos!L29 -> 2.259657852e+12 | C29: =+Flujos!M29 -> 9.990077592e+10 | D29: =+Flujos!N29 -> 1.219183943e+10 | E29: =+Flujos!O29 -> 1.120926154e+11 | G29: 2026-06-06 | H29: =IF(G29<CALCULADORA!$C$23,0,IF(CALCULADORA!$C$27>'TIR de Tenencia'!G29,E29,CALCULADORA!$C$33)) -> 181632901610 | L29: 6 | M29: 7 | N29: 2026
A30: =+Flujos!A30 -> 2020-04-06 | B30: =+Flujos!L30 -> 2.20681509e+12 | C30: =+Flujos!M30 -> 5.284276233e+10 | D30: =+Flujos!N30 -> 1.167565212e+10 | E30: =+Flujos!O30 -> 6.451841445e+10 | G30: 2026-07-06 | H30: =IF(G30<CALCULADORA!$C$23,0,IF(CALCULADORA!$C$27>'TIR de Tenencia'!G30,E30,CALCULADORA!$C$33)) -> 181632901610 | L30: 6 | M30: 8 | N30: 2026
A31: =+Flujos!A31 -> 2020-05-06 | B31: =+Flujos!L31 -> 2.191074709e+12 | C31: =+Flujos!M31 -> 1.574038099e+10 | D31: =+Flujos!N31 -> 1.140261357e+10 | E31: =+Flujos!O31 -> 2.714299456e+10 | G31: 2026-08-06 | H31: =IF(G31<CALCULADORA!$C$23,0,IF(CALCULADORA!$C$27>'TIR de Tenencia'!G31,E31,CALCULADORA!$C$33)) -> 181632901610 | L31: 6 | M31: 9 | N31: 2026
A32: =+Flujos!A32 -> 2020-06-06 | B32: =+Flujos!L32 -> 2.174991406e+12 | C32: =+Flujos!M32 -> 1.608330221e+10 | D32: =+Flujos!N32 -> 1.132128302e+10 | E32: =+Flujos!O32 -> 2.740458523e+10 | G32: 2026-09-06 | H32: =IF(G32<CALCULADORA!$C$23,0,IF(CALCULADORA!$C$27>'TIR de Tenencia'!G32,E32,CALCULADORA!$C$33)) -> 181632901610 | L32: 6 | M32: 10 | N32: 2026
A33: =+Flujos!A33 -> 2020-07-06 | B33: =+Flujos!L33 -> 2.152473615e+12 | C33: =+Flujos!M33 -> 2.251779139e+10 | D33: =+Flujos!N33 -> 1.12381806e+10 | E33: =+Flujos!O33 -> 3.375597198e+10 | G33: 2026-10-06 | H33: =IF(G33<CALCULADORA!$C$23,0,IF(CALCULADORA!$C$27>'TIR de Tenencia'!G33,E33,CALCULADORA!$C$33)) -> 181632901610 | L33: 6 | M33: 11 | N33: 2026
A34: =+Flujos!A34 -> 2020-08-06 | B34: =+Flujos!L34 -> 2.124083453e+12 | C34: =+Flujos!M34 -> 2.839016172e+10 | D34: =+Flujos!N34 -> 1.112183117e+10 | E34: =+Flujos!O34 -> 3.951199288e+10 | G34: 2026-11-06 | H34: =IF(G34<CALCULADORA!$C$23,0,IF(CALCULADORA!$C$27>'TIR de Tenencia'!G34,E34,CALCULADORA!$C$33)) -> 181632901610 | L34: 6 | M34: 12 | N34: 2026
A35: =+Flujos!A35 -> 2020-09-06 | B35: =+Flujos!L35 -> 2.079320407e+12 | C35: =+Flujos!M35 -> 4.476304611e+10 | D35: =+Flujos!N35 -> 1.09751392e+10 | E35: =+Flujos!O35 -> 5.573818531e+10 | G35: =+DATE(N34,M34,L34) -> 2026-12-06 | H35: =IF(G35<CALCULADORA!$C$23,0,IF(CALCULADORA!$C$27>'TIR de Tenencia'!G35,E35,CALCULADORA!$C$33)) -> 181632901610 | L35: 6 | M35: 1 | N35: 2027
A36: =+Flujos!A36 -> 2020-10-06 | B36: =+Flujos!L36 -> 2.03398988e+12 | C36: =+Flujos!M36 -> 4.533052758e+10 | D36: =+Flujos!N36 -> 1.074384854e+10 | E36: =+Flujos!O36 -> 5.607437613e+10 | G36: 2027-01-06 | H36: =IF(G36<CALCULADORA!$C$23,0,IF(CALCULADORA!$C$27>'TIR de Tenencia'!G36,E36,CALCULADORA!$C$33)) -> 181632901610 | I36: =+IF(IF(H36=H35," ",G36)=CALCULADORA!C27,'TIR de Tenencia'!G36,CALCULADORA!C27) -> 2024-08-01 | L36: 6 | M36: 2 | N36: 2027
A37: =+Flujos!A37 -> 2020-11-06 | B37: =+Flujos!L37 -> 1.955206003e+12 | C37: =+Flujos!M37 -> 7.878387663e+10 | D37: =+Flujos!N37 -> 1.050962571e+10 | E37: =+Flujos!O37 -> 8.929350233e+10 | G37: 2027-02-06 | H37: =IF(G37<CALCULADORA!$C$23,0,IF(CALCULADORA!$C$27>'TIR de Tenencia'!G37,E37,CALCULADORA!$C$33)) -> 181632901610 | L37: 6 | M37: 3 | N37: 2027
A38: =+Flujos!A38 -> 2020-12-06 | B38: =+Flujos!L38 -> 1.890064234e+12 | C38: =+Flujos!M38 -> 6.514176941e+10 | D38: =+Flujos!N38 -> 1.010254942e+10 | E38: =+Flujos!O38 -> 7.524431882e+10 | G38: 2027-03-06 | H38: =IF(G38<CALCULADORA!$C$23,0,IF(CALCULADORA!$C$27>'TIR de Tenencia'!G38,E38,CALCULADORA!$C$33)) -> 181632901610 | L38: 6 | M38: 4 | N38: 2027
A39: =+Flujos!A39 -> 2021-01-06 | B39: =+Flujos!L39 -> 1.818056714e+12 | C39: =+Flujos!M39 -> 7.20075196e+10 | D39: =+Flujos!N39 -> 9765961895 | E39: =+Flujos!O39 -> 8.17734815e+10 | G39: 2027-04-06 | H39: =IF(G39<CALCULADORA!$C$23,0,IF(CALCULADORA!$C$27>'TIR de Tenencia'!G39,E39,CALCULADORA!$C$33)) -> 181632901610 | L39: 6 | M39: 5 | N39: 2027
A40: =+Flujos!A40 -> 2021-02-06 | B40: =+Flujos!L40 -> 1.752604965e+12 | C40: =+Flujos!M40 -> 6.545174874e+10 | D40: =+Flujos!N40 -> 9393899041 | E40: =+Flujos!O40 -> 7.484564778e+10 | G40: 2027-05-06 | H40: =IF(G40<CALCULADORA!$C$23,0,IF(CALCULADORA!$C$27>'TIR de Tenencia'!G40,E40,CALCULADORA!$C$33)) -> 181632901610 | L40: 6 | M40: 6 | N40: 2027
A41: =+Flujos!A41 -> 2021-03-06 | B41: =+Flujos!L41 -> 1.685766497e+12 | C41: =+Flujos!M41 -> 6.683846816e+10 | D41: =+Flujos!N41 -> 9055709855 | E41: =+Flujos!O41 -> 7.589417801e+10 | G41: 2027-06-06 | H41: =IF(G41<CALCULADORA!$C$23,0,IF(CALCULADORA!$C$27>'TIR de Tenencia'!G41,E41,CALCULADORA!$C$33)) -> 181632901610 | L41: 6 | M41: 7 | N41: 2027
A42: =+Flujos!A42 -> 2021-04-06 | B42: =+Flujos!L42 -> 1.628279407e+12 | C42: =+Flujos!M42 -> 5.748708972e+10 | D42: =+Flujos!N42 -> 8710355490 | E42: =+Flujos!O42 -> 6.619744521e+10 | G42: 2027-07-06 | H42: =IF(G42<CALCULADORA!$C$23,0,IF(CALCULADORA!$C$27>'TIR de Tenencia'!G42,E42,CALCULADORA!$C$33)) -> 181632901610 | L42: 6 | M42: 8 | N42: 2027
A43: =+Flujos!A43 -> 2021-05-06 | B43: =+Flujos!L43 -> 1.567451254e+12 | C43: =+Flujos!M43 -> 6.082815367e+10 | D43: =+Flujos!N43 -> 8413319697 | E43: =+Flujos!O43 -> 6.924147337e+10 | G43: 2027-08-06 | H43: =IF(G43<CALCULADORA!$C$23,0,IF(CALCULADORA!$C$27>'TIR de Tenencia'!G43,E43,CALCULADORA!$C$33)) -> 181632901610 | L43: 6 | M43: 9 | N43: 2027
A44: =+Flujos!A44 -> 2021-06-06 | B44: =+Flujos!L44 -> 1.51322814e+12 | C44: =+Flujos!M44 -> 5.422311362e+10 | D44: =+Flujos!N44 -> 8099020627 | E44: =+Flujos!O44 -> 6.232213425e+10 | G44: 2027-09-06 | H44: =IF(G44<CALCULADORA!$C$23,0,IF(CALCULADORA!$C$27>'TIR de Tenencia'!G44,E44,CALCULADORA!$C$33)) -> 181632901610 | L44: 6 | M44: 10 | N44: 2027
A45: =+Flujos!A45 -> 2021-07-06 | B45: =+Flujos!L45 -> 1.466818909e+12 | C45: =+Flujos!M45 -> 4.640923077e+10 | D45: =+Flujos!N45 -> 7818849799 | E45: =+Flujos!O45 -> 5.422808057e+10 | G45: 2027-10-06 | H45: =IF(G45<CALCULADORA!$C$23,0,IF(CALCULADORA!$C$27>'TIR de Tenencia'!G45,E45,CALCULADORA!$C$33)) -> 181632901610 | L45: 6 | M45: 11 | N45: 2027
A46: =+Flujos!A46 -> 2021-08-06 | B46: =+Flujos!L46 -> 1.401521145e+12 | C46: =+Flujos!M46 -> 6.529776457e+10 | D46: =+Flujos!N46 -> 7579053304 | E46: =+Flujos!O46 -> 7.287681787e+10 | G46: 2027-11-06 | H46: =IF(G46<CALCULADORA!$C$23,0,IF(CALCULADORA!$C$27>'TIR de Tenencia'!G46,E46,CALCULADORA!$C$33)) -> 181632901610 | L46: 6 | M46: 12 | N46: 2027
A47: =+Flujos!A47 -> 2021-09-06 | B47: =+Flujos!L47 -> 1.347162577e+12 | C47: =+Flujos!M47 -> 5.435856798e+10 | D47: =+Flujos!N47 -> 7241659754 | E47: =+Flujos!O47 -> 6.160022774e+10 | G47: 2027-12-06 | H47: =IF(G47<CALCULADORA!$C$23,0,IF(CALCULADORA!$C$27>'TIR de Tenencia'!G47,E47,CALCULADORA!$C$33)) -> 181632901610 | L47: 6 | M47: 1 | N47: 2028
A48: =+Flujos!A48 -> 2021-10-06 | B48: =+Flujos!L48 -> 1.298630509e+12 | C48: =+Flujos!M48 -> 4.853206732e+10 | D48: =+Flujos!N48 -> 6960789034 | E48: =+Flujos!O48 -> 5.549285635e+10 | G48: 2028-01-06 | H48: =IF(G48<CALCULADORA!$C$23,0,IF(CALCULADORA!$C$27>'TIR de Tenencia'!G48,E48,CALCULADORA!$C$33)) -> 181632901610 | L48: 6 | M48: 2 | N48: 2028
A49: =+Flujos!A49 -> 2021-11-06 | B49: =+Flujos!L49 -> 1.249625716e+12 | C49: =+Flujos!M49 -> 4.900479298e+10 | D49: =+Flujos!N49 -> 6710023842 | E49: =+Flujos!O49 -> 5.571481683e+10 | G49: 2028-02-06 | H49: =IF(G49<CALCULADORA!$C$23,0,IF(CALCULADORA!$C$27>'TIR de Tenencia'!G49,E49,CALCULADORA!$C$33)) -> 181632901610 | L49: 6 | M49: 3 | N49: 2028
A50: =+Flujos!A50 -> 2021-12-06 | B50: =+Flujos!L50 -> 1.210161047e+12 | C50: =+Flujos!M50 -> 3.946466902e+10 | D50: =+Flujos!N50 -> 6456816076 | E50: =+Flujos!O50 -> 4.59214851e+10 | G50: 2028-03-06 | H50: =IF(G50<CALCULADORA!$C$23,0,IF(CALCULADORA!$C$27>'TIR de Tenencia'!G50,E50,CALCULADORA!$C$33)) -> 181632901610 | L50: 6 | M50: 4 | N50: 2028
A51: =+Flujos!A51 -> 2022-01-06 | B51: =+Flujos!L51 -> 1.158452099e+12 | C51: =+Flujos!M51 -> 5.170894851e+10 | D51: =+Flujos!N51 -> 6252902132 | E51: =+Flujos!O51 -> 5.796185065e+10 | G51: 2028-04-06 | H51: =IF(G51<CALCULADORA!$C$23,0,IF(CALCULADORA!$C$27>'TIR de Tenencia'!G51,E51,CALCULADORA!$C$33)) -> 181632901610 | L51: 6 | M51: 5 | N51: 2028
A52: =+Flujos!A52 -> 2022-02-06 | B52: =+Flujos!L52 -> 1.101591719e+12 | C52: =+Flujos!M52 -> 5.686037988e+10 | D52: =+Flujos!N52 -> 5985721995 | E52: =+Flujos!O52 -> 6.284610187e+10 | G52: 2028-05-06 | H52: =IF(G52<CALCULADORA!$C$23,0,IF(CALCULADORA!$C$27>'TIR de Tenencia'!G52,E52,CALCULADORA!$C$33)) -> 181632901610 | L52: 6 | M52: 6 | N52: 2028
A53: =+Flujos!A53 -> 2022-03-06 | B53: =+Flujos!L53 -> 1.052790131e+12 | C53: =+Flujos!M53 -> 4.88015875e+10 | D53: =+Flujos!N53 -> 5691924412 | E53: =+Flujos!O53 -> 5.449351191e+10 | G53: 2028-06-06 | H53: =IF(G53<CALCULADORA!$C$23,0,IF(CALCULADORA!$C$27>'TIR de Tenencia'!G53,E53,CALCULADORA!$C$33)) -> 181632901610 | L53: 6 | M53: 7 | N53: 2028
A54: =+Flujos!A54 -> 2022-04-06 | B54: =+Flujos!L54 -> 1.002063598e+12 | C54: =+Flujos!M54 -> 5.072653331e+10 | D54: =+Flujos!N54 -> 5439766609 | E54: =+Flujos!O54 -> 5.616629992e+10 | G54: 2028-07-06 | H54: =IF(G54<CALCULADORA!$C$23,0,IF(CALCULADORA!$C$27>'TIR de Tenencia'!G54,E54,CALCULADORA!$C$33)) -> 181632901610 | L54: 6 | M54: 8 | N54: 2028
A55: =+Flujos!A55 -> 2022-05-06 | B55: =+Flujos!L55 -> 9.48664702e+11 | C55: =+Flujos!M55 -> 5.339889609e+10 | D55: =+Flujos!N55 -> 5177662612 | E55: =+Flujos!O55 -> 5.85765587e+10 | G55: 2028-08-06 | H55: =IF(G55<CALCULADORA!$C$23,0,IF(CALCULADORA!$C$27>'TIR de Tenencia'!G55,E55,CALCULADORA!$C$33)) -> 181632901610 | L55: 6 | M55: 9 | N55: 2028
A56: =+Flujos!A56 -> 2022-06-06 | B56: =+Flujos!L56 -> 9.025430903e+11 | C56: =+Flujos!M56 -> 4.61216117e+10 | D56: =+Flujos!N56 -> 4901750515 | E56: =+Flujos!O56 -> 5.102336221e+10 | G56: 2028-09-06 | H56: =IF(G56<CALCULADORA!$C$23,0,IF(CALCULADORA!$C$27>'TIR de Tenencia'!G56,E56,CALCULADORA!$C$33)) -> 181632901610 | L56: 6 | M56: 10 | N56: 2028
A57: =+Flujos!A57 -> 2022-07-06 | B57: =+Flujos!L57 -> 8.732705361e+11 | C57: =+Flujos!M57 -> 2.927255423e+10 | D57: =+Flujos!N57 -> 4663440148 | E57: =+Flujos!O57 -> 3.393599438e+10 | G57: 2028-10-06 | H57: =IF(G57<CALCULADORA!$C$23,0,IF(CALCULADORA!$C$27>'TIR de Tenencia'!G57,E57,CALCULADORA!$C$33)) -> 181632901610 | L57: 6 | M57: 11 | N57: 2028
A58: =+Flujos!A58 -> 2022-08-06 | B58: =+Flujos!L58 -> 8.344861554e+11 | C58: =+Flujos!M58 -> 3.878438073e+10 | D58: =+Flujos!N58 -> 4512188860 | E58: =+Flujos!O58 -> 4.329656959e+10 | G58: 2028-11-06 | H58: =IF(G58<CALCULADORA!$C$23,0,IF(CALCULADORA!$C$27>'TIR de Tenencia'!G58,E58,CALCULADORA!$C$33)) -> 181632901610 | L58: 6 | M58: 12 | N58: 2028
A59: =+Flujos!A59 -> 2022-09-06 | B59: =+Flujos!L59 -> 8.038619782e+11 | C59: =+Flujos!M59 -> 3.062417713e+10 | D59: =+Flujos!N59 -> 4311789965 | E59: =+Flujos!O59 -> 3.49359671e+10 | G59: 2028-12-06 | H59: =IF(G59<CALCULADORA!$C$23,0,IF(CALCULADORA!$C$27>'TIR de Tenencia'!G59,E59,CALCULADORA!$C$33)) -> 181632901610 | L59: 6 | M59: 1 | N59: 2029
A60: =+Flujos!A60 -> 2022-10-06 | B60: =+Flujos!L60 -> 7.563792154e+11 | C60: =+Flujos!M60 -> 4.748276285e+10 | D60: =+Flujos!N60 -> 4153554842 | E60: =+Flujos!O60 -> 5.163631769e+10 | G60: 2029-01-06 | H60: =IF(G60<CALCULADORA!$C$23,0,IF(CALCULADORA!$C$27>'TIR de Tenencia'!G60,E60,CALCULADORA!$C$33)) -> 181632901610 | L60: 6 | M60: 2 | N60: 2029
A61: =+Flujos!A61 -> 2022-11-06 | B61: =+Flujos!L61 -> 7.116458553e+11 | C61: =+Flujos!M61 -> 4.47333601e+10 | D61: =+Flujos!N61 -> 3908211406 | E61: =+Flujos!O61 -> 4.864157151e+10 | G61: 2029-02-06 | H61: =IF(G61<CALCULADORA!$C$23,0,IF(CALCULADORA!$C$27>'TIR de Tenencia'!G61,E61,CALCULADORA!$C$33)) -> 181632901610 | L61: 6 | M61: 3 | N61: 2029
A62: =+Flujos!A62 -> 2022-12-06 | B62: =+Flujos!L62 -> 6.848906263e+11 | C62: =+Flujos!M62 -> 2.6755229e+10 | D62: =+Flujos!N62 -> 3677074134 | E62: =+Flujos!O62 -> 3.043230314e+10 | G62: 2029-03-06 | H62: =IF(G62<CALCULADORA!$C$23,0,IF(CALCULADORA!$C$27>'TIR de Tenencia'!G62,E62,CALCULADORA!$C$33)) -> 181632901610 | L62: 6 | M62: 4 | N62: 2029
A63: =+Flujos!A63 -> 2023-01-06 | B63: =+Flujos!L63 -> 6.496217866e+11 | C63: =+Flujos!M63 -> 3.526883969e+10 | D63: =+Flujos!N63 -> 3538829866 | E63: =+Flujos!O63 -> 3.880766955e+10 | G63: 2029-04-06 | H63: =IF(G63<CALCULADORA!$C$23,0,IF(CALCULADORA!$C$27>'TIR de Tenencia'!G63,E63,CALCULADORA!$C$33)) -> 181632901610 | L63: 6 | M63: 5 | N63: 2029
A64: =+Flujos!A64 -> 2023-02-06 | B64: =+Flujos!L64 -> 6.198973827e+11 | C64: =+Flujos!M64 -> 2.972440394e+10 | D64: =+Flujos!N64 -> 3356595771 | E64: =+Flujos!O64 -> 3.308099971e+10 | G64: 2029-05-06 | H64: =IF(G64<CALCULADORA!$C$23,0,IF(CALCULADORA!$C$27>'TIR de Tenencia'!G64,E64,CALCULADORA!$C$33)) -> 181632901610 | L64: 6 | M64: 6 | N64: 2029
A65: =+Flujos!A65 -> 2023-03-06 | B65: =+Flujos!L65 -> 5.90980869e+11 | C65: =+Flujos!M65 -> 2.891651371e+10 | D65: =+Flujos!N65 -> 3203009776 | E65: =+Flujos!O65 -> 3.211952349e+10 | G65: 2029-06-06 | H65: =IF(G65<CALCULADORA!$C$23,0,IF(CALCULADORA!$C$27>'TIR de Tenencia'!G65,E65,CALCULADORA!$C$33)) -> 181632901610 | L65: 6 | M65: 7 | N65: 2029
A66: =+Flujos!A66 -> 2023-04-06 | B66: =+Flujos!L66 -> 5.642418236e+11 | C66: =+Flujos!M66 -> 2.673904534e+10 | D66: =+Flujos!N66 -> 3053598150 | E66: =+Flujos!O66 -> 2.979264349e+10 | G66: 2029-07-06 | H66: =IF(G66<CALCULADORA!$C$23,0,IF(CALCULADORA!$C$27>'TIR de Tenencia'!G66,E66,CALCULADORA!$C$33)) -> 181632901610 | L66: 6 | M66: 8 | N66: =+IF(M66=1,N65+1,N65) -> 2029
A67: =+Flujos!A67 -> 2023-05-06 | B67: =+Flujos!L67 -> 5.368104719e+11 | C67: =+Flujos!M67 -> 2.743135168e+10 | D67: =+Flujos!N67 -> 2915437503 | E67: =+Flujos!O67 -> 3.034678918e+10 | G67: =+DATE(N66,M66,L66) -> 2029-08-06 | H67: =IF(G67<CALCULADORA!$C$23,0,IF(CALCULADORA!$C$27>'TIR de Tenencia'!G67,E67,CALCULADORA!$C$33)) -> 181632901610 | L67: =+L66 -> 6 | M67: =+IF(M66=12,1,M66+1) -> 9 | N67: 2029
A68: =+Flujos!A68 -> 2023-06-06 | B68: =+Flujos!L68 -> 5.087797024e+11 | C68: =+Flujos!M68 -> 2.803076955e+10 | D68: =+Flujos!N68 -> 2773699708 | E68: =+Flujos!O68 -> 3.080446926e+10 | G68: 2029-09-06 | H68: =IF(G68<CALCULADORA!$C$23,0,IF(CALCULADORA!$C$27>'TIR de Tenencia'!G68,E68,CALCULADORA!$C$33)) -> 181632901610 | I68: =+IF(H68=H67," ",G68) ->  | J68: =+IF(H68=H67," ",H68) ->  | L68: 6 | M68: 10 | N68: 2029
A69: =+Flujos!A69 -> 2023-07-06 | B69: =+Flujos!L69 -> 4.808978417e+11 | C69: =+Flujos!M69 -> 2.788186072e+10 | D69: =+Flujos!N69 -> 2628864722 | E69: =+Flujos!O69 -> 3.051072545e+10 | G69: 2029-10-06 | H69: =IF(G69<CALCULADORA!$C$23,0,IF(CALCULADORA!$C$27>'TIR de Tenencia'!G69,E69,CALCULADORA!$C$33)) -> 181632901610 | L69: 6 | M69: 11 | N69: 2029
A70: =+Flujos!A70 -> 2023-08-06 | B70: =+Flujos!L70 -> 4.507192419e+11 | C70: =+Flujos!M70 -> 3.017859979e+10 | D70: =+Flujos!N70 -> 2484799148 | E70: =+Flujos!O70 -> 3.266339894e+10 | G70: 2029-11-06 | H70: =IF(G70<CALCULADORA!$C$23,0,IF(CALCULADORA!$C$27>'TIR de Tenencia'!G70,E70,CALCULADORA!$C$33)) -> 181632901610 | L70: 6 | M70: 12 | N70: 2029
A71: =+Flujos!A71 -> 2023-09-06 | B71: =+Flujos!L71 -> 4.283716183e+11 | C71: =+Flujos!M71 -> 2.234762355e+10 | D71: =+Flujos!N71 -> 2328866323 | E71: =+Flujos!O71 -> 2.467648987e+10 | G71: 2029-12-06 | H71: =IF(G71<CALCULADORA!$C$23,0,IF(CALCULADORA!$C$27>'TIR de Tenencia'!G71,E71,CALCULADORA!$C$33)) -> 181632901610 | L71: 6 | M71: 1 | N71: 2030
A72: =+Flujos!A72 -> 2023-10-06 | B72: =+Flujos!L72 -> 4.023020881e+11 | C72: =+Flujos!M72 -> 2.60695302e+10 | D72: =+Flujos!N72 -> 2213396152 | E72: =+Flujos!O72 -> 2.828292635e+10 | G72: 2030-01-06 | H72: =IF(G72<CALCULADORA!$C$23,0,IF(CALCULADORA!$C$27>'TIR de Tenencia'!G72,E72,CALCULADORA!$C$33)) -> 181632901610 | L72: 6 | M72: 2 | N72: 2030
A73: =+Flujos!A73 -> 2023-11-06 | B73: =+Flujos!L73 -> 3.757852569e+11 | C73: =+Flujos!M73 -> 2.651683124e+10 | D73: =+Flujos!N73 -> 2078694889 | E73: =+Flujos!O73 -> 2.859552613e+10 | G73: 2030-02-06 | H73: =IF(G73<CALCULADORA!$C$23,0,IF(CALCULADORA!$C$27>'TIR de Tenencia'!G73,E73,CALCULADORA!$C$33)) -> 181632901610 | L73: 6 | M73: 3 | N73: 2030
A74: =+Flujos!A74 -> 2023-12-06 | B74: =+Flujos!L74 -> 3.483514633e+11 | C74: =+Flujos!M74 -> 2.743379359e+10 | D74: =+Flujos!N74 -> 1941682422 | E74: =+Flujos!O74 -> 2.937547601e+10 | G74: 2030-03-06 | H74: =IF(G74<CALCULADORA!$C$23,0,IF(CALCULADORA!$C$27>'TIR de Tenencia'!G74,E74,CALCULADORA!$C$33)) -> 181632901610 | L74: 6 | M74: 4 | N74: 2030
A75: =+Flujos!A75 -> 2024-01-06 | B75: =+Flujos!L75 -> 3.262096786e+11 | C75: =+Flujos!M75 -> 2.214178463e+10 | D75: =+Flujos!N75 -> 1799932011 | E75: =+Flujos!O75 -> 2.394171664e+10 | G75: 2030-04-06 | H75: =IF(G75<CALCULADORA!$C$23,0,IF(CALCULADORA!$C$27>'TIR de Tenencia'!G75,E75,CALCULADORA!$C$33)) -> 181632901610 | L75: 6 | M75: 5 | N75: 2030
A76: =+Flujos!A76 -> 2024-02-06 | B76: =+Flujos!L76 -> 2.997758246e+11 | C76: =+Flujos!M76 -> 2.643385407e+10 | D76: =+Flujos!N76 -> 1685525410 | E76: =+Flujos!O76 -> 2.811937948e+10 | G76: 2030-05-06 | H76: =IF(G76<CALCULADORA!$C$23,0,IF(CALCULADORA!$C$27>'TIR de Tenencia'!G76,E76,CALCULADORA!$C$33)) -> 181632901610 | L76: 6 | M76: 6 | N76: 2030
A77: =+Flujos!A77 -> 2024-03-06 | B77: =+Flujos!L77 -> 2.739705956e+11 | C77: =+Flujos!M77 -> 2.580522901e+10 | D77: =+Flujos!N77 -> 1548941686 | E77: =+Flujos!O77 -> 2.735417069e+10 | G77: 2030-06-06 | H77: =IF(G77<CALCULADORA!$C$23,0,IF(CALCULADORA!$C$27>'TIR de Tenencia'!G77,E77,CALCULADORA!$C$33)) -> 181632901610 | L77: 6 | M77: 7 | N77: 2030
A78: =+Flujos!A78 -> 2024-04-06 | B78: =+Flujos!L78 -> 2.525235592e+11 | C78: =+Flujos!M78 -> 2.144703639e+10 | D78: =+Flujos!N78 -> 1415606067 | E78: =+Flujos!O78 -> 2.286264245e+10 | G78: 2030-07-06 | H78: =IF(G78<CALCULADORA!$C$23,0,IF(CALCULADORA!$C$27>'TIR de Tenencia'!G78,E78,CALCULADORA!$C$33)) -> 181632901610 | L78: 6 | M78: 8 | N78: 2030
A79: =+Flujos!A79 -> 2024-05-06 | B79: =+Flujos!L79 -> 2.265053092e+11 | C79: =+Flujos!M79 -> 2.601825002e+10 | D79: =+Flujos!N79 -> 1304789230 | E79: =+Flujos!O79 -> 2.732303925e+10 | G79: 2030-08-06 | H79: =IF(G79<CALCULADORA!$C$23,0,IF(CALCULADORA!$C$27>'TIR de Tenencia'!G79,E79,CALCULADORA!$C$33)) -> 181632901610 | L79: 6 | M79: 9 | N79: 2030
A80: =+Flujos!A80 -> 2024-06-06 | B80: =+Flujos!L80 -> 2.037527111e+11 | C80: =+Flujos!M80 -> 2.27525981e+10 | D80: =+Flujos!N80 -> 1170352932 | E80: =+Flujos!O80 -> 2.392295103e+10 | G80: 2030-09-06 | H80: =IF(G80<CALCULADORA!$C$23,0,IF(CALCULADORA!$C$27>'TIR de Tenencia'!G80,E80,CALCULADORA!$C$33)) -> 181632901610 | L80: 6 | M80: 10 | N80: 2030
A81: =+Flujos!A81 -> 2024-07-06 | B81: =+Flujos!L81 -> 1.82801e+11 | C81: =+Flujos!M81 -> 2.095171105e+10 | D81: =+Flujos!N81 -> 1052790258 | E81: =+Flujos!O81 -> 2.200450131e+10 | G81: 2030-10-06 | H81: =IF(G81<CALCULADORA!$C$23,0,IF(CALCULADORA!$C$27>'TIR de Tenencia'!G81,E81,CALCULADORA!$C$33)) -> 181632901610 | L81: 6 | M81: 11 | N81: 2030
A82: =+Flujos!A82 -> 2024-08-06 | B82: =+Flujos!L82 -> 1.637987497e+11 | C82: =+Flujos!M82 -> 1.900225034e+10 | D82: =+Flujos!N82 -> 944532767 | E82: =+Flujos!O82 -> 1.994678311e+10 | G82: 2030-11-06 | H82: =IF(G82<CALCULADORA!$C$23,0,IF(CALCULADORA!$C$27>'TIR de Tenencia'!G82,E82,CALCULADORA!$C$33)) -> 181632901610 | L82: 6 | M82: 12 | N82: 2030
A83: =+Flujos!A83 -> 2024-09-06 | B83: =+Flujos!L83 -> 1.436127939e+11 | C83: =+Flujos!M83 -> 2.01859558e+10 | D83: =+Flujos!N83 -> 846348139.5 | E83: =+Flujos!O83 -> 2.103230394e+10 | G83: 2030-12-06 | H83: =IF(G83<CALCULADORA!$C$23,0,IF(CALCULADORA!$C$27>'TIR de Tenencia'!G83,E83,CALCULADORA!$C$33)) -> 181632901610 | L83: 6 | M83: 1 | N83: 2031
A84: =+Flujos!A84 -> 2024-10-06 | B84: =+Flujos!L84 -> 1.238520661e+11 | C84: =+Flujos!M84 -> 1.976072774e+10 | D84: =+Flujos!N84 -> 742047305.9 | E84: =+Flujos!O84 -> 2.050277504e+10 | G84: 2031-01-06 | H84: =IF(G84<CALCULADORA!$C$23,0,IF(CALCULADORA!$C$27>'TIR de Tenencia'!G84,E84,CALCULADORA!$C$33)) -> 181632901610 | L84: 6 | M84: 2 | N84: 2031
A85: =+Flujos!A85 -> 2024-11-06 | B85: =+Flujos!L85 -> 1.042548508e+11 | C85: =+Flujos!M85 -> 1.959721531e+10 | D85: =+Flujos!N85 -> 639943625.6 | E85: =+Flujos!O85 -> 2.023715894e+10 | G85: 2031-02-06 | H85: =IF(G85<CALCULADORA!$C$23,0,IF(CALCULADORA!$C$27>'TIR de Tenencia'!G85,E85,CALCULADORA!$C$33)) -> 181632901610 | L85: 6 | M85: 3 | N85: 2031
A86: =+Flujos!A86 -> 2024-12-06 | B86: =+Flujos!L86 -> 8.586480247e+10 | C86: =+Flujos!M86 -> 1.839004834e+10 | D86: =+Flujos!N86 -> 538684814.1 | E86: =+Flujos!O86 -> 1.892873315e+10 | G86: 2031-03-06 | H86: =IF(G86<CALCULADORA!$C$23,0,IF(CALCULADORA!$C$27>'TIR de Tenencia'!G86,E86,CALCULADORA!$C$33)) -> 181632901610 | L86: 6 | M86: 4 | N86: 2031
A87: =+Flujos!A87 -> 2025-01-06 | B87: =+Flujos!L87 -> 6.667045495e+10 | C87: =+Flujos!M87 -> 1.919434752e+10 | D87: =+Flujos!N87 -> 443663434.4 | E87: =+Flujos!O87 -> 1.963801095e+10 | G87: 2031-04-06 | H87: =IF(G87<CALCULADORA!$C$23,0,IF(CALCULADORA!$C$27>'TIR de Tenencia'!G87,E87,CALCULADORA!$C$33)) -> 181632901610 | L87: 6 | M87: 5 | N87: 2031
A88: =+Flujos!A88 -> 2025-02-06 | B88: =+Flujos!L88 -> 4.773681758e+10 | C88: =+Flujos!M88 -> 1.893363737e+10 | D88: =+Flujos!N88 -> 344486240.7 | E88: =+Flujos!O88 -> 1.927812361e+10 | G88: 2031-05-06 | H88: =IF(G88<CALCULADORA!$C$23,0,IF(CALCULADORA!$C$27>'TIR de Tenencia'!G88,E88,CALCULADORA!$C$33)) -> 181632901610 | L88: 6 | M88: 6 | N88: 2031
A89: =+Flujos!A89 -> 2025-03-06 | B89: =+Flujos!L89 -> 2.895232844e+10 | C89: =+Flujos!M89 -> 1.878448914e+10 | D89: =+Flujos!N89 -> 246656136.4 | E89: =+Flujos!O89 -> 1.903114528e+10 | G89: 2031-06-06 | H89: =IF(G89<CALCULADORA!$C$23,0,IF(CALCULADORA!$C$27>'TIR de Tenencia'!G89,E89,CALCULADORA!$C$33)) -> 181632901610 | L89: 6 | M89: 7 | N89: 2031
A90: =+Flujos!A90 -> 2025-04-06 | B90: =+Flujos!L90 -> 1.057444179e+10 | C90: =+Flujos!M90 -> 1.837788665e+10 | D90: =+Flujos!N90 -> 149596681 | E90: =+Flujos!O90 -> 1.852748333e+10 | G90: 2031-07-06 | H90: =IF(G90<CALCULADORA!$C$23,0,IF(CALCULADORA!$C$27>'TIR de Tenencia'!G90,E90,CALCULADORA!$C$33)) -> 181632901610 | L90: 6 | M90: 8 | N90: 2031
A91: =+Flujos!A91 -> 2025-05-06 | B91: =+Flujos!L91 -> -0.0008869171143 | C91: =+Flujos!M91 -> 1.057444179e+10 | D91: =+Flujos!N91 -> 54638140.71 | E91: =+Flujos!O91 -> 1.062907993e+10 | G91: 2031-08-06 | H91: =IF(G91<CALCULADORA!$C$23,0,IF(CALCULADORA!$C$27>'TIR de Tenencia'!G91,E91,CALCULADORA!$C$33)) -> 181632901610 | L91: 6 | M91: 9 | N91: 2031
A92: =+Flujos!A92 -> 2025-06-06 | B92: =+Flujos!L92 -> -0.0008869171143 | C92: =+Flujos!M92 -> 0 | D92: =+Flujos!N92 -> -4.582700729e-06 | E92: =+Flujos!O92 -> -4.582700729e-06 | G92: 2031-09-06 | H92: =IF(G92<CALCULADORA!$C$23,0,IF(CALCULADORA!$C$27>'TIR de Tenencia'!G92,E92,CALCULADORA!$C$33)) -> 181632901610 | L92: 6 | M92: 10 | N92: 2031
A93: =+Flujos!A93 -> 2025-07-06 | B93: =+Flujos!L93 -> -0.0008869171143 | C93: =+Flujos!M93 -> 0 | D93: =+Flujos!N93 -> -4.582700729e-06 | E93: =+Flujos!O93 -> -4.582700729e-06 | G93: 2031-10-06 | H93: =IF(G93<CALCULADORA!$C$23,0,IF(CALCULADORA!$C$27>'TIR de Tenencia'!G93,E93,CALCULADORA!$C$33)) -> 181632901610 | L93: 6 | M93: 11 | N93: 2031
A94: =+Flujos!A94 -> 2025-08-06 | B94: =+Flujos!L94 -> -0.0008869171143 | C94: =+Flujos!M94 -> 0 | D94: =+Flujos!N94 -> -4.582700729e-06 | E94: =+Flujos!O94 -> -4.582700729e-06 | G94: 2031-11-06 | H94: =IF(G94<CALCULADORA!$C$23,0,IF(CALCULADORA!$C$27>'TIR de Tenencia'!G94,E94,CALCULADORA!$C$33)) -> 181632901610 | L94: 6 | M94: 12 | N94: 2031
A95: =+Flujos!A95 -> 2025-09-06 | B95: =+Flujos!L95 -> -0.0008869171143 | C95: =+Flujos!M95 -> 0 | D95: =+Flujos!N95 -> -4.582700729e-06 | E95: =+Flujos!O95 -> -4.582700729e-06 | G95: 2031-12-06 | H95: =IF(G95<CALCULADORA!$C$23,0,IF(CALCULADORA!$C$27>'TIR de Tenencia'!G95,E95,CALCULADORA!$C$33)) -> 181632901610 | L95: 6 | M95: 1 | N95: 2032
A96: =+Flujos!A96 -> 2025-10-06 | B96: =+Flujos!L96 -> -0.0008869171143 | C96: =+Flujos!M96 -> 0 | D96: =+Flujos!N96 -> -4.582700729e-06 | E96: =+Flujos!O96 -> -4.582700729e-06 | G96: 2032-01-06 | H96: =IF(G96<CALCULADORA!$C$23,0,IF(CALCULADORA!$C$27>'TIR de Tenencia'!G96,E96,CALCULADORA!$C$33)) -> 181632901610 | L96: 6 | M96: 2 | N96: 2032
A97: =+Flujos!A97 -> 2025-11-06 | B97: =+Flujos!L97 -> -0.0008869171143 | C97: =+Flujos!M97 -> 0 | D97: =+Flujos!N97 -> -4.582700729e-06 | E97: =+Flujos!O97 -> -4.582700729e-06 | G97: 2032-02-06 | H97: =IF(G97<CALCULADORA!$C$23,0,IF(CALCULADORA!$C$27>'TIR de Tenencia'!G97,E97,CALCULADORA!$C$33)) -> 181632901610 | L97: 6 | M97: 3 | N97: 2032
A98: =+Flujos!A98 -> 2025-12-06 | B98: =+Flujos!L98 -> -0.0008869171143 | C98: =+Flujos!M98 -> 0 | D98: =+Flujos!N98 -> -4.582700729e-06 | E98: =+Flujos!O98 -> -4.582700729e-06 | G98: 2032-03-06 | H98: =IF(G98<CALCULADORA!$C$23,0,IF(CALCULADORA!$C$27>'TIR de Tenencia'!G98,E98,CALCULADORA!$C$33)) -> 181632901610 | L98: 6 | M98: 4 | N98: 2032
A99: =+Flujos!A99 -> 2026-01-06 | B99: =+Flujos!L99 -> -0.0008869171143 | C99: =+Flujos!M99 -> 0 | D99: =+Flujos!N99 -> -4.582700729e-06 | E99: =+Flujos!O99 -> -4.582700729e-06 | G99: =+DATE(N98,M98,L98) -> 2032-04-06 | H99: =IF(G99<CALCULADORA!$C$23,0,IF(CALCULADORA!$C$27>'TIR de Tenencia'!G99,E99,CALCULADORA!$C$33)) -> 181632901610 | L99: 6 | M99: 5 | N99: 2032
A100: =+Flujos!A100 -> 2026-02-06 | B100: =+Flujos!L100 -> -0.0008869171143 | C100: =+Flujos!M100 -> 0 | D100: =+Flujos!N100 -> -4.582700729e-06 | E100: =+Flujos!O100 -> -4.582700729e-06 | G100: 2032-05-06 | H100: =IF(G100<CALCULADORA!$C$23,0,IF(CALCULADORA!$C$27>'TIR de Tenencia'!G100,E100,CALCULADORA!$C$33)) -> 181632901610 | L100: 6 | M100: 6 | N100: 2032
A101: =+Flujos!A101 -> 2026-03-06 | B101: =+Flujos!L101 -> -0.0008869171143 | C101: =+Flujos!M101 -> 0 | D101: =+Flujos!N101 -> -4.582700729e-06 | E101: =+Flujos!O101 -> -4.582700729e-06 | G101: 2032-06-06 | H101: =IF(G101<CALCULADORA!$C$23,0,IF(CALCULADORA!$C$27>'TIR de Tenencia'!G101,E101,CALCULADORA!$C$33)) -> 181632901610 | L101: 6 | M101: 7 | N101: 2032
A102: =+Flujos!A102 -> 2026-04-06 | B102: =+Flujos!L102 -> -0.0008869171143 | C102: =+Flujos!M102 -> 0 | D102: =+Flujos!N102 -> -4.582700729e-06 | E102: =+Flujos!O102 -> -4.582700729e-06 | G102: 2032-07-06 | H102: =IF(G102<CALCULADORA!$C$23,0,IF(CALCULADORA!$C$27>'TIR de Tenencia'!G102,E102,CALCULADORA!$C$33)) -> 181632901610 | L102: 6 | M102: 8 | N102: 2032
A103: =+Flujos!A103 -> 2026-05-06 | B103: =+Flujos!L103 -> -0.0008869171143 | C103: =+Flujos!M103 -> 0 | D103: =+Flujos!N103 -> -4.582700729e-06 | E103: =+Flujos!O103 -> -4.582700729e-06 | G103: 2032-08-06 | H103: =IF(G103<CALCULADORA!$C$23,0,IF(CALCULADORA!$C$27>'TIR de Tenencia'!G103,E103,CALCULADORA!$C$33)) -> 181632901610 | L103: 6 | M103: 9 | N103: 2032
A104: =+Flujos!A104 -> 2026-06-06 | B104: =+Flujos!L104 -> -0.0008869171143 | C104: =+Flujos!M104 -> 0 | D104: =+Flujos!N104 -> -4.582700729e-06 | E104: =+Flujos!O104 -> -4.582700729e-06 | G104: 2032-09-06 | H104: =IF(G104<CALCULADORA!$C$23,0,IF(CALCULADORA!$C$27>'TIR de Tenencia'!G104,E104,CALCULADORA!$C$33)) -> 181632901610 | L104: 6 | M104: 10 | N104: 2032
A105: =+Flujos!A105 -> 2026-07-06 | B105: =+Flujos!L105 -> -0.0008869171143 | C105: =+Flujos!M105 -> 0 | D105: =+Flujos!N105 -> -4.582700729e-06 | E105: =+Flujos!O105 -> -4.582700729e-06 | G105: 2032-10-06 | H105: =IF(G105<CALCULADORA!$C$23,0,IF(CALCULADORA!$C$27>'TIR de Tenencia'!G105,E105,CALCULADORA!$C$33)) -> 181632901610 | L105: 6 | M105: 11 | N105: 2032
A106: =+Flujos!A106 -> 2026-08-06 | B106: =+Flujos!L106 -> -0.0008869171143 | C106: =+Flujos!M106 -> 0 | D106: =+Flujos!N106 -> -4.582700729e-06 | E106: =+Flujos!O106 -> -4.582700729e-06 | G106: 2032-11-06 | H106: =IF(G106<CALCULADORA!$C$23,0,IF(CALCULADORA!$C$27>'TIR de Tenencia'!G106,E106,CALCULADORA!$C$33)) -> 181632901610 | L106: 6 | M106: 12 | N106: 2032
A107: =+Flujos!A107 -> 2026-09-06 | B107: =+Flujos!L107 -> -0.0008869171143 | C107: =+Flujos!M107 -> 0 | D107: =+Flujos!N107 -> -4.582700729e-06 | E107: =+Flujos!O107 -> -4.582700729e-06 | G107: 2032-12-06 | H107: =IF(G107<CALCULADORA!$C$23,0,IF(CALCULADORA!$C$27>'TIR de Tenencia'!G107,E107,CALCULADORA!$C$33)) -> 181632901610 | L107: 6 | M107: 1 | N107: 2033
A108: =+Flujos!A108 -> 2026-10-06 | B108: =+Flujos!L108 -> -0.0008869171143 | C108: =+Flujos!M108 -> 0 | D108: =+Flujos!N108 -> -4.582700729e-06 | E108: =+Flujos!O108 -> -4.582700729e-06 | G108: 2033-01-06 | H108: =IF(G108<CALCULADORA!$C$23,0,IF(CALCULADORA!$C$27>'TIR de Tenencia'!G108,E108,CALCULADORA!$C$33)) -> 181632901610 | L108: 6 | M108: 2 | N108: 2033
A109: =+Flujos!A109 -> 2026-11-06 | B109: =+Flujos!L109 -> -0.0008869171143 | C109: =+Flujos!M109 -> 0 | D109: =+Flujos!N109 -> -4.582700729e-06 | E109: =+Flujos!O109 -> -4.582700729e-06 | G109: 2033-02-06 | H109: =IF(G109<CALCULADORA!$C$23,0,IF(CALCULADORA!$C$27>'TIR de Tenencia'!G109,E109,CALCULADORA!$C$33)) -> 181632901610 | L109: 6 | M109: 3 | N109: 2033
A110: =+Flujos!A110 -> 2026-12-06 | B110: =+Flujos!L110 -> -0.0008869171143 | C110: =+Flujos!M110 -> 0 | D110: =+Flujos!N110 -> -4.582700729e-06 | E110: =+Flujos!O110 -> -4.582700729e-06 | G110: 2033-03-06 | H110: =IF(G110<CALCULADORA!$C$23,0,IF(CALCULADORA!$C$27>'TIR de Tenencia'!G110,E110,CALCULADORA!$C$33)) -> 181632901610 | L110: 6 | M110: 4 | N110: 2033
A111: =+Flujos!A111 -> 2027-01-06 | B111: =+Flujos!L111 -> -0.0008869171143 | C111: =+Flujos!M111 -> 0 | D111: =+Flujos!N111 -> -4.582700729e-06 | E111: =+Flujos!O111 -> -4.582700729e-06 | G111: 2033-04-06 | H111: =IF(G111<CALCULADORA!$C$23,0,IF(CALCULADORA!$C$27>'TIR de Tenencia'!G111,E111,CALCULADORA!$C$33)) -> 181632901610 | L111: 6 | M111: 5 | N111: =+IF(M111=1,N110+1,N110) -> 2033
A112: =+Flujos!A112 -> 2027-02-06 | B112: =+Flujos!L112 -> -0.0008869171143 | C112: =+Flujos!M112 -> 0 | D112: =+Flujos!N112 -> -4.582700729e-06 | E112: =+Flujos!O112 -> -4.582700729e-06 | G112: 2033-05-06 | H112: =IF(G112<CALCULADORA!$C$23,0,IF(CALCULADORA!$C$27>'TIR de Tenencia'!G112,E112,CALCULADORA!$C$33)) -> 181632901610 | L112: 6 | M112: 6 | N112: 2033
A113: =+Flujos!A113 -> 2027-03-06 | B113: =+Flujos!L113 -> -0.0008869171143 | C113: =+Flujos!M113 -> 0 | D113: =+Flujos!N113 -> -4.582700729e-06 | E113: =+Flujos!O113 -> -4.582700729e-06 | G113: 2033-06-06 | H113: =IF(G113<CALCULADORA!$C$23,0,IF(CALCULADORA!$C$27>'TIR de Tenencia'!G113,E113,CALCULADORA!$C$33)) -> 181632901610 | L113: 6 | M113: 7 | N113: 2033
A114: =+Flujos!A114 -> 2027-04-06 | B114: =+Flujos!L114 -> -0.0008869171143 | C114: =+Flujos!M114 -> 0 | D114: =+Flujos!N114 -> -4.582700729e-06 | E114: =+Flujos!O114 -> -4.582700729e-06 | G114: 2033-07-06 | H114: =IF(G114<CALCULADORA!$C$23,0,IF(CALCULADORA!$C$27>'TIR de Tenencia'!G114,E114,CALCULADORA!$C$33)) -> 181632901610 | L114: 6 | M114: 8 | N114: 2033
A115: =+Flujos!A115 -> 2027-05-06 | B115: =+Flujos!L115 -> -0.0008869171143 | C115: =+Flujos!M115 -> 0 | D115: =+Flujos!N115 -> -4.582700729e-06 | E115: =+Flujos!O115 -> -4.582700729e-06 | G115: 2033-08-06 | H115: =IF(G115<CALCULADORA!$C$23,0,IF(CALCULADORA!$C$27>'TIR de Tenencia'!G115,E115,CALCULADORA!$C$33)) -> 181632901610 | L115: 6 | M115: 9 | N115: 2033
A116: =+Flujos!A116 -> 2027-06-06 | B116: =+Flujos!L116 -> -0.0008869171143 | C116: =+Flujos!M116 -> 0 | D116: =+Flujos!N116 -> -4.582700729e-06 | E116: =+Flujos!O116 -> -4.582700729e-06 | G116: 2033-09-06 | H116: =IF(G116<CALCULADORA!$C$23,0,IF(CALCULADORA!$C$27>'TIR de Tenencia'!G116,E116,CALCULADORA!$C$33)) -> 181632901610 | L116: 6 | M116: 10 | N116: 2033
A117: =+Flujos!A117 -> 2027-07-06 | B117: =+Flujos!L117 -> -0.0008869171143 | C117: =+Flujos!M117 -> 0 | D117: =+Flujos!N117 -> -4.582700729e-06 | E117: =+Flujos!O117 -> -4.582700729e-06 | G117: 2033-10-06 | H117: =IF(G117<CALCULADORA!$C$23,0,IF(CALCULADORA!$C$27>'TIR de Tenencia'!G117,E117,CALCULADORA!$C$33)) -> 181632901610 | L117: 6 | M117: 11 | N117: 2033
A118: =+Flujos!A118 -> 2027-08-06 | B118: =+Flujos!L118 -> -0.0008869171143 | C118: =+Flujos!M118 -> 0 | D118: =+Flujos!N118 -> -4.582700729e-06 | E118: =+Flujos!O118 -> -4.582700729e-06 | G118: 2033-11-06 | H118: =IF(G118<CALCULADORA!$C$23,0,IF(CALCULADORA!$C$27>'TIR de Tenencia'!G118,E118,CALCULADORA!$C$33)) -> 181632901610 | L118: 6 | M118: 12 | N118: 2033
A119: =+Flujos!A119 -> 2027-09-06 | B119: =+Flujos!L119 -> -0.0008869171143 | C119: =+Flujos!M119 -> 0 | D119: =+Flujos!N119 -> -4.582700729e-06 | E119: =+Flujos!O119 -> -4.582700729e-06 | G119: 2033-12-06 | H119: =IF(G119<CALCULADORA!$C$23,0,IF(CALCULADORA!$C$27>'TIR de Tenencia'!G119,E119,CALCULADORA!$C$33)) -> 181632901610 | L119: 6 | M119: 1 | N119: 2034
A120: =+Flujos!A120 -> 2027-10-06 | B120: =+Flujos!L120 -> -0.0008869171143 | C120: =+Flujos!M120 -> 0 | D120: =+Flujos!N120 -> -4.582700729e-06 | E120: =+Flujos!O120 -> -4.582700729e-06 | G120: 2034-01-06 | H120: =IF(G120<CALCULADORA!$C$23,0,IF(CALCULADORA!$C$27>'TIR de Tenencia'!G120,E120,CALCULADORA!$C$33)) -> 181632901610 | L120: 6 | M120: 2 | N120: 2034
A121: =+Flujos!A121 -> 2027-11-06 | B121: =+Flujos!L121 -> -0.0008869171143 | C121: =+Flujos!M121 -> 0 | D121: =+Flujos!N121 -> -4.582700729e-06 | E121: =+Flujos!O121 -> -4.582700729e-06 | G121: 2034-02-06 | H121: =IF(G121<CALCULADORA!$C$23,0,IF(CALCULADORA!$C$27>'TIR de Tenencia'!G121,E121,CALCULADORA!$C$33)) -> 181632901610 | L121: 6 | M121: 3 | N121: 2034
A122: =+Flujos!A122 -> 2027-12-06 | B122: =+Flujos!L122 -> -0.0008869171143 | C122: =+Flujos!M122 -> 0 | D122: =+Flujos!N122 -> -4.582700729e-06 | E122: =+Flujos!O122 -> -4.582700729e-06 | G122: 2034-03-06 | H122: =IF(G122<CALCULADORA!$C$23,0,IF(CALCULADORA!$C$27>'TIR de Tenencia'!G122,E122,CALCULADORA!$C$33)) -> 181632901610 | L122: 6 | M122: 4 | N122: 2034
A123: =+Flujos!A123 -> 2028-01-06 | B123: =+Flujos!L123 -> -0.0008869171143 | C123: =+Flujos!M123 -> 0 | D123: =+Flujos!N123 -> -4.582700729e-06 | E123: =+Flujos!O123 -> -4.582700729e-06 | G123: 2034-04-06 | H123: =IF(G123<CALCULADORA!$C$23,0,IF(CALCULADORA!$C$27>'TIR de Tenencia'!G123,E123,CALCULADORA!$C$33)) -> 181632901610 | L123: 6 | M123: 5 | N123: 2034
A124: =+Flujos!A124 -> 2028-02-06 | B124: =+Flujos!L124 -> -0.0008869171143 | C124: =+Flujos!M124 -> 0 | D124: =+Flujos!N124 -> -4.582700729e-06 | E124: =+Flujos!O124 -> -4.582700729e-06 | G124: 2034-05-06 | H124: =IF(G124<CALCULADORA!$C$23,0,IF(CALCULADORA!$C$27>'TIR de Tenencia'!G124,E124,CALCULADORA!$C$33)) -> 181632901610 | L124: 6 | M124: 6 | N124: 2034
A125: =+Flujos!A125 -> 2028-03-06 | B125: =+Flujos!L125 -> -0.0008869171143 | C125: =+Flujos!M125 -> 0 | D125: =+Flujos!N125 -> -4.582700729e-06 | E125: =+Flujos!O125 -> -4.582700729e-06 | G125: 2034-06-06 | H125: =IF(G125<CALCULADORA!$C$23,0,IF(CALCULADORA!$C$27>'TIR de Tenencia'!G125,E125,CALCULADORA!$C$33)) -> 181632901610 | L125: 6 | M125: 7 | N125: 2034
A126: =+Flujos!A126 -> 2028-04-06 | B126: =+Flujos!L126 -> -0.0008869171143 | C126: =+Flujos!M126 -> 0 | D126: =+Flujos!N126 -> -4.582700729e-06 | E126: =+Flujos!O126 -> -4.582700729e-06 | G126: 2034-07-06 | H126: =IF(G126<CALCULADORA!$C$23,0,IF(CALCULADORA!$C$27>'TIR de Tenencia'!G126,E126,CALCULADORA!$C$33)) -> 181632901610 | L126: 6 | M126: 8 | N126: 2034
A127: =+Flujos!A127 -> 2028-05-06 | B127: =+Flujos!L127 -> -0.0008869171143 | C127: =+Flujos!M127 -> 0 | D127: =+Flujos!N127 -> -4.582700729e-06 | E127: =+Flujos!O127 -> -4.582700729e-06 | G127: 2034-08-06 | H127: =IF(G127<CALCULADORA!$C$23,0,IF(CALCULADORA!$C$27>'TIR de Tenencia'!G127,E127,CALCULADORA!$C$33)) -> 181632901610 | L127: 6 | M127: 9 | N127: 2034
A128: =+Flujos!A128 -> 2028-06-06 | B128: =+Flujos!L128 -> -0.0008869171143 | C128: =+Flujos!M128 -> 0 | D128: =+Flujos!N128 -> -4.582700729e-06 | E128: =+Flujos!O128 -> -4.582700729e-06 | G128: 2034-09-06 | H128: =IF(G128<CALCULADORA!$C$23,0,IF(CALCULADORA!$C$27>'TIR de Tenencia'!G128,E128,CALCULADORA!$C$33)) -> 181632901610 | L128: 6 | M128: 10 | N128: 2034
A129: =+Flujos!A129 -> 2028-07-06 | B129: =+Flujos!L129 -> -0.0008869171143 | C129: =+Flujos!M129 -> 0 | D129: =+Flujos!N129 -> -4.582700729e-06 | E129: =+Flujos!O129 -> -4.582700729e-06 | G129: 2034-10-06 | H129: =IF(G129<CALCULADORA!$C$23,0,IF(CALCULADORA!$C$27>'TIR de Tenencia'!G129,E129,CALCULADORA!$C$33)) -> 181632901610 | L129: 6 | M129: 11 | N129: 2034
A130: =+Flujos!A130 -> 2028-08-06 | B130: =+Flujos!L130 -> -0.0008869171143 | C130: =+Flujos!M130 -> 0 | D130: =+Flujos!N130 -> -4.582700729e-06 | E130: =+Flujos!O130 -> -4.582700729e-06 | G130: 2034-11-06 | H130: =IF(G130<CALCULADORA!$C$23,0,IF(CALCULADORA!$C$27>'TIR de Tenencia'!G130,E130,CALCULADORA!$C$33)) -> 181632901610 | L130: 6 | M130: 12 | N130: 2034
A131: =+Flujos!A131 -> 2028-09-06 | B131: =+Flujos!L131 -> -0.0008869171143 | C131: =+Flujos!M131 -> 0 | D131: =+Flujos!N131 -> -4.582700729e-06 | E131: =+Flujos!O131 -> -4.582700729e-06 | G131: =+DATE(N130,M130,L130) -> 2034-12-06 | H131: =IF(G131<CALCULADORA!$C$23,0,IF(CALCULADORA!$C$27>'TIR de Tenencia'!G131,E131,CALCULADORA!$C$33)) -> 181632901610 | L131: =+L130 -> 6 | M131: =+IF(M130=12,1,M130+1) -> 1 | N131: =+IF(M131=1,N130+1,N130) -> 2035
A132: =+Flujos!A132 -> 2028-10-06 | B132: =+Flujos!L132 -> -0.0008869171143 | C132: =+Flujos!M132 -> 0 | D132: =+Flujos!N132 -> -4.582700729e-06 | E132: =+Flujos!O132 -> -4.582700729e-06 | G132: 2035-01-06 | H132: =IF(G132<CALCULADORA!$C$23,0,IF(CALCULADORA!$C$27>'TIR de Tenencia'!G132,E132,CALCULADORA!$C$33)) -> 181632901610 | I132: =+IF(H132=H131," ",G132) ->  | J132: =+IF(H132=H131," ",H132) ->  | L132: 6 | M132: 2 | N132: 2035
A133: =+Flujos!A133 -> 2028-11-06 | B133: =+Flujos!L133 -> -0.0008869171143 | C133: =+Flujos!M133 -> 0 | D133: =+Flujos!N133 -> -4.582700729e-06 | E133: =+Flujos!O133 -> -4.582700729e-06 | G133: 2035-02-06 | H133: =IF(G133<CALCULADORA!$C$23,0,IF(CALCULADORA!$C$27>'TIR de Tenencia'!G133,E133,CALCULADORA!$C$33)) -> 181632901610 | L133: 6 | M133: 3 | N133: 2035
A134: =+Flujos!A134 -> 2028-12-06 | B134: =+Flujos!L134 -> -0.0008869171143 | C134: =+Flujos!M134 -> 0 | D134: =+Flujos!N134 -> -4.582700729e-06 | E134: =+Flujos!O134 -> -4.582700729e-06 | G134: 2035-03-06 | H134: =IF(G134<CALCULADORA!$C$23,0,IF(CALCULADORA!$C$27>'TIR de Tenencia'!G134,E134,CALCULADORA!$C$33)) -> 181632901610 | L134: 6 | M134: 4 | N134: 2035
A135: =+Flujos!A135 -> 2029-01-06 | B135: =+Flujos!L135 -> -0.0008869171143 | C135: =+Flujos!M135 -> 0 | D135: =+Flujos!N135 -> -4.582700729e-06 | E135: =+Flujos!O135 -> -4.582700729e-06 | G135: 2035-04-06 | H135: =IF(G135<CALCULADORA!$C$23,0,IF(CALCULADORA!$C$27>'TIR de Tenencia'!G135,E135,CALCULADORA!$C$33)) -> 181632901610 | L135: 6 | M135: 5 | N135: 2035
A136: =+Flujos!A136 -> 2029-02-06 | B136: =+Flujos!L136 -> -0.0008869171143 | C136: =+Flujos!M136 -> 0 | D136: =+Flujos!N136 -> -4.582700729e-06 | E136: =+Flujos!O136 -> -4.582700729e-06 | G136: 2035-05-06 | H136: =IF(G136<CALCULADORA!$C$23,0,IF(CALCULADORA!$C$27>'TIR de Tenencia'!G136,E136,CALCULADORA!$C$33)) -> 181632901610 | L136: 6 | M136: 6 | N136: 2035
A137: =+Flujos!A137 -> 2029-03-06 | B137: =+Flujos!L137 -> -0.0008869171143 | C137: =+Flujos!M137 -> 0 | D137: =+Flujos!N137 -> -4.582700729e-06 | E137: =+Flujos!O137 -> -4.582700729e-06 | G137: 2035-06-06 | H137: =IF(G137<CALCULADORA!$C$23,0,IF(CALCULADORA!$C$27>'TIR de Tenencia'!G137,E137,CALCULADORA!$C$33)) -> 181632901610 | L137: 6 | M137: 7 | N137: 2035
A138: =+Flujos!A138 -> 2029-04-06 | B138: =+Flujos!L138 -> -0.0008869171143 | C138: =+Flujos!M138 -> 0 | D138: =+Flujos!N138 -> -4.582700729e-06 | E138: =+Flujos!O138 -> -4.582700729e-06 | G138: 2035-07-06 | H138: =IF(G138<CALCULADORA!$C$23,0,IF(CALCULADORA!$C$27>'TIR de Tenencia'!G138,E138,CALCULADORA!$C$33)) -> 181632901610 | L138: 6 | M138: 8 | N138: 2035
A139: =+Flujos!A139 -> 2029-05-06 | B139: =+Flujos!L139 -> -0.0008869171143 | C139: =+Flujos!M139 -> 0 | D139: =+Flujos!N139 -> -4.582700729e-06 | E139: =+Flujos!O139 -> -4.582700729e-06 | G139: 2035-08-06 | H139: =IF(G139<CALCULADORA!$C$23,0,IF(CALCULADORA!$C$27>'TIR de Tenencia'!G139,E139,CALCULADORA!$C$33)) -> 181632901610 | L139: 6 | M139: 9 | N139: 2035
A140: =+Flujos!A140 -> 2029-06-06 | B140: =+Flujos!L140 -> -0.0008869171143 | C140: =+Flujos!M140 -> 0 | D140: =+Flujos!N140 -> -4.582700729e-06 | E140: =+Flujos!O140 -> -4.582700729e-06 | G140: 2035-09-06 | H140: =IF(G140<CALCULADORA!$C$23,0,IF(CALCULADORA!$C$27>'TIR de Tenencia'!G140,E140,CALCULADORA!$C$33)) -> 181632901610 | L140: 6 | M140: 10 | N140: 2035
A141: =+Flujos!A141 -> 2029-07-06 | B141: =+Flujos!L141 -> -0.0008869171143 | C141: =+Flujos!M141 -> 0 | D141: =+Flujos!N141 -> -4.582700729e-06 | E141: =+Flujos!O141 -> -4.582700729e-06 | G141: 2035-10-06 | H141: =IF(G141<CALCULADORA!$C$23,0,IF(CALCULADORA!$C$27>'TIR de Tenencia'!G141,E141,CALCULADORA!$C$33)) -> 181632901610 | L141: 6 | M141: 11 | N141: 2035
A142: =+Flujos!A142 -> 2029-08-06 | B142: =+Flujos!L142 -> -0.0008869171143 | C142: =+Flujos!M142 -> 0 | D142: =+Flujos!N142 -> -4.582700729e-06 | E142: =+Flujos!O142 -> -4.582700729e-06 | G142: 2035-11-06 | H142: =IF(G142<CALCULADORA!$C$23,0,IF(CALCULADORA!$C$27>'TIR de Tenencia'!G142,E142,CALCULADORA!$C$33)) -> 181632901610 | L142: 6 | M142: 12 | N142: 2035
A143: =+Flujos!A143 -> 2029-09-06 | B143: =+Flujos!L143 -> -0.0008869171143 | C143: =+Flujos!M143 -> 0 | D143: =+Flujos!N143 -> -4.582700729e-06 | E143: =+Flujos!O143 -> -4.582700729e-06 | G143: 2035-12-06 | H143: =IF(G143<CALCULADORA!$C$23,0,IF(CALCULADORA!$C$27>'TIR de Tenencia'!G143,E143,CALCULADORA!$C$33)) -> 181632901610 | L143: 6 | M143: 1 | N143: 2036
A144: =+Flujos!A144 -> 2029-10-06 | B144: =+Flujos!L144 -> -0.0008869171143 | C144: =+Flujos!M144 -> 0 | D144: =+Flujos!N144 -> -4.582700729e-06 | E144: =+Flujos!O144 -> -4.582700729e-06 | G144: 2036-01-06 | H144: =IF(G144<CALCULADORA!$C$23,0,IF(CALCULADORA!$C$27>'TIR de Tenencia'!G144,E144,CALCULADORA!$C$33)) -> 181632901610 | L144: 6 | M144: 2 | N144: 2036
A145: =+Flujos!A145 -> 2029-11-06 | B145: =+Flujos!L145 -> -0.0008869171143 | C145: =+Flujos!M145 -> 0 | D145: =+Flujos!N145 -> -4.582700729e-06 | E145: =+Flujos!O145 -> -4.582700729e-06 | G145: 2036-02-06 | H145: =IF(G145<CALCULADORA!$C$23,0,IF(CALCULADORA!$C$27>'TIR de Tenencia'!G145,E145,CALCULADORA!$C$33)) -> 181632901610 | L145: 6 | M145: 3 | N145: 2036
A146: =+Flujos!A146 -> 2029-12-06 | B146: =+Flujos!L146 -> -0.0008869171143 | C146: =+Flujos!M146 -> 0 | D146: =+Flujos!N146 -> -4.582700729e-06 | E146: =+Flujos!O146 -> -4.582700729e-06 | G146: 2036-03-06 | H146: =IF(G146<CALCULADORA!$C$23,0,IF(CALCULADORA!$C$27>'TIR de Tenencia'!G146,E146,CALCULADORA!$C$33)) -> 181632901610 | L146: 6 | M146: 4 | N146: 2036
A147: =+Flujos!A147 -> 2030-01-06 | B147: =+Flujos!L147 -> -0.0008869171143 | C147: =+Flujos!M147 -> 0 | D147: =+Flujos!N147 -> -4.582700729e-06 | E147: =+Flujos!O147 -> -4.582700729e-06 | G147: 2036-04-06 | H147: =IF(G147<CALCULADORA!$C$23,0,IF(CALCULADORA!$C$27>'TIR de Tenencia'!G147,E147,CALCULADORA!$C$33)) -> 181632901610 | L147: 6 | M147: 5 | N147: 2036
A148: =+Flujos!A148 -> 2030-02-06 | B148: =+Flujos!L148 -> -0.0008869171143 | C148: =+Flujos!M148 -> 0 | D148: =+Flujos!N148 -> -4.582700729e-06 | E148: =+Flujos!O148 -> -4.582700729e-06 | G148: 2036-05-06 | H148: =IF(G148<CALCULADORA!$C$23,0,IF(CALCULADORA!$C$27>'TIR de Tenencia'!G148,E148,CALCULADORA!$C$33)) -> 181632901610 | L148: 6 | M148: 6 | N148: 2036
A149: =+Flujos!A149 -> 2030-03-06 | B149: =+Flujos!L149 -> -0.0008869171143 | C149: =+Flujos!M149 -> 0 | D149: =+Flujos!N149 -> -4.582700729e-06 | E149: =+Flujos!O149 -> -4.582700729e-06 | G149: 2036-06-06 | H149: =IF(G149<CALCULADORA!$C$23,0,IF(CALCULADORA!$C$27>'TIR de Tenencia'!G149,E149,CALCULADORA!$C$33)) -> 181632901610 | L149: 6 | M149: 7 | N149: 2036
A150: =+Flujos!A150 -> 2030-04-06 | B150: =+Flujos!L150 -> -0.0008869171143 | C150: =+Flujos!M150 -> 0 | D150: =+Flujos!N150 -> -4.582700729e-06 | E150: =+Flujos!O150 -> -4.582700729e-06 | G150: 2036-07-06 | H150: =IF(G150<CALCULADORA!$C$23,0,IF(CALCULADORA!$C$27>'TIR de Tenencia'!G150,E150,CALCULADORA!$C$33)) -> 181632901610 | L150: 6 | M150: 8 | N150: 2036
A151: =+Flujos!A151 -> 2030-05-06 | B151: =+Flujos!L151 -> -0.0008869171143 | C151: =+Flujos!M151 -> 0 | D151: =+Flujos!N151 -> -4.582700729e-06 | E151: =+Flujos!O151 -> -4.582700729e-06 | G151: 2036-08-06 | H151: =IF(G151<CALCULADORA!$C$23,0,IF(CALCULADORA!$C$27>'TIR de Tenencia'!G151,E151,CALCULADORA!$C$33)) -> 181632901610 | L151: 6 | M151: 9 | N151: 2036
A152: =+Flujos!A152 -> 2030-06-06 | B152: =+Flujos!L152 -> -0.0008869171143 | C152: =+Flujos!M152 -> 0 | D152: =+Flujos!N152 -> -4.582700729e-06 | E152: =+Flujos!O152 -> -4.582700729e-06 | G152: 2036-09-06 | H152: =IF(G152<CALCULADORA!$C$23,0,IF(CALCULADORA!$C$27>'TIR de Tenencia'!G152,E152,CALCULADORA!$C$33)) -> 181632901610 | L152: 6 | M152: 10 | N152: 2036
A153: =+Flujos!A153 -> 2030-07-06 | B153: =+Flujos!L153 -> -0.0008869171143 | C153: =+Flujos!M153 -> 0 | D153: =+Flujos!N153 -> -4.582700729e-06 | E153: =+Flujos!O153 -> -4.582700729e-06 | G153: 2036-10-06 | H153: =IF(G153<CALCULADORA!$C$23,0,IF(CALCULADORA!$C$27>'TIR de Tenencia'!G153,E153,CALCULADORA!$C$33)) -> 181632901610 | L153: 6 | M153: 11 | N153: 2036
A154: =+Flujos!A154 -> 2030-08-06 | B154: =+Flujos!L154 -> -0.0008869171143 | C154: =+Flujos!M154 -> 0 | D154: =+Flujos!N154 -> -4.582700729e-06 | E154: =+Flujos!O154 -> -4.582700729e-06 | G154: 2036-11-06 | H154: =IF(G154<CALCULADORA!$C$23,0,IF(CALCULADORA!$C$27>'TIR de Tenencia'!G154,E154,CALCULADORA!$C$33)) -> 181632901610 | L154: 6 | M154: 12 | N154: 2036
A155: =+Flujos!A155 -> 2030-09-06 | B155: =+Flujos!L155 -> -0.0008869171143 | C155: =+Flujos!M155 -> 0 | D155: =+Flujos!N155 -> -4.582700729e-06 | E155: =+Flujos!O155 -> -4.582700729e-06 | G155: 2036-12-06 | H155: =IF(G155<CALCULADORA!$C$23,0,IF(CALCULADORA!$C$27>'TIR de Tenencia'!G155,E155,CALCULADORA!$C$33)) -> 181632901610 | L155: 6 | M155: 1 | N155: 2037
A156: =+Flujos!A156 -> 2030-10-06 | B156: =+Flujos!L156 -> -0.0008869171143 | C156: =+Flujos!M156 -> 0 | D156: =+Flujos!N156 -> -4.582700729e-06 | E156: =+Flujos!O156 -> -4.582700729e-06 | G156: 2037-01-06 | H156: =IF(G156<CALCULADORA!$C$23,0,IF(CALCULADORA!$C$27>'TIR de Tenencia'!G156,E156,CALCULADORA!$C$33)) -> 181632901610 | L156: 6 | M156: 2 | N156: 2037
A157: =+Flujos!A157 -> 2030-11-06 | B157: =+Flujos!L157 -> -0.0008869171143 | C157: =+Flujos!M157 -> 0 | D157: =+Flujos!N157 -> -4.582700729e-06 | E157: =+Flujos!O157 -> -4.582700729e-06 | G157: 2037-02-06 | H157: =IF(G157<CALCULADORA!$C$23,0,IF(CALCULADORA!$C$27>'TIR de Tenencia'!G157,E157,CALCULADORA!$C$33)) -> 181632901610 | L157: 6 | M157: 3 | N157: 2037
A158: =+Flujos!A158 -> 2030-12-06 | B158: =+Flujos!L158 -> -0.0008869171143 | C158: =+Flujos!M158 -> 0 | D158: =+Flujos!N158 -> -4.582700729e-06 | E158: =+Flujos!O158 -> -4.582700729e-06 | G158: 2037-03-06 | H158: =IF(G158<CALCULADORA!$C$23,0,IF(CALCULADORA!$C$27>'TIR de Tenencia'!G158,E158,CALCULADORA!$C$33)) -> 181632901610 | L158: 6 | M158: 4 | N158: 2037
A159: =+Flujos!A159 -> 2031-01-06 | B159: =+Flujos!L159 -> -0.0008869171143 | C159: =+Flujos!M159 -> 0 | D159: =+Flujos!N159 -> -4.582700729e-06 | E159: =+Flujos!O159 -> -4.582700729e-06 | G159: 2037-04-06 | H159: =IF(G159<CALCULADORA!$C$23,0,IF(CALCULADORA!$C$27>'TIR de Tenencia'!G159,E159,CALCULADORA!$C$33)) -> 181632901610 | L159: 6 | M159: 5 | N159: 2037
A160: =+Flujos!A160 -> 2031-02-06 | B160: =+Flujos!L160 -> -0.0008869171143 | C160: =+Flujos!M160 -> 0 | D160: =+Flujos!N160 -> -4.582700729e-06 | E160: =+Flujos!O160 -> -4.582700729e-06 | G160: 2037-05-06 | H160: =IF(G160<CALCULADORA!$C$23,0,IF(CALCULADORA!$C$27>'TIR de Tenencia'!G160,E160,CALCULADORA!$C$33)) -> 181632901610 | L160: 6 | M160: 6 | N160: 2037
A161: =+Flujos!A161 -> 2031-03-06 | B161: =+Flujos!L161 -> -0.0008869171143 | C161: =+Flujos!M161 -> 0 | D161: =+Flujos!N161 -> -4.582700729e-06 | E161: =+Flujos!O161 -> -4.582700729e-06 | G161: 2037-06-06 | H161: =IF(G161<CALCULADORA!$C$23,0,IF(CALCULADORA!$C$27>'TIR de Tenencia'!G161,E161,CALCULADORA!$C$33)) -> 181632901610 | L161: 6 | M161: 7 | N161: 2037
A162: =+Flujos!A162 -> 2031-04-06 | B162: =+Flujos!L162 -> -0.0008869171143 | C162: =+Flujos!M162 -> 0 | D162: =+Flujos!N162 -> -4.582700729e-06 | E162: =+Flujos!O162 -> -4.582700729e-06 | G162: 2037-07-06 | H162: =IF(G162<CALCULADORA!$C$23,0,IF(CALCULADORA!$C$27>'TIR de Tenencia'!G162,E162,CALCULADORA!$C$33)) -> 181632901610 | L162: 6 | M162: 8 | N162: 2037
A163: =+Flujos!A163 -> 2031-05-06 | B163: =+Flujos!L163 -> -0.0008869171143 | C163: =+Flujos!M163 -> 0 | D163: =+Flujos!N163 -> -4.582700729e-06 | E163: =+Flujos!O163 -> -4.582700729e-06 | G163: =+DATE(N162,M162,L162) -> 2037-08-06 | H163: =IF(G163<CALCULADORA!$C$23,0,IF(CALCULADORA!$C$27>'TIR de Tenencia'!G163,E163,CALCULADORA!$C$33)) -> 181632901610 | L163: 6 | M163: 9 | N163: 2037
A164: =+Flujos!A164 -> 2031-06-06 | B164: =+Flujos!L164 -> -0.0008869171143 | C164: =+Flujos!M164 -> 0 | D164: =+Flujos!N164 -> -4.582700729e-06 | E164: =+Flujos!O164 -> -4.582700729e-06 | G164: 2037-09-06 | H164: =IF(G164<CALCULADORA!$C$23,0,IF(CALCULADORA!$C$27>'TIR de Tenencia'!G164,E164,CALCULADORA!$C$33)) -> 181632901610 | L164: 6 | M164: 10 | N164: 2037
A165: =+Flujos!A165 -> 2031-07-06 | B165: =+Flujos!L165 -> -0.0008869171143 | C165: =+Flujos!M165 -> 0 | D165: =+Flujos!N165 -> -4.582700729e-06 | E165: =+Flujos!O165 -> -4.582700729e-06 | G165: 2037-10-06 | H165: =IF(G165<CALCULADORA!$C$23,0,IF(CALCULADORA!$C$27>'TIR de Tenencia'!G165,E165,CALCULADORA!$C$33)) -> 181632901610 | L165: 6 | M165: 11 | N165: 2037
A166: =+Flujos!A166 -> 2031-08-06 | B166: =+Flujos!L166 -> -0.0008869171143 | C166: =+Flujos!M166 -> 0 | D166: =+Flujos!N166 -> -4.582700729e-06 | E166: =+Flujos!O166 -> -4.582700729e-06 | G166: 2037-11-06 | H166: =IF(G166<CALCULADORA!$C$23,0,IF(CALCULADORA!$C$27>'TIR de Tenencia'!G166,E166,CALCULADORA!$C$33)) -> 181632901610 | L166: 6 | M166: 12 | N166: 2037
A167: =+Flujos!A167 -> 2031-09-06 | B167: =+Flujos!L167 -> -0.0008869171143 | C167: =+Flujos!M167 -> 0 | D167: =+Flujos!N167 -> -4.582700729e-06 | E167: =+Flujos!O167 -> -4.582700729e-06 | G167: 2037-12-06 | H167: =IF(G167<CALCULADORA!$C$23,0,IF(CALCULADORA!$C$27>'TIR de Tenencia'!G167,E167,CALCULADORA!$C$33)) -> 181632901610 | L167: 6 | M167: 1 | N167: 2038
A168: =+Flujos!A168 -> 2031-10-06 | B168: =+Flujos!L168 -> -0.0008869171143 | C168: =+Flujos!M168 -> 0 | D168: =+Flujos!N168 -> -4.582700729e-06 | E168: =+Flujos!O168 -> -4.582700729e-06 | G168: 2038-01-06 | H168: =IF(G168<CALCULADORA!$C$23,0,IF(CALCULADORA!$C$27>'TIR de Tenencia'!G168,E168,CALCULADORA!$C$33)) -> 181632901610 | L168: 6 | M168: 2 | N168: 2038
A169: =+Flujos!A169 -> 2031-11-06 | B169: =+Flujos!L169 -> -0.0008869171143 | C169: =+Flujos!M169 -> 0 | D169: =+Flujos!N169 -> -4.582700729e-06 | E169: =+Flujos!O169 -> -4.582700729e-06 | G169: 2038-02-06 | H169: =IF(G169<CALCULADORA!$C$23,0,IF(CALCULADORA!$C$27>'TIR de Tenencia'!G169,E169,CALCULADORA!$C$33)) -> 181632901610 | L169: 6 | M169: 3 | N169: 2038
A170: =+Flujos!A170 -> 2031-12-06 | B170: =+Flujos!L170 -> -0.0008869171143 | C170: =+Flujos!M170 -> 0 | D170: =+Flujos!N170 -> -4.582700729e-06 | E170: =+Flujos!O170 -> -4.582700729e-06 | G170: 2038-03-06 | H170: =IF(G170<CALCULADORA!$C$23,0,IF(CALCULADORA!$C$27>'TIR de Tenencia'!G170,E170,CALCULADORA!$C$33)) -> 181632901610 | L170: 6 | M170: 4 | N170: 2038
A171: =+Flujos!A171 -> 2032-01-06 | B171: =+Flujos!L171 -> -0.0008869171143 | C171: =+Flujos!M171 -> 0 | D171: =+Flujos!N171 -> -4.582700729e-06 | E171: =+Flujos!O171 -> -4.582700729e-06 | G171: 2038-04-06 | H171: =IF(G171<CALCULADORA!$C$23,0,IF(CALCULADORA!$C$27>'TIR de Tenencia'!G171,E171,CALCULADORA!$C$33)) -> 181632901610 | L171: 6 | M171: 5 | N171: 2038
A172: =+Flujos!A172 -> 2032-02-06 | B172: =+Flujos!L172 -> -0.0008869171143 | C172: =+Flujos!M172 -> 0 | D172: =+Flujos!N172 -> -4.582700729e-06 | E172: =+Flujos!O172 -> -4.582700729e-06 | G172: 2038-05-06 | H172: =IF(G172<CALCULADORA!$C$23,0,IF(CALCULADORA!$C$27>'TIR de Tenencia'!G172,E172,CALCULADORA!$C$33)) -> 181632901610 | L172: 6 | M172: 6 | N172: 2038
A173: =+Flujos!A173 -> 2032-03-06 | B173: =+Flujos!L173 -> -0.0008869171143 | C173: =+Flujos!M173 -> 0 | D173: =+Flujos!N173 -> -4.582700729e-06 | E173: =+Flujos!O173 -> -4.582700729e-06 | G173: 2038-06-06 | H173: =IF(G173<CALCULADORA!$C$23,0,IF(CALCULADORA!$C$27>'TIR de Tenencia'!G173,E173,CALCULADORA!$C$33)) -> 181632901610 | L173: 6 | M173: 7 | N173: 2038
A174: =+Flujos!A174 -> 2032-04-06 | B174: =+Flujos!L174 -> -0.0008869171143 | C174: =+Flujos!M174 -> 0 | D174: =+Flujos!N174 -> -4.582700729e-06 | E174: =+Flujos!O174 -> -4.582700729e-06 | G174: 2038-07-06 | H174: =IF(G174<CALCULADORA!$C$23,0,IF(CALCULADORA!$C$27>'TIR de Tenencia'!G174,E174,CALCULADORA!$C$33)) -> 181632901610 | L174: 6 | M174: 8 | N174: 2038
A175: =+Flujos!A175 -> 2032-05-06 | B175: =+Flujos!L175 -> -0.0008869171143 | C175: =+Flujos!M175 -> 0 | D175: =+Flujos!N175 -> -4.582700729e-06 | E175: =+Flujos!O175 -> -4.582700729e-06 | G175: 2038-08-06 | H175: =IF(G175<CALCULADORA!$C$23,0,IF(CALCULADORA!$C$27>'TIR de Tenencia'!G175,E175,CALCULADORA!$C$33)) -> 181632901610 | L175: 6 | M175: 9 | N175: 2038
A176: =+Flujos!A176 -> 2032-06-06 | B176: =+Flujos!L176 -> -0.0008869171143 | C176: =+Flujos!M176 -> 0 | D176: =+Flujos!N176 -> -4.582700729e-06 | E176: =+Flujos!O176 -> -4.582700729e-06 | G176: 2038-09-06 | H176: =IF(G176<CALCULADORA!$C$23,0,IF(CALCULADORA!$C$27>'TIR de Tenencia'!G176,E176,CALCULADORA!$C$33)) -> 181632901610 | L176: 6 | M176: 10 | N176: 2038
A177: =+Flujos!A177 -> 2032-07-06 | B177: =+Flujos!L177 -> -0.0008869171143 | C177: =+Flujos!M177 -> 0 | D177: =+Flujos!N177 -> -4.582700729e-06 | E177: =+Flujos!O177 -> -4.582700729e-06 | G177: 2038-10-06 | H177: =IF(G177<CALCULADORA!$C$23,0,IF(CALCULADORA!$C$27>'TIR de Tenencia'!G177,E177,CALCULADORA!$C$33)) -> 181632901610 | L177: 6 | M177: 11 | N177: 2038
A178: =+Flujos!A178 -> 2032-08-06 | B178: =+Flujos!L178 -> -0.0008869171143 | C178: =+Flujos!M178 -> 0 | D178: =+Flujos!N178 -> -4.582700729e-06 | E178: =+Flujos!O178 -> -4.582700729e-06 | G178: 2038-11-06 | H178: =IF(G178<CALCULADORA!$C$23,0,IF(CALCULADORA!$C$27>'TIR de Tenencia'!G178,E178,CALCULADORA!$C$33)) -> 181632901610 | L178: 6 | M178: 12 | N178: 2038
A179: =+Flujos!A179 -> 2032-09-06 | B179: =+Flujos!L179 -> -0.0008869171143 | C179: =+Flujos!M179 -> 0 | D179: =+Flujos!N179 -> -4.582700729e-06 | E179: =+Flujos!O179 -> -4.582700729e-06 | G179: 2038-12-06 | H179: =IF(G179<CALCULADORA!$C$23,0,IF(CALCULADORA!$C$27>'TIR de Tenencia'!G179,E179,CALCULADORA!$C$33)) -> 181632901610 | L179: 6 | M179: 1 | N179: 2039
A180: =+Flujos!A180 -> 2032-10-06 | B180: =+Flujos!L180 -> -0.0008869171143 | C180: =+Flujos!M180 -> 0 | D180: =+Flujos!N180 -> -4.582700729e-06 | E180: =+Flujos!O180 -> -4.582700729e-06 | G180: 2039-01-06 | H180: =IF(G180<CALCULADORA!$C$23,0,IF(CALCULADORA!$C$27>'TIR de Tenencia'!G180,E180,CALCULADORA!$C$33)) -> 181632901610 | L180: 6 | M180: 2 | N180: 2039
A181: =+Flujos!A181 -> 2032-11-06 | B181: =+Flujos!L181 -> -0.0008869171143 | C181: =+Flujos!M181 -> 0 | D181: =+Flujos!N181 -> -4.582700729e-06 | E181: =+Flujos!O181 -> -4.582700729e-06 | G181: 2039-02-06 | H181: =IF(G181<CALCULADORA!$C$23,0,IF(CALCULADORA!$C$27>'TIR de Tenencia'!G181,E181,CALCULADORA!$C$33)) -> 181632901610 | L181: 6 | M181: 3 | N181: 2039
A182: =+Flujos!A182 -> 2032-12-06 | B182: =+Flujos!L182 -> -0.0008869171143 | C182: =+Flujos!M182 -> 0 | D182: =+Flujos!N182 -> -4.582700729e-06 | E182: =+Flujos!O182 -> -4.582700729e-06 | G182: 2039-03-06 | H182: =IF(G182<CALCULADORA!$C$23,0,IF(CALCULADORA!$C$27>'TIR de Tenencia'!G182,E182,CALCULADORA!$C$33)) -> 181632901610 | L182: 6 | M182: 4 | N182: 2039
B183: Totales | C183: =SUM(C2:C182) -> 4.788065106e+12 | D183: 7.888667606e+11 | E183: 5.576931866e+12
I184: =+IF(H184=H183," ",H184) ->  | K184: =+MONTH(A184) -> 1 | L184: =+YEAR(A184) -> 1900
K185: 1 | L185: 1900
K186: 1 | L186: 1900
K187: 1 | L187: 1900
K188: 1 | L188: 1900
K189: 1 | L189: 1900
K190: 1 | L190: 1900
K191: 1 | L191: 1900
K192: 1 | L192: 1900
K193: 1 | L193: 1900
K194: 1 | L194: 1900
K195: 1 | L195: 1900
K196: 1 | L196: 1900
K197: 1 | L197: 1900
K198: 1 | L198: 1900
K199: 1 | L199: 1900
K200: 1 | L200: 1900
... 4300 more rows

Sheet Tabla de Amortizacion (hidden)
A1: FECHA | B1: Tabla de Amortización Valoración | E1: Tabla de Amortización Valoración | F1: Tabla de Amortización Valoración | G1: Tabla de Amortización Valoración | H1: Tabla de Amortización Valoración | I1: Tabla de Amortización Valoración | J1: Tabla de Amortización Valoración | K1: Tabla de Amortización Valoración | L1: Tabla de Amortización Valoración | M1: Tabla de Amortización Valoración | N1: Tabla de Amortización Valoración | O1: Tabla de Amortización Valoración
B2: =+CALCULADORA!C9 -> TIPS N16 A | E2: =+Características!$B$1 -> TIPS N13 A | F2: =+Características!$C$1 -> TIPS N14 A | G2: =+Características!$D$1 -> TIPS N15 A | H2: =+Características!$E$1 -> TIPS N16 A | I2: =+Características!$F$1 -> TIPS N17 A | J2: =+Características!$G$1 -> TIPS N18 A 2034 | K2: =+Características!$H$1 -> TIPS N19 A 2034 | L2: =+Características!$I$1 -> TIPS N20 A 2034 | M2: =+Características!$J$1 -> TIPS N21 A | N2: =+Características!$K$1 -> TIPS N22 A | O2: =+Características!$L$1 -> TIPS N23 A
A3: =+Flujos!A3 -> 2018-01-06 | B3: =+VLOOKUP(A3,$D$2:$O$182,MATCH($B$2,$D$2:$O$2,0),FALSE) -> 0.02356776 | D3: =+A3 -> 2018-01-06 | E3: 0.02044998 | F3: 0.01368171 | G3: 0.02659682 | H3: 0.02356776 | I3: 0.03571942 | J3: 0.00605857 | K3: 0.01847045 | L3: 0.0158525 | M3: 0.01952549 | N3: 0.01619246 | O3: 0.01844715
A4: =+Flujos!A4 -> 2018-02-06 | B4: =+VLOOKUP(A4,$D$2:$O$182,MATCH($B$2,$D$2:$O$2,0),FALSE) -> 0.02133346 | D4: =+A4 -> 2018-02-06 | E4: 0.01389231 | F4: 0.01183556 | G4: 0.02294987 | H4: 0.02133346 | I4: 0.02457022 | J4: 0.0236512 | K4: 0.02392001 | L4: 0.02892144 | M4: 0.02834999 | N4: 0.0239413 | O4: 0.01813964
A5: =+Flujos!A5 -> 2018-03-06 | B5: 0.02897295 | D5: 2018-03-06 | E5: 0.01675198 | F5: 0.01424274 | G5: 0.02656322 | H5: 0.02897295 | I5: 0.0199412 | J5: 0.02121142 | K5: 0.02116353 | L5: 0.02259371 | M5: 0.02654497 | N5: 0.0317479 | O5: 0.01783635
A6: =+Flujos!A6 -> 2018-04-06 | B6: 0.02223212 | D6: 2018-04-06 | E6: 0.01204601 | F6: 0.01511885 | G6: 0.02616427 | H6: 0.02223212 | I6: 0.01917548 | J6: 0.02364436 | K6: 0.01844168 | L6: 0.02618229 | M6: 0.02677209 | N6: 0.02672574 | O6: 0.02057857
A7: =+Flujos!A7 -> 2018-05-06 | B7: 0.02047248 | D7: 2018-05-06 | E7: 0.01163129 | F7: 0.01640594 | G7: 0.02127747 | H7: 0.02047248 | I7: 0.01949236 | J7: 0.02091759 | K7: 0.02002614 | L7: 0.02214692 | M7: 0.02176445 | N7: 0.01715291 | O7: 0.01965973
A8: =+Flujos!A8 -> 2018-06-06 | B8: 0.02060537 | D8: 2018-06-06 | E8: 0.01407613 | F8: 0.01820595 | G8: 0.02742637 | H8: 0.02060537 | I8: 0.02337156 | J8: 0.02529812 | K8: 0.01920896 | L8: 0.01938706 | M8: 0.01831821 | N8: 0.01685028 | O8: 0.01808374
A9: =+Flujos!A9 -> 2018-07-06 | B9: 0.02115641 | D9: 2018-07-06 | E9: 0.01742161 | F9: 0.02362088 | G9: 0.02119926 | H9: 0.02115641 | I9: 0.01787675 | J9: 0.01834793 | K9: 0.0156808 | L9: 0.01884397 | M9: 0.01794704 | N9: 0.01655796 | O9: 0.01780122
A10: =+Flujos!A10 -> 2018-08-06 | B10: 0.01838404 | D10: 2018-08-06 | E10: 0.01186987 | F10: 0.02330254 | G10: 0.01664172 | H10: 0.01838404 | I10: 0.02257094 | J10: 0.01917264 | K10: 0.02031004 | L10: 0.02129778 | M10: 0.01610036 | N10: 0.01627808 | O10: 0.01752233
A11: =+Flujos!A11 -> 2018-09-06 | B11: 0.02119569 | D11: 2018-09-06 | E11: 0.02125241 | F11: 0.02457678 | G11: 0.01428269 | H11: 0.02119569 | I11: 0.01776765 | J11: 0.01797415 | K11: 0.01653618 | L11: 0.01328574 | M11: 0.0146862 | N11: 0.01600412 | O11: 0.01724244
A12: =+Flujos!A12 -> 2018-10-06 | B12: 0.02337674 | D12: 2018-10-06 | E12: 0.01996124 | F12: 0.02252216 | G12: 0.01979017 | H12: 0.02337674 | I12: 0.01561815 | J12: 0.0192707 | K12: 0.01068205 | L12: 0.01759811 | M12: 0.01427731 | N12: 0.01575027 | O12: 0.01695539
A13: =+Flujos!A13 -> 2018-11-06 | B13: =+VLOOKUP(A13,$D$2:$O$182,MATCH($B$2,$D$2:$O$2,0),FALSE) -> 0.01376149 | D13: 2018-11-06 | E13: 0.01495962 | F13: 0.02172866 | G13: 0.01486948 | H13: 0.01376149 | I13: 0.01843288 | J13: 0.01051969 | K13: 0.0165158 | L13: 0.01624602 | M13: 0.01730595 | N13: 0.01549211 | O13: 0.01667087
A14: =+Flujos!A14 -> 2018-12-06 | B14: 0.01698375 | D14: 2018-12-06 | E14: 0.01775622 | F14: 0.01924675 | G14: 0.01443206 | H14: 0.01698375 | I14: 0.0167106 | J14: 0.02197584 | K14: 0.01429638 | L14: 0.01670805 | M14: 0.01376916 | N14: 0.01523452 | O14: 0.01639189
A15: =+Flujos!A15 -> 2019-01-06 | B15: 0.022644 | D15: 2019-01-06 | E15: 0.01861186 | F15: 0.01952513 | G15: 0.01976905 | H15: 0.022644 | I15: 0.02242677 | J15: 0.01699029 | K15: 0.00923389 | L15: 0.01450048 | M15: 0.01483369 | N15: 0.01498313 | O15: 0.01610535
A16: =+Flujos!A16 -> 2019-02-06 | B16: 0.01870053 | D16: 2019-02-06 | E16: 0.01496187 | F16: 0.02071941 | G16: 0.01836559 | H16: 0.01870053 | I16: 0.0225063 | J16: 0.01325195 | K16: 0.01499669 | L16: 0.0159464 | M16: 0.01289312 | N16: 0.01471318 | O16: 0.01584019
A17: =+Flujos!A17 -> 2019-03-06 | B17: 0.02424875 | D17: 2019-03-06 | E17: 0.01762456 | F17: 0.02070901 | G17: 0.01807762 | H17: 0.02424875 | I17: 0.01981603 | J17: 0.01007138 | K17: 0.01357463 | L17: 0.01568914 | M17: 0.01178352 | N17: 0.01444793 | O17: 0.0155688
A18: =+Flujos!A18 -> 2019-04-06 | B18: 0.01717284 | D18: 2019-04-06 | E18: 0.0128802 | F18: 0.01853392 | G18: 0.02047601 | H18: 0.01717284 | I18: 0.01604535 | J18: 0.02083114 | K18: 0.01483513 | L18: 0.01075758 | M18: 0.01040654 | N18: 0.01418839 | O18: 0.01530015
A19: =+Flujos!A19 -> 2019-05-06 | B19: 0.01614614 | D19: 2019-05-06 | E19: 0.01380986 | F19: 0.01617943 | G19: 0.01518027 | H19: 0.01614614 | I19: 0.019135 | J19: 0.01314528 | K19: 0.00807425 | L19: 0.01354073 | M19: 0.01326818 | N19: 0.01393281 | O19: 0.01502054
A20: =+Flujos!A20 -> 2019-06-06 | B20: 0.01870624 | D20: 2019-06-06 | E20: 0.01326533 | F20: 0.01960572 | G20: 0.02128655 | H20: 0.01870624 | I20: 0.01850661 | J20: 0.01464749 | K20: 0.01361384 | L20: 0.01276501 | M20: 0.01401153 | N20: 0.01368198 | O20: 0.01477112
A21: =+Flujos!A21 -> 2019-07-06 | B21: 0.0282862 | D21: 2019-07-06 | E21: 0.01197941 | F21: 0.017751 | G21: 0.01596307 | H21: 0.0282862 | I21: 0.01447718 | J21: 0.01006517 | K21: 0.01019619 | L21: 0.01161447 | M21: 0.01373559 | N21: 0.01343646 | O21: 0.01451235
A22: =+Flujos!A22 -> 2019-08-06 | B22: 0.01329859 | D22: 2019-08-06 | E22: 0.01272617 | F22: 0.0201187 | G22: 0.01999637 | H22: 0.01329859 | I22: 0.01654485 | J22: 0.01054455 | K22: 0.01032425 | L22: 0.01331859 | M22: 0.01440303 | N22: 0.01319797 | O22: 0.01427031
A23: =+Flujos!A23 -> 2019-09-06 | B23: 0.01814356 | D23: 2019-09-06 | E23: 0.01530562 | F23: 0.01828355 | G23: 0.01469504 | H23: 0.01814356 | I23: 0.01661799 | J23: 0.00992201 | K23: 0.01241966 | L23: 0.00949922 | M23: 0.01222623 | N23: 0.01296424 | O23: 0.01402277
A24: =+Flujos!A24 -> 2019-10-06 | B24: 0.01595792 | D24: 2019-10-06 | E24: 0.01334941 | F24: 0.01320268 | G24: 0.01966265 | H24: 0.01595792 | I24: 0.0193822 | J24: 0.00999066 | K24: 0.00874107 | L24: 0.01038323 | M24: 0.01260328 | N24: 0.01273986 | O24: 0.01376804
A25: =+Flujos!A25 -> 2019-11-06 | B25: 0.01681101 | D25: 2019-11-06 | E25: 0.01343126 | F25: 0.01729486 | G25: 0.01651748 | H25: 0.01681101 | I25: 0.02416772 | J25: 0.00939988 | K25: 0.00834591 | L25: 0.01440096 | M25: 0.01062882 | N25: 0.01251648 | O25: 0.01352435
A26: =+Flujos!A26 -> 2019-12-06 | B26: 0.01544912 | D26: 2019-12-06 | E26: 0.01613141 | F26: 0.01540016 | G26: 0.01611479 | H26: 0.01544912 | I26: 0.02190972 | J26: 0.00657291 | K26: 0.01046561 | L26: 0.0111731 | M26: 0.00970835 | N26: 0.01229501 | O26: 0.01326074
A27: =+Flujos!A27 -> 2020-01-06 | B27: 0.01386443 | D27: 2020-01-06 | E27: 0.01431813 | F27: 0.01890395 | G27: 0.01270605 | H27: 0.01386443 | I27: 0.00938747 | J27: 0.0127433 | K27: 0.00621205 | L27: 0.01300945 | M27: 0.00918628 | N27: 0.01207168 | O27: 0.01302529
A28: =+Flujos!A28 -> 2020-02-06 | B28: 0.01572838 | D28: 2020-02-06 | E28: 0.01628853 | F28: 0.01500383 | G28: 0.01494734 | H28: 0.01572838 | I28: 0.00224242 | J28: 0.00847706 | K28: 0.00775293 | L28: 0.01152998 | M28: 0.01352611 | N28: 0.01184706 | O28: 0.01279204
A29: =+Flujos!A29 -> 2020-03-06 | B29: 0.02086454 | D29: 2020-03-06 | E29: 0.01435779 | F29: 0.02084695 | G29: 0.01662729 | H29: 0.02086454 | I29: 0.00663784 | J29: 0.00962463 | K29: 0.0071742 | L29: 0.00854143 | M29: 0.01143474 | N29: 0.01162431 | O29: 0.01255101
A30: =+Flujos!A30 -> 2020-04-06 | B30: 0.01103635 | D30: 2020-04-06 | E30: 0.01661774 | F30: 0.01219917 | G30: 0.01673982 | H30: 0.01103635 | I30: 0.01070316 | J30: 0.00867892 | K30: 0.00712022 | L30: 0.00922056 | M30: 0.00832034 | N30: 0.01140526 | O30: 0.0123181
A31: =+Flujos!A31 -> 2020-05-06 | B31: 0.00328742 | D31: 2020-05-06 | E31: 0.01476718 | F31: 0.0160444 | G31: 0.01522799 | H31: 0.00328742 | I31: 0.01145043 | J31: 0.00606589 | K31: 0.00986897 | L31: 0.01068278 | M31: 0.01294797 | N31: 0.01118904 | O31: 0.01208614
A32: =+Flujos!A32 -> 2020-06-06 | B32: 0.00335904 | D32: 2020-06-06 | E32: 0.01467772 | F32: 0.0126768 | G32: 0.01799877 | H32: 0.00335904 | I32: 0.00932192 | J32: 0.0056227 | K32: 0.00844365 | L32: 0.00840043 | M32: 0.0092125 | N32: 0.01097506 | O32: 0.01185019
A33: =+Flujos!A33 -> 2020-07-06 | B33: 0.0047029 | D33: 2020-07-06 | E33: 0.0121292 | F33: 0.01359303 | G33: 0.01670931 | H33: 0.0047029 | I33: 0.01425703 | J33: 0.00739365 | K33: 0.01285656 | L33: 0.00942713 | M33: 0.01153683 | N33: 0.01076237 | O33: 0.01161104
A34: =+Flujos!A34 -> 2020-08-06 | B34: 0.00592936 | D34: 2020-08-06 | E34: 0.01172219 | F34: 0.01628187 | G34: 0.01902509 | H34: 0.00592936 | I34: 0.01300706 | J34: 0.01001431 | K34: 0.00928653 | L34: 0.0082664 | M34: 0.01028062 | N34: 0.01054641 | O34: 0.01139853
A35: =+Flujos!A35 -> 2020-09-06 | B35: 0.00934888 | D35: 2020-09-06 | E35: 0.01530554 | F35: 0.01221051 | G35: 0.01549794 | H35: 0.00934888 | I35: 0.01105333 | J35: 0.0087118 | K35: 0.01317768 | L35: 0.01171722 | M35: 0.0088502 | N35: 0.01033269 | O35: 0.01118564
A36: =+Flujos!A36 -> 2020-10-06 | B36: 0.0094674 | D36: 2020-10-06 | E36: 0.01318137 | F36: 0.0154152 | G36: 0.00120175 | H36: 0.0094674 | I36: 0.01644809 | J36: 0.00753429 | K36: 0.0086879 | L36: 0.00993075 | M36: 0.01112976 | N36: 0.01010076 | O36: 0.01096864
A37: =+Flujos!A37 -> 2020-11-06 | B37: 0.01645422 | D37: 2020-11-06 | E37: 0.01449017 | F37: 0.014099 | G37: 0.00117287 | H37: 0.01645422 | I37: 0.01266616 | J37: 0.01076061 | K37: 0.0066977 | L37: 0.01268487 | M37: 0.01043272 | N37: 0.0098794 | O37: 0.01074785
A38: =+Flujos!A38 -> 2020-12-06 | B38: 0.01360503 | D38: 2020-12-06 | E38: 0.01049837 | F38: 0.01640389 | G38: 0.00631143 | H38: 0.01360503 | I38: 0.01359347 | J38: 0.01157145 | K38: 0.01013146 | L38: 0.01235936 | M38: 0.01092245 | N38: 0.00967412 | O38: 0.01051413
A39: =+Flujos!A39 -> 2021-01-06 | B39: 0.01503896 | D39: 2021-01-06 | E39: 0.01470858 | F39: 0.00988778 | G39: 0.00710865 | H39: 0.01503896 | I39: 0.01185657 | J39: 0.00497716 | K39: 0.00844222 | L39: 0.01144497 | M39: 0.01285958 | N39: 0.00947447 | O39: 0.01031184
A40: =+Flujos!A40 -> 2021-02-06 | B40: 0.01366977 | D40: 2021-02-06 | E40: 0.01444744 | F40: 0.00087918 | G40: 0.00697761 | H40: 0.01366977 | I40: 0.01347089 | J40: 0.00412667 | K40: 0.00835697 | L40: 0.01134134 | M40: 0.00964575 | N40: 0.009303 | O40: 0.01010582
A41: =+Flujos!A41 -> 2021-03-06 | B41: 0.01395939 | D41: 2021-03-06 | E41: 0.01291791 | F41: 0.00348549 | G41: 0.01336185 | H41: 0.01395939 | I41: 0.01437008 | J41: 0.00606006 | K41: 0.00826737 | L41: 0.01091842 | M41: 0.0095085 | N41: 0.00913264 | O41: 0.00991378
A42: =+Flujos!A42 -> 2021-04-06 | B42: 0.01200633 | D42: 2021-04-06 | E42: 0.01272832 | F42: 0.00474617 | G42: 0.00978246 | H42: 0.01200633 | I42: 0.01209825 | J42: 0.0072122 | K42: 0.00817792 | L42: 0.01047117 | M42: 0.00944181 | N42: 0.00896811 | O42: 0.00970487
A43: =+Flujos!A43 -> 2021-05-06 | B43: 0.01270412 | D43: 2021-05-06 | E43: 0.00010085 | F43: 0.00903694 | G43: 0.01328964 | H43: 0.01270412 | I43: 0.01289714 | J43: 0.00720664 | K43: 0.00808019 | L43: 0.0098531 | M43: 0.00934909 | N43: 0.00880786 | O43: 0.00949191
A44: =+Flujos!A44 -> 2021-06-06 | B44: 0.01132464 | D44: 2021-06-06 | E44: 0.00259768 | F44: 0.0052115 | G44: 0.01251384 | H44: 0.01132464 | I44: 0.01219468 | J44: 0.01030488 | K44: 0.00799424 | L44: 0.00956708 | M44: 0.00923675 | N44: 0.00865132 | O44: 0.00929293
A45: =+Flujos!A45 -> 2021-07-06 | B45: 0.00969269 | D45: 2021-07-06 | E45: 0.00257446 | F45: 0.00984007 | G45: 0.01011529 | H45: 0.00969269 | I45: 0.01176555 | J45: 0.00712063 | K45: 0.00791495 | L45: 0.00970351 | M45: 0.00911333 | N45: 0.00849563 | O45: 0.00910635
A46: =+Flujos!A46 -> 2021-08-06 | B46: 0.01363761 | D46: 2021-08-06 | E46: 0.00600046 | F46: 0.00958311 | G46: 0.01229326 | H46: 0.01363761 | I46: 0.01069626 | J46: 0.00703906 | K46: 0.00783095 | L46: 0.00967876 | M46: 0.00903689 | N46: 0.00834664 | O46: 0.00892797
A47: =+Flujos!A47 -> 2021-09-06 | B47: 0.01135293 | D47: 2021-09-06 | E47: 0.00721973 | F47: 0.01028221 | G47: 0.01129489 | H47: 0.01135293 | I47: 0.01330106 | J47: 0.00696606 | K47: 0.00774039 | L47: 0.00956821 | M47: 0.00893584 | N47: 0.00819229 | O47: 0.00873296
A48: =+Flujos!A48 -> 2021-10-06 | B48: 0.01013605 | D48: 2021-10-06 | E48: 0.00767481 | F48: 0.00824404 | G48: 0.00951999 | H48: 0.01013605 | I48: 0.01010537 | J48: 0.00690165 | K48: 0.00764983 | L48: 0.00949133 | M48: 0.00884924 | N48: 0.00804299 | O48: 0.00855514
A49: =+Flujos!A49 -> 2021-11-06 | B49: 0.01023478 | D49: 2021-11-06 | E49: 0.011827 | F49: 0.00970398 | G49: 0.01382827 | H49: 0.01023478 | I49: 0.00953173 | J49: 0.00683447 | K49: 0.00757069 | L49: 0.00935384 | M49: 0.00874807 | N49: 0.00789134 | O49: 0.0083879
A50: =+Flujos!A50 -> 2021-12-06 | B50: 0.0082423 | D50: 2021-12-06 | E50: 0.0112454 | F50: 0.008772 | G50: 0.00905725 | H50: 0.0082423 | I50: 0.00893678 | J50: 0.00677331 | K50: 0.00748973 | L50: 0.00929478 | M50: 0.00848699 | N50: 0.0077485 | O50: 0.00821212
A51: =+Flujos!A51 -> 2022-01-06 | B51: 0.01079955 | D51: 2022-01-06 | E51: 0.0122264 | F51: 0.01334663 | G51: 0.01029287 | H51: 0.01079955 | I51: 0.00961686 | J51: 0.00669932 | K51: 0.00740055 | L51: 0.0092247 | M51: 0.00861068 | N51: 0.00761134 | O51: 0.00806111
A52: =+Flujos!A52 -> 2022-02-06 | B52: 0.01187544 | D52: 2022-02-06 | E52: 0.00968244 | F52: 0.00920606 | G52: 0.01148269 | H52: 0.01187544 | I52: 0.00779207 | J52: 0.00663767 | K52: 0.00731603 | L52: 0.00915421 | M52: 0.00852 | N52: 0.00747267 | O52: 0.00789529
A53: =+Flujos!A53 -> 2022-03-06 | B53: 0.01019234 | D53: 2022-03-06 | E53: 0.01374424 | F53: 0.01075445 | G53: 0.00948177 | H53: 0.01019234 | I53: 0.01006071 | J53: 0.006581 | K53: 0.00723166 | L53: 0.00906031 | M53: 0.00844755 | N53: 0.00733607 | O53: 0.00772627
A54: =+Flujos!A54 -> 2022-04-06 | B54: 0.01059437 | D54: 2022-04-06 | E54: 0.00903524 | F54: 0.00724663 | G54: 0.00804489 | H54: 0.01059437 | I54: 0.01081909 | J54: 0.00651256 | K54: 0.00714935 | L54: 0.00894671 | M54: 0.00835992 | N54: 0.00720205 | O54: 0.00754324
A55: =+Flujos!A55 -> 2022-05-06 | B55: 0.0111525 | D55: 2022-05-06 | E55: 0.01006501 | F55: 0.00948708 | G55: 0.01157107 | H55: 0.0111525 | I55: 0.00763213 | J55: 0.0064488 | K55: 0.00731371 | L55: 0.00885015 | M55: 0.00828693 | N55: 0.00706999 | O55: 0.00740029
A56: =+Flujos!A56 -> 2022-06-06 | B56: 0.00963262 | D56: 2022-06-06 | E56: 0.00694017 | F56: 0.0084972 | G56: 0.0091879 | H56: 0.00963262 | I56: 0.00913507 | J56: 0.00638483 | K56: 0.00918399 | L56: 0.00847414 | M56: 0.00821101 | N56: 0.00789817 | O56: 0.00725478
A57: =+Flujos!A57 -> 2022-07-06 | B57: 0.00611365 | D57: 2022-07-06 | E57: 0.01032482 | F57: 0.0089106 | G57: 0.01061184 | H57: 0.00611365 | I57: 0.00824169 | J57: 0.00631565 | K57: 0.00904994 | L57: 0.00867494 | M57: 0.00812094 | N57: 0.0090272 | O57: 0.0071008
A58: =+Flujos!A58 -> 2022-08-06 | B58: 0.00810022 | D58: 2022-08-06 | E58: 0.01014255 | F58: 0.00780819 | G58: 0.00963164 | H58: 0.00810022 | I58: 0.00595712 | J58: 0.0062548 | K58: 0.00898507 | L58: 0.00859939 | M58: 0.00803757 | N58: 0.00889107 | O58: 0.00696765
A59: =+Flujos!A59 -> 2022-09-06 | B59: 0.00639594 | D59: 2022-09-06 | E59: 0.01028269 | F59: 0.00961772 | G59: 0.00826396 | H59: 0.00639594 | I59: 0.00799775 | J59: 0.00725033 | K59: 0.00889549 | L59: 0.00847779 | M59: 0.00797595 | N59: 0.00875532 | O59: 0.00683056
A60: =+Flujos!A60 -> 2022-10-06 | B60: 0.0099169 | D60: 2022-10-06 | E60: 0.01217725 | F60: 0.00795294 | G60: 0.00754122 | H60: 0.0099169 | I60: 0.00630369 | J60: 0.00833441 | K60: 0.00837021 | L60: 0.00839802 | M60: 0.00790094 | N60: 0.00862341 | O60: 0.00669507
A61: =+Flujos!A61 -> 2022-11-06 | B61: 0.00934268 | D61: 2022-11-06 | E61: 0.00910267 | F61: 0.00689769 | G61: 0.0075995 | H61: 0.00934268 | I61: 0.00676965 | J61: 0.00828986 | K61: 0.00873836 | L61: 0.00830999 | M61: 0.00782618 | N61: 0.00849058 | O61: 0.0065605
A62: =+Flujos!A62 -> 2022-12-06 | B62: 0.0055879 | D62: 2022-12-06 | E62: 0.00848117 | F62: 0.00769056 | G62: 0.0058627 | H62: 0.0055879 | I62: 0.00687964 | J62: 0.00822312 | K62: 0.00857103 | L62: 0.00821453 | M62: 0.00753553 | N62: 0.00811609 | O62: 0.00642874
A63: =+Flujos!A63 -> 2023-01-06 | B63: 0.00736599 | D63: 2023-01-06 | E63: 0.00793732 | F63: 0.00873037 | G63: 0.00651442 | H63: 0.00736599 | I63: 0.00709652 | J63: 0.00810648 | K63: 0.00849066 | L63: 0.00811883 | M63: 0.00766052 | N63: 0.0082283 | O63: 0.00629776
A64: =+Flujos!A64 -> 2023-02-06 | B64: 0.00620802 | D64: 2023-02-06 | E64: 0.00813077 | F64: 0.00635374 | G64: 0.00768038 | H64: 0.00620802 | I64: 0.00499626 | J64: 0.00758683 | K64: 0.008406 | L64: 0.00802277 | M64: 0.00761148 | N64: 0.00810049 | O64: 0.0061766
A65: =+Flujos!A65 -> 2023-03-06 | B65: 0.00603929 | D65: 2023-03-06 | E65: 0.0116814 | F65: 0.00702952 | G65: 0.00561159 | H65: 0.00603929 | I65: 0.00604351 | J65: 0.0079662 | K65: 0.00828083 | L65: 0.00790844 | M65: 0.00752701 | N65: 0.00797644 | O65: 0.00605581
A66: =+Flujos!A66 -> 2023-04-06 | B66: 0.00558452 | D66: 2023-04-06 | E66: 0.00784629 | F66: 0.00685882 | G66: 0.00380373 | H66: 0.00558452 | I66: 0.00593204 | J66: 0.00788617 | K66: 0.00817069 | L66: 0.00778093 | M66: 0.00744445 | N66: 0.00785359 | O66: 0.00591914
A67: =+Flujos!A67 -> 2023-05-06 | B67: 0.00572911 | D67: 2023-05-06 | E67: 0.00750415 | F67: 0.00752729 | G67: 0.00534973 | H67: 0.00572911 | I67: 0.00511061 | J67: 0.00777352 | K67: 0.0080819 | L67: 0.00765748 | M67: 0.00738179 | N67: 0.00772388 | O67: 0.00578832
A68: =+Flujos!A68 -> 2023-06-06 | B68: =+VLOOKUP(A68,$D$2:$O$182,MATCH($B$2,$D$2:$O$2,0),FALSE) -> 0.0058543 | D68: =+A68 -> 2023-06-06 | E68: 0.00886363 | F68: 0.00782742 | G68: 0.0047784 | H68: 0.0058543 | I68: 0.00705012 | J68: 0.00768105 | K68: 0.0079659 | L68: 0.00722918 | M68: 0.00730359 | N68: 0.00760455 | O68: 0.00567616
A69: =+Flujos!A69 -> 2023-07-06 | B69: 0.0058232 | D69: 2023-07-06 | E69: 0.00786875 | F69: 0.0057107 | G69: 0.00629813 | H69: 0.0058232 | I69: 0.00714261 | J69: 0.00760534 | K69: 0.00785551 | L69: 0.00742537 | M69: 0.00723703 | N69: 0.00748141 | O69: 0.00556724
A70: =+Flujos!A70 -> 2023-08-06 | B70: 0.00630288 | D70: 2023-08-06 | E70: 0.00717001 | F70: 0.0049743 | G70: 0.00444419 | H70: 0.00630288 | I70: 0.00630244 | J70: 0.00748314 | K70: 0.00774034 | L70: 0.00733058 | M70: 0.00716582 | N70: 0.00736558 | O70: 0.00546015
A71: =+Flujos!A71 -> 2023-09-06 | B71: 0.00466736 | D71: 2023-09-06 | E71: 0.00753296 | F71: 0.00467522 | G71: 0.00523832 | H71: 0.00466736 | I71: 0.00592662 | J71: 0.00737736 | K71: 0.00759026 | L71: 0.0072183 | M71: 0.00709499 | N71: 0.00724748 | O71: 0.00535752
A72: =+Flujos!A72 -> 2023-10-06 | B72: 0.00544469 | D72: 2023-10-06 | E72: 0.00797559 | F72: 0.00608281 | G72: 0.00482507 | H72: 0.00544469 | I72: 0.00511144 | J72: 0.00729212 | K72: 0.00706631 | L72: 0.00709173 | M72: 0.0070211 | N72: 0.00712994 | O72: 0.00525274
A73: =+Flujos!A73 -> 2023-11-06 | B73: 0.00553811 | D73: 2023-11-06 | E73: 0.00507735 | F73: 0.00605835 | G73: 0.00538974 | H73: 0.00553811 | I73: 0.00541929 | J73: 0.00721181 | K73: 0.00742417 | L73: 0.00698577 | M73: 0.00695546 | N73: 0.00701265 | O73: 0.00515316
A74: =+Flujos!A74 -> 2023-12-06 | B74: 0.00572962 | D74: 2023-12-06 | E74: 0.00793204 | F74: 0.0046723 | G74: 0.00476348 | H74: 0.00572962 | I74: 0.00538604 | J74: 0.00711815 | K74: 0.0073425 | L74: 0.00687368 | M74: 0.00663497 | N74: 0.00663726 | O74: 0.00503728
A75: =+Flujos!A75 -> 2024-01-06 | B75: 0.00462437 | D75: 2024-01-06 | E75: 0.00654332 | F75: 0.00512363 | G75: 0.00552716 | H75: 0.00462437 | I75: 0.00624491 | J75: 0.00703784 | K75: 0.00725337 | L75: 0.00677809 | M75: 0.00679613 | N75: 0.00678101 | O75: 0.00493489
A76: =+Flujos!A76 -> 2024-02-06 | B76: 0.00552078 | D76: 2024-02-06 | E76: 0.00538377 | F76: 0.00499619 | G76: 0.00513644 | H76: 0.00552078 | I76: 0.00492567 | J76: 0.00645346 | K76: 0.00715198 | L76: 0.00668748 | M76: 0.00672245 | N76: 0.0066755 | O76: 0.00482374
A77: =+Flujos!A77 -> 2024-03-06 | B77: 0.00538949 | D77: 2024-03-06 | E77: 0.00605675 | F77: 0.00623352 | G77: 0.00466968 | H77: 0.00538949 | I77: 0.00603166 | J77: 0.00683604 | K77: 0.00708214 | L77: 0.00658031 | M77: 0.00664914 | N77: 0.00656975 | O77: 0.00497438
A78: =+Flujos!A78 -> 2024-04-06 | B78: 0.00447927 | D78: 2024-04-06 | E78: 0.00674591 | F78: 0.0049786 | G78: 0.00470663 | H78: 0.00447927 | I78: 0.0047426 | J78: 0.00674491 | K78: 0.00697463 | L78: 0.00647024 | M78: 0.00658449 | N78: 0.00646808 | O78: 0.00582772
A79: =+Flujos!A79 -> 2024-05-06 | B79: 0.00543398 | D79: 2024-05-06 | E79: 0.00578832 | F79: 0.00372572 | G79: 0.00351463 | H79: 0.00543398 | I79: 0.00466264 | J79: 0.00664618 | K79: 0.00686901 | L79: 0.00636612 | M79: 0.00652022 | N79: 0.00636826 | O79: 0.0057207
A80: =+Flujos!A80 -> 2024-06-06 | B80: 0.00475194 | D80: 2024-06-06 | E80: 0.00573167 | F80: 0.00469667 | G80: 0.00403741 | H80: 0.00475194 | I80: 0.00459538 | J80: 0.00656198 | K80: 0.00679028 | L80: 0.0059187 | M80: 0.00644674 | N80: 0.00627028 | O80: 0.00560835
A81: =+Flujos!A81 -> 2024-07-06 | B81: 0.00437582 | D81: 2024-07-06 | E81: 0.00498663 | F81: 0.00430156 | G81: 0.00383969 | H81: 0.00437582 | I81: 0.00462585 | J81: 0.00647439 | K81: 0.00669848 | L81: 0.00617194 | M81: 0.00638344 | N81: 0.00617362 | O81: 0.00550195
A82: =+Flujos!A82 -> 2024-08-06 | B82: 0.00396867 | D82: 2024-08-06 | E82: 0.00427695 | F82: 0.00499132 | G82: 0.00450982 | H82: 0.00396867 | I82: 0.00456178 | J82: 0.0064034 | K82: 0.00660278 | L82: 0.00608097 | M82: 0.00631074 | N82: 0.00607513 | O82: 0.00540803
A83: =+Flujos!A83 -> 2024-09-06 | B83: 0.00421589 | D83: 2024-09-06 | E83: 0.00494324 | F83: 0.00437396 | G83: 0.00456853 | H83: 0.00421589 | I83: 0.00448278 | J83: 0.00631255 | K83: 0.0064964 | L83: 0.00599018 | M83: 0.00624039 | N83: 0.00597826 | O83: 0.00530884
A84: =+Flujos!A84 -> 2024-10-06 | B84: 0.00412708 | D84: 2024-10-06 | E84: 0.0051546 | F84: 0.00440034 | G84: 0.00473504 | H84: 0.00412708 | I84: 0.00440219 | J84: 0.0062324 | K84: 0.00592768 | L84: 0.00587106 | M84: 0.00616598 | N84: 0.00588375 | O84: 0.00520414
A85: =+Flujos!A85 -> 2024-11-06 | B85: 0.00409293 | D85: 2024-11-06 | E85: 0.00473523 | F85: 0.00473489 | G85: 0.00294366 | H85: 0.00409293 | I85: 0.00437749 | J85: 0.00617831 | K85: 0.00630942 | L85: 0.00576108 | M85: 0.00610284 | N85: 0.00578819 | O85: 0.00511302
A86: =+Flujos!A86 -> 2024-12-06 | B86: 0.00384081 | D86: 2024-12-06 | E86: 0.00542712 | F86: 0.00416042 | G86: 0.00350635 | H86: 0.00384081 | I86: 0.00401982 | J86: 0.0060875 | K86: 0.00622514 | L86: 0.00565145 | M86: 0.00578745 | N86: 0.00543973 | O86: 0.00467214
A87: =+Flujos!A87 -> 2025-01-06 | B87: 0.00400879 | D87: 2025-01-06 | E87: 0.00481406 | F87: 0.00384573 | G87: 0.00421507 | H87: 0.00400879 | I87: 0.00423907 | J87: 0.00600628 | K87: 0.0061281 | L87: 0.00554903 | M87: 0.00594838 | N87: 0.00561125 | O87: 0.00491595
A88: =+Flujos!A88 -> 2025-02-06 | B88: 0.00395434 | D88: 2025-02-06 | E88: 0.00396974 | F88: 0.00478712 | G88: 0.00372447 | H88: 0.00395434 | I88: 0.00421338 | J88: 0.00542506 | K88: 0.00602952 | L88: 0.00545042 | M88: 0.0058729 | N88: 0.0055278 | O88: 0.0048232
A89: =+Flujos!A89 -> 2025-03-06 | B89: 0.00392319 | D89: 2025-03-06 | E89: 0.00603652 | F89: 0.00432551 | G89: 0.00369887 | H89: 0.00392319 | I89: 0.0042205 | J89: 0.00584824 | K89: 0.00594837 | L89: 0.0053371 | M89: 0.00578265 | N89: 0.00544605 | O89: 0.00473092
A90: =+Flujos!A90 -> 2025-04-06 | B90: 0.00383827 | D90: 2025-04-06 | E90: 0.0053256 | F90: 0.00391349 | G90: 0.00362863 | H90: 0.00383827 | I90: 0.00409945 | J90: 0.00576431 | K90: 0.00586768 | L90: 0.00524424 | M90: 0.00571384 | N90: 0.00536598 | O90: 0.00464244
A91: =+Flujos!A91 -> 2025-05-06 | B91: 0.0022085 | D91: 2025-05-06 | E91: 0.0043832 | F91: 0.00386043 | G91: 0.00362199 | H91: 0.0022085 | I91: 0.00205619 | J91: 0.00566929 | K91: 0.00575447 | L91: 0.00514975 | M91: 0.00564106 | N91: 0.00528758 | O91: 0.00455669
A92: =+Flujos!A92 -> 2025-06-06 | B92: 0 | D92: 2025-06-06 | E92: 0.00584916 | F92: 0.00383019 | G92: 0.00354016 | H92: 0 | I92: 0 | J92: 0.00560155 | K92: 0.00567671 | L92: 0.00471422 | M92: 0.0055714 | N92: 0.00521001 | O92: 0.00445334
A93: =+Flujos!A93 -> 2025-07-06 | B93: 0 | D93: 2025-07-06 | E93: 0.00420411 | F93: 0.00381572 | G93: 0 | H93: 0 | I93: 0 | J93: 0.00552069 | K93: 0.00560728 | L93: 0.00499254 | M93: 0.00550226 | N93: 0.00513421 | O93: 0.00436805
A94: =+Flujos!A94 -> 2025-08-06 | B94: 0 | D94: 2025-08-06 | E94: 0.00451446 | F94: 0.00379017 | G94: 0 | H94: 0 | I94: 0 | J94: 0.00544687 | K94: 0.00554493 | L94: 0.00491076 | M94: 0.00542875 | N94: 0.00506084 | O94: 0.00429023
A95: =+Flujos!A95 -> 2025-09-06 | B95: 0 | D95: 2025-09-06 | E95: 0.00429746 | F95: 0.00376983 | G95: 0 | H95: 0 | I95: 0 | J95: 0.00539087 | K95: 0.00547897 | L95: 0.00481822 | M95: 0.0053594 | N95: 0.00498907 | O95: 0.00421689
A96: =+Flujos!A96 -> 2025-10-06 | B96: 0 | D96: 2025-10-06 | E96: 0.00426559 | F96: 0.00374377 | G96: 0 | H96: 0 | I96: 0 | J96: 0.00533564 | K96: 0.00488 | L96: 0.00473901 | M96: 0.00528348 | N96: 0.0049182 | O96: 0.00413737
A97: =+Flujos!A97 -> 2025-11-06 | B97: 0 | D97: 2025-11-06 | E97: 0.00423381 | F97: 0.00371456 | G97: 0 | H97: 0 | I97: 0 | J97: 0.00528367 | K97: 0.00531496 | L97: 0.00465406 | M97: 0.00520909 | N97: 0.00484953 | O97: 0.00406458
A98: =+Flujos!A98 -> 2025-12-06 | B98: 0 | D98: 2025-12-06 | E98: 0.00396593 | F98: 0.00080691 | G98: 0 | H98: 0 | I98: 0 | J98: 0.00522999 | K98: 0.00523297 | L98: 0.00455617 | M98: 0.00487917 | N98: 0.00451344 | O98: 0.00364347
A99: =+Flujos!A99 -> 2026-01-06 | B99: 0 | D99: 2026-01-06 | E99: 0.00416286 | F99: 0 | G99: 0 | H99: 0 | I99: 0 | J99: 0.00518444 | K99: 0.00515792 | L99: 0.00445685 | M99: 0.00504235 | N99: 0.00470584 | O99: 0.00391431
A100: =+Flujos!A100 -> 2026-02-06 | B100: 0 | D100: 2026-02-06 | E100: 0.00413095 | F100: 0 | G100: 0 | H100: 0 | I100: 0 | J100: 0.0046141 | K100: 0.00509196 | L100: 0.00437166 | M100: 0.00494115 | N100: 0.00463833 | O100: 0.00384831
A101: =+Flujos!A101 -> 2026-03-06 | B101: 0 | D101: 2026-03-06 | E101: 0.00407981 | F101: 0 | G101: 0 | H101: 0 | I101: 0 | J101: 0.00508012 | K101: 0.00502047 | L101: 0.00430246 | M101: 0.00481832 | N101: 0.00457121 | O101: 0.00378302
A102: =+Flujos!A102 -> 2026-04-06 | B102: 0 | D102: 2026-04-06 | E102: 0.00405583 | F102: 0 | G102: 0 | H102: 0 | I102: 0 | J102: 0.00503967 | K102: 0.00496137 | L102: 0.00421221 | M102: 0 | N102: 0.00450671 | O102: 0.00371116
A103: =+Flujos!A103 -> 2026-05-06 | B103: 0 | D103: 2026-05-06 | E103: 0.0040217 | F103: 0 | G103: 0 | H103: 0 | I103: 0 | J103: 0.00500084 | K103: 0.00490829 | L103: 0.00410959 | M103: 0 | N103: 0.00444432 | O103: 0.00363969
A104: =+Flujos!A104 -> 2026-06-06 | B104: 0 | D104: 2026-06-06 | E104: 0.00164859 | F104: 0 | G104: 0 | H104: 0 | I104: 0 | J104: 0.00494776 | K104: 0.00485746 | L104: 0.00362655 | M104: 0 | N104: 0.00437859 | O104: 0.00356418
A105: =+Flujos!A105 -> 2026-07-06 | B105: 0 | D105: 2026-07-06 | E105: 0 | F105: 0 | G105: 0 | H105: 0 | I105: 0 | J105: 0.00490592 | K105: 0.00480991 | L105: 0.00391001 | M105: 0 | N105: 0.00431954 | O105: 0.00349435
A106: =+Flujos!A106 -> 2026-08-06 | B106: 0 | D106: 2026-08-06 | E106: 0 | F106: 0 | G106: 0 | H106: 0 | I106: 0 | J106: 0.0048634 | K106: 0.00476226 | L106: 0.00343022 | M106: 0 | N106: 0.00424608 | O106: 0.00340979
A107: =+Flujos!A107 -> 2026-09-06 | B107: 0 | D107: 2026-09-06 | E107: 0 | F107: 0 | G107: 0 | H107: 0 | I107: 0 | J107: 0.00482517 | K107: 0.00471766 | L107: 0 | M107: 0 | N107: 0.00417147 | O107: 0.00334786
A108: =+Flujos!A108 -> 2026-10-06 | B108: 0 | D108: 2026-10-06 | E108: 0 | F108: 0 | G108: 0 | H108: 0 | I108: 0 | J108: 0.00477654 | K108: 0.00411923 | L108: 0 | M108: 0 | N108: 0.0040904 | O108: 0.0032791
A109: =+Flujos!A109 -> 2026-11-06 | B109: 0 | D109: 2026-11-06 | E109: 0 | F109: 0 | G109: 0 | H109: 0 | I109: 0 | J109: 0.00472901 | K109: 0.004616 | L109: 0 | M109: 0 | N109: 0.00402654 | O109: 0.00322057
A110: =+Flujos!A110 -> 2026-12-06 | B110: 0 | D110: 2026-12-06 | E110: 0 | F110: 0 | G110: 0 | H110: 0 | I110: 0 | J110: 0.00468466 | K110: 0.00456687 | L110: 0 | M110: 0 | N110: 0.00367962 | O110: 0.00280033
A111: =+Flujos!A111 -> 2027-01-06 | B111: 0 | D111: 2027-01-06 | E111: 0 | F111: 0 | G111: 0 | H111: 0 | I111: 0 | J111: 0.00464305 | K111: 0.0045145 | L111: 0 | M111: 0 | N111: 0.00049226 | O111: 0.00309542
A112: =+Flujos!A112 -> 2027-02-06 | B112: 0 | D112: 2027-02-06 | E112: 0 | F112: 0 | G112: 0 | H112: 0 | I112: 0 | J112: 0.00404872 | K112: 0.0044634 | L112: 0 | M112: 0 | N112: 0 | O112: 0.00303213
A113: =+Flujos!A113 -> 2027-03-06 | B113: 0 | D113: 2027-03-06 | E113: 0 | F113: 0 | G113: 0 | H113: 0 | I113: 0 | J113: 0.0045627 | K113: 0.00440938 | L113: 0 | M113: 0 | N113: 0 | O113: 0.00297415
A114: =+Flujos!A114 -> 2027-04-06 | B114: 0 | D114: 2027-04-06 | E114: 0 | F114: 0 | G114: 0 | H114: 0 | I114: 0 | J114: 0.00451996 | K114: 0.00435636 | L114: 0 | M114: 0 | N114: 0 | O114: 0.00291665
A115: =+Flujos!A115 -> 2027-05-06 | B115: 0 | D115: 2027-05-06 | E115: 0 | F115: 0 | G115: 0 | H115: 0 | I115: 0 | J115: 0.00447317 | K115: 0.00430653 | L115: 0 | M115: 0 | N115: 0 | O115: 0.00284714
A116: =+Flujos!A116 -> 2027-06-06 | B116: 0 | D116: 2027-06-06 | E116: 0 | F116: 0 | G116: 0 | H116: 0 | I116: 0 | J116: 0.00443375 | K116: 0.00424519 | L116: 0 | M116: 0 | N116: 0 | O116: 0.00277753
A117: =+Flujos!A117 -> 2027-07-06 | B117: 0 | D117: 2027-07-06 | E117: 0 | F117: 0 | G117: 0 | H117: 0 | I117: 0 | J117: 0.00439014 | K117: 0.00419035 | L117: 0 | M117: 0.00023505 | N117: 0 | O117: 0.00271421
A118: =+Flujos!A118 -> 2027-08-06 | B118: 0 | D118: 2027-08-06 | E118: 0 | F118: 0 | G118: 0 | H118: 0 | I118: 0 | J118: 0.00434615 | K118: 0.00413938 | L118: 0 | M118: 0.00353834 | N118: 0 | O118: 0.00266022
A119: =+Flujos!A119 -> 2027-09-06 | B119: 0 | D119: 2027-09-06 | E119: 0 | F119: 0 | G119: 0 | H119: 0 | I119: 0 | J119: 0.00430613 | K119: 0.00407172 | L119: 0 | M119: 0.0034903 | N119: 0 | O119: 0.00261863
A120: =+Flujos!A120 -> 2027-10-06 | B120: 0 | D120: 2027-10-06 | E120: 0 | F120: 0 | G120: 0 | H120: 0 | I120: 0 | J120: 0.00426163 | K120: 0.00343803 | L120: 0 | M120: 0.0034506 | N120: 0 | O120: 0.00256139
A121: =+Flujos!A121 -> 2027-11-06 | B121: 0 | D121: 2027-11-06 | E121: 0 | F121: 0 | G121: 0 | H121: 0 | I121: 0 | J121: 0.00421205 | K121: 0.00397479 | L121: 0 | M121: 0.00341389 | N121: 0 | O121: 0.00252132
A122: =+Flujos!A122 -> 2027-12-06 | B122: 0 | D122: 2027-12-06 | E122: 0 | F122: 0 | G122: 0 | H122: 0 | I122: 0 | J122: 0.00417144 | K122: 0.0028368 | L122: 0 | M122: 0.00308432 | N122: 0 | O122: 0.00201508
A123: =+Flujos!A123 -> 2028-01-06 | B123: 0 | D123: 2028-01-06 | E123: 0 | F123: 0 | G123: 0 | H123: 0 | I123: 0 | J123: 0.00413029 | K123: 0 | L123: 0 | M123: 0.00333424 | N123: 0 | O123: 0.00235567
A124: =+Flujos!A124 -> 2028-02-06 | B124: 0 | D124: 2028-02-06 | E124: 0 | F124: 0 | G124: 0 | H124: 0 | I124: 0 | J124: 0.00314093 | K124: 0 | L124: 0 | M124: 0.00329916 | N124: 0 | O124: 0.00233172
A125: =+Flujos!A125 -> 2028-03-06 | B125: 0 | D125: 2028-03-06 | E125: 0 | F125: 0 | G125: 0 | H125: 0 | I125: 0 | J125: 0 | K125: 0 | L125: 0 | M125: 0.00326332 | N125: 0 | O125: 0.002311
A126: =+Flujos!A126 -> 2028-04-06 | B126: 0 | D126: 2028-04-06 | E126: 0 | F126: 0 | G126: 0 | H126: 0 | I126: 0 | J126: 0 | K126: 0 | L126: 0 | M126: 0.00322632 | N126: 0 | O126: 0.00228786
A127: =+Flujos!A127 -> 2028-05-06 | B127: 0 | D127: 2028-05-06 | E127: 0 | F127: 0 | G127: 0 | H127: 0 | I127: 0 | J127: 0 | K127: 0 | L127: 0 | M127: 0.00023338 | N127: 0 | O127: 0.00226937
A128: =+Flujos!A128 -> 2028-06-06 | B128: 0 | D128: 2028-06-06 | E128: 0 | F128: 0 | G128: 0 | H128: 0 | I128: 0 | J128: 0 | K128: 0 | L128: 0 | M128: 0 | N128: 0 | O128: 0.00046441
A129: =+Flujos!A129 -> 2028-07-06 | B129: 0 | D129: 2028-07-06 | E129: 0 | F129: 0 | G129: 0 | H129: 0 | I129: 0 | J129: 0 | K129: 0 | L129: 0 | M129: 0 | N129: 0 | O129: 0
A130: =+Flujos!A130 -> 2028-08-06 | B130: 0 | D130: 2028-08-06 | E130: 0 | F130: 0 | G130: 0 | H130: 0 | I130: 0 | J130: 0 | K130: 0 | L130: 0 | M130: 0 | N130: 0 | O130: 0
A131: =+Flujos!A131 -> 2028-09-06 | B131: 0 | D131: 2028-09-06 | E131: 0 | F131: 0 | G131: 0 | H131: 0 | I131: 0 | J131: 0 | K131: 0 | L131: 0 | M131: 0 | N131: 0 | O131: 0
A132: =+Flujos!A132 -> 2028-10-06 | B132: =+VLOOKUP(A132,$D$2:$O$182,MATCH($B$2,$D$2:$O$2,0),FALSE) -> 0 | D132: =+A132 -> 2028-10-06 | E132: 0 | F132: 0 | G132: 0 | H132: 0 | I132: 0 | J132: 0 | K132: 0 | L132: 0 | M132: 0 | N132: 0 | O132: 0
A133: =+Flujos!A133 -> 2028-11-06 | B133: 0 | D133: 2028-11-06 | E133: 0 | F133: 0 | G133: 0 | H133: 0 | I133: 0 | J133: 0 | K133: 0 | L133: 0 | M133: 0 | N133: 0 | O133: 0
A134: =+Flujos!A134 -> 2028-12-06 | B134: 0 | D134: 2028-12-06 | E134: 0 | F134: 0 | G134: 0 | H134: 0 | I134: 0 | J134: 0 | K134: 0 | L134: 0 | M134: 0 | N134: 0 | O134: 0
A135: =+Flujos!A135 -> 2029-01-06 | B135: 0 | D135: 2029-01-06 | E135: 0 | F135: 0 | G135: 0 | H135: 0 | I135: 0 | J135: 0 | K135: 0 | L135: 0 | M135: 0 | N135: 0 | O135: 0
A136: =+Flujos!A136 -> 2029-02-06 | B136: 0 | D136: 2029-02-06 | E136: 0 | F136: 0 | G136: 0 | H136: 0 | I136: 0 | J136: 0 | K136: 0 | L136: 0 | M136: 0 | N136: 0 | O136: 0
A137: =+Flujos!A137 -> 2029-03-06 | B137: 0 | D137: 2029-03-06 | E137: 0 | F137: 0 | G137: 0 | H137: 0 | I137: 0 | J137: 0 | K137: 0 | L137: 0 | M137: 0 | N137: 0 | O137: 0
A138: =+Flujos!A138 -> 2029-04-06 | B138: 0 | D138: 2029-04-06 | E138: 0 | F138: 0 | G138: 0 | H138: 0 | I138: 0 | J138: 0 | K138: 0 | L138: 0 | M138: 0 | N138: 0 | O138: 0
A139: =+Flujos!A139 -> 2029-05-06 | B139: 0 | D139: 2029-05-06 | E139: 0 | F139: 0 | G139: 0 | H139: 0 | I139: 0 | J139: 0 | K139: 0 | L139: 0 | M139: 0 | N139: 0 | O139: 0
A140: =+Flujos!A140 -> 2029-06-06 | B140: 0 | D140: 2029-06-06 | E140: 0 | F140: 0 | G140: 0 | H140: 0 | I140: 0 | J140: 0 | K140: 0 | L140: 0 | M140: 0 | N140: 0 | O140: 0
A141: =+Flujos!A141 -> 2029-07-06 | B141: 0 | D141: 2029-07-06 | E141: 0 | F141: 0 | G141: 0 | H141: 0 | I141: 0 | J141: 0 | K141: 0 | L141: 0 | M141: 0 | N141: 0 | O141: 0
A142: =+Flujos!A142 -> 2029-08-06 | B142: 0 | D142: 2029-08-06 | E142: 0 | F142: 0 | G142: 0 | H142: 0 | I142: 0 | J142: 0 | K142: 0 | L142: 0 | M142: 0 | N142: 0 | O142: 0
A143: =+Flujos!A143 -> 2029-09-06 | B143: 0 | D143: 2029-09-06 | E143: 0 | F143: 0 | G143: 0 | H143: 0 | I143: 0 | J143: 0 | K143: 0 | L143: 0 | M143: 0 | N143: 0 | O143: 0
A144: =+Flujos!A144 -> 2029-10-06 | B144: 0 | D144: 2029-10-06 | E144: 0 | F144: 0 | G144: 0 | H144: 0 | I144: 0 | J144: 0 | K144: 0 | L144: 0 | M144: 0 | N144: 0 | O144: 0
A145: =+Flujos!A145 -> 2029-11-06 | B145: 0 | D145: 2029-11-06 | E145: 0 | F145: 0 | G145: 0 | H145: 0 | I145: 0 | J145: 0 | K145: 0 | L145: 0 | M145: 0 | N145: 0 | O145: 0
A146: =+Flujos!A146 -> 2029-12-06 | B146: 0 | D146: 2029-12-06 | E146: 0 | F146: 0 | G146: 0 | H146: 0 | I146: 0 | J146: 0 | K146: 0 | L146: 0 | M146: 0 | N146: 0 | O146: 0
A147: =+Flujos!A147 -> 2030-01-06 | B147: 0 | D147: 2030-01-06 | E147: 0 | F147: 0 | G147: 0 | H147: 0 | I147: 0 | J147: 0 | K147: 0 | L147: 0 | M147: 0 | N147: 0 | O147: 0
A148: =+Flujos!A148 -> 2030-02-06 | B148: 0 | D148: 2030-02-06 | E148: 0 | F148: 0 | G148: 0 | H148: 0 | I148: 0 | J148: 0 | K148: 0 | L148: 0 | M148: 0 | N148: 0 | O148: 0
A149: =+Flujos!A149 -> 2030-03-06 | B149: 0 | D149: 2030-03-06 | E149: 0 | F149: 0 | G149: 0 | H149: 0 | I149: 0 | J149: 0 | K149: 0 | L149: 0 | M149: 0 | N149: 0 | O149: 0
A150: =+Flujos!A150 -> 2030-04-06 | B150: 0 | D150: 2030-04-06 | E150: 0 | F150: 0 | G150: 0 | H150: 0 | I150: 0 | J150: 0 | K150: 0 | L150: 0 | M150: 0 | N150: 0 | O150: 0
A151: =+Flujos!A151 -> 2030-05-06 | B151: 0 | D151: 2030-05-06 | E151: 0 | F151: 0 | G151: 0 | H151: 0 | I151: 0 | J151: 0 | K151: 0 | L151: 0 | M151: 0 | N151: 0 | O151: 0
A152: =+Flujos!A152 -> 2030-06-06 | B152: 0 | D152: 2030-06-06 | E152: 0 | F152: 0 | G152: 0 | H152: 0 | I152: 0 | J152: 0 | K152: 0 | L152: 0 | M152: 0 | N152: 0 | O152: 0
A153: =+Flujos!A153 -> 2030-07-06 | B153: 0 | D153: 2030-07-06 | E153: 0 | F153: 0 | G153: 0 | H153: 0 | I153: 0 | J153: 0 | K153: 0 | L153: 0 | M153: 0 | N153: 0 | O153: 0
A154: =+Flujos!A154 -> 2030-08-06 | B154: 0 | D154: 2030-08-06 | E154: 0 | F154: 0 | G154: 0 | H154: 0 | I154: 0 | J154: 0 | K154: 0 | L154: 0 | M154: 0 | N154: 0 | O154: 0
A155: =+Flujos!A155 -> 2030-09-06 | B155: 0 | D155: 2030-09-06 | E155: 0 | F155: 0 | G155: 0 | H155: 0 | I155: 0 | J155: 0 | K155: 0 | L155: 0 | M155: 0 | N155: 0 | O155: 0
A156: =+Flujos!A156 -> 2030-10-06 | B156: 0 | D156: 2030-10-06 | E156: 0 | F156: 0 | G156: 0 | H156: 0 | I156: 0 | J156: 0 | K156: 0 | L156: 0 | M156: 0 | N156: 0 | O156: 0
A157: =+Flujos!A157 -> 2030-11-06 | B157: 0 | D157: 2030-11-06 | E157: 0 | F157: 0 | G157: 0 | H157: 0 | I157: 0 | J157: 0 | K157: 0 | L157: 0 | M157: 0 | N157: 0 | O157: 0
A158: =+Flujos!A158 -> 2030-12-06 | B158: 0 | D158: 2030-12-06 | E158: 0 | F158: 0 | G158: 0 | H158: 0 | I158: 0 | J158: 0 | K158: 0 | L158: 0 | M158: 0 | N158: 0 | O158: 0
A159: =+Flujos!A159 -> 2031-01-06 | B159: 0 | D159: 2031-01-06 | E159: 0 | F159: 0 | G159: 0 | H159: 0 | I159: 0 | J159: 0 | K159: 0 | L159: 0 | M159: 0 | N159: 0 | O159: 0
A160: =+Flujos!A160 -> 2031-02-06 | B160: 0 | D160: 2031-02-06 | E160: 0 | F160: 0 | G160: 0 | H160: 0 | I160: 0 | J160: 0 | K160: 0 | L160: 0 | M160: 0 | N160: 0 | O160: 0
A161: =+Flujos!A161 -> 2031-03-06 | B161: 0 | D161: 2031-03-06 | E161: 0 | F161: 0 | G161: 0 | H161: 0 | I161: 0 | J161: 0 | K161: 0 | L161: 0 | M161: 0 | N161: 0 | O161: 0
A162: =+Flujos!A162 -> 2031-04-06 | B162: 0 | D162: 2031-04-06 | E162: 0 | F162: 0 | G162: 0 | H162: 0 | I162: 0 | J162: 0 | K162: 0 | L162: 0 | M162: 0 | N162: 0 | O162: 0
A163: =+Flujos!A163 -> 2031-05-06 | B163: 0 | D163: 2031-05-06 | E163: 0 | F163: 0 | G163: 0 | H163: 0 | I163: 0 | J163: 0 | K163: 0 | L163: 0 | M163: 0 | N163: 0 | O163: 0
A164: =+Flujos!A164 -> 2031-06-06 | B164: 0 | D164: 2031-06-06 | E164: 0 | F164: 0 | G164: 0 | H164: 0 | I164: 0 | J164: 0 | K164: 0 | L164: 0 | M164: 0 | N164: 0 | O164: 0
A165: =+Flujos!A165 -> 2031-07-06 | B165: 0 | D165: 2031-07-06 | E165: 0 | F165: 0 | G165: 0 | H165: 0 | I165: 0 | J165: 0 | K165: 0 | L165: 0 | M165: 0 | N165: 0 | O165: 0
A166: =+Flujos!A166 -> 2031-08-06 | B166: 0 | D166: 2031-08-06 | E166: 0 | F166: 0 | G166: 0 | H166: 0 | I166: 0 | J166: 0 | K166: 0 | L166: 0 | M166: 0 | N166: 0 | O166: 0
A167: =+Flujos!A167 -> 2031-09-06 | B167: 0 | D167: 2031-09-06 | E167: 0 | F167: 0 | G167: 0 | H167: 0 | I167: 0 | J167: 0 | K167: 0 | L167: 0 | M167: 0 | N167: 0 | O167: 0
A168: =+Flujos!A168 -> 2031-10-06 | B168: 0 | D168: 2031-10-06 | E168: 0 | F168: 0 | G168: 0 | H168: 0 | I168: 0 | J168: 0 | K168: 0 | L168: 0 | M168: 0 | N168: 0 | O168: 0
A169: =+Flujos!A169 -> 2031-11-06 | B169: 0 | D169: 2031-11-06 | E169: 0 | F169: 0 | G169: 0 | H169: 0 | I169: 0 | J169: 0 | K169: 0 | L169: 0 | M169: 0 | N169: 0 | O169: 0
A170: =+Flujos!A170 -> 2031-12-06 | B170: 0 | D170: 2031-12-06 | E170: 0 | F170: 0 | G170: 0 | H170: 0 | I170: 0 | J170: 0 | K170: 0 | L170: 0 | M170: 0 | N170: 0 | O170: 0
A171: =+Flujos!A171 -> 2032-01-06 | B171: 0 | D171: 2032-01-06 | E171: 0 | F171: 0 | G171: 0 | H171: 0 | I171: 0 | J171: 0 | K171: 0 | L171: 0 | M171: 0 | N171: 0 | O171: 0
A172: =+Flujos!A172 -> 2032-02-06 | B172: 0 | D172: 2032-02-06 | E172: 0 | F172: 0 | G172: 0 | H172: 0 | I172: 0 | J172: 0 | K172: 0 | L172: 0 | M172: 0 | N172: 0 | O172: 0
A173: =+Flujos!A173 -> 2032-03-06 | B173: 0 | D173: 2032-03-06 | E173: 0 | F173: 0 | G173: 0 | H173: 0 | I173: 0 | J173: 0 | K173: 0 | L173: 0 | M173: 0 | N173: 0 | O173: 0
A174: =+Flujos!A174 -> 2032-04-06 | B174: 0 | D174: 2032-04-06 | E174: 0 | F174: 0 | G174: 0 | H174: 0 | I174: 0 | J174: 0 | K174: 0 | L174: 0 | M174: 0 | N174: 0 | O174: 0
A175: =+Flujos!A175 -> 2032-05-06 | B175: 0 | D175: 2032-05-06 | E175: 0 | F175: 0 | G175: 0 | H175: 0 | I175: 0 | J175: 0 | K175: 0 | L175: 0 | M175: 0 | N175: 0 | O175: 0
A176: =+Flujos!A176 -> 2032-06-06 | B176: 0 | D176: 2032-06-06 | E176: 0 | F176: 0 | G176: 0 | H176: 0 | I176: 0 | J176: 0 | K176: 0 | L176: 0 | M176: 0 | N176: 0 | O176: 0
A177: =+Flujos!A177 -> 2032-07-06 | B177: 0 | D177: 2032-07-06 | E177: 0 | F177: 0 | G177: 0 | H177: 0 | I177: 0 | J177: 0 | K177: 0 | L177: 0 | M177: 0 | N177: 0 | O177: 0
A178: =+Flujos!A178 -> 2032-08-06 | B178: 0 | D178: 2032-08-06 | E178: 0 | F178: 0 | G178: 0 | H178: 0 | I178: 0 | J178: 0 | K178: 0 | L178: 0 | M178: 0 | N178: 0 | O178: 0
A179: =+Flujos!A179 -> 2032-09-06 | B179: 0 | D179: 2032-09-06 | E179: 0 | F179: 0 | G179: 0 | H179: 0 | I179: 0 | J179: 0 | K179: 0 | L179: 0 | M179: 0 | N179: 0 | O179: 0
A180: =+Flujos!A180 -> 2032-10-06 | B180: 0 | D180: 2032-10-06 | E180: 0 | F180: 0 | G180: 0 | H180: 0 | I180: 0 | J180: 0 | K180: 0 | L180: 0 | M180: 0 | N180: 0 | O180: 0
A181: =+Flujos!A181 -> 2032-11-06 | B181: 0 | D181: 2032-11-06 | E181: 0 | F181: 0 | G181: 0 | H181: 0 | I181: 0 | J181: 0 | K181: 0 | L181: 0 | M181: 0 | N181: 0 | O181: 0
A182: =+Flujos!A182 -> 2032-12-06 | B182: 0 | D182: 2032-12-06 | E182: 0 | F182: 0 | G182: 0 | H182: 0 | I182: 0 | J182: 0 | K182: 0 | L182: 0 | M182: 0 | N182: 0 | O182: 0
E183: =SUM(E3:E182) -> 1 | F183: 1 | G183: 1 | H183: 1 | I183: 1 | J183: 1 | K183: 1 | L183: 1 | M183: =SUM(M3:M182) -> 1 | N183: =SUM(N3:N182) -> 1 | O183: 1
E184: =1-E183 -> 0 | F184: 0 | G184: 0 | H184: 0 | I184: 0 | J184: 0 | K184: 0 | L184: 0 | M184: =1-M183 -> 0 | N184: =1-N183 -> 0 | O184: 0

Sheet Tablas (hidden)
A1: FECHA | B1: =+CALCULADORA!C9 -> TIPS N16 A | C1: Valoración
A2: =+'Tabla de Amortizacion'!A3 -> 2018-01-06 | B2: =+ROUND(C2,8) -> 0.02356776 | C2: =+VLOOKUP(A2,'Tabla de Amortizacion'!$D$2:$O$182,MATCH(Tablas!$B$1,'Tabla de Amortizacion'!$D$2:$O$2,0)) -> 0.02356776 | E2: =IF([1]CALCULADORA!$F$10="Contractual",ROUND('[1]Tabla de Amortizacion'!C3,8),IF([1]CALCULADORA!$F$10="6% (Medio)",ROUND('[1]Tabla de Amortizacion'!F3,8),IF([1]CALCULADORA!$F$10="10% (Medio Alto)",ROUND('[1]Tabla de Amortizacion'!H3,8),IF([1]CALCULADORA!$F$10="14% (Alto)",ROUND('[1]Tabla de Amortizacion'!#REF!,8),IF([1]CALCULADORA!$F$10=20%,ROUND('[1]Tabla de Amortizacion'!#REF!,8),ROUND('[1]Tabla de Amortizacion'!K3,8)))))) -> 0
A3: =EDATE(A2,1) -> 2018-02-06 | B3: =+ROUND(C3,8) -> 0.02133346 | C3: =+VLOOKUP(A3,'Tabla de Amortizacion'!$D$2:$O$182,MATCH(Tablas!$B$1,'Tabla de Amortizacion'!$D$2:$O$2,0)) -> 0.02133346 | E3: =IF([1]CALCULADORA!$F$10="Contractual",ROUND('[1]Tabla de Amortizacion'!C4,8),IF([1]CALCULADORA!$F$10="6% (Medio)",ROUND('[1]Tabla de Amortizacion'!F4,8),IF([1]CALCULADORA!$F$10="10% (Medio Alto)",ROUND('[1]Tabla de Amortizacion'!H4,8),IF([1]CALCULADORA!$F$10="14% (Alto)",ROUND('[1]Tabla de Amortizacion'!#REF!,8),IF([1]CALCULADORA!$F$10=20%,ROUND('[1]Tabla de Amortizacion'!#REF!,8),ROUND('[1]Tabla de Amortizacion'!K4,8)))))) -> 0
A4: 2018-03-06 | B4: 0.02897295 | C4: =+VLOOKUP(A4,'Tabla de Amortizacion'!$D$2:$O$182,MATCH(Tablas!$B$1,'Tabla de Amortizacion'!$D$2:$O$2,0)) -> 0.02897295 | E4: =IF([1]CALCULADORA!$F$10="Contractual",ROUND('[1]Tabla de Amortizacion'!C5,8),IF([1]CALCULADORA!$F$10="6% (Medio)",ROUND('[1]Tabla de Amortizacion'!F5,8),IF([1]CALCULADORA!$F$10="10% (Medio Alto)",ROUND('[1]Tabla de Amortizacion'!H5,8),IF([1]CALCULADORA!$F$10="14% (Alto)",ROUND('[1]Tabla de Amortizacion'!#REF!,8),IF([1]CALCULADORA!$F$10=20%,ROUND('[1]Tabla de Amortizacion'!#REF!,8),ROUND('[1]Tabla de Amortizacion'!K5,8)))))) -> 0
A5: 2018-04-06 | B5: 0.02223212 | C5: =+VLOOKUP(A5,'Tabla de Amortizacion'!$D$2:$O$182,MATCH(Tablas!$B$1,'Tabla de Amortizacion'!$D$2:$O$2,0)) -> 0.02223212 | E5: =IF([1]CALCULADORA!$F$10="Contractual",ROUND('[1]Tabla de Amortizacion'!C6,8),IF([1]CALCULADORA!$F$10="6% (Medio)",ROUND('[1]Tabla de Amortizacion'!F6,8),IF([1]CALCULADORA!$F$10="10% (Medio Alto)",ROUND('[1]Tabla de Amortizacion'!H6,8),IF([1]CALCULADORA!$F$10="14% (Alto)",ROUND('[1]Tabla de Amortizacion'!#REF!,8),IF([1]CALCULADORA!$F$10=20%,ROUND('[1]Tabla de Amortizacion'!#REF!,8),ROUND('[1]Tabla de Amortizacion'!K6,8)))))) -> 0
A6: 2018-05-06 | B6: 0.02047248 | C6: =+VLOOKUP(A6,'Tabla de Amortizacion'!$D$2:$O$182,MATCH(Tablas!$B$1,'Tabla de Amortizacion'!$D$2:$O$2,0)) -> 0.02047248 | E6: =IF([1]CALCULADORA!$F$10="Contractual",ROUND('[1]Tabla de Amortizacion'!C7,8),IF([1]CALCULADORA!$F$10="6% (Medio)",ROUND('[1]Tabla de Amortizacion'!F7,8),IF([1]CALCULADORA!$F$10="10% (Medio Alto)",ROUND('[1]Tabla de Amortizacion'!H7,8),IF([1]CALCULADORA!$F$10="14% (Alto)",ROUND('[1]Tabla de Amortizacion'!#REF!,8),IF([1]CALCULADORA!$F$10=20%,ROUND('[1]Tabla de Amortizacion'!#REF!,8),ROUND('[1]Tabla de Amortizacion'!K7,8)))))) -> 0
A7: 2018-06-06 | B7: 0.02060537 | C7: =+VLOOKUP(A7,'Tabla de Amortizacion'!$D$2:$O$182,MATCH(Tablas!$B$1,'Tabla de Amortizacion'!$D$2:$O$2,0)) -> 0.02060537 | E7: =IF([1]CALCULADORA!$F$10="Contractual",ROUND('[1]Tabla de Amortizacion'!C8,8),IF([1]CALCULADORA!$F$10="6% (Medio)",ROUND('[1]Tabla de Amortizacion'!F8,8),IF([1]CALCULADORA!$F$10="10% (Medio Alto)",ROUND('[1]Tabla de Amortizacion'!H8,8),IF([1]CALCULADORA!$F$10="14% (Alto)",ROUND('[1]Tabla de Amortizacion'!#REF!,8),IF([1]CALCULADORA!$F$10=20%,ROUND('[1]Tabla de Amortizacion'!#REF!,8),ROUND('[1]Tabla de Amortizacion'!K8,8)))))) -> 0
A8: 2018-07-06 | B8: 0.02115641 | C8: =+VLOOKUP(A8,'Tabla de Amortizacion'!$D$2:$O$182,MATCH(Tablas!$B$1,'Tabla de Amortizacion'!$D$2:$O$2,0)) -> 0.02115641 | E8: =IF([1]CALCULADORA!$F$10="Contractual",ROUND('[1]Tabla de Amortizacion'!C9,8),IF([1]CALCULADORA!$F$10="6% (Medio)",ROUND('[1]Tabla de Amortizacion'!F9,8),IF([1]CALCULADORA!$F$10="10% (Medio Alto)",ROUND('[1]Tabla de Amortizacion'!H9,8),IF([1]CALCULADORA!$F$10="14% (Alto)",ROUND('[1]Tabla de Amortizacion'!#REF!,8),IF([1]CALCULADORA!$F$10=20%,ROUND('[1]Tabla de Amortizacion'!#REF!,8),ROUND('[1]Tabla de Amortizacion'!K9,8)))))) -> 0
A9: 2018-08-06 | B9: 0.01838404 | C9: =+VLOOKUP(A9,'Tabla de Amortizacion'!$D$2:$O$182,MATCH(Tablas!$B$1,'Tabla de Amortizacion'!$D$2:$O$2,0)) -> 0.01838404 | E9: =IF([1]CALCULADORA!$F$10="Contractual",ROUND('[1]Tabla de Amortizacion'!C10,8),IF([1]CALCULADORA!$F$10="6% (Medio)",ROUND('[1]Tabla de Amortizacion'!F10,8),IF([1]CALCULADORA!$F$10="10% (Medio Alto)",ROUND('[1]Tabla de Amortizacion'!H10,8),IF([1]CALCULADORA!$F$10="14% (Alto)",ROUND('[1]Tabla de Amortizacion'!#REF!,8),IF([1]CALCULADORA!$F$10=20%,ROUND('[1]Tabla de Amortizacion'!#REF!,8),ROUND('[1]Tabla de Amortizacion'!K10,8)))))) -> 0
A10: 2018-09-06 | B10: 0.02119569 | C10: =+VLOOKUP(A10,'Tabla de Amortizacion'!$D$2:$O$182,MATCH(Tablas!$B$1,'Tabla de Amortizacion'!$D$2:$O$2,0)) -> 0.02119569 | E10: =IF([1]CALCULADORA!$F$10="Contractual",ROUND('[1]Tabla de Amortizacion'!C11,8),IF([1]CALCULADORA!$F$10="6% (Medio)",ROUND('[1]Tabla de Amortizacion'!F11,8),IF([1]CALCULADORA!$F$10="10% (Medio Alto)",ROUND('[1]Tabla de Amortizacion'!H11,8),IF([1]CALCULADORA!$F$10="14% (Alto)",ROUND('[1]Tabla de Amortizacion'!#REF!,8),IF([1]CALCULADORA!$F$10=20%,ROUND('[1]Tabla de Amortizacion'!#REF!,8),ROUND('[1]Tabla de Amortizacion'!K11,8)))))) -> 0
A11: 2018-10-06 | B11: 0.02337674 | C11: =+VLOOKUP(A11,'Tabla de Amortizacion'!$D$2:$O$182,MATCH(Tablas!$B$1,'Tabla de Amortizacion'!$D$2:$O$2,0)) -> 0.02337674 | E11: =IF([1]CALCULADORA!$F$10="Contractual",ROUND('[1]Tabla de Amortizacion'!C12,8),IF([1]CALCULADORA!$F$10="6% (Medio)",ROUND('[1]Tabla de Amortizacion'!F12,8),IF([1]CALCULADORA!$F$10="10% (Medio Alto)",ROUND('[1]Tabla de Amortizacion'!H12,8),IF([1]CALCULADORA!$F$10="14% (Alto)",ROUND('[1]Tabla de Amortizacion'!#REF!,8),IF([1]CALCULADORA!$F$10=20%,ROUND('[1]Tabla de Amortizacion'!#REF!,8),ROUND('[1]Tabla de Amortizacion'!K12,8)))))) -> 0
A12: 2018-11-06 | B12: 0.01376149 | C12: =+VLOOKUP(A12,'Tabla de Amortizacion'!$D$2:$O$182,MATCH(Tablas!$B$1,'Tabla de Amortizacion'!$D$2:$O$2,0)) -> 0.01376149 | E12: =IF([1]CALCULADORA!$F$10="Contractual",ROUND('[1]Tabla de Amortizacion'!C13,8),IF([1]CALCULADORA!$F$10="6% (Medio)",ROUND('[1]Tabla de Amortizacion'!F13,8),IF([1]CALCULADORA!$F$10="10% (Medio Alto)",ROUND('[1]Tabla de Amortizacion'!H13,8),IF([1]CALCULADORA!$F$10="14% (Alto)",ROUND('[1]Tabla de Amortizacion'!#REF!,8),IF([1]CALCULADORA!$F$10=20%,ROUND('[1]Tabla de Amortizacion'!#REF!,8),ROUND('[1]Tabla de Amortizacion'!K13,8)))))) -> 0
A13: 2018-12-06 | B13: 0.01698375 | C13: =+VLOOKUP(A13,'Tabla de Amortizacion'!$D$2:$O$182,MATCH(Tablas!$B$1,'Tabla de Amortizacion'!$D$2:$O$2,0)) -> 0.01698375 | E13: =IF([1]CALCULADORA!$F$10="Contractual",ROUND('[1]Tabla de Amortizacion'!C14,8),IF([1]CALCULADORA!$F$10="6% (Medio)",ROUND('[1]Tabla de Amortizacion'!F14,8),IF([1]CALCULADORA!$F$10="10% (Medio Alto)",ROUND('[1]Tabla de Amortizacion'!H14,8),IF([1]CALCULADORA!$F$10="14% (Alto)",ROUND('[1]Tabla de Amortizacion'!#REF!,8),IF([1]CALCULADORA!$F$10=20%,ROUND('[1]Tabla de Amortizacion'!#REF!,8),ROUND('[1]Tabla de Amortizacion'!K14,8)))))) -> 0
A14: 2019-01-06 | B14: 0.022644 | C14: =+VLOOKUP(A14,'Tabla de Amortizacion'!$D$2:$O$182,MATCH(Tablas!$B$1,'Tabla de Amortizacion'!$D$2:$O$2,0)) -> 0.022644 | E14: =IF([1]CALCULADORA!$F$10="Contractual",ROUND('[1]Tabla de Amortizacion'!C15,8),IF([1]CALCULADORA!$F$10="6% (Medio)",ROUND('[1]Tabla de Amortizacion'!F15,8),IF([1]CALCULADORA!$F$10="10% (Medio Alto)",ROUND('[1]Tabla de Amortizacion'!H15,8),IF([1]CALCULADORA!$F$10="14% (Alto)",ROUND('[1]Tabla de Amortizacion'!#REF!,8),IF([1]CALCULADORA!$F$10=20%,ROUND('[1]Tabla de Amortizacion'!#REF!,8),ROUND('[1]Tabla de Amortizacion'!K15,8)))))) -> 0
A15: 2019-02-06 | B15: 0.01870053 | C15: =+VLOOKUP(A15,'Tabla de Amortizacion'!$D$2:$O$182,MATCH(Tablas!$B$1,'Tabla de Amortizacion'!$D$2:$O$2,0)) -> 0.01870053 | E15: =IF([1]CALCULADORA!$F$10="Contractual",ROUND('[1]Tabla de Amortizacion'!C16,8),IF([1]CALCULADORA!$F$10="6% (Medio)",ROUND('[1]Tabla de Amortizacion'!F16,8),IF([1]CALCULADORA!$F$10="10% (Medio Alto)",ROUND('[1]Tabla de Amortizacion'!H16,8),IF([1]CALCULADORA!$F$10="14% (Alto)",ROUND('[1]Tabla de Amortizacion'!#REF!,8),IF([1]CALCULADORA!$F$10=20%,ROUND('[1]Tabla de Amortizacion'!#REF!,8),ROUND('[1]Tabla de Amortizacion'!K16,8)))))) -> 0
A16: 2019-03-06 | B16: 0.02424875 | C16: =+VLOOKUP(A16,'Tabla de Amortizacion'!$D$2:$O$182,MATCH(Tablas!$B$1,'Tabla de Amortizacion'!$D$2:$O$2,0)) -> 0.02424875 | E16: =IF([1]CALCULADORA!$F$10="Contractual",ROUND('[1]Tabla de Amortizacion'!C17,8),IF([1]CALCULADORA!$F$10="6% (Medio)",ROUND('[1]Tabla de Amortizacion'!F17,8),IF([1]CALCULADORA!$F$10="10% (Medio Alto)",ROUND('[1]Tabla de Amortizacion'!H17,8),IF([1]CALCULADORA!$F$10="14% (Alto)",ROUND('[1]Tabla de Amortizacion'!#REF!,8),IF([1]CALCULADORA!$F$10=20%,ROUND('[1]Tabla de Amortizacion'!#REF!,8),ROUND('[1]Tabla de Amortizacion'!K17,8)))))) -> 0
A17: 2019-04-06 | B17: 0.01717284 | C17: =+VLOOKUP(A17,'Tabla de Amortizacion'!$D$2:$O$182,MATCH(Tablas!$B$1,'Tabla de Amortizacion'!$D$2:$O$2,0)) -> 0.01717284 | E17: =IF([1]CALCULADORA!$F$10="Contractual",ROUND('[1]Tabla de Amortizacion'!C18,8),IF([1]CALCULADORA!$F$10="6% (Medio)",ROUND('[1]Tabla de Amortizacion'!F18,8),IF([1]CALCULADORA!$F$10="10% (Medio Alto)",ROUND('[1]Tabla de Amortizacion'!H18,8),IF([1]CALCULADORA!$F$10="14% (Alto)",ROUND('[1]Tabla de Amortizacion'!#REF!,8),IF([1]CALCULADORA!$F$10=20%,ROUND('[1]Tabla de Amortizacion'!#REF!,8),ROUND('[1]Tabla de Amortizacion'!K18,8)))))) -> 0
A18: 2019-05-06 | B18: 0.01614614 | C18: =+VLOOKUP(A18,'Tabla de Amortizacion'!$D$2:$O$182,MATCH(Tablas!$B$1,'Tabla de Amortizacion'!$D$2:$O$2,0)) -> 0.01614614 | E18: =IF([1]CALCULADORA!$F$10="Contractual",ROUND('[1]Tabla de Amortizacion'!C19,8),IF([1]CALCULADORA!$F$10="6% (Medio)",ROUND('[1]Tabla de Amortizacion'!F19,8),IF([1]CALCULADORA!$F$10="10% (Medio Alto)",ROUND('[1]Tabla de Amortizacion'!H19,8),IF([1]CALCULADORA!$F$10="14% (Alto)",ROUND('[1]Tabla de Amortizacion'!#REF!,8),IF([1]CALCULADORA!$F$10=20%,ROUND('[1]Tabla de Amortizacion'!#REF!,8),ROUND('[1]Tabla de Amortizacion'!K19,8)))))) -> 0
A19: 2019-06-06 | B19: 0.01870624 | C19: =+VLOOKUP(A19,'Tabla de Amortizacion'!$D$2:$O$182,MATCH(Tablas!$B$1,'Tabla de Amortizacion'!$D$2:$O$2,0)) -> 0.01870624 | E19: =IF([1]CALCULADORA!$F$10="Contractual",ROUND('[1]Tabla de Amortizacion'!C20,8),IF([1]CALCULADORA!$F$10="6% (Medio)",ROUND('[1]Tabla de Amortizacion'!F20,8),IF([1]CALCULADORA!$F$10="10% (Medio Alto)",ROUND('[1]Tabla de Amortizacion'!H20,8),IF([1]CALCULADORA!$F$10="14% (Alto)",ROUND('[1]Tabla de Amortizacion'!#REF!,8),IF([1]CALCULADORA!$F$10=20%,ROUND('[1]Tabla de Amortizacion'!#REF!,8),ROUND('[1]Tabla de Amortizacion'!K20,8)))))) -> 0
A20: 2019-07-06 | B20: 0.0282862 | C20: =+VLOOKUP(A20,'Tabla de Amortizacion'!$D$2:$O$182,MATCH(Tablas!$B$1,'Tabla de Amortizacion'!$D$2:$O$2,0)) -> 0.0282862 | E20: =IF([1]CALCULADORA!$F$10="Contractual",ROUND('[1]Tabla de Amortizacion'!C21,8),IF([1]CALCULADORA!$F$10="6% (Medio)",ROUND('[1]Tabla de Amortizacion'!F21,8),IF([1]CALCULADORA!$F$10="10% (Medio Alto)",ROUND('[1]Tabla de Amortizacion'!H21,8),IF([1]CALCULADORA!$F$10="14% (Alto)",ROUND('[1]Tabla de Amortizacion'!#REF!,8),IF([1]CALCULADORA!$F$10=20%,ROUND('[1]Tabla de Amortizacion'!#REF!,8),ROUND('[1]Tabla de Amortizacion'!K21,8)))))) -> 0
A21: 2019-08-06 | B21: 0.01329859 | C21: =+VLOOKUP(A21,'Tabla de Amortizacion'!$D$2:$O$182,MATCH(Tablas!$B$1,'Tabla de Amortizacion'!$D$2:$O$2,0)) -> 0.01329859 | E21: =IF([1]CALCULADORA!$F$10="Contractual",ROUND('[1]Tabla de Amortizacion'!C22,8),IF([1]CALCULADORA!$F$10="6% (Medio)",ROUND('[1]Tabla de Amortizacion'!F22,8),IF([1]CALCULADORA!$F$10="10% (Medio Alto)",ROUND('[1]Tabla de Amortizacion'!H22,8),IF([1]CALCULADORA!$F$10="14% (Alto)",ROUND('[1]Tabla de Amortizacion'!#REF!,8),IF([1]CALCULADORA!$F$10=20%,ROUND('[1]Tabla de Amortizacion'!#REF!,8),ROUND('[1]Tabla de Amortizacion'!K22,8)))))) -> 0
A22: 2019-09-06 | B22: 0.01814356 | C22: =+VLOOKUP(A22,'Tabla de Amortizacion'!$D$2:$O$182,MATCH(Tablas!$B$1,'Tabla de Amortizacion'!$D$2:$O$2,0)) -> 0.01814356 | E22: =IF([1]CALCULADORA!$F$10="Contractual",ROUND('[1]Tabla de Amortizacion'!C23,8),IF([1]CALCULADORA!$F$10="6% (Medio)",ROUND('[1]Tabla de Amortizacion'!F23,8),IF([1]CALCULADORA!$F$10="10% (Medio Alto)",ROUND('[1]Tabla de Amortizacion'!H23,8),IF([1]CALCULADORA!$F$10="14% (Alto)",ROUND('[1]Tabla de Amortizacion'!#REF!,8),IF([1]CALCULADORA!$F$10=20%,ROUND('[1]Tabla de Amortizacion'!#REF!,8),ROUND('[1]Tabla de Amortizacion'!K23,8)))))) -> 0
A23: 2019-10-06 | B23: 0.01595792 | C23: =+VLOOKUP(A23,'Tabla de Amortizacion'!$D$2:$O$182,MATCH(Tablas!$B$1,'Tabla de Amortizacion'!$D$2:$O$2,0)) -> 0.01595792 | E23: =IF([1]CALCULADORA!$F$10="Contractual",ROUND('[1]Tabla de Amortizacion'!C24,8),IF([1]CALCULADORA!$F$10="6% (Medio)",ROUND('[1]Tabla de Amortizacion'!F24,8),IF([1]CALCULADORA!$F$10="10% (Medio Alto)",ROUND('[1]Tabla de Amortizacion'!H24,8),IF([1]CALCULADORA!$F$10="14% (Alto)",ROUND('[1]Tabla de Amortizacion'!#REF!,8),IF([1]CALCULADORA!$F$10=20%,ROUND('[1]Tabla de Amortizacion'!#REF!,8),ROUND('[1]Tabla de Amortizacion'!K24,8)))))) -> 0
A24: 2019-11-06 | B24: 0.01681101 | C24: =+VLOOKUP(A24,'Tabla de Amortizacion'!$D$2:$O$182,MATCH(Tablas!$B$1,'Tabla de Amortizacion'!$D$2:$O$2,0)) -> 0.01681101 | E24: =IF([1]CALCULADORA!$F$10="Contractual",ROUND('[1]Tabla de Amortizacion'!C25,8),IF([1]CALCULADORA!$F$10="6% (Medio)",ROUND('[1]Tabla de Amortizacion'!F25,8),IF([1]CALCULADORA!$F$10="10% (Medio Alto)",ROUND('[1]Tabla de Amortizacion'!H25,8),IF([1]CALCULADORA!$F$10="14% (Alto)",ROUND('[1]Tabla de Amortizacion'!#REF!,8),IF([1]CALCULADORA!$F$10=20%,ROUND('[1]Tabla de Amortizacion'!#REF!,8),ROUND('[1]Tabla de Amortizacion'!K25,8)))))) -> 0
A25: 2019-12-06 | B25: 0.01544912 | C25: =+VLOOKUP(A25,'Tabla de Amortizacion'!$D$2:$O$182,MATCH(Tablas!$B$1,'Tabla de Amortizacion'!$D$2:$O$2,0)) -> 0.01544912 | E25: =IF([1]CALCULADORA!$F$10="Contractual",ROUND('[1]Tabla de Amortizacion'!C26,8),IF([1]CALCULADORA!$F$10="6% (Medio)",ROUND('[1]Tabla de Amortizacion'!F26,8),IF([1]CALCULADORA!$F$10="10% (Medio Alto)",ROUND('[1]Tabla de Amortizacion'!H26,8),IF([1]CALCULADORA!$F$10="14% (Alto)",ROUND('[1]Tabla de Amortizacion'!#REF!,8),IF([1]CALCULADORA!$F$10=20%,ROUND('[1]Tabla de Amortizacion'!#REF!,8),ROUND('[1]Tabla de Amortizacion'!K26,8)))))) -> 0
A26: 2020-01-06 | B26: 0.01386443 | C26: =+VLOOKUP(A26,'Tabla de Amortizacion'!$D$2:$O$182,MATCH(Tablas!$B$1,'Tabla de Amortizacion'!$D$2:$O$2,0)) -> 0.01386443 | E26: =IF([1]CALCULADORA!$F$10="Contractual",ROUND('[1]Tabla de Amortizacion'!C27,8),IF([1]CALCULADORA!$F$10="6% (Medio)",ROUND('[1]Tabla de Amortizacion'!F27,8),IF([1]CALCULADORA!$F$10="10% (Medio Alto)",ROUND('[1]Tabla de Amortizacion'!H27,8),IF([1]CALCULADORA!$F$10="14% (Alto)",ROUND('[1]Tabla de Amortizacion'!#REF!,8),IF([1]CALCULADORA!$F$10=20%,ROUND('[1]Tabla de Amortizacion'!#REF!,8),ROUND('[1]Tabla de Amortizacion'!K27,8)))))) -> 0
A27: 2020-02-06 | B27: 0.01572838 | C27: =+VLOOKUP(A27,'Tabla de Amortizacion'!$D$2:$O$182,MATCH(Tablas!$B$1,'Tabla de Amortizacion'!$D$2:$O$2,0)) -> 0.01572838 | E27: =IF([1]CALCULADORA!$F$10="Contractual",ROUND('[1]Tabla de Amortizacion'!C28,8),IF([1]CALCULADORA!$F$10="6% (Medio)",ROUND('[1]Tabla de Amortizacion'!F28,8),IF([1]CALCULADORA!$F$10="10% (Medio Alto)",ROUND('[1]Tabla de Amortizacion'!H28,8),IF([1]CALCULADORA!$F$10="14% (Alto)",ROUND('[1]Tabla de Amortizacion'!#REF!,8),IF([1]CALCULADORA!$F$10=20%,ROUND('[1]Tabla de Amortizacion'!#REF!,8),ROUND('[1]Tabla de Amortizacion'!K28,8)))))) -> 0
A28: 2020-03-06 | B28: 0.02086454 | C28: =+VLOOKUP(A28,'Tabla de Amortizacion'!$D$2:$O$182,MATCH(Tablas!$B$1,'Tabla de Amortizacion'!$D$2:$O$2,0)) -> 0.02086454 | E28: =IF([1]CALCULADORA!$F$10="Contractual",ROUND('[1]Tabla de Amortizacion'!C29,8),IF([1]CALCULADORA!$F$10="6% (Medio)",ROUND('[1]Tabla de Amortizacion'!F29,8),IF([1]CALCULADORA!$F$10="10% (Medio Alto)",ROUND('[1]Tabla de Amortizacion'!H29,8),IF([1]CALCULADORA!$F$10="14% (Alto)",ROUND('[1]Tabla de Amortizacion'!#REF!,8),IF([1]CALCULADORA!$F$10=20%,ROUND('[1]Tabla de Amortizacion'!#REF!,8),ROUND('[1]Tabla de Amortizacion'!K29,8)))))) -> 0
A29: 2020-04-06 | B29: 0.01103635 | C29: =+VLOOKUP(A29,'Tabla de Amortizacion'!$D$2:$O$182,MATCH(Tablas!$B$1,'Tabla de Amortizacion'!$D$2:$O$2,0)) -> 0.01103635 | E29: =IF([1]CALCULADORA!$F$10="Contractual",ROUND('[1]Tabla de Amortizacion'!C30,8),IF([1]CALCULADORA!$F$10="6% (Medio)",ROUND('[1]Tabla de Amortizacion'!F30,8),IF([1]CALCULADORA!$F$10="10% (Medio Alto)",ROUND('[1]Tabla de Amortizacion'!H30,8),IF([1]CALCULADORA!$F$10="14% (Alto)",ROUND('[1]Tabla de Amortizacion'!#REF!,8),IF([1]CALCULADORA!$F$10=20%,ROUND('[1]Tabla de Amortizacion'!#REF!,8),ROUND('[1]Tabla de Amortizacion'!K30,8)))))) -> 0
A30: 2020-05-06 | B30: 0.00328742 | C30: =+VLOOKUP(A30,'Tabla de Amortizacion'!$D$2:$O$182,MATCH(Tablas!$B$1,'Tabla de Amortizacion'!$D$2:$O$2,0)) -> 0.00328742 | E30: =IF([1]CALCULADORA!$F$10="Contractual",ROUND('[1]Tabla de Amortizacion'!C31,8),IF([1]CALCULADORA!$F$10="6% (Medio)",ROUND('[1]Tabla de Amortizacion'!F31,8),IF([1]CALCULADORA!$F$10="10% (Medio Alto)",ROUND('[1]Tabla de Amortizacion'!H31,8),IF([1]CALCULADORA!$F$10="14% (Alto)",ROUND('[1]Tabla de Amortizacion'!#REF!,8),IF([1]CALCULADORA!$F$10=20%,ROUND('[1]Tabla de Amortizacion'!#REF!,8),ROUND('[1]Tabla de Amortizacion'!K31,8)))))) -> 0
A31: 2020-06-06 | B31: 0.00335904 | C31: =+VLOOKUP(A31,'Tabla de Amortizacion'!$D$2:$O$182,MATCH(Tablas!$B$1,'Tabla de Amortizacion'!$D$2:$O$2,0)) -> 0.00335904 | E31: =IF([1]CALCULADORA!$F$10="Contractual",ROUND('[1]Tabla de Amortizacion'!C32,8),IF([1]CALCULADORA!$F$10="6% (Medio)",ROUND('[1]Tabla de Amortizacion'!F32,8),IF([1]CALCULADORA!$F$10="10% (Medio Alto)",ROUND('[1]Tabla de Amortizacion'!H32,8),IF([1]CALCULADORA!$F$10="14% (Alto)",ROUND('[1]Tabla de Amortizacion'!#REF!,8),IF([1]CALCULADORA!$F$10=20%,ROUND('[1]Tabla de Amortizacion'!#REF!,8),ROUND('[1]Tabla de Amortizacion'!K32,8)))))) -> 0
A32: 2020-07-06 | B32: 0.0047029 | C32: =+VLOOKUP(A32,'Tabla de Amortizacion'!$D$2:$O$182,MATCH(Tablas!$B$1,'Tabla de Amortizacion'!$D$2:$O$2,0)) -> 0.0047029 | E32: =IF([1]CALCULADORA!$F$10="Contractual",ROUND('[1]Tabla de Amortizacion'!C33,8),IF([1]CALCULADORA!$F$10="6% (Medio)",ROUND('[1]Tabla de Amortizacion'!F33,8),IF([1]CALCULADORA!$F$10="10% (Medio Alto)",ROUND('[1]Tabla de Amortizacion'!H33,8),IF([1]CALCULADORA!$F$10="14% (Alto)",ROUND('[1]Tabla de Amortizacion'!#REF!,8),IF([1]CALCULADORA!$F$10=20%,ROUND('[1]Tabla de Amortizacion'!#REF!,8),ROUND('[1]Tabla de Amortizacion'!K33,8)))))) -> 0
A33: 2020-08-06 | B33: 0.00592936 | C33: =+VLOOKUP(A33,'Tabla de Amortizacion'!$D$2:$O$182,MATCH(Tablas!$B$1,'Tabla de Amortizacion'!$D$2:$O$2,0)) -> 0.00592936 | E33: =IF([1]CALCULADORA!$F$10="Contractual",ROUND('[1]Tabla de Amortizacion'!C34,8),IF([1]CALCULADORA!$F$10="6% (Medio)",ROUND('[1]Tabla de Amortizacion'!F34,8),IF([1]CALCULADORA!$F$10="10% (Medio Alto)",ROUND('[1]Tabla de Amortizacion'!H34,8),IF([1]CALCULADORA!$F$10="14% (Alto)",ROUND('[1]Tabla de Amortizacion'!#REF!,8),IF([1]CALCULADORA!$F$10=20%,ROUND('[1]Tabla de Amortizacion'!#REF!,8),ROUND('[1]Tabla de Amortizacion'!K34,8)))))) -> 0
A34: 2020-09-06 | B34: 0.00934888 | C34: =+VLOOKUP(A34,'Tabla de Amortizacion'!$D$2:$O$182,MATCH(Tablas!$B$1,'Tabla de Amortizacion'!$D$2:$O$2,0)) -> 0.00934888 | E34: =IF([1]CALCULADORA!$F$10="Contractual",ROUND('[1]Tabla de Amortizacion'!C35,8),IF([1]CALCULADORA!$F$10="6% (Medio)",ROUND('[1]Tabla de Amortizacion'!F35,8),IF([1]CALCULADORA!$F$10="10% (Medio Alto)",ROUND('[1]Tabla de Amortizacion'!H35,8),IF([1]CALCULADORA!$F$10="14% (Alto)",ROUND('[1]Tabla de Amortizacion'!#REF!,8),IF([1]CALCULADORA!$F$10=20%,ROUND('[1]Tabla de Amortizacion'!#REF!,8),ROUND('[1]Tabla de Amortizacion'!K35,8)))))) -> 0
A35: 2020-10-06 | B35: 0.0094674 | C35: =+VLOOKUP(A35,'Tabla de Amortizacion'!$D$2:$O$182,MATCH(Tablas!$B$1,'Tabla de Amortizacion'!$D$2:$O$2,0)) -> 0.0094674 | E35: =IF([1]CALCULADORA!$F$10="Contractual",ROUND('[1]Tabla de Amortizacion'!C36,8),IF([1]CALCULADORA!$F$10="6% (Medio)",ROUND('[1]Tabla de Amortizacion'!F36,8),IF([1]CALCULADORA!$F$10="10% (Medio Alto)",ROUND('[1]Tabla de Amortizacion'!H36,8),IF([1]CALCULADORA!$F$10="14% (Alto)",ROUND('[1]Tabla de Amortizacion'!#REF!,8),IF([1]CALCULADORA!$F$10=20%,ROUND('[1]Tabla de Amortizacion'!#REF!,8),ROUND('[1]Tabla de Amortizacion'!K36,8)))))) -> 0
A36: 2020-11-06 | B36: 0.01645422 | C36: =+VLOOKUP(A36,'Tabla de Amortizacion'!$D$2:$O$182,MATCH(Tablas!$B$1,'Tabla de Amortizacion'!$D$2:$O$2,0)) -> 0.01645422 | E36: =IF([1]CALCULADORA!$F$10="Contractual",ROUND('[1]Tabla de Amortizacion'!C37,8),IF([1]CALCULADORA!$F$10="6% (Medio)",ROUND('[1]Tabla de Amortizacion'!F37,8),IF([1]CALCULADORA!$F$10="10% (Medio Alto)",ROUND('[1]Tabla de Amortizacion'!H37,8),IF([1]CALCULADORA!$F$10="14% (Alto)",ROUND('[1]Tabla de Amortizacion'!#REF!,8),IF([1]CALCULADORA!$F$10=20%,ROUND('[1]Tabla de Amortizacion'!#REF!,8),ROUND('[1]Tabla de Amortizacion'!K37,8)))))) -> 0
A37: 2020-12-06 | B37: 0.01360503 | C37: =+VLOOKUP(A37,'Tabla de Amortizacion'!$D$2:$O$182,MATCH(Tablas!$B$1,'Tabla de Amortizacion'!$D$2:$O$2,0)) -> 0.01360503 | E37: =IF([1]CALCULADORA!$F$10="Contractual",ROUND('[1]Tabla de Amortizacion'!C38,8),IF([1]CALCULADORA!$F$10="6% (Medio)",ROUND('[1]Tabla de Amortizacion'!F38,8),IF([1]CALCULADORA!$F$10="10% (Medio Alto)",ROUND('[1]Tabla de Amortizacion'!H38,8),IF([1]CALCULADORA!$F$10="14% (Alto)",ROUND('[1]Tabla de Amortizacion'!#REF!,8),IF([1]CALCULADORA!$F$10=20%,ROUND('[1]Tabla de Amortizacion'!#REF!,8),ROUND('[1]Tabla de Amortizacion'!K38,8)))))) -> 0
A38: 2021-01-06 | B38: 0.01503896 | C38: =+VLOOKUP(A38,'Tabla de Amortizacion'!$D$2:$O$182,MATCH(Tablas!$B$1,'Tabla de Amortizacion'!$D$2:$O$2,0)) -> 0.01503896 | E38: =IF([1]CALCULADORA!$F$10="Contractual",ROUND('[1]Tabla de Amortizacion'!C39,8),IF([1]CALCULADORA!$F$10="6% (Medio)",ROUND('[1]Tabla de Amortizacion'!F39,8),IF([1]CALCULADORA!$F$10="10% (Medio Alto)",ROUND('[1]Tabla de Amortizacion'!H39,8),IF([1]CALCULADORA!$F$10="14% (Alto)",ROUND('[1]Tabla de Amortizacion'!#REF!,8),IF([1]CALCULADORA!$F$10=20%,ROUND('[1]Tabla de Amortizacion'!#REF!,8),ROUND('[1]Tabla de Amortizacion'!K39,8)))))) -> 0
A39: 2021-02-06 | B39: 0.01366977 | C39: =+VLOOKUP(A39,'Tabla de Amortizacion'!$D$2:$O$182,MATCH(Tablas!$B$1,'Tabla de Amortizacion'!$D$2:$O$2,0)) -> 0.01366977 | E39: =IF([1]CALCULADORA!$F$10="Contractual",ROUND('[1]Tabla de Amortizacion'!C40,8),IF([1]CALCULADORA!$F$10="6% (Medio)",ROUND('[1]Tabla de Amortizacion'!F40,8),IF([1]CALCULADORA!$F$10="10% (Medio Alto)",ROUND('[1]Tabla de Amortizacion'!H40,8),IF([1]CALCULADORA!$F$10="14% (Alto)",ROUND('[1]Tabla de Amortizacion'!#REF!,8),IF([1]CALCULADORA!$F$10=20%,ROUND('[1]Tabla de Amortizacion'!#REF!,8),ROUND('[1]Tabla de Amortizacion'!K40,8)))))) -> 0
A40: 2021-03-06 | B40: 0.01395939 | C40: =+VLOOKUP(A40,'Tabla de Amortizacion'!$D$2:$O$182,MATCH(Tablas!$B$1,'Tabla de Amortizacion'!$D$2:$O$2,0)) -> 0.01395939 | E40: =IF([1]CALCULADORA!$F$10="Contractual",ROUND('[1]Tabla de Amortizacion'!C41,8),IF([1]CALCULADORA!$F$10="6% (Medio)",ROUND('[1]Tabla de Amortizacion'!F41,8),IF([1]CALCULADORA!$F$10="10% (Medio Alto)",ROUND('[1]Tabla de Amortizacion'!H41,8),IF([1]CALCULADORA!$F$10="14% (Alto)",ROUND('[1]Tabla de Amortizacion'!#REF!,8),IF([1]CALCULADORA!$F$10=20%,ROUND('[1]Tabla de Amortizacion'!#REF!,8),ROUND('[1]Tabla de Amortizacion'!K41,8)))))) -> 0
A41: 2021-04-06 | B41: 0.01200633 | C41: =+VLOOKUP(A41,'Tabla de Amortizacion'!$D$2:$O$182,MATCH(Tablas!$B$1,'Tabla de Amortizacion'!$D$2:$O$2,0)) -> 0.01200633 | E41: =IF([1]CALCULADORA!$F$10="Contractual",ROUND('[1]Tabla de Amortizacion'!C42,8),IF([1]CALCULADORA!$F$10="6% (Medio)",ROUND('[1]Tabla de Amortizacion'!F42,8),IF([1]CALCULADORA!$F$10="10% (Medio Alto)",ROUND('[1]Tabla de Amortizacion'!H42,8),IF([1]CALCULADORA!$F$10="14% (Alto)",ROUND('[1]Tabla de Amortizacion'!#REF!,8),IF([1]CALCULADORA!$F$10=20%,ROUND('[1]Tabla de Amortizacion'!#REF!,8),ROUND('[1]Tabla de Amortizacion'!K42,8)))))) -> 0
A42: 2021-05-06 | B42: 0.01270412 | C42: =+VLOOKUP(A42,'Tabla de Amortizacion'!$D$2:$O$182,MATCH(Tablas!$B$1,'Tabla de Amortizacion'!$D$2:$O$2,0)) -> 0.01270412 | E42: =IF([1]CALCULADORA!$F$10="Contractual",ROUND('[1]Tabla de Amortizacion'!C43,8),IF([1]CALCULADORA!$F$10="6% (Medio)",ROUND('[1]Tabla de Amortizacion'!F43,8),IF([1]CALCULADORA!$F$10="10% (Medio Alto)",ROUND('[1]Tabla de Amortizacion'!H43,8),IF([1]CALCULADORA!$F$10="14% (Alto)",ROUND('[1]Tabla de Amortizacion'!#REF!,8),IF([1]CALCULADORA!$F$10=20%,ROUND('[1]Tabla de Amortizacion'!#REF!,8),ROUND('[1]Tabla de Amortizacion'!K43,8)))))) -> 0
A43: 2021-06-06 | B43: 0.01132464 | C43: =+VLOOKUP(A43,'Tabla de Amortizacion'!$D$2:$O$182,MATCH(Tablas!$B$1,'Tabla de Amortizacion'!$D$2:$O$2,0)) -> 0.01132464 | E43: =IF([1]CALCULADORA!$F$10="Contractual",ROUND('[1]Tabla de Amortizacion'!C44,8),IF([1]CALCULADORA!$F$10="6% (Medio)",ROUND('[1]Tabla de Amortizacion'!F44,8),IF([1]CALCULADORA!$F$10="10% (Medio Alto)",ROUND('[1]Tabla de Amortizacion'!H44,8),IF([1]CALCULADORA!$F$10="14% (Alto)",ROUND('[1]Tabla de Amortizacion'!#REF!,8),IF([1]CALCULADORA!$F$10=20%,ROUND('[1]Tabla de Amortizacion'!#REF!,8),ROUND('[1]Tabla de Amortizacion'!K44,8)))))) -> 0
A44: 2021-07-06 | B44: 0.00969269 | C44: =+VLOOKUP(A44,'Tabla de Amortizacion'!$D$2:$O$182,MATCH(Tablas!$B$1,'Tabla de Amortizacion'!$D$2:$O$2,0)) -> 0.00969269 | E44: =IF([1]CALCULADORA!$F$10="Contractual",ROUND('[1]Tabla de Amortizacion'!C45,8),IF([1]CALCULADORA!$F$10="6% (Medio)",ROUND('[1]Tabla de Amortizacion'!F45,8),IF([1]CALCULADORA!$F$10="10% (Medio Alto)",ROUND('[1]Tabla de Amortizacion'!H45,8),IF([1]CALCULADORA!$F$10="14% (Alto)",ROUND('[1]Tabla de Amortizacion'!#REF!,8),IF([1]CALCULADORA!$F$10=20%,ROUND('[1]Tabla de Amortizacion'!#REF!,8),ROUND('[1]Tabla de Amortizacion'!K45,8)))))) -> 0
A45: 2021-08-06 | B45: 0.01363761 | C45: =+VLOOKUP(A45,'Tabla de Amortizacion'!$D$2:$O$182,MATCH(Tablas!$B$1,'Tabla de Amortizacion'!$D$2:$O$2,0)) -> 0.01363761 | E45: =IF([1]CALCULADORA!$F$10="Contractual",ROUND('[1]Tabla de Amortizacion'!C46,8),IF([1]CALCULADORA!$F$10="6% (Medio)",ROUND('[1]Tabla de Amortizacion'!F46,8),IF([1]CALCULADORA!$F$10="10% (Medio Alto)",ROUND('[1]Tabla de Amortizacion'!H46,8),IF([1]CALCULADORA!$F$10="14% (Alto)",ROUND('[1]Tabla de Amortizacion'!#REF!,8),IF([1]CALCULADORA!$F$10=20%,ROUND('[1]Tabla de Amortizacion'!#REF!,8),ROUND('[1]Tabla de Amortizacion'!K46,8)))))) -> 0
A46: 2021-09-06 | B46: 0.01135293 | C46: =+VLOOKUP(A46,'Tabla de Amortizacion'!$D$2:$O$182,MATCH(Tablas!$B$1,'Tabla de Amortizacion'!$D$2:$O$2,0)) -> 0.01135293 | E46: =IF([1]CALCULADORA!$F$10="Contractual",ROUND('[1]Tabla de Amortizacion'!C47,8),IF([1]CALCULADORA!$F$10="6% (Medio)",ROUND('[1]Tabla de Amortizacion'!F47,8),IF([1]CALCULADORA!$F$10="10% (Medio Alto)",ROUND('[1]Tabla de Amortizacion'!H47,8),IF([1]CALCULADORA!$F$10="14% (Alto)",ROUND('[1]Tabla de Amortizacion'!#REF!,8),IF([1]CALCULADORA!$F$10=20%,ROUND('[1]Tabla de Amortizacion'!#REF!,8),ROUND('[1]Tabla de Amortizacion'!K47,8)))))) -> 0
A47: 2021-10-06 | B47: 0.01013605 | C47: =+VLOOKUP(A47,'Tabla de Amortizacion'!$D$2:$O$182,MATCH(Tablas!$B$1,'Tabla de Amortizacion'!$D$2:$O$2,0)) -> 0.01013605 | E47: =IF([1]CALCULADORA!$F$10="Contractual",ROUND('[1]Tabla de Amortizacion'!C48,8),IF([1]CALCULADORA!$F$10="6% (Medio)",ROUND('[1]Tabla de Amortizacion'!F48,8),IF([1]CALCULADORA!$F$10="10% (Medio Alto)",ROUND('[1]Tabla de Amortizacion'!H48,8),IF([1]CALCULADORA!$F$10="14% (Alto)",ROUND('[1]Tabla de Amortizacion'!#REF!,8),IF([1]CALCULADORA!$F$10=20%,ROUND('[1]Tabla de Amortizacion'!#REF!,8),ROUND('[1]Tabla de Amortizacion'!K48,8)))))) -> 0
A48: 2021-11-06 | B48: 0.01023478 | C48: =+VLOOKUP(A48,'Tabla de Amortizacion'!$D$2:$O$182,MATCH(Tablas!$B$1,'Tabla de Amortizacion'!$D$2:$O$2,0)) -> 0.01023478 | E48: =IF([1]CALCULADORA!$F$10="Contractual",ROUND('[1]Tabla de Amortizacion'!C49,8),IF([1]CALCULADORA!$F$10="6% (Medio)",ROUND('[1]Tabla de Amortizacion'!F49,8),IF([1]CALCULADORA!$F$10="10% (Medio Alto)",ROUND('[1]Tabla de Amortizacion'!H49,8),IF([1]CALCULADORA!$F$10="14% (Alto)",ROUND('[1]Tabla de Amortizacion'!#REF!,8),IF([1]CALCULADORA!$F$10=20%,ROUND('[1]Tabla de Amortizacion'!#REF!,8),ROUND('[1]Tabla de Amortizacion'!K49,8)))))) -> 0
A49: 2021-12-06 | B49: 0.0082423 | C49: =+VLOOKUP(A49,'Tabla de Amortizacion'!$D$2:$O$182,MATCH(Tablas!$B$1,'Tabla de Amortizacion'!$D$2:$O$2,0)) -> 0.0082423 | E49: =IF([1]CALCULADORA!$F$10="Contractual",ROUND('[1]Tabla de Amortizacion'!C50,8),IF([1]CALCULADORA!$F$10="6% (Medio)",ROUND('[1]Tabla de Amortizacion'!F50,8),IF([1]CALCULADORA!$F$10="10% (Medio Alto)",ROUND('[1]Tabla de Amortizacion'!H50,8),IF([1]CALCULADORA!$F$10="14% (Alto)",ROUND('[1]Tabla de Amortizacion'!#REF!,8),IF([1]CALCULADORA!$F$10=20%,ROUND('[1]Tabla de Amortizacion'!#REF!,8),ROUND('[1]Tabla de Amortizacion'!K50,8)))))) -> 0
A50: 2022-01-06 | B50: 0.01079955 | C50: =+VLOOKUP(A50,'Tabla de Amortizacion'!$D$2:$O$182,MATCH(Tablas!$B$1,'Tabla de Amortizacion'!$D$2:$O$2,0)) -> 0.01079955 | E50: =IF([1]CALCULADORA!$F$10="Contractual",ROUND('[1]Tabla de Amortizacion'!C51,8),IF([1]CALCULADORA!$F$10="6% (Medio)",ROUND('[1]Tabla de Amortizacion'!F51,8),IF([1]CALCULADORA!$F$10="10% (Medio Alto)",ROUND('[1]Tabla de Amortizacion'!H51,8),IF([1]CALCULADORA!$F$10="14% (Alto)",ROUND('[1]Tabla de Amortizacion'!#REF!,8),IF([1]CALCULADORA!$F$10=20%,ROUND('[1]Tabla de Amortizacion'!#REF!,8),ROUND('[1]Tabla de Amortizacion'!K51,8)))))) -> 0
A51: 2022-02-06 | B51: 0.01187544 | C51: =+VLOOKUP(A51,'Tabla de Amortizacion'!$D$2:$O$182,MATCH(Tablas!$B$1,'Tabla de Amortizacion'!$D$2:$O$2,0)) -> 0.01187544 | E51: =IF([1]CALCULADORA!$F$10="Contractual",ROUND('[1]Tabla de Amortizacion'!C52,8),IF([1]CALCULADORA!$F$10="6% (Medio)",ROUND('[1]Tabla de Amortizacion'!F52,8),IF([1]CALCULADORA!$F$10="10% (Medio Alto)",ROUND('[1]Tabla de Amortizacion'!H52,8),IF([1]CALCULADORA!$F$10="14% (Alto)",ROUND('[1]Tabla de Amortizacion'!#REF!,8),IF([1]CALCULADORA!$F$10=20%,ROUND('[1]Tabla de Amortizacion'!#REF!,8),ROUND('[1]Tabla de Amortizacion'!K52,8)))))) -> 0
A52: 2022-03-06 | B52: 0.01019234 | C52: =+VLOOKUP(A52,'Tabla de Amortizacion'!$D$2:$O$182,MATCH(Tablas!$B$1,'Tabla de Amortizacion'!$D$2:$O$2,0)) -> 0.01019234 | E52: =IF([1]CALCULADORA!$F$10="Contractual",ROUND('[1]Tabla de Amortizacion'!C53,8),IF([1]CALCULADORA!$F$10="6% (Medio)",ROUND('[1]Tabla de Amortizacion'!F53,8),IF([1]CALCULADORA!$F$10="10% (Medio Alto)",ROUND('[1]Tabla de Amortizacion'!H53,8),IF([1]CALCULADORA!$F$10="14% (Alto)",ROUND('[1]Tabla de Amortizacion'!#REF!,8),IF([1]CALCULADORA!$F$10=20%,ROUND('[1]Tabla de Amortizacion'!#REF!,8),ROUND('[1]Tabla de Amortizacion'!K53,8)))))) -> 0
A53: 2022-04-06 | B53: 0.01059437 | C53: =+VLOOKUP(A53,'Tabla de Amortizacion'!$D$2:$O$182,MATCH(Tablas!$B$1,'Tabla de Amortizacion'!$D$2:$O$2,0)) -> 0.01059437 | E53: =IF([1]CALCULADORA!$F$10="Contractual",ROUND('[1]Tabla de Amortizacion'!C54,8),IF([1]CALCULADORA!$F$10="6% (Medio)",ROUND('[1]Tabla de Amortizacion'!F54,8),IF([1]CALCULADORA!$F$10="10% (Medio Alto)",ROUND('[1]Tabla de Amortizacion'!H54,8),IF([1]CALCULADORA!$F$10="14% (Alto)",ROUND('[1]Tabla de Amortizacion'!#REF!,8),IF([1]CALCULADORA!$F$10=20%,ROUND('[1]Tabla de Amortizacion'!#REF!,8),ROUND('[1]Tabla de Amortizacion'!K54,8)))))) -> 0
A54: 2022-05-06 | B54: 0.0111525 | C54: =+VLOOKUP(A54,'Tabla de Amortizacion'!$D$2:$O$182,MATCH(Tablas!$B$1,'Tabla de Amortizacion'!$D$2:$O$2,0)) -> 0.0111525 | E54: =IF([1]CALCULADORA!$F$10="Contractual",ROUND('[1]Tabla de Amortizacion'!C55,8),IF([1]CALCULADORA!$F$10="6% (Medio)",ROUND('[1]Tabla de Amortizacion'!F55,8),IF([1]CALCULADORA!$F$10="10% (Medio Alto)",ROUND('[1]Tabla de Amortizacion'!H55,8),IF([1]CALCULADORA!$F$10="14% (Alto)",ROUND('[1]Tabla de Amortizacion'!#REF!,8),IF([1]CALCULADORA!$F$10=20%,ROUND('[1]Tabla de Amortizacion'!#REF!,8),ROUND('[1]Tabla de Amortizacion'!K55,8)))))) -> 0
A55: 2022-06-06 | B55: 0.00963262 | C55: =+VLOOKUP(A55,'Tabla de Amortizacion'!$D$2:$O$182,MATCH(Tablas!$B$1,'Tabla de Amortizacion'!$D$2:$O$2,0)) -> 0.00963262 | E55: =IF([1]CALCULADORA!$F$10="Contractual",ROUND('[1]Tabla de Amortizacion'!C56,8),IF([1]CALCULADORA!$F$10="6% (Medio)",ROUND('[1]Tabla de Amortizacion'!F56,8),IF([1]CALCULADORA!$F$10="10% (Medio Alto)",ROUND('[1]Tabla de Amortizacion'!H56,8),IF([1]CALCULADORA!$F$10="14% (Alto)",ROUND('[1]Tabla de Amortizacion'!#REF!,8),IF([1]CALCULADORA!$F$10=20%,ROUND('[1]Tabla de Amortizacion'!#REF!,8),ROUND('[1]Tabla de Amortizacion'!K56,8)))))) -> 0
A56: 2022-07-06 | B56: 0.00611365 | C56: =+VLOOKUP(A56,'Tabla de Amortizacion'!$D$2:$O$182,MATCH(Tablas!$B$1,'Tabla de Amortizacion'!$D$2:$O$2,0)) -> 0.00611365 | E56: =IF([1]CALCULADORA!$F$10="Contractual",ROUND('[1]Tabla de Amortizacion'!C57,8),IF([1]CALCULADORA!$F$10="6% (Medio)",ROUND('[1]Tabla de Amortizacion'!F57,8),IF([1]CALCULADORA!$F$10="10% (Medio Alto)",ROUND('[1]Tabla de Amortizacion'!H57,8),IF([1]CALCULADORA!$F$10="14% (Alto)",ROUND('[1]Tabla de Amortizacion'!#REF!,8),IF([1]CALCULADORA!$F$10=20%,ROUND('[1]Tabla de Amortizacion'!#REF!,8),ROUND('[1]Tabla de Amortizacion'!K57,8)))))) -> 0
A57: 2022-08-06 | B57: 0.00810022 | C57: =+VLOOKUP(A57,'Tabla de Amortizacion'!$D$2:$O$182,MATCH(Tablas!$B$1,'Tabla de Amortizacion'!$D$2:$O$2,0)) -> 0.00810022 | E57: =IF([1]CALCULADORA!$F$10="Contractual",ROUND('[1]Tabla de Amortizacion'!C58,8),IF([1]CALCULADORA!$F$10="6% (Medio)",ROUND('[1]Tabla de Amortizacion'!F58,8),IF([1]CALCULADORA!$F$10="10% (Medio Alto)",ROUND('[1]Tabla de Amortizacion'!H58,8),IF([1]CALCULADORA!$F$10="14% (Alto)",ROUND('[1]Tabla de Amortizacion'!#REF!,8),IF([1]CALCULADORA!$F$10=20%,ROUND('[1]Tabla de Amortizacion'!#REF!,8),ROUND('[1]Tabla de Amortizacion'!K58,8)))))) -> 0
A58: 2022-09-06 | B58: 0.00639594 | C58: =+VLOOKUP(A58,'Tabla de Amortizacion'!$D$2:$O$182,MATCH(Tablas!$B$1,'Tabla de Amortizacion'!$D$2:$O$2,0)) -> 0.00639594 | E58: =IF([1]CALCULADORA!$F$10="Contractual",ROUND('[1]Tabla de Amortizacion'!C59,8),IF([1]CALCULADORA!$F$10="6% (Medio)",ROUND('[1]Tabla de Amortizacion'!F59,8),IF([1]CALCULADORA!$F$10="10% (Medio Alto)",ROUND('[1]Tabla de Amortizacion'!H59,8),IF([1]CALCULADORA!$F$10="14% (Alto)",ROUND('[1]Tabla de Amortizacion'!#REF!,8),IF([1]CALCULADORA!$F$10=20%,ROUND('[1]Tabla de Amortizacion'!#REF!,8),ROUND('[1]Tabla de Amortizacion'!K59,8)))))) -> 0
A59: 2022-10-06 | B59: 0.0099169 | C59: =+VLOOKUP(A59,'Tabla de Amortizacion'!$D$2:$O$182,MATCH(Tablas!$B$1,'Tabla de Amortizacion'!$D$2:$O$2,0)) -> 0.0099169 | E59: =IF([1]CALCULADORA!$F$10="Contractual",ROUND('[1]Tabla de Amortizacion'!C60,8),IF([1]CALCULADORA!$F$10="6% (Medio)",ROUND('[1]Tabla de Amortizacion'!F60,8),IF([1]CALCULADORA!$F$10="10% (Medio Alto)",ROUND('[1]Tabla de Amortizacion'!H60,8),IF([1]CALCULADORA!$F$10="14% (Alto)",ROUND('[1]Tabla de Amortizacion'!#REF!,8),IF([1]CALCULADORA!$F$10=20%,ROUND('[1]Tabla de Amortizacion'!#REF!,8),ROUND('[1]Tabla de Amortizacion'!K60,8)))))) -> 0
A60: 2022-11-06 | B60: 0.00934268 | C60: =+VLOOKUP(A60,'Tabla de Amortizacion'!$D$2:$O$182,MATCH(Tablas!$B$1,'Tabla de Amortizacion'!$D$2:$O$2,0)) -> 0.00934268 | E60: =IF([1]CALCULADORA!$F$10="Contractual",ROUND('[1]Tabla de Amortizacion'!C61,8),IF([1]CALCULADORA!$F$10="6% (Medio)",ROUND('[1]Tabla de Amortizacion'!F61,8),IF([1]CALCULADORA!$F$10="10% (Medio Alto)",ROUND('[1]Tabla de Amortizacion'!H61,8),IF([1]CALCULADORA!$F$10="14% (Alto)",ROUND('[1]Tabla de Amortizacion'!#REF!,8),IF([1]CALCULADORA!$F$10=20%,ROUND('[1]Tabla de Amortizacion'!#REF!,8),ROUND('[1]Tabla de Amortizacion'!K61,8)))))) -> 0
A61: 2022-12-06 | B61: 0.0055879 | C61: =+VLOOKUP(A61,'Tabla de Amortizacion'!$D$2:$O$182,MATCH(Tablas!$B$1,'Tabla de Amortizacion'!$D$2:$O$2,0)) -> 0.0055879 | E61: =IF([1]CALCULADORA!$F$10="Contractual",ROUND('[1]Tabla de Amortizacion'!C62,8),IF([1]CALCULADORA!$F$10="6% (Medio)",ROUND('[1]Tabla de Amortizacion'!F62,8),IF([1]CALCULADORA!$F$10="10% (Medio Alto)",ROUND('[1]Tabla de Amortizacion'!H62,8),IF([1]CALCULADORA!$F$10="14% (Alto)",ROUND('[1]Tabla de Amortizacion'!#REF!,8),IF([1]CALCULADORA!$F$10=20%,ROUND('[1]Tabla de Amortizacion'!#REF!,8),ROUND('[1]Tabla de Amortizacion'!K62,8)))))) -> 0
A62: 2023-01-06 | B62: 0.00736599 | C62: =+VLOOKUP(A62,'Tabla de Amortizacion'!$D$2:$O$182,MATCH(Tablas!$B$1,'Tabla de Amortizacion'!$D$2:$O$2,0)) -> 0.00736599 | E62: =IF([1]CALCULADORA!$F$10="Contractual",ROUND('[1]Tabla de Amortizacion'!C63,8),IF([1]CALCULADORA!$F$10="6% (Medio)",ROUND('[1]Tabla de Amortizacion'!F63,8),IF([1]CALCULADORA!$F$10="10% (Medio Alto)",ROUND('[1]Tabla de Amortizacion'!H63,8),IF([1]CALCULADORA!$F$10="14% (Alto)",ROUND('[1]Tabla de Amortizacion'!#REF!,8),IF([1]CALCULADORA!$F$10=20%,ROUND('[1]Tabla de Amortizacion'!#REF!,8),ROUND('[1]Tabla de Amortizacion'!K63,8)))))) -> 0
A63: 2023-02-06 | B63: 0.00620802 | C63: =+VLOOKUP(A63,'Tabla de Amortizacion'!$D$2:$O$182,MATCH(Tablas!$B$1,'Tabla de Amortizacion'!$D$2:$O$2,0)) -> 0.00620802 | E63: =IF([1]CALCULADORA!$F$10="Contractual",ROUND('[1]Tabla de Amortizacion'!C64,8),IF([1]CALCULADORA!$F$10="6% (Medio)",ROUND('[1]Tabla de Amortizacion'!F64,8),IF([1]CALCULADORA!$F$10="10% (Medio Alto)",ROUND('[1]Tabla de Amortizacion'!H64,8),IF([1]CALCULADORA!$F$10="14% (Alto)",ROUND('[1]Tabla de Amortizacion'!#REF!,8),IF([1]CALCULADORA!$F$10=20%,ROUND('[1]Tabla de Amortizacion'!#REF!,8),ROUND('[1]Tabla de Amortizacion'!K64,8)))))) -> 0
A64: 2023-03-06 | B64: 0.00603929 | C64: =+VLOOKUP(A64,'Tabla de Amortizacion'!$D$2:$O$182,MATCH(Tablas!$B$1,'Tabla de Amortizacion'!$D$2:$O$2,0)) -> 0.00603929 | E64: =IF([1]CALCULADORA!$F$10="Contractual",ROUND('[1]Tabla de Amortizacion'!C65,8),IF([1]CALCULADORA!$F$10="6% (Medio)",ROUND('[1]Tabla de Amortizacion'!F65,8),IF([1]CALCULADORA!$F$10="10% (Medio Alto)",ROUND('[1]Tabla de Amortizacion'!H65,8),IF([1]CALCULADORA!$F$10="14% (Alto)",ROUND('[1]Tabla de Amortizacion'!#REF!,8),IF([1]CALCULADORA!$F$10=20%,ROUND('[1]Tabla de Amortizacion'!#REF!,8),ROUND('[1]Tabla de Amortizacion'!K65,8)))))) -> 0
A65: 2023-04-06 | B65: 0.00558452 | C65: =+VLOOKUP(A65,'Tabla de Amortizacion'!$D$2:$O$182,MATCH(Tablas!$B$1,'Tabla de Amortizacion'!$D$2:$O$2,0)) -> 0.00558452 | E65: =IF([1]CALCULADORA!$F$10="Contractual",ROUND('[1]Tabla de Amortizacion'!C66,8),IF([1]CALCULADORA!$F$10="6% (Medio)",ROUND('[1]Tabla de Amortizacion'!F66,8),IF([1]CALCULADORA!$F$10="10% (Medio Alto)",ROUND('[1]Tabla de Amortizacion'!H66,8),IF([1]CALCULADORA!$F$10="14% (Alto)",ROUND('[1]Tabla de Amortizacion'!#REF!,8),IF([1]CALCULADORA!$F$10=20%,ROUND('[1]Tabla de Amortizacion'!#REF!,8),ROUND('[1]Tabla de Amortizacion'!K66,8)))))) -> 0
A66: 2023-05-06 | B66: 0.00572911 | C66: =+VLOOKUP(A66,'Tabla de Amortizacion'!$D$2:$O$182,MATCH(Tablas!$B$1,'Tabla de Amortizacion'!$D$2:$O$2,0)) -> 0.00572911 | E66: =IF([1]CALCULADORA!$F$10="Contractual",ROUND('[1]Tabla de Amortizacion'!C67,8),IF([1]CALCULADORA!$F$10="6% (Medio)",ROUND('[1]Tabla de Amortizacion'!F67,8),IF([1]CALCULADORA!$F$10="10% (Medio Alto)",ROUND('[1]Tabla de Amortizacion'!H67,8),IF([1]CALCULADORA!$F$10="14% (Alto)",ROUND('[1]Tabla de Amortizacion'!#REF!,8),IF([1]CALCULADORA!$F$10=20%,ROUND('[1]Tabla de Amortizacion'!#REF!,8),ROUND('[1]Tabla de Amortizacion'!K67,8)))))) -> 0
A67: =EDATE(A66,1) -> 2023-06-06 | B67: =+ROUND(C67,8) -> 0.0058543 | C67: =+VLOOKUP(A67,'Tabla de Amortizacion'!$D$2:$O$182,MATCH(Tablas!$B$1,'Tabla de Amortizacion'!$D$2:$O$2,0)) -> 0.0058543 | E67: =IF([1]CALCULADORA!$F$10="Contractual",ROUND('[1]Tabla de Amortizacion'!C68,8),IF([1]CALCULADORA!$F$10="6% (Medio)",ROUND('[1]Tabla de Amortizacion'!F68,8),IF([1]CALCULADORA!$F$10="10% (Medio Alto)",ROUND('[1]Tabla de Amortizacion'!H68,8),IF([1]CALCULADORA!$F$10="14% (Alto)",ROUND('[1]Tabla de Amortizacion'!#REF!,8),IF([1]CALCULADORA!$F$10=20%,ROUND('[1]Tabla de Amortizacion'!#REF!,8),ROUND('[1]Tabla de Amortizacion'!K68,8)))))) -> 0
A68: 2023-07-06 | B68: 0.0058232 | C68: =+VLOOKUP(A68,'Tabla de Amortizacion'!$D$2:$O$182,MATCH(Tablas!$B$1,'Tabla de Amortizacion'!$D$2:$O$2,0)) -> 0.0058232 | E68: =IF([1]CALCULADORA!$F$10="Contractual",ROUND('[1]Tabla de Amortizacion'!C69,8),IF([1]CALCULADORA!$F$10="6% (Medio)",ROUND('[1]Tabla de Amortizacion'!F69,8),IF([1]CALCULADORA!$F$10="10% (Medio Alto)",ROUND('[1]Tabla de Amortizacion'!H69,8),IF([1]CALCULADORA!$F$10="14% (Alto)",ROUND('[1]Tabla de Amortizacion'!#REF!,8),IF([1]CALCULADORA!$F$10=20%,ROUND('[1]Tabla de Amortizacion'!#REF!,8),ROUND('[1]Tabla de Amortizacion'!K69,8)))))) -> 0
A69: 2023-08-06 | B69: 0.00630288 | C69: =+VLOOKUP(A69,'Tabla de Amortizacion'!$D$2:$O$182,MATCH(Tablas!$B$1,'Tabla de Amortizacion'!$D$2:$O$2,0)) -> 0.00630288 | E69: =IF([1]CALCULADORA!$F$10="Contractual",ROUND('[1]Tabla de Amortizacion'!C70,8),IF([1]CALCULADORA!$F$10="6% (Medio)",ROUND('[1]Tabla de Amortizacion'!F70,8),IF([1]CALCULADORA!$F$10="10% (Medio Alto)",ROUND('[1]Tabla de Amortizacion'!H70,8),IF([1]CALCULADORA!$F$10="14% (Alto)",ROUND('[1]Tabla de Amortizacion'!#REF!,8),IF([1]CALCULADORA!$F$10=20%,ROUND('[1]Tabla de Amortizacion'!#REF!,8),ROUND('[1]Tabla de Amortizacion'!K70,8)))))) -> 0
A70: 2023-09-06 | B70: 0.00466736 | C70: =+VLOOKUP(A70,'Tabla de Amortizacion'!$D$2:$O$182,MATCH(Tablas!$B$1,'Tabla de Amortizacion'!$D$2:$O$2,0)) -> 0.00466736 | E70: =IF([1]CALCULADORA!$F$10="Contractual",ROUND('[1]Tabla de Amortizacion'!C71,8),IF([1]CALCULADORA!$F$10="6% (Medio)",ROUND('[1]Tabla de Amortizacion'!F71,8),IF([1]CALCULADORA!$F$10="10% (Medio Alto)",ROUND('[1]Tabla de Amortizacion'!H71,8),IF([1]CALCULADORA!$F$10="14% (Alto)",ROUND('[1]Tabla de Amortizacion'!#REF!,8),IF([1]CALCULADORA!$F$10=20%,ROUND('[1]Tabla de Amortizacion'!#REF!,8),ROUND('[1]Tabla de Amortizacion'!K71,8)))))) -> 0
A71: 2023-10-06 | B71: 0.00544469 | C71: =+VLOOKUP(A71,'Tabla de Amortizacion'!$D$2:$O$182,MATCH(Tablas!$B$1,'Tabla de Amortizacion'!$D$2:$O$2,0)) -> 0.00544469 | E71: =IF([1]CALCULADORA!$F$10="Contractual",ROUND('[1]Tabla de Amortizacion'!C72,8),IF([1]CALCULADORA!$F$10="6% (Medio)",ROUND('[1]Tabla de Amortizacion'!F72,8),IF([1]CALCULADORA!$F$10="10% (Medio Alto)",ROUND('[1]Tabla de Amortizacion'!H72,8),IF([1]CALCULADORA!$F$10="14% (Alto)",ROUND('[1]Tabla de Amortizacion'!#REF!,8),IF([1]CALCULADORA!$F$10=20%,ROUND('[1]Tabla de Amortizacion'!#REF!,8),ROUND('[1]Tabla de Amortizacion'!K72,8)))))) -> 0
A72: 2023-11-06 | B72: 0.00553811 | C72: =+VLOOKUP(A72,'Tabla de Amortizacion'!$D$2:$O$182,MATCH(Tablas!$B$1,'Tabla de Amortizacion'!$D$2:$O$2,0)) -> 0.00553811 | E72: =IF([1]CALCULADORA!$F$10="Contractual",ROUND('[1]Tabla de Amortizacion'!C73,8),IF([1]CALCULADORA!$F$10="6% (Medio)",ROUND('[1]Tabla de Amortizacion'!F73,8),IF([1]CALCULADORA!$F$10="10% (Medio Alto)",ROUND('[1]Tabla de Amortizacion'!H73,8),IF([1]CALCULADORA!$F$10="14% (Alto)",ROUND('[1]Tabla de Amortizacion'!#REF!,8),IF([1]CALCULADORA!$F$10=20%,ROUND('[1]Tabla de Amortizacion'!#REF!,8),ROUND('[1]Tabla de Amortizacion'!K73,8)))))) -> 0
A73: 2023-12-06 | B73: 0.00572962 | C73: =+VLOOKUP(A73,'Tabla de Amortizacion'!$D$2:$O$182,MATCH(Tablas!$B$1,'Tabla de Amortizacion'!$D$2:$O$2,0)) -> 0.00572962 | E73: =IF([1]CALCULADORA!$F$10="Contractual",ROUND('[1]Tabla de Amortizacion'!C74,8),IF([1]CALCULADORA!$F$10="6% (Medio)",ROUND('[1]Tabla de Amortizacion'!F74,8),IF([1]CALCULADORA!$F$10="10% (Medio Alto)",ROUND('[1]Tabla de Amortizacion'!H74,8),IF([1]CALCULADORA!$F$10="14% (Alto)",ROUND('[1]Tabla de Amortizacion'!#REF!,8),IF([1]CALCULADORA!$F$10=20%,ROUND('[1]Tabla de Amortizacion'!#REF!,8),ROUND('[1]Tabla de Amortizacion'!K74,8)))))) -> 0
A74: 2024-01-06 | B74: 0.00462437 | C74: =+VLOOKUP(A74,'Tabla de Amortizacion'!$D$2:$O$182,MATCH(Tablas!$B$1,'Tabla de Amortizacion'!$D$2:$O$2,0)) -> 0.00462437 | E74: =IF([1]CALCULADORA!$F$10="Contractual",ROUND('[1]Tabla de Amortizacion'!C75,8),IF([1]CALCULADORA!$F$10="6% (Medio)",ROUND('[1]Tabla de Amortizacion'!F75,8),IF([1]CALCULADORA!$F$10="10% (Medio Alto)",ROUND('[1]Tabla de Amortizacion'!H75,8),IF([1]CALCULADORA!$F$10="14% (Alto)",ROUND('[1]Tabla de Amortizacion'!#REF!,8),IF([1]CALCULADORA!$F$10=20%,ROUND('[1]Tabla de Amortizacion'!#REF!,8),ROUND('[1]Tabla de Amortizacion'!K75,8)))))) -> 0
A75: 2024-02-06 | B75: 0.00552078 | C75: =+VLOOKUP(A75,'Tabla de Amortizacion'!$D$2:$O$182,MATCH(Tablas!$B$1,'Tabla de Amortizacion'!$D$2:$O$2,0)) -> 0.00552078 | E75: =IF([1]CALCULADORA!$F$10="Contractual",ROUND('[1]Tabla de Amortizacion'!C76,8),IF([1]CALCULADORA!$F$10="6% (Medio)",ROUND('[1]Tabla de Amortizacion'!F76,8),IF([1]CALCULADORA!$F$10="10% (Medio Alto)",ROUND('[1]Tabla de Amortizacion'!H76,8),IF([1]CALCULADORA!$F$10="14% (Alto)",ROUND('[1]Tabla de Amortizacion'!#REF!,8),IF([1]CALCULADORA!$F$10=20%,ROUND('[1]Tabla de Amortizacion'!#REF!,8),ROUND('[1]Tabla de Amortizacion'!K76,8)))))) -> 0
A76: 2024-03-06 | B76: 0.00538949 | C76: =+VLOOKUP(A76,'Tabla de Amortizacion'!$D$2:$O$182,MATCH(Tablas!$B$1,'Tabla de Amortizacion'!$D$2:$O$2,0)) -> 0.00538949 | E76: =IF([1]CALCULADORA!$F$10="Contractual",ROUND('[1]Tabla de Amortizacion'!C77,8),IF([1]CALCULADORA!$F$10="6% (Medio)",ROUND('[1]Tabla de Amortizacion'!F77,8),IF([1]CALCULADORA!$F$10="10% (Medio Alto)",ROUND('[1]Tabla de Amortizacion'!H77,8),IF([1]CALCULADORA!$F$10="14% (Alto)",ROUND('[1]Tabla de Amortizacion'!#REF!,8),IF([1]CALCULADORA!$F$10=20%,ROUND('[1]Tabla de Amortizacion'!#REF!,8),ROUND('[1]Tabla de Amortizacion'!K77,8)))))) -> 0
A77: 2024-04-06 | B77: 0.00447927 | C77: =+VLOOKUP(A77,'Tabla de Amortizacion'!$D$2:$O$182,MATCH(Tablas!$B$1,'Tabla de Amortizacion'!$D$2:$O$2,0)) -> 0.00447927 | E77: =IF([1]CALCULADORA!$F$10="Contractual",ROUND('[1]Tabla de Amortizacion'!C78,8),IF([1]CALCULADORA!$F$10="6% (Medio)",ROUND('[1]Tabla de Amortizacion'!F78,8),IF([1]CALCULADORA!$F$10="10% (Medio Alto)",ROUND('[1]Tabla de Amortizacion'!H78,8),IF([1]CALCULADORA!$F$10="14% (Alto)",ROUND('[1]Tabla de Amortizacion'!#REF!,8),IF([1]CALCULADORA!$F$10=20%,ROUND('[1]Tabla de Amortizacion'!#REF!,8),ROUND('[1]Tabla de Amortizacion'!K78,8)))))) -> 0
A78: 2024-05-06 | B78: 0.00543398 | C78: =+VLOOKUP(A78,'Tabla de Amortizacion'!$D$2:$O$182,MATCH(Tablas!$B$1,'Tabla de Amortizacion'!$D$2:$O$2,0)) -> 0.00543398 | E78: =IF([1]CALCULADORA!$F$10="Contractual",ROUND('[1]Tabla de Amortizacion'!C79,8),IF([1]CALCULADORA!$F$10="6% (Medio)",ROUND('[1]Tabla de Amortizacion'!F79,8),IF([1]CALCULADORA!$F$10="10% (Medio Alto)",ROUND('[1]Tabla de Amortizacion'!H79,8),IF([1]CALCULADORA!$F$10="14% (Alto)",ROUND('[1]Tabla de Amortizacion'!#REF!,8),IF([1]CALCULADORA!$F$10=20%,ROUND('[1]Tabla de Amortizacion'!#REF!,8),ROUND('[1]Tabla de Amortizacion'!K79,8)))))) -> 0
A79: 2024-06-06 | B79: 0.00475194 | C79: =+VLOOKUP(A79,'Tabla de Amortizacion'!$D$2:$O$182,MATCH(Tablas!$B$1,'Tabla de Amortizacion'!$D$2:$O$2,0)) -> 0.00475194 | E79: =IF([1]CALCULADORA!$F$10="Contractual",ROUND('[1]Tabla de Amortizacion'!C80,8),IF([1]CALCULADORA!$F$10="6% (Medio)",ROUND('[1]Tabla de Amortizacion'!F80,8),IF([1]CALCULADORA!$F$10="10% (Medio Alto)",ROUND('[1]Tabla de Amortizacion'!H80,8),IF([1]CALCULADORA!$F$10="14% (Alto)",ROUND('[1]Tabla de Amortizacion'!#REF!,8),IF([1]CALCULADORA!$F$10=20%,ROUND('[1]Tabla de Amortizacion'!#REF!,8),ROUND('[1]Tabla de Amortizacion'!K80,8)))))) -> 0
A80: 2024-07-06 | B80: 0.00437582 | C80: =+VLOOKUP(A80,'Tabla de Amortizacion'!$D$2:$O$182,MATCH(Tablas!$B$1,'Tabla de Amortizacion'!$D$2:$O$2,0)) -> 0.00437582 | E80: =IF([1]CALCULADORA!$F$10="Contractual",ROUND('[1]Tabla de Amortizacion'!C81,8),IF([1]CALCULADORA!$F$10="6% (Medio)",ROUND('[1]Tabla de Amortizacion'!F81,8),IF([1]CALCULADORA!$F$10="10% (Medio Alto)",ROUND('[1]Tabla de Amortizacion'!H81,8),IF([1]CALCULADORA!$F$10="14% (Alto)",ROUND('[1]Tabla de Amortizacion'!#REF!,8),IF([1]CALCULADORA!$F$10=20%,ROUND('[1]Tabla de Amortizacion'!#REF!,8),ROUND('[1]Tabla de Amortizacion'!K81,8)))))) -> 0
A81: 2024-08-06 | B81: 0.00396867 | C81: =+VLOOKUP(A81,'Tabla de Amortizacion'!$D$2:$O$182,MATCH(Tablas!$B$1,'Tabla de Amortizacion'!$D$2:$O$2,0)) -> 0.00396867 | E81: =IF([1]CALCULADORA!$F$10="Contractual",ROUND('[1]Tabla de Amortizacion'!C82,8),IF([1]CALCULADORA!$F$10="6% (Medio)",ROUND('[1]Tabla de Amortizacion'!F82,8),IF([1]CALCULADORA!$F$10="10% (Medio Alto)",ROUND('[1]Tabla de Amortizacion'!H82,8),IF([1]CALCULADORA!$F$10="14% (Alto)",ROUND('[1]Tabla de Amortizacion'!#REF!,8),IF([1]CALCULADORA!$F$10=20%,ROUND('[1]Tabla de Amortizacion'!#REF!,8),ROUND('[1]Tabla de Amortizacion'!K82,8)))))) -> 0
A82: 2024-09-06 | B82: 0.00421589 | C82: =+VLOOKUP(A82,'Tabla de Amortizacion'!$D$2:$O$182,MATCH(Tablas!$B$1,'Tabla de Amortizacion'!$D$2:$O$2,0)) -> 0.00421589 | E82: =IF([1]CALCULADORA!$F$10="Contractual",ROUND('[1]Tabla de Amortizacion'!C83,8),IF([1]CALCULADORA!$F$10="6% (Medio)",ROUND('[1]Tabla de Amortizacion'!F83,8),IF([1]CALCULADORA!$F$10="10% (Medio Alto)",ROUND('[1]Tabla de Amortizacion'!H83,8),IF([1]CALCULADORA!$F$10="14% (Alto)",ROUND('[1]Tabla de Amortizacion'!#REF!,8),IF([1]CALCULADORA!$F$10=20%,ROUND('[1]Tabla de Amortizacion'!#REF!,8),ROUND('[1]Tabla de Amortizacion'!K83,8)))))) -> 0
A83: 2024-10-06 | B83: 0.00412708 | C83: =+VLOOKUP(A83,'Tabla de Amortizacion'!$D$2:$O$182,MATCH(Tablas!$B$1,'Tabla de Amortizacion'!$D$2:$O$2,0)) -> 0.00412708 | E83: =IF([1]CALCULADORA!$F$10="Contractual",ROUND('[1]Tabla de Amortizacion'!C84,8),IF([1]CALCULADORA!$F$10="6% (Medio)",ROUND('[1]Tabla de Amortizacion'!F84,8),IF([1]CALCULADORA!$F$10="10% (Medio Alto)",ROUND('[1]Tabla de Amortizacion'!H84,8),IF([1]CALCULADORA!$F$10="14% (Alto)",ROUND('[1]Tabla de Amortizacion'!#REF!,8),IF([1]CALCULADORA!$F$10=20%,ROUND('[1]Tabla de Amortizacion'!#REF!,8),ROUND('[1]Tabla de Amortizacion'!K84,8)))))) -> 0
A84: 2024-11-06 | B84: 0.00409293 | C84: =+VLOOKUP(A84,'Tabla de Amortizacion'!$D$2:$O$182,MATCH(Tablas!$B$1,'Tabla de Amortizacion'!$D$2:$O$2,0)) -> 0.00409293 | E84: =IF([1]CALCULADORA!$F$10="Contractual",ROUND('[1]Tabla de Amortizacion'!C85,8),IF([1]CALCULADORA!$F$10="6% (Medio)",ROUND('[1]Tabla de Amortizacion'!F85,8),IF([1]CALCULADORA!$F$10="10% (Medio Alto)",ROUND('[1]Tabla de Amortizacion'!H85,8),IF([1]CALCULADORA!$F$10="14% (Alto)",ROUND('[1]Tabla de Amortizacion'!#REF!,8),IF([1]CALCULADORA!$F$10=20%,ROUND('[1]Tabla de Amortizacion'!#REF!,8),ROUND('[1]Tabla de Amortizacion'!K85,8)))))) -> 0
A85: 2024-12-06 | B85: 0.00384081 | C85: =+VLOOKUP(A85,'Tabla de Amortizacion'!$D$2:$O$182,MATCH(Tablas!$B$1,'Tabla de Amortizacion'!$D$2:$O$2,0)) -> 0.00384081 | E85: =IF([1]CALCULADORA!$F$10="Contractual",ROUND('[1]Tabla de Amortizacion'!C86,8),IF([1]CALCULADORA!$F$10="6% (Medio)",ROUND('[1]Tabla de Amortizacion'!F86,8),IF([1]CALCULADORA!$F$10="10% (Medio Alto)",ROUND('[1]Tabla de Amortizacion'!H86,8),IF([1]CALCULADORA!$F$10="14% (Alto)",ROUND('[1]Tabla de Amortizacion'!#REF!,8),IF([1]CALCULADORA!$F$10=20%,ROUND('[1]Tabla de Amortizacion'!#REF!,8),ROUND('[1]Tabla de Amortizacion'!K86,8)))))) -> 0
A86: 2025-01-06 | B86: 0.00400879 | C86: =+VLOOKUP(A86,'Tabla de Amortizacion'!$D$2:$O$182,MATCH(Tablas!$B$1,'Tabla de Amortizacion'!$D$2:$O$2,0)) -> 0.00400879 | E86: =IF([1]CALCULADORA!$F$10="Contractual",ROUND('[1]Tabla de Amortizacion'!C87,8),IF([1]CALCULADORA!$F$10="6% (Medio)",ROUND('[1]Tabla de Amortizacion'!F87,8),IF([1]CALCULADORA!$F$10="10% (Medio Alto)",ROUND('[1]Tabla de Amortizacion'!H87,8),IF([1]CALCULADORA!$F$10="14% (Alto)",ROUND('[1]Tabla de Amortizacion'!#REF!,8),IF([1]CALCULADORA!$F$10=20%,ROUND('[1]Tabla de Amortizacion'!#REF!,8),ROUND('[1]Tabla de Amortizacion'!K87,8)))))) -> 0
A87: 2025-02-06 | B87: 0.00395434 | C87: =+VLOOKUP(A87,'Tabla de Amortizacion'!$D$2:$O$182,MATCH(Tablas!$B$1,'Tabla de Amortizacion'!$D$2:$O$2,0)) -> 0.00395434 | E87: =IF([1]CALCULADORA!$F$10="Contractual",ROUND('[1]Tabla de Amortizacion'!C88,8),IF([1]CALCULADORA!$F$10="6% (Medio)",ROUND('[1]Tabla de Amortizacion'!F88,8),IF([1]CALCULADORA!$F$10="10% (Medio Alto)",ROUND('[1]Tabla de Amortizacion'!H88,8),IF([1]CALCULADORA!$F$10="14% (Alto)",ROUND('[1]Tabla de Amortizacion'!#REF!,8),IF([1]CALCULADORA!$F$10=20%,ROUND('[1]Tabla de Amortizacion'!#REF!,8),ROUND('[1]Tabla de Amortizacion'!K88,8)))))) -> 0
A88: 2025-03-06 | B88: 0.00392319 | C88: =+VLOOKUP(A88,'Tabla de Amortizacion'!$D$2:$O$182,MATCH(Tablas!$B$1,'Tabla de Amortizacion'!$D$2:$O$2,0)) -> 0.00392319 | E88: =IF([1]CALCULADORA!$F$10="Contractual",ROUND('[1]Tabla de Amortizacion'!C89,8),IF([1]CALCULADORA!$F$10="6% (Medio)",ROUND('[1]Tabla de Amortizacion'!F89,8),IF([1]CALCULADORA!$F$10="10% (Medio Alto)",ROUND('[1]Tabla de Amortizacion'!H89,8),IF([1]CALCULADORA!$F$10="14% (Alto)",ROUND('[1]Tabla de Amortizacion'!#REF!,8),IF([1]CALCULADORA!$F$10=20%,ROUND('[1]Tabla de Amortizacion'!#REF!,8),ROUND('[1]Tabla de Amortizacion'!K89,8)))))) -> 0
A89: 2025-04-06 | B89: 0.00383827 | C89: =+VLOOKUP(A89,'Tabla de Amortizacion'!$D$2:$O$182,MATCH(Tablas!$B$1,'Tabla de Amortizacion'!$D$2:$O$2,0)) -> 0.00383827 | E89: =IF([1]CALCULADORA!$F$10="Contractual",ROUND('[1]Tabla de Amortizacion'!C90,8),IF([1]CALCULADORA!$F$10="6% (Medio)",ROUND('[1]Tabla de Amortizacion'!F90,8),IF([1]CALCULADORA!$F$10="10% (Medio Alto)",ROUND('[1]Tabla de Amortizacion'!H90,8),IF([1]CALCULADORA!$F$10="14% (Alto)",ROUND('[1]Tabla de Amortizacion'!#REF!,8),IF([1]CALCULADORA!$F$10=20%,ROUND('[1]Tabla de Amortizacion'!#REF!,8),ROUND('[1]Tabla de Amortizacion'!K90,8)))))) -> 0
A90: 2025-05-06 | B90: 0.0022085 | C90: =+VLOOKUP(A90,'Tabla de Amortizacion'!$D$2:$O$182,MATCH(Tablas!$B$1,'Tabla de Amortizacion'!$D$2:$O$2,0)) -> 0.0022085 | E90: =IF([1]CALCULADORA!$F$10="Contractual",ROUND('[1]Tabla de Amortizacion'!C91,8),IF([1]CALCULADORA!$F$10="6% (Medio)",ROUND('[1]Tabla de Amortizacion'!F91,8),IF([1]CALCULADORA!$F$10="10% (Medio Alto)",ROUND('[1]Tabla de Amortizacion'!H91,8),IF([1]CALCULADORA!$F$10="14% (Alto)",ROUND('[1]Tabla de Amortizacion'!#REF!,8),IF([1]CALCULADORA!$F$10=20%,ROUND('[1]Tabla de Amortizacion'!#REF!,8),ROUND('[1]Tabla de Amortizacion'!K91,8)))))) -> 0
A91: 2025-06-06 | B91: 0 | C91: =+VLOOKUP(A91,'Tabla de Amortizacion'!$D$2:$O$182,MATCH(Tablas!$B$1,'Tabla de Amortizacion'!$D$2:$O$2,0)) -> 0 | E91: =IF([1]CALCULADORA!$F$10="Contractual",ROUND('[1]Tabla de Amortizacion'!C92,8),IF([1]CALCULADORA!$F$10="6% (Medio)",ROUND('[1]Tabla de Amortizacion'!F92,8),IF([1]CALCULADORA!$F$10="10% (Medio Alto)",ROUND('[1]Tabla de Amortizacion'!H92,8),IF([1]CALCULADORA!$F$10="14% (Alto)",ROUND('[1]Tabla de Amortizacion'!#REF!,8),IF([1]CALCULADORA!$F$10=20%,ROUND('[1]Tabla de Amortizacion'!#REF!,8),ROUND('[1]Tabla de Amortizacion'!K92,8)))))) -> 0
A92: 2025-07-06 | B92: 0 | C92: =+VLOOKUP(A92,'Tabla de Amortizacion'!$D$2:$O$182,MATCH(Tablas!$B$1,'Tabla de Amortizacion'!$D$2:$O$2,0)) -> 0 | E92: =IF([1]CALCULADORA!$F$10="Contractual",ROUND('[1]Tabla de Amortizacion'!C93,8),IF([1]CALCULADORA!$F$10="6% (Medio)",ROUND('[1]Tabla de Amortizacion'!F93,8),IF([1]CALCULADORA!$F$10="10% (Medio Alto)",ROUND('[1]Tabla de Amortizacion'!H93,8),IF([1]CALCULADORA!$F$10="14% (Alto)",ROUND('[1]Tabla de Amortizacion'!#REF!,8),IF([1]CALCULADORA!$F$10=20%,ROUND('[1]Tabla de Amortizacion'!#REF!,8),ROUND('[1]Tabla de Amortizacion'!K93,8)))))) -> 0
A93: 2025-08-06 | B93: 0 | C93: =+VLOOKUP(A93,'Tabla de Amortizacion'!$D$2:$O$182,MATCH(Tablas!$B$1,'Tabla de Amortizacion'!$D$2:$O$2,0)) -> 0 | E93: =IF([1]CALCULADORA!$F$10="Contractual",ROUND('[1]Tabla de Amortizacion'!C94,8),IF([1]CALCULADORA!$F$10="6% (Medio)",ROUND('[1]Tabla de Amortizacion'!F94,8),IF([1]CALCULADORA!$F$10="10% (Medio Alto)",ROUND('[1]Tabla de Amortizacion'!H94,8),IF([1]CALCULADORA!$F$10="14% (Alto)",ROUND('[1]Tabla de Amortizacion'!#REF!,8),IF([1]CALCULADORA!$F$10=20%,ROUND('[1]Tabla de Amortizacion'!#REF!,8),ROUND('[1]Tabla de Amortizacion'!K94,8)))))) -> 0
A94: 2025-09-06 | B94: 0 | C94: =+VLOOKUP(A94,'Tabla de Amortizacion'!$D$2:$O$182,MATCH(Tablas!$B$1,'Tabla de Amortizacion'!$D$2:$O$2,0)) -> 0 | E94: =IF([1]CALCULADORA!$F$10="Contractual",ROUND('[1]Tabla de Amortizacion'!C95,8),IF([1]CALCULADORA!$F$10="6% (Medio)",ROUND('[1]Tabla de Amortizacion'!F95,8),IF([1]CALCULADORA!$F$10="10% (Medio Alto)",ROUND('[1]Tabla de Amortizacion'!H95,8),IF([1]CALCULADORA!$F$10="14% (Alto)",ROUND('[1]Tabla de Amortizacion'!#REF!,8),IF([1]CALCULADORA!$F$10=20%,ROUND('[1]Tabla de Amortizacion'!#REF!,8),ROUND('[1]Tabla de Amortizacion'!K95,8)))))) -> 0
A95: 2025-10-06 | B95: 0 | C95: =+VLOOKUP(A95,'Tabla de Amortizacion'!$D$2:$O$182,MATCH(Tablas!$B$1,'Tabla de Amortizacion'!$D$2:$O$2,0)) -> 0 | E95: =IF([1]CALCULADORA!$F$10="Contractual",ROUND('[1]Tabla de Amortizacion'!C96,8),IF([1]CALCULADORA!$F$10="6% (Medio)",ROUND('[1]Tabla de Amortizacion'!F96,8),IF([1]CALCULADORA!$F$10="10% (Medio Alto)",ROUND('[1]Tabla de Amortizacion'!H96,8),IF([1]CALCULADORA!$F$10="14% (Alto)",ROUND('[1]Tabla de Amortizacion'!#REF!,8),IF([1]CALCULADORA!$F$10=20%,ROUND('[1]Tabla de Amortizacion'!#REF!,8),ROUND('[1]Tabla de Amortizacion'!K96,8)))))) -> 0
A96: 2025-11-06 | B96: 0 | C96: =+VLOOKUP(A96,'Tabla de Amortizacion'!$D$2:$O$182,MATCH(Tablas!$B$1,'Tabla de Amortizacion'!$D$2:$O$2,0)) -> 0 | E96: =IF([1]CALCULADORA!$F$10="Contractual",ROUND('[1]Tabla de Amortizacion'!C97,8),IF([1]CALCULADORA!$F$10="6% (Medio)",ROUND('[1]Tabla de Amortizacion'!F97,8),IF([1]CALCULADORA!$F$10="10% (Medio Alto)",ROUND('[1]Tabla de Amortizacion'!H97,8),IF([1]CALCULADORA!$F$10="14% (Alto)",ROUND('[1]Tabla de Amortizacion'!#REF!,8),IF([1]CALCULADORA!$F$10=20%,ROUND('[1]Tabla de Amortizacion'!#REF!,8),ROUND('[1]Tabla de Amortizacion'!K97,8)))))) -> 0
A97: 2025-12-06 | B97: 0 | C97: =+VLOOKUP(A97,'Tabla de Amortizacion'!$D$2:$O$182,MATCH(Tablas!$B$1,'Tabla de Amortizacion'!$D$2:$O$2,0)) -> 0 | E97: =IF([1]CALCULADORA!$F$10="Contractual",ROUND('[1]Tabla de Amortizacion'!C98,8),IF([1]CALCULADORA!$F$10="6% (Medio)",ROUND('[1]Tabla de Amortizacion'!F98,8),IF([1]CALCULADORA!$F$10="10% (Medio Alto)",ROUND('[1]Tabla de Amortizacion'!H98,8),IF([1]CALCULADORA!$F$10="14% (Alto)",ROUND('[1]Tabla de Amortizacion'!#REF!,8),IF([1]CALCULADORA!$F$10=20%,ROUND('[1]Tabla de Amortizacion'!#REF!,8),ROUND('[1]Tabla de Amortizacion'!K98,8)))))) -> 0
A98: 2026-01-06 | B98: 0 | C98: =+VLOOKUP(A98,'Tabla de Amortizacion'!$D$2:$O$182,MATCH(Tablas!$B$1,'Tabla de Amortizacion'!$D$2:$O$2,0)) -> 0 | E98: =IF([1]CALCULADORA!$F$10="Contractual",ROUND('[1]Tabla de Amortizacion'!C99,8),IF([1]CALCULADORA!$F$10="6% (Medio)",ROUND('[1]Tabla de Amortizacion'!F99,8),IF([1]CALCULADORA!$F$10="10% (Medio Alto)",ROUND('[1]Tabla de Amortizacion'!H99,8),IF([1]CALCULADORA!$F$10="14% (Alto)",ROUND('[1]Tabla de Amortizacion'!#REF!,8),IF([1]CALCULADORA!$F$10=20%,ROUND('[1]Tabla de Amortizacion'!#REF!,8),ROUND('[1]Tabla de Amortizacion'!K99,8)))))) -> 0
A99: 2026-02-06 | B99: 0 | C99: =+VLOOKUP(A99,'Tabla de Amortizacion'!$D$2:$O$182,MATCH(Tablas!$B$1,'Tabla de Amortizacion'!$D$2:$O$2,0)) -> 0 | E99: =IF([1]CALCULADORA!$F$10="Contractual",ROUND('[1]Tabla de Amortizacion'!C100,8),IF([1]CALCULADORA!$F$10="6% (Medio)",ROUND('[1]Tabla de Amortizacion'!F100,8),IF([1]CALCULADORA!$F$10="10% (Medio Alto)",ROUND('[1]Tabla de Amortizacion'!H100,8),IF([1]CALCULADORA!$F$10="14% (Alto)",ROUND('[1]Tabla de Amortizacion'!#REF!,8),IF([1]CALCULADORA!$F$10=20%,ROUND('[1]Tabla de Amortizacion'!#REF!,8),ROUND('[1]Tabla de Amortizacion'!K100,8)))))) -> 0
A100: 2026-03-06 | B100: 0 | C100: =+VLOOKUP(A100,'Tabla de Amortizacion'!$D$2:$O$182,MATCH(Tablas!$B$1,'Tabla de Amortizacion'!$D$2:$O$2,0)) -> 0 | E100: =IF([1]CALCULADORA!$F$10="Contractual",ROUND('[1]Tabla de Amortizacion'!C101,8),IF([1]CALCULADORA!$F$10="6% (Medio)",ROUND('[1]Tabla de Amortizacion'!F101,8),IF([1]CALCULADORA!$F$10="10% (Medio Alto)",ROUND('[1]Tabla de Amortizacion'!H101,8),IF([1]CALCULADORA!$F$10="14% (Alto)",ROUND('[1]Tabla de Amortizacion'!#REF!,8),IF([1]CALCULADORA!$F$10=20%,ROUND('[1]Tabla de Amortizacion'!#REF!,8),ROUND('[1]Tabla de Amortizacion'!K101,8)))))) -> 0
A101: 2026-04-06 | B101: 0 | C101: =+VLOOKUP(A101,'Tabla de Amortizacion'!$D$2:$O$182,MATCH(Tablas!$B$1,'Tabla de Amortizacion'!$D$2:$O$2,0)) -> 0 | E101: =IF([1]CALCULADORA!$F$10="Contractual",ROUND('[1]Tabla de Amortizacion'!C102,8),IF([1]CALCULADORA!$F$10="6% (Medio)",ROUND('[1]Tabla de Amortizacion'!F102,8),IF([1]CALCULADORA!$F$10="10% (Medio Alto)",ROUND('[1]Tabla de Amortizacion'!H102,8),IF([1]CALCULADORA!$F$10="14% (Alto)",ROUND('[1]Tabla de Amortizacion'!#REF!,8),IF([1]CALCULADORA!$F$10=20%,ROUND('[1]Tabla de Amortizacion'!#REF!,8),ROUND('[1]Tabla de Amortizacion'!K102,8)))))) -> 0
A102: 2026-05-06 | B102: 0 | C102: =+VLOOKUP(A102,'Tabla de Amortizacion'!$D$2:$O$182,MATCH(Tablas!$B$1,'Tabla de Amortizacion'!$D$2:$O$2,0)) -> 0 | E102: =IF([1]CALCULADORA!$F$10="Contractual",ROUND('[1]Tabla de Amortizacion'!C103,8),IF([1]CALCULADORA!$F$10="6% (Medio)",ROUND('[1]Tabla de Amortizacion'!F103,8),IF([1]CALCULADORA!$F$10="10% (Medio Alto)",ROUND('[1]Tabla de Amortizacion'!H103,8),IF([1]CALCULADORA!$F$10="14% (Alto)",ROUND('[1]Tabla de Amortizacion'!#REF!,8),IF([1]CALCULADORA!$F$10=20%,ROUND('[1]Tabla de Amortizacion'!#REF!,8),ROUND('[1]Tabla de Amortizacion'!K103,8)))))) -> 0
A103: 2026-06-06 | B103: 0 | C103: =+VLOOKUP(A103,'Tabla de Amortizacion'!$D$2:$O$182,MATCH(Tablas!$B$1,'Tabla de Amortizacion'!$D$2:$O$2,0)) -> 0 | E103: =IF([1]CALCULADORA!$F$10="Contractual",ROUND('[1]Tabla de Amortizacion'!C104,8),IF([1]CALCULADORA!$F$10="6% (Medio)",ROUND('[1]Tabla de Amortizacion'!F104,8),IF([1]CALCULADORA!$F$10="10% (Medio Alto)",ROUND('[1]Tabla de Amortizacion'!H104,8),IF([1]CALCULADORA!$F$10="14% (Alto)",ROUND('[1]Tabla de Amortizacion'!#REF!,8),IF([1]CALCULADORA!$F$10=20%,ROUND('[1]Tabla de Amortizacion'!#REF!,8),ROUND('[1]Tabla de Amortizacion'!K104,8)))))) -> 0
A104: 2026-07-06 | B104: 0 | C104: =+VLOOKUP(A104,'Tabla de Amortizacion'!$D$2:$O$182,MATCH(Tablas!$B$1,'Tabla de Amortizacion'!$D$2:$O$2,0)) -> 0 | E104: =IF([1]CALCULADORA!$F$10="Contractual",ROUND('[1]Tabla de Amortizacion'!C105,8),IF([1]CALCULADORA!$F$10="6% (Medio)",ROUND('[1]Tabla de Amortizacion'!F105,8),IF([1]CALCULADORA!$F$10="10% (Medio Alto)",ROUND('[1]Tabla de Amortizacion'!H105,8),IF([1]CALCULADORA!$F$10="14% (Alto)",ROUND('[1]Tabla de Amortizacion'!#REF!,8),IF([1]CALCULADORA!$F$10=20%,ROUND('[1]Tabla de Amortizacion'!#REF!,8),ROUND('[1]Tabla de Amortizacion'!K105,8)))))) -> 0
A105: 2026-08-06 | B105: 0 | C105: =+VLOOKUP(A105,'Tabla de Amortizacion'!$D$2:$O$182,MATCH(Tablas!$B$1,'Tabla de Amortizacion'!$D$2:$O$2,0)) -> 0 | E105: =IF([1]CALCULADORA!$F$10="Contractual",ROUND('[1]Tabla de Amortizacion'!C106,8),IF([1]CALCULADORA!$F$10="6% (Medio)",ROUND('[1]Tabla de Amortizacion'!F106,8),IF([1]CALCULADORA!$F$10="10% (Medio Alto)",ROUND('[1]Tabla de Amortizacion'!H106,8),IF([1]CALCULADORA!$F$10="14% (Alto)",ROUND('[1]Tabla de Amortizacion'!#REF!,8),IF([1]CALCULADORA!$F$10=20%,ROUND('[1]Tabla de Amortizacion'!#REF!,8),ROUND('[1]Tabla de Amortizacion'!K106,8)))))) -> 0
A106: 2026-09-06 | B106: 0 | C106: =+VLOOKUP(A106,'Tabla de Amortizacion'!$D$2:$O$182,MATCH(Tablas!$B$1,'Tabla de Amortizacion'!$D$2:$O$2,0)) -> 0 | E106: =IF([1]CALCULADORA!$F$10="Contractual",ROUND('[1]Tabla de Amortizacion'!C107,8),IF([1]CALCULADORA!$F$10="6% (Medio)",ROUND('[1]Tabla de Amortizacion'!F107,8),IF([1]CALCULADORA!$F$10="10% (Medio Alto)",ROUND('[1]Tabla de Amortizacion'!H107,8),IF([1]CALCULADORA!$F$10="14% (Alto)",ROUND('[1]Tabla de Amortizacion'!#REF!,8),IF([1]CALCULADORA!$F$10=20%,ROUND('[1]Tabla de Amortizacion'!#REF!,8),ROUND('[1]Tabla de Amortizacion'!K107,8)))))) -> 0
A107: 2026-10-06 | B107: 0 | C107: =+VLOOKUP(A107,'Tabla de Amortizacion'!$D$2:$O$182,MATCH(Tablas!$B$1,'Tabla de Amortizacion'!$D$2:$O$2,0)) -> 0 | E107: =IF([1]CALCULADORA!$F$10="Contractual",ROUND('[1]Tabla de Amortizacion'!C108,8),IF([1]CALCULADORA!$F$10="6% (Medio)",ROUND('[1]Tabla de Amortizacion'!F108,8),IF([1]CALCULADORA!$F$10="10% (Medio Alto)",ROUND('[1]Tabla de Amortizacion'!H108,8),IF([1]CALCULADORA!$F$10="14% (Alto)",ROUND('[1]Tabla de Amortizacion'!#REF!,8),IF([1]CALCULADORA!$F$10=20%,ROUND('[1]Tabla de Amortizacion'!#REF!,8),ROUND('[1]Tabla de Amortizacion'!K108,8)))))) -> 0
A108: 2026-11-06 | B108: 0 | C108: =+VLOOKUP(A108,'Tabla de Amortizacion'!$D$2:$O$182,MATCH(Tablas!$B$1,'Tabla de Amortizacion'!$D$2:$O$2,0)) -> 0 | E108: =IF([1]CALCULADORA!$F$10="Contractual",ROUND('[1]Tabla de Amortizacion'!C109,8),IF([1]CALCULADORA!$F$10="6% (Medio)",ROUND('[1]Tabla de Amortizacion'!F109,8),IF([1]CALCULADORA!$F$10="10% (Medio Alto)",ROUND('[1]Tabla de Amortizacion'!H109,8),IF([1]CALCULADORA!$F$10="14% (Alto)",ROUND('[1]Tabla de Amortizacion'!#REF!,8),IF([1]CALCULADORA!$F$10=20%,ROUND('[1]Tabla de Amortizacion'!#REF!,8),ROUND('[1]Tabla de Amortizacion'!K109,8)))))) -> 0
A109: 2026-12-06 | B109: 0 | C109: =+VLOOKUP(A109,'Tabla de Amortizacion'!$D$2:$O$182,MATCH(Tablas!$B$1,'Tabla de Amortizacion'!$D$2:$O$2,0)) -> 0 | E109: =IF([1]CALCULADORA!$F$10="Contractual",ROUND('[1]Tabla de Amortizacion'!C110,8),IF([1]CALCULADORA!$F$10="6% (Medio)",ROUND('[1]Tabla de Amortizacion'!F110,8),IF([1]CALCULADORA!$F$10="10% (Medio Alto)",ROUND('[1]Tabla de Amortizacion'!H110,8),IF([1]CALCULADORA!$F$10="14% (Alto)",ROUND('[1]Tabla de Amortizacion'!#REF!,8),IF([1]CALCULADORA!$F$10=20%,ROUND('[1]Tabla de Amortizacion'!#REF!,8),ROUND('[1]Tabla de Amortizacion'!K110,8)))))) -> 0
A110: 2027-01-06 | B110: 0 | C110: =+VLOOKUP(A110,'Tabla de Amortizacion'!$D$2:$O$182,MATCH(Tablas!$B$1,'Tabla de Amortizacion'!$D$2:$O$2,0)) -> 0 | E110: =IF([1]CALCULADORA!$F$10="Contractual",ROUND('[1]Tabla de Amortizacion'!C111,8),IF([1]CALCULADORA!$F$10="6% (Medio)",ROUND('[1]Tabla de Amortizacion'!F111,8),IF([1]CALCULADORA!$F$10="10% (Medio Alto)",ROUND('[1]Tabla de Amortizacion'!H111,8),IF([1]CALCULADORA!$F$10="14% (Alto)",ROUND('[1]Tabla de Amortizacion'!#REF!,8),IF([1]CALCULADORA!$F$10=20%,ROUND('[1]Tabla de Amortizacion'!#REF!,8),ROUND('[1]Tabla de Amortizacion'!K111,8)))))) -> 0
A111: 2027-02-06 | B111: 0 | C111: =+VLOOKUP(A111,'Tabla de Amortizacion'!$D$2:$O$182,MATCH(Tablas!$B$1,'Tabla de Amortizacion'!$D$2:$O$2,0)) -> 0 | E111: =IF([1]CALCULADORA!$F$10="Contractual",ROUND('[1]Tabla de Amortizacion'!C112,8),IF([1]CALCULADORA!$F$10="6% (Medio)",ROUND('[1]Tabla de Amortizacion'!F112,8),IF([1]CALCULADORA!$F$10="10% (Medio Alto)",ROUND('[1]Tabla de Amortizacion'!H112,8),IF([1]CALCULADORA!$F$10="14% (Alto)",ROUND('[1]Tabla de Amortizacion'!#REF!,8),IF([1]CALCULADORA!$F$10=20%,ROUND('[1]Tabla de Amortizacion'!#REF!,8),ROUND('[1]Tabla de Amortizacion'!K112,8)))))) -> 0
A112: 2027-03-06 | B112: 0 | C112: =+VLOOKUP(A112,'Tabla de Amortizacion'!$D$2:$O$182,MATCH(Tablas!$B$1,'Tabla de Amortizacion'!$D$2:$O$2,0)) -> 0 | E112: =IF([1]CALCULADORA!$F$10="Contractual",ROUND('[1]Tabla de Amortizacion'!C113,8),IF([1]CALCULADORA!$F$10="6% (Medio)",ROUND('[1]Tabla de Amortizacion'!F113,8),IF([1]CALCULADORA!$F$10="10% (Medio Alto)",ROUND('[1]Tabla de Amortizacion'!H113,8),IF([1]CALCULADORA!$F$10="14% (Alto)",ROUND('[1]Tabla de Amortizacion'!#REF!,8),IF([1]CALCULADORA!$F$10=20%,ROUND('[1]Tabla de Amortizacion'!#REF!,8),ROUND('[1]Tabla de Amortizacion'!K113,8)))))) -> 0
A113: 2027-04-06 | B113: 0 | C113: =+VLOOKUP(A113,'Tabla de Amortizacion'!$D$2:$O$182,MATCH(Tablas!$B$1,'Tabla de Amortizacion'!$D$2:$O$2,0)) -> 0 | E113: =IF([1]CALCULADORA!$F$10="Contractual",ROUND('[1]Tabla de Amortizacion'!C114,8),IF([1]CALCULADORA!$F$10="6% (Medio)",ROUND('[1]Tabla de Amortizacion'!F114,8),IF([1]CALCULADORA!$F$10="10% (Medio Alto)",ROUND('[1]Tabla de Amortizacion'!H114,8),IF([1]CALCULADORA!$F$10="14% (Alto)",ROUND('[1]Tabla de Amortizacion'!#REF!,8),IF([1]CALCULADORA!$F$10=20%,ROUND('[1]Tabla de Amortizacion'!#REF!,8),ROUND('[1]Tabla de Amortizacion'!K114,8)))))) -> 0
A114: 2027-05-06 | B114: 0 | C114: =+VLOOKUP(A114,'Tabla de Amortizacion'!$D$2:$O$182,MATCH(Tablas!$B$1,'Tabla de Amortizacion'!$D$2:$O$2,0)) -> 0 | E114: =IF([1]CALCULADORA!$F$10="Contractual",ROUND('[1]Tabla de Amortizacion'!C115,8),IF([1]CALCULADORA!$F$10="6% (Medio)",ROUND('[1]Tabla de Amortizacion'!F115,8),IF([1]CALCULADORA!$F$10="10% (Medio Alto)",ROUND('[1]Tabla de Amortizacion'!H115,8),IF([1]CALCULADORA!$F$10="14% (Alto)",ROUND('[1]Tabla de Amortizacion'!#REF!,8),IF([1]CALCULADORA!$F$10=20%,ROUND('[1]Tabla de Amortizacion'!#REF!,8),ROUND('[1]Tabla de Amortizacion'!K115,8)))))) -> 0
A115: 2027-06-06 | B115: 0 | C115: =+VLOOKUP(A115,'Tabla de Amortizacion'!$D$2:$O$182,MATCH(Tablas!$B$1,'Tabla de Amortizacion'!$D$2:$O$2,0)) -> 0 | E115: =IF([1]CALCULADORA!$F$10="Contractual",ROUND('[1]Tabla de Amortizacion'!C116,8),IF([1]CALCULADORA!$F$10="6% (Medio)",ROUND('[1]Tabla de Amortizacion'!F116,8),IF([1]CALCULADORA!$F$10="10% (Medio Alto)",ROUND('[1]Tabla de Amortizacion'!H116,8),IF([1]CALCULADORA!$F$10="14% (Alto)",ROUND('[1]Tabla de Amortizacion'!#REF!,8),IF([1]CALCULADORA!$F$10=20%,ROUND('[1]Tabla de Amortizacion'!#REF!,8),ROUND('[1]Tabla de Amortizacion'!K116,8)))))) -> 0
A116: 2027-07-06 | B116: 0 | C116: =+VLOOKUP(A116,'Tabla de Amortizacion'!$D$2:$O$182,MATCH(Tablas!$B$1,'Tabla de Amortizacion'!$D$2:$O$2,0)) -> 0 | E116: =IF([1]CALCULADORA!$F$10="Contractual",ROUND('[1]Tabla de Amortizacion'!C117,8),IF([1]CALCULADORA!$F$10="6% (Medio)",ROUND('[1]Tabla de Amortizacion'!F117,8),IF([1]CALCULADORA!$F$10="10% (Medio Alto)",ROUND('[1]Tabla de Amortizacion'!H117,8),IF([1]CALCULADORA!$F$10="14% (Alto)",ROUND('[1]Tabla de Amortizacion'!#REF!,8),IF([1]CALCULADORA!$F$10=20%,ROUND('[1]Tabla de Amortizacion'!#REF!,8),ROUND('[1]Tabla de Amortizacion'!K117,8)))))) -> 0
A117: 2027-08-06 | B117: 0 | C117: =+VLOOKUP(A117,'Tabla de Amortizacion'!$D$2:$O$182,MATCH(Tablas!$B$1,'Tabla de Amortizacion'!$D$2:$O$2,0)) -> 0 | E117: =IF([1]CALCULADORA!$F$10="Contractual",ROUND('[1]Tabla de Amortizacion'!C118,8),IF([1]CALCULADORA!$F$10="6% (Medio)",ROUND('[1]Tabla de Amortizacion'!F118,8),IF([1]CALCULADORA!$F$10="10% (Medio Alto)",ROUND('[1]Tabla de Amortizacion'!H118,8),IF([1]CALCULADORA!$F$10="14% (Alto)",ROUND('[1]Tabla de Amortizacion'!#REF!,8),IF([1]CALCULADORA!$F$10=20%,ROUND('[1]Tabla de Amortizacion'!#REF!,8),ROUND('[1]Tabla de Amortizacion'!K118,8)))))) -> 0
A118: 2027-09-06 | B118: 0 | C118: =+VLOOKUP(A118,'Tabla de Amortizacion'!$D$2:$O$182,MATCH(Tablas!$B$1,'Tabla de Amortizacion'!$D$2:$O$2,0)) -> 0 | E118: =IF([1]CALCULADORA!$F$10="Contractual",ROUND('[1]Tabla de Amortizacion'!C119,8),IF([1]CALCULADORA!$F$10="6% (Medio)",ROUND('[1]Tabla de Amortizacion'!F119,8),IF([1]CALCULADORA!$F$10="10% (Medio Alto)",ROUND('[1]Tabla de Amortizacion'!H119,8),IF([1]CALCULADORA!$F$10="14% (Alto)",ROUND('[1]Tabla de Amortizacion'!#REF!,8),IF([1]CALCULADORA!$F$10=20%,ROUND('[1]Tabla de Amortizacion'!#REF!,8),ROUND('[1]Tabla de Amortizacion'!K119,8)))))) -> 0
A119: 2027-10-06 | B119: 0 | C119: =+VLOOKUP(A119,'Tabla de Amortizacion'!$D$2:$O$182,MATCH(Tablas!$B$1,'Tabla de Amortizacion'!$D$2:$O$2,0)) -> 0 | E119: =IF([1]CALCULADORA!$F$10="Contractual",ROUND('[1]Tabla de Amortizacion'!C120,8),IF([1]CALCULADORA!$F$10="6% (Medio)",ROUND('[1]Tabla de Amortizacion'!F120,8),IF([1]CALCULADORA!$F$10="10% (Medio Alto)",ROUND('[1]Tabla de Amortizacion'!H120,8),IF([1]CALCULADORA!$F$10="14% (Alto)",ROUND('[1]Tabla de Amortizacion'!#REF!,8),IF([1]CALCULADORA!$F$10=20%,ROUND('[1]Tabla de Amortizacion'!#REF!,8),ROUND('[1]Tabla de Amortizacion'!K120,8)))))) -> 0
A120: 2027-11-06 | B120: 0 | C120: =+VLOOKUP(A120,'Tabla de Amortizacion'!$D$2:$O$182,MATCH(Tablas!$B$1,'Tabla de Amortizacion'!$D$2:$O$2,0)) -> 0 | E120: =IF([1]CALCULADORA!$F$10="Contractual",ROUND('[1]Tabla de Amortizacion'!C121,8),IF([1]CALCULADORA!$F$10="6% (Medio)",ROUND('[1]Tabla de Amortizacion'!F121,8),IF([1]CALCULADORA!$F$10="10% (Medio Alto)",ROUND('[1]Tabla de Amortizacion'!H121,8),IF([1]CALCULADORA!$F$10="14% (Alto)",ROUND('[1]Tabla de Amortizacion'!#REF!,8),IF([1]CALCULADORA!$F$10=20%,ROUND('[1]Tabla de Amortizacion'!#REF!,8),ROUND('[1]Tabla de Amortizacion'!K121,8)))))) -> 0
A121: 2027-12-06 | B121: 0 | C121: =+VLOOKUP(A121,'Tabla de Amortizacion'!$D$2:$O$182,MATCH(Tablas!$B$1,'Tabla de Amortizacion'!$D$2:$O$2,0)) -> 0 | E121: =IF([1]CALCULADORA!$F$10="Contractual",ROUND('[1]Tabla de Amortizacion'!C122,8),IF([1]CALCULADORA!$F$10="6% (Medio)",ROUND('[1]Tabla de Amortizacion'!F122,8),IF([1]CALCULADORA!$F$10="10% (Medio Alto)",ROUND('[1]Tabla de Amortizacion'!H122,8),IF([1]CALCULADORA!$F$10="14% (Alto)",ROUND('[1]Tabla de Amortizacion'!#REF!,8),IF([1]CALCULADORA!$F$10=20%,ROUND('[1]Tabla de Amortizacion'!#REF!,8),ROUND('[1]Tabla de Amortizacion'!K122,8)))))) -> 0
A122: 2028-01-06 | B122: 0 | C122: =+VLOOKUP(A122,'Tabla de Amortizacion'!$D$2:$O$182,MATCH(Tablas!$B$1,'Tabla de Amortizacion'!$D$2:$O$2,0)) -> 0 | E122: =IF([1]CALCULADORA!$F$10="Contractual",ROUND('[1]Tabla de Amortizacion'!C123,8),IF([1]CALCULADORA!$F$10="6% (Medio)",ROUND('[1]Tabla de Amortizacion'!F123,8),IF([1]CALCULADORA!$F$10="10% (Medio Alto)",ROUND('[1]Tabla de Amortizacion'!H123,8),IF([1]CALCULADORA!$F$10="14% (Alto)",ROUND('[1]Tabla de Amortizacion'!#REF!,8),IF([1]CALCULADORA!$F$10=20%,ROUND('[1]Tabla de Amortizacion'!#REF!,8),ROUND('[1]Tabla de Amortizacion'!K123,8)))))) -> 0
A123: 2028-02-06 | B123: 0 | C123: =+VLOOKUP(A123,'Tabla de Amortizacion'!$D$2:$O$182,MATCH(Tablas!$B$1,'Tabla de Amortizacion'!$D$2:$O$2,0)) -> 0 | E123: =IF([1]CALCULADORA!$F$10="Contractual",ROUND('[1]Tabla de Amortizacion'!C124,8),IF([1]CALCULADORA!$F$10="6% (Medio)",ROUND('[1]Tabla de Amortizacion'!F124,8),IF([1]CALCULADORA!$F$10="10% (Medio Alto)",ROUND('[1]Tabla de Amortizacion'!H124,8),IF([1]CALCULADORA!$F$10="14% (Alto)",ROUND('[1]Tabla de Amortizacion'!#REF!,8),IF([1]CALCULADORA!$F$10=20%,ROUND('[1]Tabla de Amortizacion'!#REF!,8),ROUND('[1]Tabla de Amortizacion'!K124,8)))))) -> 0
A124: 2028-03-06 | B124: 0 | C124: =+VLOOKUP(A124,'Tabla de Amortizacion'!$D$2:$O$182,MATCH(Tablas!$B$1,'Tabla de Amortizacion'!$D$2:$O$2,0)) -> 0 | E124: =IF([1]CALCULADORA!$F$10="Contractual",ROUND('[1]Tabla de Amortizacion'!C125,8),IF([1]CALCULADORA!$F$10="6% (Medio)",ROUND('[1]Tabla de Amortizacion'!F125,8),IF([1]CALCULADORA!$F$10="10% (Medio Alto)",ROUND('[1]Tabla de Amortizacion'!H125,8),IF([1]CALCULADORA!$F$10="14% (Alto)",ROUND('[1]Tabla de Amortizacion'!#REF!,8),IF([1]CALCULADORA!$F$10=20%,ROUND('[1]Tabla de Amortizacion'!#REF!,8),ROUND('[1]Tabla de Amortizacion'!K125,8)))))) -> 0
A125: 2028-04-06 | B125: 0 | C125: =+VLOOKUP(A125,'Tabla de Amortizacion'!$D$2:$O$182,MATCH(Tablas!$B$1,'Tabla de Amortizacion'!$D$2:$O$2,0)) -> 0 | E125: =IF([1]CALCULADORA!$F$10="Contractual",ROUND('[1]Tabla de Amortizacion'!C126,8),IF([1]CALCULADORA!$F$10="6% (Medio)",ROUND('[1]Tabla de Amortizacion'!F126,8),IF([1]CALCULADORA!$F$10="10% (Medio Alto)",ROUND('[1]Tabla de Amortizacion'!H126,8),IF([1]CALCULADORA!$F$10="14% (Alto)",ROUND('[1]Tabla de Amortizacion'!#REF!,8),IF([1]CALCULADORA!$F$10=20%,ROUND('[1]Tabla de Amortizacion'!#REF!,8),ROUND('[1]Tabla de Amortizacion'!K126,8)))))) -> 0
A126: 2028-05-06 | B126: 0 | C126: =+VLOOKUP(A126,'Tabla de Amortizacion'!$D$2:$O$182,MATCH(Tablas!$B$1,'Tabla de Amortizacion'!$D$2:$O$2,0)) -> 0 | E126: =IF([1]CALCULADORA!$F$10="Contractual",ROUND('[1]Tabla de Amortizacion'!C127,8),IF([1]CALCULADORA!$F$10="6% (Medio)",ROUND('[1]Tabla de Amortizacion'!F127,8),IF([1]CALCULADORA!$F$10="10% (Medio Alto)",ROUND('[1]Tabla de Amortizacion'!H127,8),IF([1]CALCULADORA!$F$10="14% (Alto)",ROUND('[1]Tabla de Amortizacion'!#REF!,8),IF([1]CALCULADORA!$F$10=20%,ROUND('[1]Tabla de Amortizacion'!#REF!,8),ROUND('[1]Tabla de Amortizacion'!K127,8)))))) -> 0
A127: 2028-06-06 | B127: 0 | C127: =+VLOOKUP(A127,'Tabla de Amortizacion'!$D$2:$O$182,MATCH(Tablas!$B$1,'Tabla de Amortizacion'!$D$2:$O$2,0)) -> 0 | E127: =IF([1]CALCULADORA!$F$10="Contractual",ROUND('[1]Tabla de Amortizacion'!C128,8),IF([1]CALCULADORA!$F$10="6% (Medio)",ROUND('[1]Tabla de Amortizacion'!F128,8),IF([1]CALCULADORA!$F$10="10% (Medio Alto)",ROUND('[1]Tabla de Amortizacion'!H128,8),IF([1]CALCULADORA!$F$10="14% (Alto)",ROUND('[1]Tabla de Amortizacion'!#REF!,8),IF([1]CALCULADORA!$F$10=20%,ROUND('[1]Tabla de Amortizacion'!#REF!,8),ROUND('[1]Tabla de Amortizacion'!K128,8)))))) -> 0
A128: 2028-07-06 | B128: 0 | C128: =+VLOOKUP(A128,'Tabla de Amortizacion'!$D$2:$O$182,MATCH(Tablas!$B$1,'Tabla de Amortizacion'!$D$2:$O$2,0)) -> 0 | E128: =IF([1]CALCULADORA!$F$10="Contractual",ROUND('[1]Tabla de Amortizacion'!C129,8),IF([1]CALCULADORA!$F$10="6% (Medio)",ROUND('[1]Tabla de Amortizacion'!F129,8),IF([1]CALCULADORA!$F$10="10% (Medio Alto)",ROUND('[1]Tabla de Amortizacion'!H129,8),IF([1]CALCULADORA!$F$10="14% (Alto)",ROUND('[1]Tabla de Amortizacion'!#REF!,8),IF([1]CALCULADORA!$F$10=20%,ROUND('[1]Tabla de Amortizacion'!#REF!,8),ROUND('[1]Tabla de Amortizacion'!K129,8)))))) -> 0
A129: 2028-08-06 | B129: 0 | C129: =+VLOOKUP(A129,'Tabla de Amortizacion'!$D$2:$O$182,MATCH(Tablas!$B$1,'Tabla de Amortizacion'!$D$2:$O$2,0)) -> 0 | E129: =IF([1]CALCULADORA!$F$10="Contractual",ROUND('[1]Tabla de Amortizacion'!C130,8),IF([1]CALCULADORA!$F$10="6% (Medio)",ROUND('[1]Tabla de Amortizacion'!F130,8),IF([1]CALCULADORA!$F$10="10% (Medio Alto)",ROUND('[1]Tabla de Amortizacion'!H130,8),IF([1]CALCULADORA!$F$10="14% (Alto)",ROUND('[1]Tabla de Amortizacion'!#REF!,8),IF([1]CALCULADORA!$F$10=20%,ROUND('[1]Tabla de Amortizacion'!#REF!,8),ROUND('[1]Tabla de Amortizacion'!K130,8)))))) -> 0
A130: 2028-09-06 | B130: 0 | C130: =+VLOOKUP(A130,'Tabla de Amortizacion'!$D$2:$O$182,MATCH(Tablas!$B$1,'Tabla de Amortizacion'!$D$2:$O$2,0)) -> 0 | E130: =IF([1]CALCULADORA!$F$10="Contractual",ROUND('[1]Tabla de Amortizacion'!C131,8),IF([1]CALCULADORA!$F$10="6% (Medio)",ROUND('[1]Tabla de Amortizacion'!F131,8),IF([1]CALCULADORA!$F$10="10% (Medio Alto)",ROUND('[1]Tabla de Amortizacion'!H131,8),IF([1]CALCULADORA!$F$10="14% (Alto)",ROUND('[1]Tabla de Amortizacion'!#REF!,8),IF([1]CALCULADORA!$F$10=20%,ROUND('[1]Tabla de Amortizacion'!#REF!,8),ROUND('[1]Tabla de Amortizacion'!K131,8)))))) -> 0
A131: =EDATE(A130,1) -> 2028-10-06 | B131: =+ROUND(C131,8) -> 0 | C131: =+VLOOKUP(A131,'Tabla de Amortizacion'!$D$2:$O$182,MATCH(Tablas!$B$1,'Tabla de Amortizacion'!$D$2:$O$2,0)) -> 0 | E131: =IF([1]CALCULADORA!$F$10="Contractual",ROUND('[1]Tabla de Amortizacion'!C132,8),IF([1]CALCULADORA!$F$10="6% (Medio)",ROUND('[1]Tabla de Amortizacion'!F132,8),IF([1]CALCULADORA!$F$10="10% (Medio Alto)",ROUND('[1]Tabla de Amortizacion'!H132,8),IF([1]CALCULADORA!$F$10="14% (Alto)",ROUND('[1]Tabla de Amortizacion'!#REF!,8),IF([1]CALCULADORA!$F$10=20%,ROUND('[1]Tabla de Amortizacion'!#REF!,8),ROUND('[1]Tabla de Amortizacion'!K132,8)))))) -> 0
A132: 2028-11-06 | B132: 0 | C132: =+VLOOKUP(A132,'Tabla de Amortizacion'!$D$2:$O$182,MATCH(Tablas!$B$1,'Tabla de Amortizacion'!$D$2:$O$2,0)) -> 0 | E132: =IF([1]CALCULADORA!$F$10="Contractual",ROUND('[1]Tabla de Amortizacion'!C133,8),IF([1]CALCULADORA!$F$10="6% (Medio)",ROUND('[1]Tabla de Amortizacion'!F133,8),IF([1]CALCULADORA!$F$10="10% (Medio Alto)",ROUND('[1]Tabla de Amortizacion'!H133,8),IF([1]CALCULADORA!$F$10="14% (Alto)",ROUND('[1]Tabla de Amortizacion'!#REF!,8),IF([1]CALCULADORA!$F$10=20%,ROUND('[1]Tabla de Amortizacion'!#REF!,8),ROUND('[1]Tabla de Amortizacion'!K133,8)))))) -> 0
A133: 2028-12-06 | B133: 0 | C133: =+VLOOKUP(A133,'Tabla de Amortizacion'!$D$2:$O$182,MATCH(Tablas!$B$1,'Tabla de Amortizacion'!$D$2:$O$2,0)) -> 0 | E133: =IF([1]CALCULADORA!$F$10="Contractual",ROUND('[1]Tabla de Amortizacion'!C134,8),IF([1]CALCULADORA!$F$10="6% (Medio)",ROUND('[1]Tabla de Amortizacion'!F134,8),IF([1]CALCULADORA!$F$10="10% (Medio Alto)",ROUND('[1]Tabla de Amortizacion'!H134,8),IF([1]CALCULADORA!$F$10="14% (Alto)",ROUND('[1]Tabla de Amortizacion'!#REF!,8),IF([1]CALCULADORA!$F$10=20%,ROUND('[1]Tabla de Amortizacion'!#REF!,8),ROUND('[1]Tabla de Amortizacion'!K134,8)))))) -> 0
A134: 2029-01-06 | B134: 0 | C134: =+VLOOKUP(A134,'Tabla de Amortizacion'!$D$2:$O$182,MATCH(Tablas!$B$1,'Tabla de Amortizacion'!$D$2:$O$2,0)) -> 0 | E134: =IF([1]CALCULADORA!$F$10="Contractual",ROUND('[1]Tabla de Amortizacion'!C135,8),IF([1]CALCULADORA!$F$10="6% (Medio)",ROUND('[1]Tabla de Amortizacion'!F135,8),IF([1]CALCULADORA!$F$10="10% (Medio Alto)",ROUND('[1]Tabla de Amortizacion'!H135,8),IF([1]CALCULADORA!$F$10="14% (Alto)",ROUND('[1]Tabla de Amortizacion'!#REF!,8),IF([1]CALCULADORA!$F$10=20%,ROUND('[1]Tabla de Amortizacion'!#REF!,8),ROUND('[1]Tabla de Amortizacion'!K135,8)))))) -> 0
A135: 2029-02-06 | B135: 0 | C135: =+VLOOKUP(A135,'Tabla de Amortizacion'!$D$2:$O$182,MATCH(Tablas!$B$1,'Tabla de Amortizacion'!$D$2:$O$2,0)) -> 0 | E135: =IF([1]CALCULADORA!$F$10="Contractual",ROUND('[1]Tabla de Amortizacion'!C136,8),IF([1]CALCULADORA!$F$10="6% (Medio)",ROUND('[1]Tabla de Amortizacion'!F136,8),IF([1]CALCULADORA!$F$10="10% (Medio Alto)",ROUND('[1]Tabla de Amortizacion'!H136,8),IF([1]CALCULADORA!$F$10="14% (Alto)",ROUND('[1]Tabla de Amortizacion'!#REF!,8),IF([1]CALCULADORA!$F$10=20%,ROUND('[1]Tabla de Amortizacion'!#REF!,8),ROUND('[1]Tabla de Amortizacion'!K136,8)))))) -> 0
A136: 2029-03-06 | B136: 0 | C136: =+VLOOKUP(A136,'Tabla de Amortizacion'!$D$2:$O$182,MATCH(Tablas!$B$1,'Tabla de Amortizacion'!$D$2:$O$2,0)) -> 0 | E136: =IF([1]CALCULADORA!$F$10="Contractual",ROUND('[1]Tabla de Amortizacion'!C137,8),IF([1]CALCULADORA!$F$10="6% (Medio)",ROUND('[1]Tabla de Amortizacion'!F137,8),IF([1]CALCULADORA!$F$10="10% (Medio Alto)",ROUND('[1]Tabla de Amortizacion'!H137,8),IF([1]CALCULADORA!$F$10="14% (Alto)",ROUND('[1]Tabla de Amortizacion'!#REF!,8),IF([1]CALCULADORA!$F$10=20%,ROUND('[1]Tabla de Amortizacion'!#REF!,8),ROUND('[1]Tabla de Amortizacion'!K137,8)))))) -> 0
A137: 2029-04-06 | B137: 0 | C137: =+VLOOKUP(A137,'Tabla de Amortizacion'!$D$2:$O$182,MATCH(Tablas!$B$1,'Tabla de Amortizacion'!$D$2:$O$2,0)) -> 0 | E137: =IF([1]CALCULADORA!$F$10="Contractual",ROUND('[1]Tabla de Amortizacion'!C138,8),IF([1]CALCULADORA!$F$10="6% (Medio)",ROUND('[1]Tabla de Amortizacion'!F138,8),IF([1]CALCULADORA!$F$10="10% (Medio Alto)",ROUND('[1]Tabla de Amortizacion'!H138,8),IF([1]CALCULADORA!$F$10="14% (Alto)",ROUND('[1]Tabla de Amortizacion'!#REF!,8),IF([1]CALCULADORA!$F$10=20%,ROUND('[1]Tabla de Amortizacion'!#REF!,8),ROUND('[1]Tabla de Amortizacion'!K138,8)))))) -> 0
A138: 2029-05-06 | B138: 0 | C138: =+VLOOKUP(A138,'Tabla de Amortizacion'!$D$2:$O$182,MATCH(Tablas!$B$1,'Tabla de Amortizacion'!$D$2:$O$2,0)) -> 0 | E138: =IF([1]CALCULADORA!$F$10="Contractual",ROUND('[1]Tabla de Amortizacion'!C139,8),IF([1]CALCULADORA!$F$10="6% (Medio)",ROUND('[1]Tabla de Amortizacion'!F139,8),IF([1]CALCULADORA!$F$10="10% (Medio Alto)",ROUND('[1]Tabla de Amortizacion'!H139,8),IF([1]CALCULADORA!$F$10="14% (Alto)",ROUND('[1]Tabla de Amortizacion'!#REF!,8),IF([1]CALCULADORA!$F$10=20%,ROUND('[1]Tabla de Amortizacion'!#REF!,8),ROUND('[1]Tabla de Amortizacion'!K139,8)))))) -> 0
A139: 2029-06-06 | B139: 0 | C139: =+VLOOKUP(A139,'Tabla de Amortizacion'!$D$2:$O$182,MATCH(Tablas!$B$1,'Tabla de Amortizacion'!$D$2:$O$2,0)) -> 0 | E139: =IF([1]CALCULADORA!$F$10="Contractual",ROUND('[1]Tabla de Amortizacion'!C140,8),IF([1]CALCULADORA!$F$10="6% (Medio)",ROUND('[1]Tabla de Amortizacion'!F140,8),IF([1]CALCULADORA!$F$10="10% (Medio Alto)",ROUND('[1]Tabla de Amortizacion'!H140,8),IF([1]CALCULADORA!$F$10="14% (Alto)",ROUND('[1]Tabla de Amortizacion'!#REF!,8),IF([1]CALCULADORA!$F$10=20%,ROUND('[1]Tabla de Amortizacion'!#REF!,8),ROUND('[1]Tabla de Amortizacion'!K140,8)))))) -> 0
A140: 2029-07-06 | B140: 0 | C140: =+VLOOKUP(A140,'Tabla de Amortizacion'!$D$2:$O$182,MATCH(Tablas!$B$1,'Tabla de Amortizacion'!$D$2:$O$2,0)) -> 0 | E140: =IF([1]CALCULADORA!$F$10="Contractual",ROUND('[1]Tabla de Amortizacion'!C141,8),IF([1]CALCULADORA!$F$10="6% (Medio)",ROUND('[1]Tabla de Amortizacion'!F141,8),IF([1]CALCULADORA!$F$10="10% (Medio Alto)",ROUND('[1]Tabla de Amortizacion'!H141,8),IF([1]CALCULADORA!$F$10="14% (Alto)",ROUND('[1]Tabla de Amortizacion'!#REF!,8),IF([1]CALCULADORA!$F$10=20%,ROUND('[1]Tabla de Amortizacion'!#REF!,8),ROUND('[1]Tabla de Amortizacion'!K141,8)))))) -> 0
A141: 2029-08-06 | B141: 0 | C141: =+VLOOKUP(A141,'Tabla de Amortizacion'!$D$2:$O$182,MATCH(Tablas!$B$1,'Tabla de Amortizacion'!$D$2:$O$2,0)) -> 0 | E141: =IF([1]CALCULADORA!$F$10="Contractual",ROUND('[1]Tabla de Amortizacion'!C142,8),IF([1]CALCULADORA!$F$10="6% (Medio)",ROUND('[1]Tabla de Amortizacion'!F142,8),IF([1]CALCULADORA!$F$10="10% (Medio Alto)",ROUND('[1]Tabla de Amortizacion'!H142,8),IF([1]CALCULADORA!$F$10="14% (Alto)",ROUND('[1]Tabla de Amortizacion'!#REF!,8),IF([1]CALCULADORA!$F$10=20%,ROUND('[1]Tabla de Amortizacion'!#REF!,8),ROUND('[1]Tabla de Amortizacion'!K142,8)))))) -> 0
A142: 2029-09-06 | B142: 0 | C142: =+VLOOKUP(A142,'Tabla de Amortizacion'!$D$2:$O$182,MATCH(Tablas!$B$1,'Tabla de Amortizacion'!$D$2:$O$2,0)) -> 0 | E142: =IF([1]CALCULADORA!$F$10="Contractual",ROUND('[1]Tabla de Amortizacion'!C143,8),IF([1]CALCULADORA!$F$10="6% (Medio)",ROUND('[1]Tabla de Amortizacion'!F143,8),IF([1]CALCULADORA!$F$10="10% (Medio Alto)",ROUND('[1]Tabla de Amortizacion'!H143,8),IF([1]CALCULADORA!$F$10="14% (Alto)",ROUND('[1]Tabla de Amortizacion'!#REF!,8),IF([1]CALCULADORA!$F$10=20%,ROUND('[1]Tabla de Amortizacion'!#REF!,8),ROUND('[1]Tabla de Amortizacion'!K143,8)))))) -> 0
A143: 2029-10-06 | B143: 0 | C143: =+VLOOKUP(A143,'Tabla de Amortizacion'!$D$2:$O$182,MATCH(Tablas!$B$1,'Tabla de Amortizacion'!$D$2:$O$2,0)) -> 0 | E143: =IF([1]CALCULADORA!$F$10="Contractual",ROUND('[1]Tabla de Amortizacion'!C144,8),IF([1]CALCULADORA!$F$10="6% (Medio)",ROUND('[1]Tabla de Amortizacion'!F144,8),IF([1]CALCULADORA!$F$10="10% (Medio Alto)",ROUND('[1]Tabla de Amortizacion'!H144,8),IF([1]CALCULADORA!$F$10="14% (Alto)",ROUND('[1]Tabla de Amortizacion'!#REF!,8),IF([1]CALCULADORA!$F$10=20%,ROUND('[1]Tabla de Amortizacion'!#REF!,8),ROUND('[1]Tabla de Amortizacion'!K144,8)))))) -> 0
A144: 2029-11-06 | B144: 0 | C144: =+VLOOKUP(A144,'Tabla de Amortizacion'!$D$2:$O$182,MATCH(Tablas!$B$1,'Tabla de Amortizacion'!$D$2:$O$2,0)) -> 0 | E144: =IF([1]CALCULADORA!$F$10="Contractual",ROUND('[1]Tabla de Amortizacion'!C145,8),IF([1]CALCULADORA!$F$10="6% (Medio)",ROUND('[1]Tabla de Amortizacion'!F145,8),IF([1]CALCULADORA!$F$10="10% (Medio Alto)",ROUND('[1]Tabla de Amortizacion'!H145,8),IF([1]CALCULADORA!$F$10="14% (Alto)",ROUND('[1]Tabla de Amortizacion'!#REF!,8),IF([1]CALCULADORA!$F$10=20%,ROUND('[1]Tabla de Amortizacion'!#REF!,8),ROUND('[1]Tabla de Amortizacion'!K145,8)))))) -> 0
A145: 2029-12-06 | B145: 0 | C145: =+VLOOKUP(A145,'Tabla de Amortizacion'!$D$2:$O$182,MATCH(Tablas!$B$1,'Tabla de Amortizacion'!$D$2:$O$2,0)) -> 0 | E145: =IF([1]CALCULADORA!$F$10="Contractual",ROUND('[1]Tabla de Amortizacion'!C146,8),IF([1]CALCULADORA!$F$10="6% (Medio)",ROUND('[1]Tabla de Amortizacion'!F146,8),IF([1]CALCULADORA!$F$10="10% (Medio Alto)",ROUND('[1]Tabla de Amortizacion'!H146,8),IF([1]CALCULADORA!$F$10="14% (Alto)",ROUND('[1]Tabla de Amortizacion'!#REF!,8),IF([1]CALCULADORA!$F$10=20%,ROUND('[1]Tabla de Amortizacion'!#REF!,8),ROUND('[1]Tabla de Amortizacion'!K146,8)))))) -> 0
A146: 2030-01-06 | B146: 0 | C146: =+VLOOKUP(A146,'Tabla de Amortizacion'!$D$2:$O$182,MATCH(Tablas!$B$1,'Tabla de Amortizacion'!$D$2:$O$2,0)) -> 0 | E146: =IF([1]CALCULADORA!$F$10="Contractual",ROUND('[1]Tabla de Amortizacion'!C147,8),IF([1]CALCULADORA!$F$10="6% (Medio)",ROUND('[1]Tabla de Amortizacion'!F147,8),IF([1]CALCULADORA!$F$10="10% (Medio Alto)",ROUND('[1]Tabla de Amortizacion'!H147,8),IF([1]CALCULADORA!$F$10="14% (Alto)",ROUND('[1]Tabla de Amortizacion'!#REF!,8),IF([1]CALCULADORA!$F$10=20%,ROUND('[1]Tabla de Amortizacion'!#REF!,8),ROUND('[1]Tabla de Amortizacion'!K147,8)))))) -> 0
A147: 2030-02-06 | B147: 0 | C147: =+VLOOKUP(A147,'Tabla de Amortizacion'!$D$2:$O$182,MATCH(Tablas!$B$1,'Tabla de Amortizacion'!$D$2:$O$2,0)) -> 0 | E147: =IF([1]CALCULADORA!$F$10="Contractual",ROUND('[1]Tabla de Amortizacion'!C148,8),IF([1]CALCULADORA!$F$10="6% (Medio)",ROUND('[1]Tabla de Amortizacion'!F148,8),IF([1]CALCULADORA!$F$10="10% (Medio Alto)",ROUND('[1]Tabla de Amortizacion'!H148,8),IF([1]CALCULADORA!$F$10="14% (Alto)",ROUND('[1]Tabla de Amortizacion'!#REF!,8),IF([1]CALCULADORA!$F$10=20%,ROUND('[1]Tabla de Amortizacion'!#REF!,8),ROUND('[1]Tabla de Amortizacion'!K148,8)))))) -> 0
A148: 2030-03-06 | B148: 0 | C148: =+VLOOKUP(A148,'Tabla de Amortizacion'!$D$2:$O$182,MATCH(Tablas!$B$1,'Tabla de Amortizacion'!$D$2:$O$2,0)) -> 0 | E148: =IF([1]CALCULADORA!$F$10="Contractual",ROUND('[1]Tabla de Amortizacion'!C149,8),IF([1]CALCULADORA!$F$10="6% (Medio)",ROUND('[1]Tabla de Amortizacion'!F149,8),IF([1]CALCULADORA!$F$10="10% (Medio Alto)",ROUND('[1]Tabla de Amortizacion'!H149,8),IF([1]CALCULADORA!$F$10="14% (Alto)",ROUND('[1]Tabla de Amortizacion'!#REF!,8),IF([1]CALCULADORA!$F$10=20%,ROUND('[1]Tabla de Amortizacion'!#REF!,8),ROUND('[1]Tabla de Amortizacion'!K149,8)))))) -> 0
A149: 2030-04-06 | B149: 0 | C149: =+VLOOKUP(A149,'Tabla de Amortizacion'!$D$2:$O$182,MATCH(Tablas!$B$1,'Tabla de Amortizacion'!$D$2:$O$2,0)) -> 0 | E149: =IF([1]CALCULADORA!$F$10="Contractual",ROUND('[1]Tabla de Amortizacion'!C150,8),IF([1]CALCULADORA!$F$10="6% (Medio)",ROUND('[1]Tabla de Amortizacion'!F150,8),IF([1]CALCULADORA!$F$10="10% (Medio Alto)",ROUND('[1]Tabla de Amortizacion'!H150,8),IF([1]CALCULADORA!$F$10="14% (Alto)",ROUND('[1]Tabla de Amortizacion'!#REF!,8),IF([1]CALCULADORA!$F$10=20%,ROUND('[1]Tabla de Amortizacion'!#REF!,8),ROUND('[1]Tabla de Amortizacion'!K150,8)))))) -> 0
A150: 2030-05-06 | B150: 0 | C150: =+VLOOKUP(A150,'Tabla de Amortizacion'!$D$2:$O$182,MATCH(Tablas!$B$1,'Tabla de Amortizacion'!$D$2:$O$2,0)) -> 0 | E150: =IF([1]CALCULADORA!$F$10="Contractual",ROUND('[1]Tabla de Amortizacion'!C151,8),IF([1]CALCULADORA!$F$10="6% (Medio)",ROUND('[1]Tabla de Amortizacion'!F151,8),IF([1]CALCULADORA!$F$10="10% (Medio Alto)",ROUND('[1]Tabla de Amortizacion'!H151,8),IF([1]CALCULADORA!$F$10="14% (Alto)",ROUND('[1]Tabla de Amortizacion'!#REF!,8),IF([1]CALCULADORA!$F$10=20%,ROUND('[1]Tabla de Amortizacion'!#REF!,8),ROUND('[1]Tabla de Amortizacion'!K151,8)))))) -> 0
A151: 2030-06-06 | B151: 0 | C151: =+VLOOKUP(A151,'Tabla de Amortizacion'!$D$2:$O$182,MATCH(Tablas!$B$1,'Tabla de Amortizacion'!$D$2:$O$2,0)) -> 0 | E151: =IF([1]CALCULADORA!$F$10="Contractual",ROUND('[1]Tabla de Amortizacion'!C152,8),IF([1]CALCULADORA!$F$10="6% (Medio)",ROUND('[1]Tabla de Amortizacion'!F152,8),IF([1]CALCULADORA!$F$10="10% (Medio Alto)",ROUND('[1]Tabla de Amortizacion'!H152,8),IF([1]CALCULADORA!$F$10="14% (Alto)",ROUND('[1]Tabla de Amortizacion'!#REF!,8),IF([1]CALCULADORA!$F$10=20%,ROUND('[1]Tabla de Amortizacion'!#REF!,8),ROUND('[1]Tabla de Amortizacion'!K152,8)))))) -> 0
A152: 2030-07-06 | B152: 0 | C152: =+VLOOKUP(A152,'Tabla de Amortizacion'!$D$2:$O$182,MATCH(Tablas!$B$1,'Tabla de Amortizacion'!$D$2:$O$2,0)) -> 0 | E152: =IF([1]CALCULADORA!$F$10="Contractual",ROUND('[1]Tabla de Amortizacion'!C153,8),IF([1]CALCULADORA!$F$10="6% (Medio)",ROUND('[1]Tabla de Amortizacion'!F153,8),IF([1]CALCULADORA!$F$10="10% (Medio Alto)",ROUND('[1]Tabla de Amortizacion'!H153,8),IF([1]CALCULADORA!$F$10="14% (Alto)",ROUND('[1]Tabla de Amortizacion'!#REF!,8),IF([1]CALCULADORA!$F$10=20%,ROUND('[1]Tabla de Amortizacion'!#REF!,8),ROUND('[1]Tabla de Amortizacion'!K153,8)))))) -> 0
